Workbook

Sheet Cover

Sheet Contents
A8: Contents
A11: Tab | B11: Description
A12: One-pager
A14: Cover, Guide & Drivers
A16: RAG and Ranking
A18: Chapter 2 - Incentive Payments
A19: Incentive Payments | B19: Summary table of 2017-18 incentive payments including: BMCS, IIS, ICE, TTC, LDR and total incentive payments
A21: Reliability | B21: Reliability and Availability incentive measures including: IIS, GSoP, WSC and Network resilience
A23: Network Asset Secondary Deliverables | B23: Health, critically and monetised risk
A25: Connections | B25: Connection incentives including: Time to Connect Incentive, Incentive on Connections Engagement (ICE), Connections on Guaranteed Standards of Performance and Customer Satisfaction Survey
A27: Environment | B27: Environment incentives including: Obligation to manage losses, Business Carbon Footprint, limiting emissions of Sulphur Hexafluoride (SF6), Fluid filled cable leakage, Noise pollution, Visual impact allowance for undergrounding overhead lines in Areas of Outstanding Natural Beauty (AONB) & National Parks and Environmental report
A29: Customer Satisfaction | B29: Customer Satisfaction incentives including: Customer Satisfaction Survey, Complaints Metric and Stakeholder Engagement and Consumer Vulnerability
A31: Innovation | B31: Innovation data including: Network Innovation Allowance, Network Innovation Competition and Innovation projects
A33: Chapter 3 - Financial Performance
A34: Financial Performance | B34: Review of the expenditure and financial performance of DNOs in 2017/18
A36: Chapter 4 - Expenditure Drivers
A37: Expenditure Drivers | B37: Expenditure driver's data including: Expenditure drivers of allowances and expenditures of each cost category, distribution of overall allowances and expenditures and Baselines allowances & actual expenditure by cost category
A39: Expenditure Drivers 2 | B39: Overall outline of baseline allowances of each cost category, areas of underspend and areas of overspend

Sheet One-pager
A1: One-Pager
A2: Industry Average
A3: One-Pager - key data points of each DNO (Dropdown Menu above)
A4: Cover, Guide and Drivers | G4: Financial Performance
B5: 2018 | C5: 8 year trend | H5: 2018 | I5: ED1 trend
A6: Customer numbers | B6: =TEXT(Calculations!J7,"#,##0") -> 2,126,704 | G6: Allowed totex | H6: ="£"&TEXT(Calculations!H234,"#,##0.00")&"m" -> £252.91m
A7: Network length | B7: =TEXT(Calculations!J8,"#,##0.00")&"km" -> 57,032.90km | G7: Actual totex | H7: ="£"&TEXT(Calculations!H235,"#,##0.00")&"m" -> £243.94m
A8: Total units distributed | B8: =TEXT(Calculations!J9,"#,##0.00")&" GWh" -> 20,286.88 GWh | G8: Overspend/underspend | H8: =TEXT(Calculations!H236,"+£0.00;-£0.00")&"m" -> -£8.97m
A9: Network-wide peak load | B9: =TEXT(Calculations!J10,"#,##0")&" MVA" -> 3,869 MVA | G9: Allowed totex after totex incentive rate | H9: ="£"&TEXT(Calculations!H238,"#,##0.00")&"m" -> £248.97m
G10: Corrected Allowed Revenue | H10: ="£"&TEXT(Calculations!J254,"#,##0.00")&"m" -> £413.58m
A11: Incentive Payments | G11: Customer Bill Impact (per customer) | H11: ="£"&TEXT(Calculations!J257,"#,##0.00") -> 
B12: 2018 | G12: RAV at start of financial year | H12: ="£"&TEXT(Calculations!H260,"#,##0.00")&"m" -> £1,763.81m
A13: Total Incentive Payments | B13: ="£"&TEXT(Calculations!C19,"#,##0.00")&"m" -> £14.29m | G13: RAV at end of financial year | H13: ="£"&TEXT(Calculations!H263,"#,##0.00")&"m" -> £1,787.25m
A15: Reliability | G15: Expenditure Drivers (Over-spend/under-spend %)
B16: 2018 | C16: ED1 trend | D16: RAG rating | H16: 2018 Difference | I16: 2018 Difference % | J16: ED1 trend
A17: CI Performance | B17: =Calculations!F24 -> 45.28779569 | D17: =IF(B17<=(Calculations!F29+Calculations!F35),"Green",IF(B17<=(Calculations!F29+Calculations!F35)*1.05,"Amber","Red")) -> Green | G17: Network reinforcement | H17: =TEXT(Calculations!O285,"+£0.00;-£0.00")&"m" -> -£7.45m | I17: =IFERROR(TEXT(Calculations!O286,"+0.00%;-0.00%"),"") -> -30.25%
A18: CML Performance | B18: =Calculations!F26 -> 35.50477337 | D18: =IF(B18<=(Calculations!F32+Calculations!F38),"Green",IF(B18<=(Calculations!F32+Calculations!F38)*1.05,"Amber","Red")) -> Green | G18: Replacing and refurbishing equipment | H18: =TEXT(Calculations!O292,"+£0.00;-£0.00")&"m" -> -£10.34m | I18: =IFERROR(TEXT(Calculations!O293,"+0.00%;-0.00%"),"") -> -16.14%
A19: IIS Total Reward/Penalty | B19: ="£"&TEXT(Calculations!F40,"#,##0.00")&"m" -> £9.86m | G19: Network faults | H19: =TEXT(Calculations!O299,"+£0.00;-£0.00")&"m" -> +£3.51m | I19: =IFERROR(TEXT(Calculations!O300,"+0.00%;-0.00%"),"") -> +12.00%
A20: GSOP mandatory payments vs valid payments owed | B20: =Calculations!F70 -> 0.1199739637 | G20: Operational support | H20: =TEXT(Calculations!O306,"+£0.00;-£0.00")&"m" -> +£8.21m | I20: =IFERROR(TEXT(Calculations!O307,"+0.00%;-0.00%"),"") -> +16.90%
A21: WSC Expenditure | B21: ="£"&TEXT(Calculations!F75,"#,##0.00")&"m" -> £0.11m | G21: Business support | H21: =TEXT(Calculations!O313,"+£0.00;-£0.00")&"m" -> +£0.83m | I21: =IFERROR(TEXT(Calculations!O314,"+0.00%;-0.00%"),"") -> +3.17%
A22: Total Resilience Baseline | B22: ="£"&TEXT(Calculations!F88,"#,##0.00")&"m" -> £10.76m | G22: Black start, Flood mitigation, Physical security and Tree cutting | H22: =TEXT(Calculations!O320,"+£0.00;-£0.00")&"m" -> -£1.07m | I22: =IFERROR(TEXT(Calculations!O321,"+0.00%;-0.00%"),"") -> -9.93%
A23: Total Resilience Actual | B23: ="£"&TEXT(Calculations!F89,"#,##0.00")&"m" -> £9.69m
G24: Connections | H24: =TEXT(Calculations!O327,"+£0.00;-£0.00")&"m" -> +£2.39m | I24: =IFERROR(TEXT(Calculations!O328,"+0.00%;-0.00%"),"") -> +101.78%
A25: Connections | G25: Reinforcement | H25: =TEXT(Calculations!O334,"+£0.00;-£0.00")&"m" -> -£8.42m | I25: =IFERROR(TEXT(Calculations!O335,"+0.00%;-0.00%"),"") -> -40.60%
B26: 2018 | C26: ED1 trend | D26: RAG rating | E26: Ranking | G26: Transmission Connection Point | H26: =TEXT(Calculations!O341,"+£0.00;-£0.00")&"m" -> -£1.42m | I26: =IFERROR(TEXT(Calculations!O342,"+0.00%;-0.00%"),"") -> -91.48%
A27: Distributed Generation | B27: =TEXT(Calculations!E106,"#,##0.00")&" MW" -> 121.08 MW | G27: Diversions (Excluding Rail Electrification) | H27: =TEXT(Calculations!O348,"+£0.00;-£0.00")&"m" -> +£0.84m | I27: =IFERROR(TEXT(Calculations!O349,"+0.00%;-0.00%"),"") -> +13.39%
A28: TTC Reward | B28: ="£"&TEXT(Calculations!E118,"#,##0.00")&"m" -> £0.91m | D28: =Calculations!E119 -> Green | E28: =Calculations!E121 -> 7.357142857 | G28: Diversions Rail Elec | H28: =TEXT(Calculations!O355,"+£0.00;-£0.00")&"m" -> -£0.82m | I28: =IFERROR(TEXT(Calculations!O356,"+0.00%;-0.00%"),"") -> -98.99%
A29: ICE Penalty | B29: ="£"&TEXT(Calculations!D16,"#,##0.00")&"m" -> £0.00m | G29: Asset Replacement | H29: =TEXT(Calculations!O362,"+£0.00;-£0.00")&"m" -> -£7.74m | I29: =IFERROR(TEXT(Calculations!O363,"+0.00%;-0.00%"),"") -> -15.34%
A30: Penalties paid against Connection GSOPs | B30: ="£"&TEXT(Calculations!E127,"#,##0") -> £18,267 | D30: =Calculations!E129 -> Green | E30: =Calculations!E130 -> 7.071428571 | G30: Refurbishment | H30: =TEXT(Calculations!O369,"+£0.00;-£0.00")&"m" -> -£1.09m | I30: =IFERROR(TEXT(Calculations!O370,"+0.00%;-0.00%"),"") -> -17.15%
G31: Civil Works Condition Driven | H31: =TEXT(Calculations!O376,"+£0.00;-£0.00")&"m" -> -£1.42m | I31: =IFERROR(TEXT(Calculations!O377,"+0.00%;-0.00%"),"") -> -30.55%
A32: Environment | G32: Operational IT and telecoms | H32: =TEXT(Calculations!O383,"+£0.00;-£0.00")&"m" -> -£1.59m | I32: =IFERROR(TEXT(Calculations!O384,"+0.00%;-0.00%"),"") -> -29.07%
B33: 2018 | C33: ED1 trend | E33: Ranking | G33: Blackstart | H33: =TEXT(Calculations!O390,"+£0.00;-£0.00")&"m" -> +£0.20m | I33: =IFERROR(TEXT(Calculations!O391,"+0.00%;-0.00%"),"") -> +28.81%
A34: Distribution Losses | B34: =Calculations!J136 -> 0.06182249045 | G34: BT21CN | H34: =TEXT(Calculations!O397,"+£0.00;-£0.00")&"m" -> +£0.64m | I34: =IFERROR(TEXT(Calculations!O398,"+0.00%;-0.00%"),"") -> +84.65%
A35: LDR Reward (2016/17) | B35: ="£"&TEXT(Calculations!I135,"#,##0.00") -> £660,495.07 | E35: =Calculations!I137 -> 6.642857143 | G35: Legal & Safety | H35: =TEXT(Calculations!O404,"+£0.00;-£0.00")&"m" -> -£1.93m | I35: =IFERROR(TEXT(Calculations!O405,"+0.00%;-0.00%"),"") -> -41.39%
A36: BCF (as % of network length and customer numbers) | B36: =Calculations!J141 -> 0.1404370899 | E36: =Calculations!J142 -> 7.5 | G36: QoS & North of Scotland Resilience | H36: =TEXT(Calculations!O411,"+£0.00;-£0.00")&"m" -> +£1.66m | I36: =IFERROR(TEXT(Calculations!O412,"+0.00%;-0.00%"),"") -> +281.47%
A37: SF6 emissions (as % of SF6 bank) | B37: =Calculations!J147 -> 0.003500113846 | E37: =Calculations!J148 -> 7.5 | G37: Flood Mitigation | H37: =TEXT(Calculations!O418,"+£0.00;-£0.00")&"m" -> -£0.22m | I37: =IFERROR(TEXT(Calculations!O419,"+0.00%;-0.00%"),"") -> -18.20%
A38: Top up of fluid-filled cabes (as % of oil in service) | B38: =Calculations!J153 -> 0.02860595653 | E38: =Calculations!J154 -> 6.5 | G38: Physical Security | H38: =TEXT(Calculations!O425,"+£0.00;-£0.00")&"m" -> -£0.08m | I38: =IFERROR(TEXT(Calculations!O426,"+0.00%;-0.00%"),"") -> -93.62%
A39: Undergrounding expenditure | B39: ="£"&TEXT(Calculations!J159,"#,##0.00")&"m" -> £0.46m | G39: Rising and Lateral Mains | H39: =TEXT(Calculations!O432,"+£0.00;-£0.00")&"m" -> -£0.73m | I39: =IFERROR(TEXT(Calculations!O433,"+0.00%;-0.00%"),"") -> -38.72%
A40: Slow charge EVs connected to the distribution network | B40: =TEXT(Calculations!J162,"#,##0.00")&" MW" -> 0.75 MW | G40: Overhead Line Clearances | H40: =TEXT(Calculations!O439,"+£0.00;-£0.00")&"m" -> +£1.65m | I40: =IFERROR(TEXT(Calculations!O440,"+0.00%;-0.00%"),"") -> +66.97%
A41: Fast charge EVs connected to the distribution network | B41: =TEXT(Calculations!J163,"#,##0.00")&" MW" -> 8.91 MW | G41: Environmental Reporting & Losses | H41: =TEXT(Calculations!O446,"+£0.00;-£0.00")&"m" -> -£0.48m | I41: =IFERROR(TEXT(Calculations!O447,"+0.00%;-0.00%"),"") -> -38.80%
A42: Noise complaints | B42: =Calculations!J166 -> 9.928571429 | G42: Faults | H42: =TEXT(Calculations!O453,"+£0.00;-£0.00")&"m" -> +£2.46m | I42: =IFERROR(TEXT(Calculations!O454,"+0.00%;-0.00%"),"") -> +10.70%
G43: Severe Weather 1 in 20 | H43: =TEXT(Calculations!O460,"+£0.00;-£0.00")&"m" -> -£1.00m | I43: =IFERROR(TEXT(Calculations!O461,"+0.00%;-0.00%"),"") -> -100.00%
A44: Customer Satisfaction | G44: ONIs | H44: =TEXT(Calculations!O467,"+£0.00;-£0.00")&"m" -> +£2.04m | I44: =IFERROR(TEXT(Calculations!O468,"+0.00%;-0.00%"),"") -> +39.16%
B45: 2018 | C45: ED1 trend | D45: RAG rating | E45: Ranking | G45: Tree Cutting | H45: =TEXT(Calculations!O474,"+£0.00;-£0.00")&"m" -> -£0.97m | I45: =IFERROR(TEXT(Calculations!O475,"+0.00%;-0.00%"),"") -> -11.07%
A46: Overall CSS Score | B46: =TEXT(Calculations!E174,"#,##0.00") -> 8.74 | D46: =Calculations!E175 -> Green | E46: =Calculations!E176 -> 7.5 | G46: I&M | H46: =TEXT(Calculations!O481,"+£0.00;-£0.00")&"m" -> +£0.57m | I46: =IFERROR(TEXT(Calculations!O482,"+0.00%;-0.00%"),"") -> +6.02%
A47: Complaint Metric Score | B47: =TEXT(Calculations!E183,"#,##0.00") -> 2.90 | D47: =Calculations!E184 -> Green | E47: =Calculations!E185 -> 7.5 | G47: NOCs Other | H47: =TEXT(Calculations!O488,"+£0.00;-£0.00")&"m" -> -£0.96m | I47: =IFERROR(TEXT(Calculations!O489,"+0.00%;-0.00%"),"") -> -35.32%
A48: CSS Reward/Penalty | B48: ="£"&TEXT(Calculations!E193,"#,##0.00")&"m" -> £2.36m | G48: Non Op Capex | H48: =TEXT(Calculations!O495,"+£0.00;-£0.00")&"m" -> +£3.29m | I48: =IFERROR(TEXT(Calculations!O496,"+0.00%;-0.00%"),"") -> +38.50%
A49: Complaints Metric Penalty | B49: ="£"&TEXT(Calculations!E194,"#,##0.00")&"m" -> £0.00m | G49: Smart Meter | H49: =TEXT(Calculations!O502,"+£0.00;-£0.00")&"m" -> +£0.13m | I49: =IFERROR(TEXT(Calculations!O503,"+0.00%;-0.00%"),"") -> +6.11%
A50: Stakeholder Engagement and Consumer Vulnerability Score | B50: =TEXT(Calculations!E188,"#,##0.00") -> 7.23 | D50: =Calculations!E189 -> Green | E50: =Calculations!E190 -> 3 | G50: Closely Associated Indirects | H50: =TEXT(Calculations!O509,"+£0.00;-£0.00")&"m" -> +£8.21m | I50: =IFERROR(TEXT(Calculations!O510,"+0.00%;-0.00%"),"") -> +16.90%
A51: Stakeholder Engagement and Consumer Vulnerability Reward | B51: ="£"&TEXT(Calculations!E195,"#,##0.00")&"m" -> £1.16m | G51: Business Support | H51: =TEXT(Calculations!O516,"+£0.00;-£0.00")&"m" -> +£0.83m | I51: =IFERROR(TEXT(Calculations!O517,"+0.00%;-0.00%"),"") -> +3.17%
A52: Broad Measure of Customer Service Reward/Penalty | B52: ="£"&TEXT(Calculations!E196,"#,##0.00")&"m" -> £3.52m | E52: =Calculations!E197 -> 7.5 | G52: HVP ED1 | H52: =TEXT(Calculations!O523,"+£0.00;-£0.00")&"m" -> -£0.69m | I52: =IFERROR(TEXT(Calculations!O524,"+0.00%;-0.00%"),"") -> -28.63%
G53: HVP DPCR5 | H53: =TEXT(Calculations!O530,"+£0.00;-£0.00")&"m" -> +£0.83m | I53: =IFERROR(TEXT(Calculations!O531,"+0.00%;-0.00%"),"") -> 
A54: Innovation | B54: 2018 | C54: ED1 trend | G54: Total of the disaggregated areas | H54: =TEXT(Calculations!O537,"+£0.00;-£0.00")&"m" -> -£3.82m | I54: =IFERROR(TEXT(Calculations!O538,"+0.00%;-0.00%"),"") -> -1.53%
A55: NIA Expenditure | B55: ="£"&TEXT(Calculations!E204,"#,##0.00")&"m" -> £1.57m | G55: Policy Adjustments (Forecast DRS 8, Disposals, Shetland Competitive Process, Shetland Uncertain Energy, WSC, Atypicals) | H55: =TEXT(Calculations!O544,"+£0.00;-£0.00")&"m" -> +£0.00m | I55: =IFERROR(TEXT(Calculations!O545,"+0.00%;-0.00%"),"") -> 
A56: % of NIA Allowance | B56: =Calculations!E205 -> 0.8279604662
A57: NIC Funding Awarded | B57: ="£"&TEXT(Calculations!E207,"#,##0.00")&"m" -> £3.03m

Sheet Guide & drivers
A1: Guide and Drivers
A2: This workbook provides data that is reported in the Annual Report and more detailed data for those who want to undertake further analysis.
A4: Key
B5: Future year input (graphs will be manually pointed to the relevant years' data)
B6: Actual expenditure or performance
B7: Forecast / target expenditure or performance
B8: Baseline allowances
B9: Forecast/Adjusted allowances
B10: Adjustment factor / Difference
B11: Ranking
A13: Price base: | B13: 2017/18
A15: Input Terms
B17: RPI Index
C18: Financial Year Average RPI | D18: Conversion from 12/13 to nominal prices | E18: Conversion from 15/16 to nominal prices | I18: Index adjustment 2017/18 base year
B19: 2009/10 | C19: 215.767 | D19: =C19/$C$22 -> 0.8818514356 | E19: =C19/$C$25 -> 0.8316867939 | I19: 2009/10 | J19: =$C$27/C19 -> 1.274096595
B20: 2010/11 | C20: 226.475 | D20: 0.9256156125 | E20: 0.8729614197 | I20: 2010/11 | J20: =$C$27/C20 -> 1.213855834
B21: 2011/12 | C21: 237.342 | D21: 0.9700296311 | E21: 0.9148489205 | I21: 2011/12 | J21: 1.158277928
B22: 2012/13 | C22: 244.675 | D22: 1 | E22: 0.9431144072 | I22: 2012/13 | J22: 1.123563911
B23: 2013/14 | C23: 251.733 | D23: 1.028846429 | E23: 0.9703198899 | I23: 2013/14 | J23: 1.092061827
B24: 2014/15 | C24: 256.667 | D24: 1.049011955 | E24: 0.9893382877 | I24: 2014/15 | J24: 1.071068739
B25: 2015/16 | C25: 259.433 | D25: =C25/$C$22 -> 1.060316747 | E25: 1 | I25: 2015/16 | J25: 1.059649312
B26: 2016/17 | C26: 264.992 | D26: =C26/$C$22 -> 1.083036681 | E26: =C26/$C$25 -> 1.021427498 | I26: 2016/17 | J26: 1.037419998
B27: 2017/18 | C27: 274.908 | D27: =C27/$C$22 -> 1.123563911 | E27: =C27/$C$25 -> 1.059649312 | I27: 2017/18 | J27: 1
B28: 2018/19
B29: 2019/20
B30: 2020/21
B31: 2021/22
B32: 2022/23
B35: Convert 2012/13 prices to 2017/18 | C35: =C27/C22 -> 1.123563911
A38: Drivers
B39: Customer numbers
C40: DPCR5 | H40: RIIO ED1
B41: Column1 | C41: 2011 | D41: 2012 | E41: 2013 | F41: 2014 | G41: 2015 | H41: 2016 | I41: 2017 | J41: 2018 | K41: 2019 | L41: 2020 | M41: 2021 | N41: 2022 | O41: 2023
B42: ENWL | C42: 2359391 | D42: 2364446 | E42: 2368572 | F42: 2371790 | G42: 2375305 | H42: 2381080 | I42: 2383214 | J42: 2383887
B43: NPgN | C43: 1575686 | D43: 1581420 | E43: 1583627 | F43: 1586437 | G43: 1590615 | H43: 1596374 | I43: 1600885 | J43: 1602128
B44: NPgY | C44: 2258404 | D44: 2266464 | E44: 2272386 | F44: 2277373 | G44: 2284044 | H44: 2291522 | I44: 2298672 | J44: 2298786
B45: WMID | C45: 2446951 | D45: 2462123 | E45: 2469953 | F45: 2448930 | G45: 2455914 | H45: 2463217 | I45: 2470151 | J45: 2481944
B46: EMID | C46: 2614165 | D46: 2623103 | E46: 2619183 | F46: 2604846 | G46: 2613507 | H46: 2622449 | I46: 2631017 | J46: 2647059
B47: SWALES | C47: 1099333 | D47: 1103465 | E47: 1108168 | F47: 1113015 | G47: 1117685 | H47: 1122920 | I47: 1128284 | J47: 1133101
B48: SWEST | C48: 1541188 | D48: 1551046 | E48: 1561137 | F48: 1570645 | G48: 1579687 | H48: 1590050 | I48: 1600520 | J48: 1613218
B49: LPN | C49: 2251892 | D49: 2267440 | E49: 2279053 | F49: 2286322 | G49: 2298560 | H49: 2311906 | I49: 2330356 | J49: 2345807
B50: SPN | C50: 2233288 | D50: 2247823 | E50: 2257968 | F50: 2262882 | G50: 2271189 | H50: 2281009 | I50: 2288599 | J50: 2296864
B51: EPN | C51: 3516859 | D51: 3537357 | E51: 3556281 | F51: 3565115 | G51: 3581606 | H51: 3599594 | I51: 3614431 | J51: 3627858
B52: SPD | C52: 1992998 | D52: 1994241 | E52: 1996169 | F52: 1996758 | G52: 1998881 | H52: 2002257 | I52: 2004462 | J52: 2007341
B53: SPMW | C53: 1485153 | D53: 1487412 | E53: 1490883 | F53: 1494271 | G53: 1499500 | H53: 1503914 | I53: 1508672 | J53: 1512961
B54: SSEH | C54: 740768 | D54: 745907 | E54: 750446 | F54: 754258 | G54: 757906 | H54: 758000 | I54: 767082 | J54: 772984
B55: SSES | C55: 3026488 | D55: 3040102 | E55: 3054120 | F55: 3067274 | G55: 3082913 | H55: 3098577 | I55: 3032766 | J55: 3049924
B56: Total | C56: =SUM(C41:C55) -> 29142564 | D56: =SUM(D41:D55) -> 29272349 | E56: 29367946 | F56: 29399916 | G56: 29507312 | H56: 29622869 | I56: 29659111 | J56: 29773862
B58: Network length (km)
C59: DPCR5 | H59: RIIO ED1
C60: 2011 | D60: 2012 | E60: 2013 | F60: 2014 | G60: 2015 | H60: 2016 | I60: 2017 | J60: 2018 | K60: 2019 | L60: 2020 | M60: 2021 | N60: 2022 | O60: 2023
B61: ENWL | C61: 56952.2565 | D61: 57115.77162 | E61: 57296.44743 | F61: 57547.74498 | G61: 57722.14882 | H61: 57946.36778 | I61: 57090.45584 | J61: 57324.15031
B62: NPgN | C62: 40159.667 | D62: 40351.759 | E62: 40668.071 | F62: 40787.16 | G62: 41012.91718 | H62: 41243.50856 | I62: 41503.33523 | J62: 41704.94
B63: NPgY | C63: 52782.96193 | D63: 52946.18823 | E63: 53163.7354 | F63: 53299.51433 | G63: 53567.08269 | H63: 53873.9474 | I63: 54095.00209 | J63: 54319.33284
B64: WMID | C64: 63459.141 | D64: 64111.49284 | E64: 64147.94284 | F64: 64280.34684 | G64: 64590.59284 | H64: 64268.9674 | I64: 64575.20571 | J64: 64878.79094
B65: EMID | C65: 71700.13171 | D65: 71919.771 | E65: 72058.561 | F65: 72381.282 | G65: 72761.459 | H65: 72976.36852 | I65: 73379.48601 | J65: 73745.45367
B66: SWALES | C66: 35162.26796 | D66: 35298.91918 | E66: 35362.00918 | F66: 35458.70018 | G66: 35632.41818 | H66: 35612.29927 | I66: 35789.686 | J66: 35678.69494
B67: SWEST | C67: 50183.208 | D67: 50440.85943 | E67: 50584.05943 | F67: 50761.22541 | G67: 51050.23841 | H67: 50247.79492 | I67: 50450.12209 | J67: 50610.0005
B68: LPN | C68: 36627.93 | D68: 36703.93 | E68: 36732.21 | F68: 36822.66089 | G68: 36845.69054 | H68: 36932.86173 | I68: 37041.84435 | J68: 37159.64061
B69: SPN | C69: 52200 | D69: 52315.75334 | E69: 52449.36234 | F69: 52686.69774 | G69: 52805.84673 | H69: 52841.05469 | I69: 52924.03279 | J69: 53014.55406
B70: EPN | C70: 96266 | D70: 96408.8 | E70: 96541.527 | F70: 96767.73147 | G70: 96913.08314 | H70: 97261.38548 | I70: 97631.96554 | J70: 97817.45905
B71: SPD | C71: 63848.4556 | D71: 63943.0006 | E71: 57811.99774 | F71: 57324 | G71: 57628.9 | H71: 57984.4 | I71: 58303.9 | J71: 58515.3
B72: SPMW | C72: 49669.0976 | D72: 49619.0976 | E72: 48454.39517 | F72: 46437.905 | G72: 46589.90371 | H72: 46844.00973 | I72: 46947 | J72: 47051.39112
B73: SSEH | C73: 47024.21947 | D73: 47477.55799 | E73: 47676.3229 | F73: 48053.1727 | G73: 48407.80773 | H73: 48331.868 | I73: 48725.7898 | J73: 49153.90214
B74: SSES | C74: 76219.64 | D74: 76727.2343 | E74: 76965.98655 | F74: 76667.08495 | G74: 77077.0711 | H74: 77958.97015 | I74: 77378.55482 | J74: 77486.95767
B75: Total | C75: =SUM(C60:C74) -> 794265.9768 | D75: 797392.1351 | E75: 791925.628 | F75: 791289.2265 | G75: 794620.1601 | H75: 796339.8036 | I75: 797853.3803 | J75: 800478.5679
B77: Total units distributed (GWh)
C78: DPCR5 | H78: RIIO ED1
C79: 2011 | D79: 2012 | E79: 2013 | F79: 2014 | G79: 2015 | H79: 2016 | I79: 2017 | J79: 2018 | K79: 2019 | L79: 2020 | M79: 2021 | N79: 2022 | O79: 2023
B80: ENWL | C80: 23835.24 | D80: 23367.42 | E80: 23484.00688 | F80: 22820 | G80: 22393 | H80: 22223.98232 | I80: 22059.6 | J80: 21855.5
B81: NPgN | C81: 15795.56804 | D81: 15271.77665 | E81: 15489.97147 | F81: 15131.45655 | G81: 14984.01833 | H81: 14861.88999 | I81: 14494.54801 | J81: 14414.14121
B82: NPgY | C82: 23063.32753 | D82: 22570.84487 | E82: 22692.94041 | F82: 22438.35129 | G82: 22263.32887 | H82: 22012.43424 | I82: 21674.854 | J82: 21614.84335
B83: WMID | C83: 24932.16037 | D83: 24247.72246 | E83: 24682.02266 | F83: 24427.32822 | G83: 24212.9227 | H83: 23941.53336 | I83: 23899.32726 | J83: 23746.01841
B84: EMID | C84: 27882.57017 | D84: 27073.80591 | E84: 27598.0905 | F84: 26795.42345 | G84: 26627.16446 | H84: 26426.78976 | I84: 26358.35205 | J84: 26181.96614
B85: SWALES | C85: 12110.70383 | D85: 11776.00643 | E85: 11769.62784 | F85: 11640.55919 | G85: 11490.95206 | H85: 11333.06903 | I85: 11179.07747 | J85: 11084.25215
B86: SWEST | C86: 14625.00699 | D86: 14078.27414 | E86: 14412.45131 | F86: 13932.94421 | G86: 13767.26653 | H86: 13562.0547 | I86: 13532.26736 | J86: 13487.16219
B87: LPN | C87: 29355 | D87: 28492.36302 | E87: 28722.3 | F87: 28006 | G87: 27632 | H87: 27442.4 | I87: 27266 | J87: 27012
B88: SPN | C88: 21694 | D88: 20813 | E88: 20994 | F88: 20508.408 | G88: 19713 | H88: 19413.4 | I88: 19468 | J88: 19373
B89: EPN | C89: 34525 | D89: 34093 | E89: 35108 | F89: 33794 | G89: 32882 | H89: 32721 | I89: 33295 | J89: 33106
B90: SPD | C90: 16195 | D90: 19341 | E90: 19537 | F90: 18943 | G90: 18589 | H90: 18348 | I90: 17961 | J90: 17833
B91: SPMW | C91: 16195 | D91: 15787 | E91: 16065 | F91: 15997 | G91: 15742 | H91: 15449 | I91: 15211 | J91: 15118
B92: SSEH | C92: 8521 | D92: 8117.4 | E92: 8333.8 | F92: 8075.6 | G92: 7818.5 | H92: 7859.7 | I92: 7427.8 | J92: 7662.7
B93: SSES | C93: 33646.1 | D93: 32536.8 | E93: 33207.3 | F93: 32359.1 | G93: 31840.1 | H93: 31425.5 | I93: 30984.1 | J93: 31527.7
B94: Total | C94: =SUM(C80:C93) -> 302375.6769 | D94: =SUM(D80:D93) -> 297566.4135 | E94: 302096.5111 | F94: 294869.1709 | G94: 289955.2529 | H94: 287020.7534 | I94: 284810.9262 | J94: 284016.2835
B96: Network-wide Peak load (MVA)
C97: DPCR5 | H97: RIIO ED1
C98: 2011 | D98: 2012 | E98: 2013 | F98: 2014 | G98: 2015 | H98: 2016 | I98: 2017 | J98: 2018 | K98: 2019 | L98: 2020 | M98: 2021 | N98: 2022 | O98: 2023
B99: ENWL | C99: 4388.66 | D99: 4280.41 | E99: 4250.4 | F99: 4062.350515 | G99: 4267 | H99: 4233 | I99: 4262 | J99: 4305
B100: NPgN | C100: 2997 | D100: 2852 | E100: 2777 | F100: 2604 | G100: 2593 | H100: 2581.47 | I100: 2567.086 | J100: 2421.822
B101: NPgY | C101: 4285 | D101: 4195 | E101: 4041 | F101: 4086 | G101: 3763 | H101: 3604.22 | I101: 3574.056 | J101: 3460.562
B102: WMID | C102: 4662.231544 | D102: 4792.138457 | E102: 4782.4592 | F102: 4492 | G102: 4597.6 | H102: 4487.2 | I102: 4469.6 | J102: 4440
B103: EMID | C103: 5042.450848 | D103: 5292.3975 | E103: 5293.0718 | F103: 5056 | G103: 5012.2 | H103: 4968.4 | I103: 4961.6 | J103: 4801.8
B104: SWALES | C104: 2152.652603 | D104: 2117.6 | E104: 1999.5122 | F104: 1992 | G104: 2012 | H104: 1970.4 | I104: 1946.4 | J104: 1914
B105: SWEST | C105: 2903.634729 | D105: 2854.9 | E105: 2754.5462 | F105: 2594 | G105: 2583.8 | H105: 2536.8 | I105: 2590.8 | J105: 2565.8
B106: LPN | C106: 5203 | D106: 5125 | E106: 5167 | F106: 4820 | G106: 4952 | H106: 4833 | I106: 4915 | J106: 5189
B107: SPN | C107: 3976 | D107: 4108 | E107: 4107 | F107: 3672 | G107: 3795 | H107: 3809 | I107: 3923 | J107: 4022
B108: EPN | C108: 6966 | D108: 6407 | E108: 6408 | F108: 6096 | G108: 6267 | H108: 6236 | I108: 6441 | J108: 6573
B109: SPD | C109: 3320 | D109: 3611 | E109: 3673 | F109: 3426 | G109: 3414 | H109: 3626 | I109: 3563 | J109: 3575
B110: SPMW | C110: 3320 | D110: 3197 | E110: 3245 | F110: 3023 | G110: 3127 | H110: 3014 | I110: 3022 | J110: 3039
B111: SSEH | C111: 1633 | D111: 1559 | E111: 1518 | F111: 1518 | G111: 1514 | H111: 1417 | I111: 1497.2 | J111: 1564.5
B112: SSES | C112: 6692.8 | D112: 6395.7 | E112: 6387.1 | F112: 5916.3 | G112: 6005.4 | H112: 5971.2 | I112: 6079.3 | J112: 6293
B113: Total | C113: =SUM(C99:C112) -> 57542.42972 | D113: =SUM(D99:D112) -> 56787.14596 | E113: 56403.0894 | F113: 53357.65052 | G113: 53903 | H113: 53287.69 | I113: 53812.042 | J113: 54164.484

Sheet RAG and Ranking
A1: Outputs overview
C3: Reliability & Availability | F3: Environment | J3: Connections | O3: Customer satisfaction | T3: Social obligations
C4: Number of interruption (CIs) RAG | D4: Number of minutes lost (CMLs) RAG | F4: BCF (excl. losses) ranking | G4: SF6 ranking | H4: Fluid filled cable leakage ranking | J4: Time to Quote and Time to Connect RAG | K4: Time to Quote and Time to Connect ranking | L4: Connection GSoPs RAG | M4: Connection GSoPs ranking | O4: Complaints RAG | P4: Complaints ranking | Q4: Customer Satisfaction RAG | R4: BMCS ranking | T4: SECV RAG | U4: SECV ranking
A5: ENWL | C5: 1 | D5: 1 | F5: ='Ch2 outputs - environment'!S76 -> 5 | G5: ='Ch2 outputs - environment'!S116 -> 9 | H5: ='Ch2 outputs - environment'!S156 -> 12 | J5: 1 | K5: ='Ch2 outputs - connections'!AW42 -> 6 | L5: 1 | M5: ='Ch2 outputs - connections'!X85 -> 9 | O5: 1 | P5: ='Ch2 outputs - cust sat'!Y43 -> 6 | Q5: 1 | R5: ='Ch2 outputs - cust sat'!V23 -> 13 | T5: 1 | U5: ='Ch2 outputs - cust sat'!G89 -> 5
A6: NPgN | C6: 1 | D6: 1 | F6: ='Ch2 outputs - environment'!S77 -> 3 | G6: ='Ch2 outputs - environment'!S117 -> 4 | H6: ='Ch2 outputs - environment'!S157 -> 4 | J6: 0 | K6: ='Ch2 outputs - connections'!AW43 -> 14 | L6: 1 | M6: ='Ch2 outputs - connections'!X86 -> 11 | O6: 1 | P6: ='Ch2 outputs - cust sat'!Y44 -> 14 | Q6: 1 | R6: ='Ch2 outputs - cust sat'!V24 -> 10 | T6: 1 | U6: ='Ch2 outputs - cust sat'!G90 -> 2
A7: NPgY | C7: 1 | D7: 1 | F7: ='Ch2 outputs - environment'!S78 -> 4 | G7: ='Ch2 outputs - environment'!S118 -> 8 | H7: ='Ch2 outputs - environment'!S158 -> 5 | J7: 0 | K7: ='Ch2 outputs - connections'!AW44 -> 13 | L7: 1 | M7: ='Ch2 outputs - connections'!X87 -> 12 | O7: 1 | P7: ='Ch2 outputs - cust sat'!Y45 -> 13 | Q7: 1 | R7: ='Ch2 outputs - cust sat'!V25 -> 12
A8: WMID | C8: 1 | D8: 1 | F8: ='Ch2 outputs - environment'!S79 -> 10 | G8: ='Ch2 outputs - environment'!S119 -> 12 | H8: ='Ch2 outputs - environment'!S159 -> 7 | J8: 1 | K8: ='Ch2 outputs - connections'!AW45 -> 3 | L8: 1 | M8: ='Ch2 outputs - connections'!X88 -> 1 | O8: 1 | P8: ='Ch2 outputs - cust sat'!Y46 -> 1 | Q8: 1 | R8: ='Ch2 outputs - cust sat'!V26 -> 2 | T8: 1 | U8: ='Ch2 outputs - cust sat'!G91 -> 1
A9: EMID | C9: 1 | D9: 1 | F9: ='Ch2 outputs - environment'!S80 -> 7 | G9: ='Ch2 outputs - environment'!S120 -> 7 | H9: ='Ch2 outputs - environment'!S160 -> 6 | J9: 1 | K9: ='Ch2 outputs - connections'!AW46 -> 1 | L9: 1 | M9: ='Ch2 outputs - connections'!X89 -> 1 | O9: 1 | P9: ='Ch2 outputs - cust sat'!Y47 -> 2 | Q9: 1 | R9: ='Ch2 outputs - cust sat'!V27 -> 3
A10: SWALES | C10: 1 | D10: 1 | F10: ='Ch2 outputs - environment'!S81 -> 13 | G10: ='Ch2 outputs - environment'!S121 -> 11 | H10: ='Ch2 outputs - environment'!S161 -> 1 | J10: 1 | K10: ='Ch2 outputs - connections'!AW47 -> 2 | L10: 1 | M10: ='Ch2 outputs - connections'!X90 -> 1 | O10: 1 | P10: ='Ch2 outputs - cust sat'!Y48 -> 7 | Q10: 1 | R10: ='Ch2 outputs - cust sat'!V28 -> 1
A11: SWEST | C11: 0 | D11: 1 | F11: ='Ch2 outputs - environment'!S82 -> 9 | G11: ='Ch2 outputs - environment'!S122 -> 14 | H11: ='Ch2 outputs - environment'!S162 -> 2 | J11: 1 | K11: ='Ch2 outputs - connections'!AW48 -> 3 | L11: 1 | M11: ='Ch2 outputs - connections'!X91 -> 1 | O11: 1 | P11: ='Ch2 outputs - cust sat'!Y49 -> 4 | Q11: 1 | R11: ='Ch2 outputs - cust sat'!V29 -> 4
A12: LPN | C12: 1 | D12: 1 | F12: ='Ch2 outputs - environment'!S83 -> 12 | G12: ='Ch2 outputs - environment'!S123 -> 1 | H12: ='Ch2 outputs - environment'!S163 -> 10 | J12: 1 | K12: ='Ch2 outputs - connections'!AW49 -> 7 | L12: 1 | M12: ='Ch2 outputs - connections'!X92 -> 6 | O12: 1 | P12: ='Ch2 outputs - cust sat'!Y50 -> 12 | Q12: 1 | R12: ='Ch2 outputs - cust sat'!V30 -> 6 | T12: 1 | U12: ='Ch2 outputs - cust sat'!G92 -> 3
A13: SPN | C13: 1 | D13: 1 | F13: ='Ch2 outputs - environment'!S84 -> 8 | G13: ='Ch2 outputs - environment'!S124 -> 3 | H13: ='Ch2 outputs - environment'!S164 -> 9 | J13: 1 | K13: ='Ch2 outputs - connections'!AW50 -> 10 | L13: 1 | M13: ='Ch2 outputs - connections'!X93 -> 7 | O13: 1 | P13: ='Ch2 outputs - cust sat'!Y51 -> 11 | Q13: 1 | R13: ='Ch2 outputs - cust sat'!V31 -> 8
A14: EPN | C14: 1 | D14: 1 | F14: ='Ch2 outputs - environment'!S85 -> 6 | G14: ='Ch2 outputs - environment'!S125 -> 5 | H14: ='Ch2 outputs - environment'!S165 -> 8 | J14: 0.5 | K14: ='Ch2 outputs - connections'!AW51 -> 11 | L14: 1 | M14: ='Ch2 outputs - connections'!X94 -> 8 | O14: 1 | P14: ='Ch2 outputs - cust sat'!Y52 -> 10 | Q14: 1 | R14: ='Ch2 outputs - cust sat'!V32 -> 9
A15: SPD | C15: 1 | D15: 1 | F15: ='Ch2 outputs - environment'!S86 -> 2 | G15: ='Ch2 outputs - environment'!S126 -> 6 | H15: N/A | J15: 0.5 | K15: ='Ch2 outputs - connections'!AW52 -> 8 | L15: 1 | M15: ='Ch2 outputs - connections'!X95 -> 10 | O15: 1 | P15: ='Ch2 outputs - cust sat'!Y53 -> 5 | Q15: 1 | R15: ='Ch2 outputs - cust sat'!V33 -> 11 | T15: 1 | U15: ='Ch2 outputs - cust sat'!G93 -> 4
A16: SPMW | C16: 1 | D16: 1 | F16: ='Ch2 outputs - environment'!S87 -> 1 | G16: ='Ch2 outputs - environment'!S127 -> 10 | H16: ='Ch2 outputs - environment'!S166 -> 3 | J16: 0.5 | K16: ='Ch2 outputs - connections'!AW53 -> 11 | L16: 1 | M16: ='Ch2 outputs - connections'!X96 -> 13 | O16: 1 | P16: ='Ch2 outputs - cust sat'!Y54 -> 8 | Q16: 1 | R16: ='Ch2 outputs - cust sat'!V34 -> 7
A17: SSEH | C17: 1 | D17: 1 | F17: ='Ch2 outputs - environment'!S88 -> 14 | G17: ='Ch2 outputs - environment'!S128 -> 2 | H17: ='Ch2 outputs - environment'!S167 -> 13 | J17: 1 | K17: ='Ch2 outputs - connections'!AW54 -> 5 | L17: 1 | M17: ='Ch2 outputs - connections'!X97 -> 5 | O17: 1 | P17: ='Ch2 outputs - cust sat'!Y55 -> 3 | Q17: 1 | R17: ='Ch2 outputs - cust sat'!V35 -> 5 | T17: 1 | U17: ='Ch2 outputs - cust sat'!G94 -> 6
A18: SSES | C18: 1 | D18: 1 | F18: ='Ch2 outputs - environment'!S89 -> 11 | G18: ='Ch2 outputs - environment'!S129 -> 13 | H18: ='Ch2 outputs - environment'!S168 -> 11 | J18: 0.5 | K18: ='Ch2 outputs - connections'!AW55 -> 9 | L18: 1 | M18: ='Ch2 outputs - connections'!X98 -> 14 | O18: 1 | P18: ='Ch2 outputs - cust sat'!Y56 -> 9 | Q18: 1 | R18: ='Ch2 outputs - cust sat'!V36 -> 14
A20: Industry | C20: 1 | D20: 1 | J20: 1 | L20: 1 | O20: 1 | Q20: 1 | T20: 1

Sheet Ch2 - Incentive payments
A1: Chapter 2 - Reliability and Availability
B3: Incentive payments
C5: 2017/18 prices
D6: Interruptions Incentive Scheme (IIS) | E6: Incentive on connections engagement (ICE) | F6: Time to Connect Incentive (TTC) | G6: Broad measure of customer service (BMCS) | H6: Losses discretionary reward scheme (LDR) | I6: Total incentive payments
C7: ENWL | D7: ='Ch2 outputs - reliability'!E93 -> 10.86770231 | E7: 0 | F7: ='Ch2 outputs - connections'!AT42 -> 1.348278328 | G7: ='Ch2 outputs - cust sat'!R99 -> 1.65125157 | H7: ='Ch2 outputs - environment'!G28/1000000 -> 0 | I7: =SUM(D7:H7) -> 13.86723221
C8: NPgN | D8: ='Ch2 outputs - reliability'!E94 -> 9.800258275 | E8: 0 | F8: ='Ch2 outputs - connections'!AT43 -> 0.03213396683 | G8: ='Ch2 outputs - cust sat'!R100 -> 2.578082536 | H8: ='Ch2 outputs - environment'!G29/1000000/2 -> 0 | I8: 12.41047478
C9: NPgY | D9: ='Ch2 outputs - reliability'!E95 -> 15.1054449 | E9: 0 | F9: ='Ch2 outputs - connections'!AT44 -> 0.07067225571 | G9: ='Ch2 outputs - cust sat'!R101 -> 2.877982298 | H9: ='Ch2 outputs - environment'!G29/1000000/2 -> 0 | I9: 18.05409946
C10: WMID | D10: ='Ch2 outputs - reliability'!E96 -> 19.88708123 | E10: 0 | F10: ='Ch2 outputs - connections'!AT45 -> 1.766918749 | G10: ='Ch2 outputs - cust sat'!R102 -> 6.052447784 | H10: ='Ch2 outputs - environment'!$G$30/1000000/4 -> 0 | I10: 27.70644776
C11: EMID | D11: ='Ch2 outputs - reliability'!E97 -> 15.9244697 | E11: 0 | F11: ='Ch2 outputs - connections'!AT46 -> 1.797704438 | G11: ='Ch2 outputs - cust sat'!R103 -> 6.183794791 | H11: ='Ch2 outputs - environment'!$G$30/1000000/4 -> 0 | I11: 23.90596893
C12: SWALES | D12: ='Ch2 outputs - reliability'!E98 -> 2.815247806 | E12: 0 | F12: ='Ch2 outputs - connections'!AT47 -> 0.8335730765 | G12: ='Ch2 outputs - cust sat'!R104 -> 3.095418576 | H12: ='Ch2 outputs - environment'!$G$30/1000000/4 -> 0 | I12: 6.744239458
C13: SWEST | D13: ='Ch2 outputs - reliability'!E99 -> -0.4033208053 | E13: 0 | F13: ='Ch2 outputs - connections'!AT48 -> 1.348278328 | G13: ='Ch2 outputs - cust sat'!R105 -> 4.316435474 | H13: ='Ch2 outputs - environment'!$G$30/1000000/4 -> 0 | I13: 5.261392997
C14: LPN | D14: ='Ch2 outputs - reliability'!E100 -> 14.77258774 | E14: 0 | F14: ='Ch2 outputs - connections'!AT49 -> 0.8833516906 | G14: ='Ch2 outputs - cust sat'!R106 -> 3.722789635 | H14: ='Ch2 outputs - environment'!$G$31/1000000/3 -> 0 | I14: 19.37872907
C15: SPN | D15: ='Ch2 outputs - reliability'!E101 -> 9.779742893 | E15: 0 | F15: ='Ch2 outputs - connections'!AT50 -> 1.011874706 | G15: ='Ch2 outputs - cust sat'!R107 -> 3.453608994 | H15: ='Ch2 outputs - environment'!$G$31/1000000/3 -> 0 | I15: 14.24522659
C16: EPN | D16: ='Ch2 outputs - reliability'!E102 -> 17.55451862 | E16: 0 | F16: ='Ch2 outputs - connections'!AT51 -> 0.5357460693 | G16: ='Ch2 outputs - cust sat'!R108 -> 5.037186201 | H16: ='Ch2 outputs - environment'!$G$31/1000000/3 -> 0 | I16: 23.12745089
C17: SPD | D17: ='Ch2 outputs - reliability'!E103 -> 9.923997428 | E17: 0 | F17: ='Ch2 outputs - connections'!AT52 -> 0.6741391642 | G17: ='Ch2 outputs - cust sat'!R109 -> 3.184925398 | H17: ='Ch2 outputs - environment'!$G$32/1000000/2 -> 0 | I17: 13.78306199
C18: SPMW | D18: ='Ch2 outputs - reliability'!E104 -> 5.131282016 | E18: 0 | F18: ='Ch2 outputs - connections'!AT53 -> 0.6741391642 | G18: ='Ch2 outputs - cust sat'!R110 -> 3.258170189 | H18: ='Ch2 outputs - environment'!$G$32/1000000/2 -> 0 | I18: 9.063591369
C19: SSEH | D19: ='Ch2 outputs - reliability'!E105 -> 2.126967636 | E19: 0 | F19: ='Ch2 outputs - connections'!AT54 -> 0.8988522189 | G19: ='Ch2 outputs - cust sat'!R111 -> 2.07409898 | H19: ='Ch2 outputs - environment'!$G$33/1000000/2 -> 0 | I19: 5.099918835
C20: SSES | D20: ='Ch2 outputs - reliability'!E106 -> 4.758812879 | E20: 0 | F20: ='Ch2 outputs - connections'!AT55 -> 0.8988522189 | G20: ='Ch2 outputs - cust sat'!R112 -> 1.736780577 | H20: ='Ch2 outputs - environment'!$G$33/1000000/2 -> 0 | I20: 7.394445674
C21: Total | D21: =SUM(D7:D20) -> 138.0447926 | E21: =SUM(E7:E20) -> 0 | F21: =SUM(F7:F20) -> 12.77451437 | G21: =SUM(G7:G20) -> 49.222973 | H21: =SUM(H7:H20) -> 0 | I21: 200.04228

Sheet Ch2 outputs - reliability
A1: Chapter 2 - Reliability and Availability
B2: Performance against the outputs that DNOs are incentivised to deliver under RIIO-ED1.
B4: Reliability and availability: providing long-term reliability, minimising the number and duration of interruptions and ensuring adaptation to climate change.
B5: Incentive measure | F5: Incentive type
B6: Interruption incentive scheme (IIS): DNOs can receive a financial reward or incur a financial penalty depending on their performance against a target for both the number and length of their network supply interruptions. | F6: Financial: 250 RORE basis points per annum. Supported by monitoring of Secondary Deliverables. Reputational.
B7: Guaranteed Standards of Performance (GSoP): direct payment to customers of fixed amounts if DNO fails to deliver specified minimum levels of performance. | F7: Financial: payment to customers for failure to meet standards. Reputational.
B8: Worst-served customers (WSC): DNOs have access to funding to improve the reliability for a subset of customers whose supply has been repeatedly interrupted. | F8: Financial: £76.5 million over ED1 (use-it-or-lose-it). Reputational.
B9: Network resilience: proactive network investment for reducing the impact of disruptive events, such as floods or severe storms. | F9: Reputational.
B12: Interruption Incentive Scheme (IIS) | E12: CI performance | N12: 2017/18 RAG status | Q12: CI target (Planned and unplanned)
E13: 2014/15 | F13: 2015/16 | G13: 2016/17 | H13: 2017/18 | I13: 2018/19 | J13: 2019/20 | K13: 2020/21 | L13: 2021/22 | M13: 2022/23 | Q13: 2015/16 | R13: 2016/17 | S13: 2017/18 | T13: 2018/19 | U13: 2019/20 | V13: 2020/21 | W13: 2021/22 | X13: 2022/23
D14: ENWL | E14: 36.64007359 | F14: 36.65750416 | G14: 32.89872416 | H14: 33.23113479 | N14: =IF(H14<=S14,"Green",IF(H14<=S14*1.05,"Amber","Red")) -> Green | P14: ENWL | Q14: 48.37195356 | R14: 48.02825334 | S14: 47.4508901
D15: NPgN | E15: 65.26359301 | F15: 58.34727383 | G15: 53.28905362 | H15: 51.81519134 | N15: =IF(H15<=S15,"Green",IF(H15<=S15*1.05,"Amber","Red")) -> Green | P15: NPgN | Q15: 63.75172954 | R15: 62.70868495 | S15: 62.16495153
D16: NPgY | E16: 60.91975461 | F16: 52.53464728 | G16: 48.5363288 | H16: 48.1345217 | N16: Green | P16: NPgY | Q16: 68.59357099 | R16: 67.55372114 | S16: 66.47527679
D17: WMID | E17: 70.24026493 | F17: 65.22689603 | G17: 58.9599988 | H17: 55.64408383 | N17: Green | P17: WMID | Q17: 89.07684423 | R17: 87.05456485 | S17: 85.3947733
D18: EMID | E18: 45.95520502 | F18: 42.65072457 | G18: 44.12571874 | H18: 46.94172138 | N18: Green | P18: EMID | Q18: 53.22076207 | R18: 52.13962623 | S18: 51.42330642
D19: SWALES | E19: 56.48447461 | F19: 48.53141809 | G19: 41.64040259 | H19: 48.46686218 | N19: Green | P19: SWALES | Q19: 55.06037337 | R19: 53.75180744 | S19: 53.31319243
D20: SWEST | E20: 51.61839023 | F20: 51.99880507 | G20: 52.45442106 | H20: 62.03699686 | N20: =IF(H20<=S20,"Green",IF(H20<=S20*1.05,"Amber","Red")) -> Red | P20: SWEST | Q20: 59.17962458 | R20: 58.86083942 | S20: 58.53708391
D21: LPN | E21: 20.88055269 | F21: 18.956803 | G21: 17.22140308 | H21: 14.21623774 | N21: Green | P21: LPN | Q21: 27.80442323 | R21: 27.68332947 | S21: 27.33851583
D22: SPN | E22: 50.09437788 | F22: 48.73709832 | G22: 47.72406612 | H22: 46.68681691 | N22: Green | P22: SPN | Q22: 65.32600982 | R22: 64.66907452 | S22: 64.09331146
D23: EPN | E23: 52.79515655 | F23: 45.75570628 | G23: 49.37111816 | H23: 48.5218 | N23: Green | P23: EPN | Q23: 69.78626007 | R23: 68.69974372 | S23: 67.94105245
D24: SPD | E24: 46.58826613 | F24: 48.46533187 | G24: 42.8901371 | H24: 41.30501494 | N24: Green | P24: SPD | Q24: 52.07347876 | R24: 51.90160342 | S24: 51.64197259
D25: SPMW | E25: 32.77742581 | F25: 30.14843269 | G25: 38.16376257 | H25: 30.49896858 | N25: Green | P25: SPMW | Q25: 38.27366337 | R25: 38.0644497 | S25: 37.59791787
D26: SSEH | E26: 73.52165044 | F26: 66.72040063 | G26: 68.10679953 | H26: 57.34640044 | N26: Green | P26: SSEH | Q26: 71.90053998 | R26: 71.18886245 | S26: 70.15106303
D27: SSES | E27: 59.84592631 | F27: 47.50998757 | G27: 47.81686091 | H27: 55.13280003 | N27: Green | P27: SSES | Q27: 62.53435987 | R27: 61.57780772 | S27: 60.39368654
D28: Total | E28: 50.83062035 | F28: 46.26024092 | G28: 45.06427933 | H28: 45.28779569
E30: CML performance | N30: 2017/18 RAG status | Q30: CML target (Planned and unplanned)
E31: 2014/15 | F31: 2015/16 | G31: 2016/17 | H31: 2017/18 | I31: 2018/19 | J31: 2019/20 | K31: 2020/21 | L31: 2021/22 | M31: 2022/23 | Q31: 2015/16 | R31: 2016/17 | S31: 2017/18 | T31: 2018/19 | U31: 2019/20 | V31: 2020/21 | W31: 2021/22 | X31: 2022/23
D32: ENWL | E32: 34.76243236 | F32: 32.49629202 | G32: 33.71355615 | H32: 34.63112634 | N32: =IF(H32<=S32,"Green",IF(H32<=S32*1.05,"Amber","Red")) -> Green | P32: ENWL | Q32: 47.37353943 | R32: 45.82728822 | S32: 44.22557415
D33: NPgN | E33: 56.06517018 | F33: 50.10896408 | G33: 45.00430019 | H33: 44.62516576 | N33: =IF(H33<=S33,"Green",IF(H33<=S33*1.05,"Amber","Red")) -> Green | P33: NPgN | Q33: 65.86223246 | R33: 64.09760406 | S33: 61.87164277
D34: NPgY | E34: 50.43404375 | F34: 41.83767088 | G34: 38.0051775 | H34: 36.39574708 | N34: Green | P34: NPgY | Q34: 63.11966704 | R34: 61.61618976 | S34: 60.17853616
D35: WMID | E35: 34.24748607 | F35: 32.15125114 | G35: 31.97361396 | H35: 31.02404506 | N35: Green | P35: WMID | Q35: 55.65600016 | R35: 53.60162252 | S35: 52.99336073
D36: EMID | E36: 22.85262752 | F36: 21.55496789 | G36: 21.96212168 | H36: 24.07177192 | N36: Green | P36: EMID | Q36: 40.23357433 | R36: 39.10588266 | S36: 38.82708102
D37: SWALES | E37: 30.39829093 | F37: 26.3408534 | G37: 25.72609148 | H37: 28.41460867 | N37: Green | P37: SWALES | Q37: 35.44214891 | R37: 33.56820749 | S37: 33.35629545
D38: SWEST | E38: 38.95592924 | F38: 37.51045627 | G38: 39.69870511 | H38: 42.78232644 | N38: Green | P38: SWEST | Q38: 43.91734302 | R38: 43.63298563 | S38: 43.50199529
D39: LPN | E39: 24.03006735 | F39: 19.28684622 | G39: 19.78127401 | H39: 16.74064131 | N39: Green | P39: LPN | Q39: 40.44154825 | R39: 39.71882371 | S39: 38.8503032
D40: SPN | E40: 35.03520804 | F40: 36.34049005 | G40: 35.06263583 | H40: 37.56921184 | N40: Green | P40: SPN | Q40: 50.17473647 | R40: 48.36490519 | S40: 46.54170473
D41: EPN | E41: 40.20514835 | F41: 34.76516025 | G41: 39.20381675 | H41: 41.79128818 | N41: Green | P41: EPN | Q41: 55.7003846 | R41: 54.22268524 | S41: 52.00439817
D42: SPD | E42: 34.03126444 | F42: 34.81463329 | G42: 29.32836726 | H42: 31.19284596 | N42: Green | P42: SPD | Q42: 46.23040403 | R42: 45.68157588 | S42: 44.75054439
D43: SPMW | E43: 36.13681094 | F43: 33.56467524 | G43: 37.33744028 | H43: 32.98727132 | N43: Green | P43: SPMW | Q43: 45.61961944 | R43: 44.23979445 | S43: 42.41891188
D44: SSEH | E44: 71.56350154 | F44: 55.20969992 | G44: 59.88609562 | H44: 55.24026901 | N44: Green | P44: SSEH | Q44: 64.55381854 | R44: 62.23321321 | S44: 59.45033586
D45: SSES | E45: 56.92164691 | F45: 41.19510635 | G45: 43.29800356 | H45: 47.56372229 | N45: Green | P45: SSES | Q45: 54.12297476 | R45: 52.92818986 | S45: 50.82738041
D46: Total | E46: 39.1618001 | F46: 34.43367633 | G46: 34.71078638 | H46: 35.50477337
J49: Breakdown of performance for CI and CML/planned and unplanned
J50: PLANNED | P50: UNPLANNED
B51: Rewards and penalties under the IIS | D51: 2015/16 | E51: IIS performance total reward | I51: 2015/16 | J51: CI | M51: CML | P51: CI | S51: CML
E52: Total reward (£m)** | F52: Regulation 7 Severe Weather Conditions Adjustment | G52: Normal weather conditions adjustment | J52: Performance | K52: Target | L52: Reward/Penalty (£m) | M52: Performance | N52: Target | O52: Reward/Penalty (£m) | P52: Performance | Q52: Target | R52: Reward/Penalty (£m) | S52: Performance | T52: Target | U52: Reward/Penalty (£m)
D53: ENWL | E53: 14.34354127 | F53: 0 | G53: 0 | I53: ENWL | J53: 1.624115947 | K53: 2.37195356 | L53: 0.2230348181 | M53: 4.058171082 | N53: 6.773539429 | O53: 1.947970589 | P53: 35.03338821 | Q53: 46 | R53: 3.270678318 | S53: 28.43812094 | T53: 40.6 | U53: 8.72477679
D54: NPgN | E54: 8.390240675 | F54: 0 | G54: -0.03529903789 | I54: NPgN | J54: 2.965282572 | K54: 3.951729539 | L54: 0.1808147907 | M54: 6.802123103 | N54: 11.06223246 | O54: 1.95218498 | P54: 55.38199126 | Q54: 59.8 | R54: 0.809816799 | S54: 43.30684097 | T54: 54.8 | U54: 5.266712793
D55: NPgY | E55: 14.67641125 | F55: -0.4376266887 | G55: 0 | I55: NPgY | J55: 1.54251192 | K55: 1.893570992 | L55: 0.09384199119 | M55: 3.989441512 | N55: 5.61966704 | O55: 1.070767326 | P55: 50.99213536 | Q55: 66.7 | R55: 4.198886777 | S55: 37.84822937 | T55: 57.5 | U55: 12.90770726
D56: WMID | E56: 19.88708123 | F56: 0 | G56: 0 | I56: WMID | J56: 2.084164733 | K56: 2.376844226 | L56: 0.1079907838 | M56: 3.759735338 | N56: 4.556000165 | O56: 0.7190370737 | P56: 63.1427313 | Q56: 86.7 | R56: 8.691992334 | S56: 28.3915158 | T56: 51.1 | U56: 20.50604456
D57: EMID | E57: 19.21294288 | F57: 0 | G57: 0 | I57: EMID | J57: 0.974794934 | K57: 1.320762067 | L57: 0.134371027 | M57: 1.658110796 | N57: 2.433574328 | O57: 0.7454308735 | P57: 41.67592964 | Q57: 51.9 | R57: 3.970951872 | S57: 19.8968571 | T57: 37.8 | U57: 17.20977828
D58: SWALES | E58: 4.849198698 | F58: 0 | G58: 0 | I58: SWALES | J58: 3.570779753 | K58: 4.96037337 | L58: 0.2293757674 | M58: 5.625713764 | N58: 7.942148915 | O58: 0.9446702516 | P58: 44.96063834 | Q58: 50.1 | R58: 0.8483379678 | S58: 20.71513964 | T58: 27.5 | U58: 2.766948061
D59: SWEST | E59: 5.410552775 | F59: 0 | G59: 0 | I59: SWEST | J59: 3.496934059 | K59: 3.479624576 | L59: -0.004033723456 | M59: 8.523135122 | N59: 8.117343018 | O59: -0.2324697271 | P59: 48.50187101 | Q59: 55.7 | R59: 1.677419429 | S59: 28.98732115 | T59: 35.8 | U59: 3.902839849
D60: LPN | E60: 14.61122092 | F60: 0 | G60: -0.195647715 | I60: LPN | J60: 0.2850245641 | K60: 0.8044232306 | L60: 0.1343525313 | M60: 0.5502822311 | N60: 1.64154825 | O60: 0.6935951723 | P60: 18.67177844 | Q60: 27 | R60: 2.154255912 | S60: 18.73656399 | T60: 38.8 | U60: 12.75207156
D61: SPN | E61: 12.77438835 | F61: -0.08473803619 | G61: -0.2441788057 | I61: SPN | J61: 1.121586982 | K61: 1.926009816 | L61: 0.2080795561 | M61: 2.433797828 | N61: 4.674736473 | O61: 1.407751084 | P61: 47.61551134 | Q61: 63.4 | R61: 4.082963903 | S61: 33.90669222 | T61: 45.5 | U61: 7.282881942
D62: EPN | E62: 22.57756924 | F62: -0.001945516137 | G62: -0.2034528205 | I62: EPN | J62: 1.434231194 | K62: 2.686260072 | L62: 0.5089252683 | M62: 3.766439201 | N62: 7.700384598 | O62: 3.895920666 | P62: 44.32147509 | Q62: 67.1 | R62: 9.259025171 | S62: 30.99872105 | T62: 48 | U62: 16.83694798
D63: SPD | E63: 7.273656661 | F63: 0 | G63: 0 | I63: SPD | J63: 1.552173372 | K63: 1.673478755 | L63: 0.02790668894 | M63: 3.786221998 | N63: 4.030404027 | O63: 0.1359068993 | P63: 46.9131585 | Q63: 50.4 | R63: 0.8021589703 | S63: 31.02841129 | T63: 42.2 | U63: 6.217885872
D64: SPMW | E64: 6.476602877 | F64: 0 | G64: 0 | I64: SPMW | J64: 2.191182475 | K64: 3.073663372 | L64: 0.1506259135 | M64: 7.172235912 | N64: 10.51961944 | O64: 1.391105432 | P64: 27.95725022 | Q64: 35.2 | R64: 1.236225969 | S64: 26.39243933 | T64: 35.1 | U64: 3.618687503
D65: SSEH | E65: 2.494756193 | F65: -0.002492295182 | G65: -0.06271428489 | I65: SSEH | J65: 3.095889549 | K65: 5.000539981 | L65: 0.1790305211 | M65: 5.633821836 | N65: 10.65381854 | O65: 1.1010119 | P65: 63.62451108 | Q65: 66.9 | R65: 0.3078845745 | S65: 49.57587808 | T65: 53.9 | U65: 0.9483890075
D66: SSES | E66: 16.93607153 | F66: -8.901054222e-05 | G66: -0.02534893085 | I66: SSES | J66: 1.303539163 | K66: 2.234359868 | L66: 0.3353933266 | M66: 3.076354745 | N66: 6.022974762 | O66: 2.585072381 | P66: 46.2064484 | Q66: 60.3 | R66: 5.078188663 | S66: 38.11875161 | T66: 48.1 | U66: 8.756558156
D67: Total | E67: =SUM(E53:E66) -> 169.9142345 | F67: =SUM(F53:F66) -> -0.5268915468 | G67: =SUM(G53:G66) -> -0.7666415948
D68: NB: The total reward includes an adjustment for Regulation 7 Severe weather and Normal weather (Regulation 5,6 and 8)
J71: PLANNED | P71: UNPLANNED
D72: 2016/17 | I72: 2016/17 | J72: CI | M72: CML | P72: CI | S72: CML
E73: Total reward (£m)** | F73: Regulation 7 Severe Weather Conditions Adjustment | G73: Normal weather conditions adjustment | J73: Performance | K73: Target | L73: Reward/Penalty (£m) | M73: Performance | N73: Target | O73: Reward/Penalty (£m) | P73: Performance | Q73: Target | R73: Reward/Penalty (£m) | S73: Performance | T73: Target | U73: Reward/Penalty (£m)
D74: ENWL | E74: 13.26281892 | F74: 0 | G74: -0.09316239062 | I74: ENWL | J74: 1.780368863 | K74: 2.228253342 | L74: 0.1335769042 | M74: 4.370618837 | N74: 6.02728822 | O74: 1.188473468 | P74: 31.1183553 | Q74: 45.8 | R74: 4.378648385 | S74: 29.34293731 | T74: 39.8 | U74: 7.501763286
D75: NPgN | E75: 10.75728436 | F75: 0 | G75: 0 | I75: NPgN | J75: 2.968264429 | K75: 3.808684951 | L75: 0.1540482824 | M75: 7.378907974 | N75: 10.39760406 | O75: 1.383310303 | P75: 50.32078919 | Q75: 58.9 | R75: 1.572561181 | S75: 37.62539222 | T75: 53.7 | U75: 7.36615079
D76: NPgY | E76: 15.1681128 | F76: 0 | G76: 0 | I76: NPgY | J76: 1.178463043 | K76: 1.853721136 | L76: 0.1805039923 | M76: 2.974318269 | N76: 5.316189761 | O76: 1.53819176 | P76: 47.35786576 | Q76: 65.7 | R76: 4.903056315 | S76: 35.03085923 | T76: 56.3 | U76: 13.97003089
D77: WMID | E77: 19.88708123 | F77: 0 | G77: 0 | I77: WMID | J77: 2.881645697 | K77: 2.054564851 | L77: -0.3051703685 | M77: 4.894022268 | N77: 3.301622518 | O77: -1.437956842 | P77: 56.0783531 | Q77: 85 | R77: 10.67130219 | S77: 27.07959169 | T77: 50.3 | U77: 20.96831842
D78: EMID | E78: 19.21294288 | F78: 0 | G78: 0 | I78: EMID | J78: 0.911529648 | K78: 1.039626225 | L78: 0.04975174511 | M78: 1.519959202 | N78: 1.505882664 | O78: -0.0135313725 | P78: 43.21418909 | Q78: 51.1 | R78: 3.062789522 | S78: 20.44216248 | T78: 37.6 | U78: 16.49333757
D79: SWALES | E79: 5.26226675 | F79: 0 | G79: 0 | I79: SWALES | J79: 3.663084826 | K79: 3.851807436 | L79: 0.03115183666 | M79: 6.270450968 | N79: 6.06820749 | O79: -0.08247733462 | P79: 37.97731777 | Q79: 49.9 | R79: 1.968038966 | S79: 19.45564051 | T79: 27.5 | U79: 3.280587026
D80: SWEST | E80: 3.793623856 | F80: 0 | G80: 0 | I80: SWEST | J80: 4.144309349 | K80: 3.460839424 | L80: -0.1592727407 | M80: 9.551975296 | N80: 8.032985627 | O80: -0.8701971051 | P80: 48.31011171 | Q80: 55.4 | R80: 1.652195505 | S80: 30.14672981 | T80: 35.6 | U80: 3.124063334
D81: LPN | E81: 14.67493566 | F81: 0 | G81: -0.1389400004 | I81: LPN | J81: 0.1843066038 | K81: 0.7833294726 | L81: 0.1549488743 | M81: 0.4557331298 | N81: 1.618823708 | O81: 0.7392459735 | P81: 17.03709648 | Q81: 26.9 | R81: 2.551231144 | S81: 19.32554088 | T81: 38.1 | U81: 11.9328138
D82: SPN | E82: 12.64513514 | F82: -0.004960942428 | G82: -0.2208484589 | I82: SPN | J82: 1.190313375 | K82: 1.669074517 | L82: 0.1238408479 | M82: 2.709920611 | N82: 3.864905187 | O82: 0.7255579228 | P82: 46.53375275 | Q82: 63 | R82: 4.259313976 | S82: 32.35271522 | T82: 44.5 | U82: 7.630888669
D83: EPN | E83: 22.39039033 | F83: -0.01246148901 | G83: -0.3595307642 | I83: EPN | J83: 1.558917572 | K83: 2.599743722 | L83: 0.4230754869 | M83: 4.245139318 | N83: 7.222685244 | O83: 2.948765561 | P83: 47.81220059 | Q83: 66.1 | R83: 7.433633025 | S83: 34.95867743 | T83: 47 | U83: 11.92493355
D84: SPD | E84: 11.31467712 | F84: 0 | G84: 0 | I84: SPD | J84: 1.10780349 | K84: 1.801603415 | L84: 0.159610878 | M84: 2.847161982 | N84: 4.381575883 | O84: 0.854024505 | P84: 41.78233361 | Q84: 50.1 | R84: 1.913505591 | S84: 26.48120528 | T84: 41.3 | U84: 8.247848779
D85: SPMW | E85: 2.887172833 | F85: 0 | G85: 0 | I85: SPMW | J85: 1.829821194 | K85: 2.964449697 | L85: 0.1936636309 | M85: 5.755886634 | N85: 9.939794454 | O85: 1.738748142 | P85: 36.33394137 | Q85: 35.1 | R85: -0.21061481 | S85: 31.58155364 | T85: 34.3 | U85: 1.129731761
D86: SSEH | E86: 0.8145413608 | F86: 0 | G86: 0 | I86: SSEH | J86: 5.521052508 | K86: 4.588862451 | L86: -0.08762262558 | M86: 11.76512746 | N86: 9.433213213 | O86: -0.5114476137 | P86: 62.58574703 | Q86: 66.6 | R86: 0.3773258282 | S86: 48.12096816 | T86: 52.8 | U86: 1.026229706
D87: SSES | E87: 13.56854343 | F87: -0.0003112259993 | G87: -0.004992065028 | I87: SSES | J87: 1.713139095 | K87: 2.177807717 | L87: 0.167429403 | M87: 4.102107449 | N87: 5.828189858 | O87: 1.514293643 | P87: 46.10372182 | Q87: 59.4 | R87: 4.790915098 | S87: 39.19589611 | T87: 47.1 | U87: 6.934277426
D88: Total | E88: =SUM(E74:E87) -> 165.6395267 | F88: =SUM(F74:F87) -> -0.01773365744 | G88: =SUM(G74:G87) -> -0.8174736791
J90: PLANNED | P90: UNPLANNED
D91: 2017/18 | I91: 2017/18 | J91: CI | M91: CML | P91: CI | S91: CML
E92: Total reward (£m)** | F92: Regulation 7 Severe Weather Conditions Adjustment | G92: Normal weather conditions adjustment | J92: Performance | K92: Target | L92: Reward/Penalty (£m) | M92: Performance | N92: Target | O92: Reward/Penalty (£m) | P92: Performance | Q92: Target | R92: Reward/Penalty (£m) | S92: Performance | T92: Target | U92: Reward/Penalty (£m)
D93: ENWL | E93: 10.86770231 | F93: -0.002688 | G93: -0.2252712 | I93: ENWL | J93: 1.892266706 | K93: 1.950890097 | L93: 0.01748381911 | M93: 5.03023843 | N93: 5.125574149 | O93: 0.06839262755 | P93: 31.33886808 | Q93: 45.5 | R93: 4.223410841 | S93: 29.60088791 | T93: 39.1 | U93: 6.814541753
D94: NPgN | E94: 9.800258275 | F94: 0 | G94: 0 | I94: NPgN | J94: 2.109038728 | K94: 3.564951535 | L94: 0.2668674325 | M94: 4.752085388 | N94: 9.171642771 | O94: 2.025251661 | P94: 49.70615261 | Q94: 58.6 | R94: 1.630233766 | S94: 39.87308037 | T94: 52.7 | U94: 5.877905415
D95: NPgY | E95: 15.1054449 | F95: 0 | G95: -0.055776 | I95: NPgY | J95: 1.300773539 | K95: 1.775276789 | L95: 0.1268399919 | M95: 3.277801493 | N95: 4.978536158 | O95: 1.117079249 | P95: 46.83374816 | Q95: 64.7 | R95: 4.77584766 | S95: 33.11794559 | T95: 55.2 | U95: 14.50397012
D96: WMID | E96: 19.88708123 | F96: 0 | G96: 0 | I96: WMID | J96: 2.365847094 | K96: 2.0947733 | L96: -0.1000188677 | M96: 4.440768406 | N96: 3.493360725 | O96: -0.8555209563 | P96: 53.27835761 | Q96: 83.3 | R96: 11.07717065 | S96: 26.58327666 | T96: 49.5 | U96: 20.69408711
D97: EMID | E97: 15.9244697 | F97: 0 | G97: 0 | I97: EMID | J97: 0.8762177194 | K97: 1.023306419 | L97: 0.05712814217 | M97: 1.433053249 | N97: 1.527081019 | O97: 0.09038620101 | P97: 46.06550366 | Q97: 50.4 | R97: 1.68348571 | S97: 22.63871867 | T97: 37.3 | U97: 14.09346964
D98: SWALES | E98: 2.815247806 | F98: 0 | G98: 0 | I98: SWALES | J98: 3.622316104 | K98: 3.713192429 | L98: 0.01500066392 | M98: 5.675784859 | N98: 5.956295449 | O98: 0.1143956087 | P98: 44.84454607 | Q98: 49.6 | R98: 0.7849675473 | S98: 22.73882381 | T98: 27.4 | U98: 1.900883986
D99: SWEST | E99: -0.4033208053 | F99: 0 | G99: 0 | I99: SWEST | J99: 3.835253512 | K99: 3.437083906 | L99: -0.09278764436 | M99: 8.694057778 | N99: 8.101995285 | O99: -0.3391800995 | P99: 58.20174335 | Q99: 55.1 | R99: -0.7228162434 | S99: 34.08826867 | T99: 35.4 | U99: 0.7514631819
D100: LPN | E100: 14.77258774 | F100: 0 | G100: -0.0520272 | I100: LPN | J100: 0.1235182605 | K100: 0.6385158282 | L100: 0.1332141018 | M100: 0.3379394419 | N100: 1.350303202 | O100: 0.6434458735 | P100: 14.09271948 | Q100: 26.7 | R100: 3.261117442 | S100: 16.40270186 | T100: 37.5 | U100: 13.40918152
D101: SPN | E101: 9.779742893 | F101: -0.0021 | G101: -0.3176664 | I101: SPN | J101: 0.9905462404 | K101: 1.393311458 | L101: 0.1041830294 | M101: 2.161999241 | N101: 3.041704732 | O101: 0.5526284091 | P101: 45.69627067 | Q101: 62.7 | R101: 4.398344131 | S101: 35.4072126 | T101: 43.5 | U101: 5.08386531
D102: EPN | E102: 17.55451862 | F102: 0 | G102: -0.4035552 | I102: EPN | J102: 1.663598741 | K102: 2.241052451 | L102: 0.234723647 | M102: 4.4995078 | N102: 6.104398168 | O102: 1.589377819 | P102: 46.85820126 | Q102: 65.7 | R102: 7.658822926 | S102: 37.29178038 | T102: 45.9 | U102: 8.525014283
D103: SPD | E103: 9.923997428 | F103: 0 | G103: 0 | I103: SPD | J103: 1.027902085 | K103: 1.741972587 | L103: 0.1642741887 | M103: 2.910449196 | N103: 4.250544389 | O103: 0.7458705454 | P103: 40.27711286 | Q103: 49.9 | R103: 2.213775775 | S103: 28.28239676 | T103: 40.5 | U103: 6.800076919
D104: SPMW | E104: 5.131282016 | F104: 0 | G104: 0 | I104: SPMW | J104: 1.700473442 | K104: 2.697917873 | L104: 0.17024842 | M104: 5.515700008 | N104: 8.918911884 | O104: 1.414306572 | P104: 28.79849514 | Q104: 34.9 | R104: 1.041433017 | S104: 27.47157131 | T104: 33.5 | U104: 2.505294007
D105: SSEH | E105: 2.126967636 | F105: 0 | G105: 0 | I105: SSEH | J105: 5.439763307 | K105: 3.95106303 | L105: -0.1399326521 | M105: 12.25645486 | N105: 7.850335858 | O105: -0.9663730358 | P105: 51.90663714 | Q105: 66.2 | R105: 1.343526433 | S105: 42.98381415 | T105: 51.6 | U105: 1.88974689
D106: SSES | E106: 4.758812879 | F106: 0 | G106: 0 | I106: SSES | J106: 1.658156072 | K106: 1.79368654 | L106: 0.04883433951 | M106: 3.289450491 | N106: 4.627380411 | O106: 1.173767117 | P106: 53.47464396 | Q106: 58.6 | R106: 1.846768344 | S106: 44.2742718 | T106: 46.2 | U106: 1.689443078
D107: Total | E107: =SUM(E93:E106) -> 138.0447926 | F107: =SUM(F93:F106) -> -0.004788 | G107: =SUM(G93:G106) -> -1.054296
J109: PLANNED | P109: UNPLANNED
D110: 2018/19 | I110: 2018/19 | J110: CI | M110: CML | P110: CI | S110: CML
E111: Total reward (£m)** | F111: Regulation 7 Severe Weather Conditions Adjustment | G111: Normal weather conditions adjustment | J111: Performance | K111: Target | L111: Reward/Penalty (£m) | M111: Performance | N111: Target | O111: Reward/Penalty (£m) | P111: Performance | Q111: Target | R111: Reward/Penalty (£m) | S111: Performance | T111: Target | U111: Reward/Penalty (£m)
D112: ENWL | I112: ENWL
D113: NPgN | I113: NPgN
D114: NPgY | I114: NPgY
D115: WMID | I115: WMID
D116: EMID | I116: EMID
D117: SWALES | I117: SWALES
D118: SWEST | I118: SWEST
D119: LPN | I119: LPN
D120: SPN | I120: SPN
D121: EPN | I121: EPN
D122: SPD | I122: SPD
D123: SPMW | I123: SPMW
D124: SSEH | I124: SSEH
D125: SSES | I125: SSES
D126: Total | E126: =SUM(E112:E125) -> 0 | F126: =SUM(F112:F125) -> 0 | G126: =SUM(G112:G125) -> 0
J128: PLANNED | P128: UNPLANNED
D129: 2019/20 | I129: 2019/20 | J129: CI | M129: CML | P129: CI | S129: CML
E130: Total reward (£m)** | F130: Regulation 7 Severe Weather Conditions Adjustment | G130: Normal weather conditions adjustment | J130: Performance | K130: Target | L130: Reward/Penalty (£m) | M130: Performance | N130: Target | O130: Reward/Penalty (£m) | P130: Performance | Q130: Target | R130: Reward/Penalty (£m) | S130: Performance | T130: Target | U130: Reward/Penalty (£m)
D131: ENWL | I131: ENWL
D132: NPgN | I132: NPgN
D133: NPgY | I133: NPgY
D134: WMID | I134: WMID
D135: EMID | I135: EMID
D136: SWALES | I136: SWALES
D137: SWEST | I137: SWEST
D138: LPN | I138: LPN
D139: SPN | I139: SPN
D140: EPN | I140: EPN
D141: SPD | I141: SPD
D142: SPMW | I142: SPMW
D143: SSEH | I143: SSEH
D144: SSES | I144: SSES
D145: Total | E145: =SUM(E131:E144) -> 0 | F145: =SUM(F131:F144) -> 0 | G145: =SUM(G131:G144) -> 0
J147: PLANNED | P147: UNPLANNED
D148: 2020/21 | I148: 2020/21 | J148: CI | M148: CML | P148: CI | S148: CML
E149: Total reward (£m)** | F149: Regulation 7 Severe Weather Conditions Adjustment | G149: Normal weather conditions adjustment | J149: Performance | K149: Target | L149: Reward/Penalty (£m) | M149: Performance | N149: Target | O149: Reward/Penalty (£m) | P149: Performance | Q149: Target | R149: Reward/Penalty (£m) | S149: Performance | T149: Target | U149: Reward/Penalty (£m)
D150: ENWL | I150: ENWL
D151: NPgN | I151: NPgN
D152: NPgY | I152: NPgY
D153: WMID | I153: WMID
D154: EMID | I154: EMID
D155: SWALES | I155: SWALES
D156: SWEST | I156: SWEST
D157: LPN | I157: LPN
D158: SPN | I158: SPN
D159: EPN | I159: EPN
D160: SPD | I160: SPD
D161: SPMW | I161: SPMW
D162: SSEH | I162: SSEH
D163: SSES | I163: SSES
D164: Total | E164: =SUM(E150:E163) -> 0 | F164: =SUM(F150:F163) -> 0 | G164: =SUM(G150:G163) -> 0
J166: PLANNED | P166: UNPLANNED
D167: 2021/22 | I167: 2021/22 | J167: CI | M167: CML | P167: CI | S167: CML
E168: Total reward (£m)** | F168: Regulation 7 Severe Weather Conditions Adjustment | G168: Normal weather conditions adjustment | J168: Performance | K168: Target | L168: Reward/Penalty (£m) | M168: Performance | N168: Target | O168: Reward/Penalty (£m) | P168: Performance | Q168: Target | R168: Reward/Penalty (£m) | S168: Performance | T168: Target | U168: Reward/Penalty (£m)
D169: ENWL | I169: ENWL
D170: NPgN | I170: NPgN
D171: NPgY | I171: NPgY
D172: WMID | I172: WMID
D173: EMID | I173: EMID
D174: SWALES | I174: SWALES
D175: SWEST | I175: SWEST
D176: LPN | I176: LPN
D177: SPN | I177: SPN
D178: EPN | I178: EPN
D179: SPD | I179: SPD
D180: SPMW | I180: SPMW
D181: SSEH | I181: SSEH
D182: SSES | I182: SSES
D183: Total | E183: =SUM(E169:E182) -> 0 | F183: =SUM(F169:F182) -> 0 | G183: =SUM(G169:G182) -> 0
J185: PLANNED | P185: UNPLANNED
D186: 2022/23 | I186: 2022/23 | J186: CI | M186: CML | P186: CI | S186: CML
E187: Total reward (£m)** | F187: Regulation 7 Severe Weather Conditions Adjustment | G187: Normal weather conditions adjustment | J187: Performance | K187: Target | L187: Reward/Penalty (£m) | M187: Performance | N187: Target | O187: Reward/Penalty (£m) | P187: Performance | Q187: Target | R187: Reward/Penalty (£m) | S187: Performance | T187: Target | U187: Reward/Penalty (£m)
D188: ENWL | I188: ENWL
D189: NPgN | I189: NPgN
D190: NPgY | I190: NPgY
D191: WMID | I191: WMID
D192: EMID | I192: EMID
D193: SWALES | I193: SWALES
D194: SWEST | I194: SWEST
D195: LPN | I195: LPN
D196: SPN | I196: SPN
D197: EPN | I197: EPN
D198: SPD | I198: SPD
D199: SPMW | I199: SPMW
D200: SSEH | I200: SSEH
D201: SSES | I201: SSES
D202: Total | E202: =SUM(E188:E201) -> 0 | F202: =SUM(F188:F201) -> 0 | G202: =SUM(G188:G201) -> 0
B206: Guaranteed Standards of Performance (GSoP)
E207: Guaranteed Standards of Performance - payments owed and percentage of mandatory payments made, 2015/16
E208: Regulation 5 (Supply Restoration: Normal Conditions)* | G208: Regulation 6 (Supply Restoration: Normal Conditions - 5,000 or more customers' premises interrupted) | I208: Regulation 7(1) - Supply Restoration: Category 1 Severe Weather Conditions* | K208: Regulation 7(2) - Supply Restoration: Category 2 Severe Weather Conditions* | M208: Regulation 7(3) - Supply Restoration: Category 3 Severe Weather Conditions* | O208: Regulation 8 (Supply Restoration: Rota Disconnection) | Q208: Regulation 10 (Supply Restoration: Multiple interruptions) | S208: Regulation 11 (Responding to Operation of Distributor's Fuse) | U208: Regulation 12 (Notice of Supply Interruption ) | W208: Regulation 13 (Investigation of Voltage complaints) | X208: Regulation 17 (Making and Keeping Appointments) | Z208: Regulation 19 (Payments owed under the Guaranteed Standards)
E209: Number of valid payments owed | F209: Mandatory payments vs valid payments owed | G209: Number of valid payments owed | H209: Mandatory payments vs valid payments owed | I209: Number of valid payments owed | J209: Mandatory payments vs valid payments owed | K209: Number of valid payments owed | L209: Mandatory payments vs valid payments owed | M209: Number of valid payments owed | N209: Mandatory payments vs valid payments owed | O209: Number of valid payments owed | P209: Mandatory payments vs valid payments owed | Q209: Number of valid payments owed | R209: Mandatory payments vs valid payments owed | S209: Number of failures to attend on time | T209: Mandatory payments vs valid payments owed | U209: Number of valid payments owed | V209: Mandatory payments vs valid payments owed | W209: Total number of mandatory payments made | X209: Failures to offer timed appt. | Y209: Mandatory payments vs valid payments owed | Z209: Total payments due | AA209: Mandatory payments vs valid payments owed
D210: ENWL | E210: 256 | F210: 1.1015625 | G210: 0 | H210: N/A | I210: 0 | J210: N/A | K210: 3 | L210: 1 | M210: 0 | N210: N/A | O210: 0 | P210: N/A | Q210: 21 | R210: 1 | S210: 0 | T210: N/A | U210: 383 | V210: 1 | W210: 0 | X210: 1079 | Y210: 1 | Z210: 1042 | AA210: 1
D211: NPGN | E211: 2426 | F211: 1 | G211: 0 | H211: N/A | I211: 321 | J211: 1 | K211: 0 | L211: N/A | M211: 0 | N211: N/A | O211: 0 | P211: N/A | Q211: 2 | R211: 1 | S211: 0 | T211: N/A | U211: 28 | V211: 1 | W211: 0 | X211: 22 | Y211: 0.7727272727 | Z211: 14 | AA211: 1
D212: NPGY | E212: 1455 | F212: 1 | G212: 0 | H212: N/A | I212: 1067 | J212: 1 | K212: 0 | L212: N/A | M212: 0 | N212: N/A | O212: 0 | P212: N/A | Q212: 0 | R212: N/A | S212: 0 | T212: N/A | U212: 24 | V212: 1 | W212: 0 | X212: 39 | Y212: 0.6923076923 | Z212: 17 | AA212: 1
D213: WMID | E213: 0 | F213: N/A | G213: 0 | H213: N/A | I213: 0 | J213: N/A | K213: 0 | L213: N/A | M213: 0 | N213: N/A | O213: 0 | P213: N/A | Q213: 0 | R213: N/A | S213: 0 | T213: N/A | U213: 0 | V213: N/A | W213: 0 | X213: 12664 | Y213: 0 | Z213: 0 | AA213: N/A
D214: EMID | E214: 0 | F214: N/A | G214: 0 | H214: N/A | I214: 0 | J214: N/A | K214: 0 | L214: N/A | M214: 0 | N214: N/A | O214: 0 | P214: N/A | Q214: 0 | R214: N/A | S214: 0 | T214: N/A | U214: 3 | V214: 1 | W214: 0 | X214: 17409 | Y214: 0 | Z214: 0 | AA214: N/A
D215: SWALES | E215: 0 | F215: N/A | G215: 0 | H215: N/A | I215: 0 | J215: N/A | K215: 0 | L215: N/A | M215: 0 | N215: N/A | O215: 0 | P215: N/A | Q215: 0 | R215: N/A | S215: 0 | T215: N/A | U215: 1 | V215: 1 | W215: 0 | X215: 7505 | Y215: 0.0001332445037 | Z215: 0 | AA215: N/A
D216: SWEST | E216: 33 | F216: 1 | G216: 0 | H216: N/A | I216: 0 | J216: N/A | K216: 0 | L216: N/A | M216: 0 | N216: N/A | O216: 0 | P216: N/A | Q216: 0 | R216: N/A | S216: 2 | T216: 1 | U216: 5 | V216: 1 | W216: 0 | X216: 19295 | Y216: 0 | Z216: 0 | AA216: N/A
D217: LPN | E217: 2555 | F217: 0.03209393346 | G217: 0 | H217: N/A | I217: 0 | J217: N/A | K217: 0 | L217: N/A | M217: 0 | N217: N/A | O217: 0 | P217: N/A | Q217: 17 | R217: 1 | S217: 9 | T217: 1 | U217: 28 | V217: 1 | W217: 0 | X217: 46 | Y217: 1 | Z217: 0 | AA217: N/A
... 294 more rows

Sheet Ch2 - Network Asset SDs
A1: Chapter 2 - Reliability and Availability
B2: Performance against the outputs that DNOs are incentivised to deliver under RIIO-ED1.
B4: Reliability and availability: providing long-term reliability, minimising the number and duration of interruptions and ensuring adaptation to climate change.
B5: Incentive measure | F5: Incentive type
B6: Health, criticality and monetised risk: DNOs can receive a financial reward or incur a financial penalty depending on their performance against a target for the reduction in network risk that is delivered through specified asset replacement and refurbishment activities. | F6: Financial: penalty of 2.5% of under delivery or reward of 2.5% of over delivery.
D8: Year 1 to Year 3 cumulative delivery against rebased NAW target (number of assets)
B9: Network Asset Indices Secondary Deliverables
D10: Position at Beginning of RIIO-ED1 | E10: End of RIIO-ED1 (Without Investment) | F10: End of RIIO-ED1 (With Investment) | G10: Impact of investment | H10: Deterioration | I10: Cumulative delivery to date against rebased NAW target | J10: % Delivered
C11: ENWL | D11: 34717173.95 | E11: 52801732.97 | F11: 41290441.3 | G11: =SUM(F11-E11) * -1 -> 11511291.66 | H11: =+E11-D11 -> 18084559.02 | I11: 5621638.948 | J11: =I11/G11 -> 0.4883586579
C12: NPgN | D12: 35398060.56 | E12: 50635472.35 | F12: 40069116.53 | G12: =SUM(F12-E12) * -1 -> 10566355.82 | H12: =+E12-D12 -> 15237411.79 | I12: 4690210.553 | J12: =I12/G12 -> 0.4438815645
C13: NPgY | D13: 29674137.94 | E13: 39226669.01 | F13: 29830607.61 | G13: 9396061.403 | H13: 9552531.069 | I13: 3271262.273 | J13: 0.3481525006
C14: WMID | D14: 40210986.97 | E14: 52621580.09 | F14: 35393380.37 | G14: 17228199.72 | H14: 12410593.12 | I14: 8874432.352 | J14: 0.5151108356
C15: EMID | D15: 34930944.44 | E15: 42724719.56 | F15: 30194501.95 | G15: 12530217.61 | H15: 7793775.128 | I15: 7214832.756 | J15: 0.5757946891
C16: SWALES | D16: 20709600.89 | E16: 27797837.72 | F16: 17981336.21 | G16: 9816501.507 | H16: 7088236.823 | I16: 5133236.664 | J16: 0.5229191541
C17: SWEST | D17: 31601986.91 | E17: 46546170.72 | F17: 30235486.38 | G17: 16310684.34 | H17: 14944183.81 | I17: 7733487.702 | J17: 0.4741363111
C18: LPN | D18: 27708452.58 | E18: 35728247.99 | F18: 26585580.8 | G18: 9142667.194 | H18: 8019795.416 | I18: 3889759.515 | J18: 0.425451286
C19: SPN | D19: 35848065.34 | E19: 46097951.08 | F19: 37659235.17 | G19: 8438715.907 | H19: 10249885.73 | I19: 3639126.971 | J19: 0.4312417922
C20: EPN | D20: 50577623.92 | E20: 65823784.59 | F20: 54362805.49 | G20: 11460979.09 | H20: 15246160.66 | I20: 5244620.06 | J20: 0.4576066335
C21: SPD | D21: 30942854.04 | E21: 46997140.34 | F21: 40114396.53 | G21: 6882743.814 | H21: 16054286.3 | I21: 3682331.617 | J21: 0.5350092517
C22: SPMW | D22: 36840842.87 | E22: 52578037.67 | F22: 42446657.55 | G22: 10131380.12 | H22: 15737194.81 | I22: 4582912.84 | J22: 0.452348326
C23: SSEH | D23: 29746923.89 | E23: 40727721.33 | F23: 34325214.59 | G23: 6402506.739 | H23: 10980797.44 | I23: 2481774.89 | J23: 0.3876255022
C24: SSES | D24: 47453646.57 | E24: 65647485.21 | F24: 49343867.27 | G24: 16303617.94 | H24: 18193838.64 | I24: 5135844.762 | J24: 0.3150125807
C25: Total | D25: =SUM(D11:D24) -> 486361300.9 | E25: =SUM(E11:E24) -> 665954550.6 | F25: =SUM(F11:F24) -> 509832627.8 | G25: =SUM(F25-E25) * -1 -> 156121922.9 | H25: =+E25-D25 -> 179593249.8 | I25: =SUM(I11:I24) -> 71195471.9 | J25: 0.4560248208

Sheet Ch2 outputs - connections
A1: Chapter 2 - Connections
B2: Performance against the outputs that DNOs are incentivised to deliver under RIIO-ED1.
B4: Connections: connecting customers in a timely and efficient way, including responding to different customers' specific needs, while enabling competition.
B5: Incentive measure | F5: Incentive type
B6: Time to Connect Incentive: reward for reducing average time taken to connect smaller and less complex customer connections. | F6: Financial: reward only of up to 0.4% base revenue.
B7: Incentive on Connections Engagement (ICE): penalty where DNOs fail to engage effectively with, and understand requirements of, customers seeking larger and more complex connections. | F7: Financial: penalty only of up to 0.9% of base revenue.
B8: Connections Guaranteed Standards of Performance (GSOP): direct payment to customers of fixed amounts if DNO fails to deliver specified minimum levels of performance regarding connections. | F8: Financial: payment to customers for failure to meet standards. Reputational.
B9: Customer satisfaction survey: connection customers are one of three customer types in the Broad Measure of Customer Satisfaction survey. | F9: Financial: reward or penalty of 0.5% of base revenue which feeds into the overall reward or penalty under BMCS of +/- 1.5% of base revenue.
B12: Distributed Generation (DG) | D12: Capacity of generation connected to the distribution network by type (MW)
E13: 2016 | F13: 2017 | G13: 2018 | H13: 2019 | I13: 2020 | J13: 2021 | K13: 2022 | L13: 2023
D14: Photovoltaic (G83) | E14: 396.5674368 | F14: 62.58739237 | G14: 40.23402
D15: Other DG (G83) | E15: 0.63915 | F15: 0.190423 | G15: 0.3235
D16: DG (non G83) | E16: 3320.61859 | F16: 3129.94636 | G16: 1654.55256
B21: Time to connect incentive
D22: Industry average Time to Connect improvements from targets (working days) comparing 2013 and 2017-18 performance
F23: LVSSA | I23: LVSSB
F24: Average Time to Quote | G24: Time to Connect | H24: Overall | I24: Average Time to Quote | J24: Time to Connect | K24: Overall
E25: Previous industry average (2013 performance) | F25: 9.140409588 | G25: 46.3821136 | H25: 55.52252319 | I25: 14.45688562 | J25: 57.00932472 | K25: 71.46621034
D26: New industry average | E26: 2016 | F26: =E56 -> 4.913018774 | G26: =G56 -> 35.71963442 | H26: 40.63265319 | I26: =I56 -> 7.438419017 | J26: =K56 -> 43.1603969 | K26: 50.59881592
E27: 2017 | F27: =U56 -> 4.641116624 | G27: =W56 -> 43.50555453 | H27: 48.14667115 | I27: =Y56 -> 7.178433711 | J27: =AA56 -> 53.13871612 | K27: 60.31714983
E28: 2018 | F28: =AK56 -> 4.979260877 | G28: =AM56 -> 38.62718439 | H28: 43.60644526 | I28: =AO56 -> 8.906817939 | J28: =AQ56 -> 47.51635595 | K28: 56.42317389
E29: 2019
E30: 2020
E31: 2021
E32: 2022
E33: 2023
E34: Improvement | F34: =F25-F28 -> 4.161148711 | G34: 7.754929218 | H34: 11.91607793 | I34: 5.55006768 | J34: 9.492968769 | K34: 15.04303645
E35: Improvement - % | F35: =F34/F25 -> 0.4552475106 | G35: 0.1671965466 | H35: 0.2146170103 | I35: 0.3839047929 | J35: 0.1665160711 | K35: 0.2104915929
E38: 2015/16 | U38: 2016/17 | AK38: 2017-18 | AZ38: 2018-19 | BO38: 2019-20 | CD38: 2020-21 | CS38: 2021-22 | DH38: 2022-23
E39: LVSSA | I39: LVSSB | M39: Reward | O39: RAG and ranking | U39: LVSSA | Y39: LVSSB | AC39: Reward | AE39: RAG and ranking | AK39: LVSSA | AO39: LVSSB | AS39: Reward | AU39: RAG and ranking | AZ39: LVSSA | BD39: LVSSB | BH39: Reward | BJ39: RAG and ranking | BO39: LVSSA | BS39: LVSSB | BW39: Reward | BY39: RAG and ranking | CD39: LVSSA | CH39: LVSSB | CL39: Reward | CN39: RAG and ranking | CS39: LVSSA | CW39: LVSSB | DA39: Reward | DC39: RAG and ranking | DH39: LVSSA | DL39: LVSSB | DP39: Reward | DR39: RAG and ranking
E40: Average Time to Quote | F40: Ranking | G40: Time to Connect | H40: Ranking | I40: Time to Quote | J40: Ranking | K40: Time to Connect | L40: Ranking | M40: (£m 2012/13 Prices) | N40: (£m 2017/18 Prices) | O40: RAG | P40: Average ranking | Q40: Overall ranking | R40: Overall (LVSSA + LVSSB) | U40: Average Time to Quote | V40: Ranking | W40: Time to Connect | X40: Ranking | Y40: Time to Quote | Z40: Ranking | AA40: Time to Connect | AB40: Ranking | AC40: (£m 2012/13 Prices) | AD40: (£m 2017/18 Prices) | AE40: RAG | AF40: Average ranking | AG40: Overall ranking | AH40: Overall (LVSSA + LVSSB) | AK40: Average Time to Quote | AL40: Ranking | AM40: Time to Connect | AN40: Ranking | AO40: Time to Quote | AP40: Ranking | AQ40: Time to Connect | AR40: Ranking | AS40: (£m 2012/13 Prices) | AT40: (£m 2017/18 Prices) | AU40: RAG | AV40: Average ranking | AW40: Overall ranking | AX40: Overall (LVSSA + LVSSB) | AZ40: Average Time to Quote | BA40: Ranking | BB40: Time to Connect | BC40: Ranking | BD40: Time to Quote | BE40: Ranking | BF40: Time to Connect | BG40: Ranking | BH40: (£m 2012/13 Prices) | BI40: (£m 2016/17 Prices) | BJ40: RAG | BK40: Average ranking | BL40: Overall ranking | BM40: Overall (LVSSA + LVSSB) | BO40: Average Time to Quote | BP40: Ranking | BQ40: Time to Connect | BR40: Ranking | BS40: Time to Quote | BT40: Ranking | BU40: Time to Connect | BV40: Ranking | BW40: (£m 2012/13 Prices) | BX40: (£m 2016/17 Prices) | BY40: RAG | BZ40: Average ranking | CA40: Overall ranking | CB40: Overall (LVSSA + LVSSB) | CD40: Average Time to Quote | CE40: Ranking | CF40: Time to Connect | CG40: Ranking | CH40: Time to Quote | CI40: Ranking | CJ40: Time to Connect | CK40: Ranking | CL40: (£m 2012/13 Prices) | CM40: (£m 2016/17 Prices) | CN40: RAG | CO40: Average ranking | CP40: Overall ranking | CQ40: Overall (LVSSA + LVSSB) | CS40: Average Time to Quote | CT40: Ranking | CU40: Time to Connect | CV40: Ranking | CW40: Time to Quote | CX40: Ranking | CY40: Time to Connect | CZ40: Ranking | DA40: (£m 2012/13 Prices) | DB40: (£m 2016/17 Prices) | DC40: RAG | DD40: Average ranking | DE40: Overall ranking | DF40: Overall (LVSSA + LVSSB) | DH40: Average Time to Quote | DI40: Ranking | DJ40: Time to Connect | DK40: Ranking | DL40: Time to Quote | DM40: Ranking | DN40: Time to Connect | DO40: Ranking | DP40: (£m 2012/13 Prices) | DQ40: (£m 2016/17 Prices) | DR40: RAG | DS40: Average ranking | DT40: Overall ranking | DU40: Overall (LVSSA + LVSSB)
E41: Working days | U41: Working days | AK41: Working days | AZ41: Working days | BO41: Working days | CD41: Working days | CS41: Working days | DH41: Working days
D42: ENWL | E42: 4.002441406 | F42: =RANK(E42,$E$42:$E$55,1) -> 5 | G42: 30.36199095 | H42: =RANK(G42,$G$42:$G$55,1) -> 2 | I42: 7.434077079 | J42: =RANK(I42,$I$42:$I$55,1) -> 9 | K42: 36.88172043 | L42: =RANK(K42,$K$42:$K$55,1) -> 2 | M42: 1.2 | N42: =M42*'Guide & drivers'!$D$27 -> 1.348276694 | O42: =IF(SUM(IF(E42<=$E$57,1,0),IF(G42<=$G$57,1,0),IF(I42<=$I$57,1,0),IF(K42<=$K$57,1,0))=4,"Green",IF(SUM(IF(E42>$E$59,1,0),IF(G42>$G$59,1,0),IF(I42>$I$59,1,0),IF(K42>$K$59,1,0))>=3,"Red","Amber")) -> Green | P42: =AVERAGE(F42,H42,J42,L42) -> 4.5 | Q42: =RANK(P42,$P$42:$P$55,1) -> 3 | R42: =SUM(E42,G42,I42,K42) -> 78.68022987 | T42: ENWL | U42: 2.96 | V42: =RANK(U42,$U$42:$U$55,1) -> 2 | W42: 31.91009464 | X42: =RANK(W42,$W$42:$W$55,1) -> 2 | Y42: 7.91556367 | Z42: =RANK(Y42,$Y$42:$Y$55,1) -> 10 | AA42: 31.672 | AB42: =RANK(AA42,$AA$42:$AA$55,1) -> 1 | AC42: 1.2 | AD42: =AC42*'Guide & drivers'!$D$27 -> 1.348276694 | AE42: =IF(SUM(IF(U42<=$U$57,1,0),IF(W42<=$W$57,1,0),IF(Y42<=$Y$57,1,0),IF(AA42<=$AA$57,1,0))=4,"Green",IF(SUM(IF(U42>$U$59,1,0),IF(W42>$W$59,1,0),IF(Y42>$Y$59,1,0),IF(AA42>$AA$59,1,0))>=3,"Red","Amber")) -> Green | AF42: =AVERAGE(V42,X42,Z42,AB42) -> 3.75 | AG42: =RANK(AF42,$AF$42:$AF$55,1) -> 3 | AH42: =SUM(U42,W42,Y42,AA42) -> 74.45765831 | AJ42: ENWL | AK42: 3.7 | AL42: =RANK(AK42,$AK$42:$AK$55,1) -> 5 | AM42: 31.72 | AN42: =RANK(AM42,$AM$42:$AM$55,1) -> 6 | AO42: 8.25 | AP42: =RANK(AO42,$AO$42:$AO$55,1) -> 7 | AQ42: 34.28 | AR42: =RANK(AQ42,$AQ$42:$AQ$55,1) -> 3 | AS42: 1.2 | AT42: 1.348278328 | AU42: =IF(SUM(IF(AK42<=$AK$57,1,0),IF(AM42<=$AM$57,1,0),IF(AO42<=$AO$57,1,0),IF(AQ42<=$AQ$57,1,0))=4,"Green",IF(SUM(IF(AK42>$AK$59,1,0),IF(AM42>$AM$59,1,0),IF(AO42>$AO$59,1,0),IF(AQ42>$AQ$59,1,0))>=3,"Red","Amber")) -> Green | AV42: =AVERAGE(AL42,AN42,AP42,AR42) -> 5.25 | AW42: =RANK(AV42,$AV$42:$AV$55,1) -> 6 | AX42: =SUM(AK42,AM42,AO42,AQ42) -> 77.95
D43: NPgN | E43: 5.715898401 | F43: =RANK(E43,$E$42:$E$55,1) -> 11 | G43: 40.14694656 | H43: =RANK(G43,$G$42:$G$55,1) -> 11 | I43: 9.584170854 | J43: =RANK(I43,$I$42:$I$55,1) -> 12 | K43: 47.12105263 | L43: =RANK(K43,$K$42:$K$55,1) -> 12 | M43: 0.5502400161 | N43: =M43*'Guide & drivers'!$D$27 -> 0.6182298246 | O43: Green | P43: =AVERAGE(F43,H43,J43,L43) -> 11.5 | Q43: =RANK(P43,$P$42:$P$55,1) -> 12 | R43: =SUM(E43,G43,I43,K43) -> 102.5680685 | T43: NPgN | U43: 5.581349206 | V43: =RANK(U43,$U$42:$U$55,1) -> 13 | W43: 50.62416107 | X43: =RANK(W43,$W$42:$W$55,1) -> 10 | Y43: 9.408921933 | Z43: =RANK(Y43,$Y$42:$Y$55,1) -> 13 | AA43: 57.69114471 | AB43: =RANK(AA43,$AA$42:$AA$55,1) -> 8 | AC43: 0.4 | AD43: =AC43*'Guide & drivers'!$D$27 -> 0.4494255645 | AE43: Amber | AF43: =AVERAGE(V43,X43,Z43,AB43) -> 11 | AG43: 12 | AH43: =SUM(U43,W43,Y43,AA43) -> 123.3055769 | AJ43: NPgN | AK43: 7.99 | AL43: 14 | AM43: 53.75 | AN43: 13 | AO43: 15.9 | AP43: 13 | AQ43: 63.01 | AR43: 11 | AS43: 0.03 | AT43: 0.03213396683 | AU43: Red | AV43: =AVERAGE(AL43,AN43,AP43,AR43) -> 12.75 | AW43: 14 | AX43: =SUM(AK43,AM43,AO43,AQ43) -> 140.65
D44: NPgY | E44: 5.929051988 | F44: 12 | G44: 43.39694656 | H44: 14 | I44: 8.811673152 | J44: 11 | K44: 47.90960452 | L44: 13 | M44: 0.6958079096 | N44: =M44*'Guide & drivers'!$D$27 -> 0.7817846564 | O44: Amber | P44: 12.5 | Q44: 14 | R44: 106.0472762 | T44: NPgY | U44: 5.449211356 | V44: 11 | W44: 47.31283906 | X44: 9 | Y44: 8.455755677 | Z44: 12 | AA44: 55.8582996 | AB44: 7 | AC44: 0.6 | AD44: =AC44*'Guide & drivers'!$D$27 -> 0.6741383468 | AE44: Amber | AF44: 9.75 | AG44: 10 | AH44: 117.0761057 | AJ44: NPgY | AK44: 7.84 | AL44: 13 | AM44: 47.07 | AN44: 12 | AO44: 16.81 | AP44: 14 | AQ44: 55.51 | AR44: 10 | AS44: 0.06 | AT44: 0.07067225571 | AU44: Red | AV44: 12.25 | AW44: 13 | AX44: 127.23
D45: WMID | E45: 4.8 | F45: 7 | G45: 34.32 | H45: 7 | I45: 6.11 | J45: 4 | K45: 44.8 | L45: 8 | M45: 1.3474 | N45: =M45*'Guide & drivers'!$D$27 -> 1.513890014 | O45: Green | P45: 6.5 | Q45: 5 | R45: 90.03 | T45: WMID | U45: 4.516757011 | V45: 6 | W45: 37.18447876 | X45: 6 | Y45: 6.083300114 | Z45: 4 | AA45: 47.50359726 | AB45: 6 | AC45: 1.15 | AD45: =AC45*'Guide & drivers'!$D$27 -> 1.292098498 | AE45: Green | AF45: 5.5 | AG45: 6 | AH45: 95.28813314 | AJ45: WMID | AK45: 4.14 | AL45: 6 | AM45: 28.08 | AN45: 3 | AO45: 4.47 | AP45: 1 | AQ45: 40.28 | AR45: 6 | AS45: 1.57 | AT45: 1.766918749 | AU45: Green | AV45: 4 | AW45: 3 | AX45: 76.97
D46: EMID | E46: 3.48 | F46: 3 | G46: 31.89 | H46: 4 | I46: 5.2 | J46: 3 | K46: 41.25 | L46: 5 | M46: 1.5435 | N46: =M46*'Guide & drivers'!$D$27 -> 1.734220897 | O46: Green | P46: 3.75 | Q46: 2 | R46: 81.82 | T46: EMID | U46: 3.475764751 | V46: 3 | W46: 34.40456009 | X46: 4 | Y46: 4.734363079 | Z46: 1 | AA46: 45.77630234 | AB46: 5 | AC46: 1.31 | AD46: =AC46*'Guide & drivers'!$D$27 -> 1.471868724 | AE46: Green | AF46: 3.25 | AG46: 1 | AH46: 88.39099026 | AJ46: EMID | AK46: 3.51 | AL46: 4 | AM46: 28.16 | AN46: 4 | AO46: 4.91 | AP46: 2 | AQ46: 35.42 | AR46: 4 | AS46: 1.6 | AT46: 1.797704438 | AU46: Green | AV46: 3.5 | AW46: 1 | AX46: 72
D47: SWALES | E47: 8.37 | F47: 14 | G47: 30.26 | H47: 1 | I47: 11.1 | J47: 14 | K47: 34.55 | L47: 1 | M47: 0.4571 | N47: =M47*'Guide & drivers'!$D$27 -> 0.5135810639 | O47: Amber | P47: 7.5 | Q47: 7 | R47: 84.28 | T47: SWALES | U47: 4.298858166 | V47: 5 | W47: 33.75547409 | X47: 3 | Y47: 5.778291225 | Z47: 2 | AA47: 42.5506897 | AB47: 3 | AC47: 0.67 | AD47: =AC47*'Guide & drivers'!$D$27 -> 0.7527878206 | AE47: Green | AF47: 3.25 | AG47: 1 | AH47: 86.38331318 | AJ47: SWALES | AK47: 3.3 | AL47: 2 | AM47: 28.35 | AN47: 5 | AO47: 4.93 | AP47: 3 | AQ47: 38.51 | AR47: 5 | AS47: 0.74 | AT47: 0.8335730765 | AU47: Green | AV47: 3.75 | AW47: 2 | AX47: 75.09
D48: SWEST | E48: 6.64 | F48: 13 | G48: 32.01 | H48: 5 | I48: 7.87 | J48: 10 | K48: 37.68 | L48: 3 | M48: 1.1355 | N48: =M48*'Guide & drivers'!$D$27 -> 1.275806821 | O48: Green | P48: 7.75 | Q48: 10 | R48: 84.2 | T48: SWEST | U48: 5.15520525 | V48: 8 | W48: 36.52682114 | X48: 5 | Y48: 5.863285065 | Z48: 3 | AA48: 43.38860703 | AB48: 4 | AC48: 0.95 | AD48: =AC48*'Guide & drivers'!$D$27 -> 1.067385716 | AE48: Green | AF48: 5 | AG48: 5 | AH48: 90.93391848 | AJ48: SWEST | AK48: 4.87 | AL48: 9 | AM48: 25.73 | AN48: 1 | AO48: 5.4 | AP48: 4 | AQ48: 29.92 | AR48: 2 | AS48: 1.2 | AT48: 1.348278328 | AU48: Green | AV48: 4 | AW48: 3 | AX48: 65.92
D49: LPN | E49: 3.64244898 | F49: 4 | G49: 41.29574468 | H49: 12 | I49: 4.729618768 | J49: 1 | K49: 46.79542396 | L49: 11 | M49: 0.7416191804 | N49: =M49*'Guide & drivers'!$D$27 -> 0.8332565471 | O49: Green | P49: 7 | Q49: 6 | R49: 96.46323639 | T49: LPN | U49: 5.37 | V49: 10 | W49: 59.64 | X49: 14 | Y49: 8.38 | Z49: 11 | AA49: 57.85 | AB49: 9 | AC49: 0.6 | AD49: =AC49*'Guide & drivers'!$D$27 -> 0.6741383468 | AE49: Amber | AF49: 11 | AG49: 12 | AH49: 131.24 | AJ49: LPN | AK49: 5.734031414 | AL49: 10 | AM49: 40.97727273 | AN49: 8 | AO49: 7.368633791 | AP49: 6 | AQ49: 45.04388298 | AR49: 7 | AS49: 0.79 | AT49: 0.8833516906 | AU49: Green | AV49: 7.75 | AW49: 7 | AX49: 99.12382091
D50: SPN | E50: 4.624687239 | F50: 6 | G50: 37.6561939 | H50: 10 | I50: 7.345218801 | J50: 8 | K50: 45.30828025 | L50: 10 | M50: 0.880548578 | N50: =M50*'Guide & drivers'!$D$27 -> 0.9893526044 | O50: Green | P50: 8.5 | Q50: 11 | R50: 94.93438019 | T50: SPN | U50: 5.57 | V50: 12 | W50: 52.91 | X50: 12 | Y50: 6.52 | Z50: 6 | AA50: 66.43 | AB50: 13 | AC50: 0.6 | AD50: =AC50*'Guide & drivers'!$D$27 -> 0.6741383468 | AE50: Amber | AF50: 10.75 | AG50: 11 | AH50: 131.43 | AJ50: SPN | AK50: 5.748065015 | AL50: 11 | AM50: 36.50903832 | AN50: 7 | AO50: 9.797826087 | AP50: 10 | AQ50: 46.02680653 | AR50: 8 | AS50: 0.9 | AT50: 1.011874706 | AU50: Green | AV50: 9 | AW50: 10 | AX50: 98.08173595
D51: EPN | E51: 5.560302162 | F51: 9 | G51: 42.76034483 | H51: 13 | I51: 9.705137751 | J51: 13 | K51: 51.00676329 | L51: 14 | M51: 1.067729469 | N51: =M51*'Guide & drivers'!$D$27 -> 1.199662298 | O51: Amber | P51: 12.25 | Q51: 13 | R51: 109.032548 | T51: EPN | U51: 6.12 | V51: 14 | W51: 54.17 | X51: 13 | Y51: 9.76 | Z51: 14 | AA51: 67.37 | AB51: 14 | AC51: 1 | AD51: =AC51*'Guide & drivers'!$D$27 -> 1.123563911 | AE51: Amber | AF51: 13.75 | AG51: 14 | AH51: 137.42 | AJ51: EPN | AK51: 7.240318302 | AL51: 12 | AM51: 43.22931985 | AN51: 9 | AO51: 11.46362253 | AP51: 12 | AQ51: 49.01349693 | AR51: 9 | AS51: 0.48 | AT51: 0.5357460693 | AU51: Amber | AV51: 10.5 | AW51: 11 | AX51: 110.9467576
D52: SPD | E52: 5.24955595 | F52: 8 | G52: 35.73757455 | H52: 9 | I52: 7.325987144 | J52: 7 | K52: 42.42203742 | L52: 6 | M52: 0.995832015 | N52: =M52*'Guide & drivers'!$D$27 -> 1.118880914 | O52: Green | P52: 7.5 | Q52: 7 | R52: 90.73515507 | T52: SPD | U52: 4.92173189 | V52: 7 | W52: 51.10739191 | X52: 11 | Y52: 6.309927361 | Z52: 5 | AA52: 63.96688742 | AB52: 12 | AC52: 0.6 | AD52: =AC52*'Guide & drivers'!$D$27 -> 0.6741383468 | AE52: Amber | AF52: 8.75 | AG52: 9 | AH52: 126.3059386 | AJ52: SPD | AK52: 3.208126858 | AL52: 1 | AM52: 58.93573668 | AN52: 14 | AO52: 7.006410256 | AP52: 5 | AQ52: 69.57369255 | AR52: 14 | AS52: 0.6 | AT52: 0.6741391642 | AU52: Amber | AV52: 8.5 | AW52: 8 | AX52: 138.7239663
D53: SPMW | E53: 5.607876712 | F53: 10 | G53: 35.55913978 | H53: 8 | I53: 6.881982691 | J53: 5 | K53: 43.46067416 | L53: 7 | M53: 1.072805582 | N53: =M53*'Guide & drivers'!$D$27 -> 1.205365635 | O53: Green | P53: 7.5 | Q53: 7 | R53: 91.50967335 | T53: SPMW | U53: 5.315705128 | V53: 9 | W53: 45.25950413 | X53: 8 | Y53: 6.839459865 | Z53: 7 | AA53: 59.76293823 | AB53: 10 | AC53: 0.6 | AD53: =AC53*'Guide & drivers'!$D$27 -> 0.6741383468 | AE53: Amber | AF53: 8.5 | AG53: 8 | AH53: 117.1776074 | AJ53: SPMW | AK53: 4.792436975 | AL53: 8 | AM53: 44.72089314 | AN53: 10 | AO53: 10.09006211 | AP53: 11 | AQ53: 65.87636364 | AR53: 13 | AS53: 0.6 | AT53: 0.6741391642 | AU53: Amber | AV53: 10.5 | AW53: 11 | AX53: 125.4797559
D54: SSEH | E54: 2.5 | F54: 1 | G54: 31.5 | H54: 3 | I54: 5.1 | J54: 2 | K54: 40.02 | L54: 4 | M54: 0.8 | N54: =M54*'Guide & drivers'!$D$27 -> 0.898851129 | O54: Green | P54: 2.5 | Q54: 1 | R54: 79.12 | T54: SSEH | U54: 3.552147239 | V54: 4 | W54: 29.97927461 | X54: 1 | Y54: 7.220560748 | Z54: 8 | AA54: 40.43773585 | AB54: 2 | AC54: 0.8 | AD54: =AC54*'Guide & drivers'!$D$27 -> 0.898851129 | AE54: Green | AF54: 3.75 | AG54: 3 | AH54: 81.18971845 | AJ54: SSEH | AK54: 4.22214941 | AL54: 7 | AM54: 27.83704735 | AN54: 2 | AO54: 9.015625 | AP54: 8 | AQ54: 28.75909091 | AR54: 1 | AS54: 0.8 | AT54: 0.8988522189 | AU54: Green | AV54: 4.5 | AW54: 5 | AX54: 69.83391267
D55: SSES | E55: 2.66 | F55: 2 | G55: 33.18 | H55: 6 | I55: 6.94 | J55: 6 | K55: 45.04 | L55: 9 | M55: 1.3858 | N55: =M55*'Guide & drivers'!$D$27 -> 1.557034868 | O55: Green | P55: 5.75 | Q55: 4 | R55: 87.82 | T55: SSES | U55: 2.688902743 | V55: 1 | W55: 44.29316389 | X55: 7 | Y55: 7.228643216 | Z55: 9 | AA55: 63.68382353 | AB55: 11 | AC55: 0.8 | AD55: =AC55*'Guide & drivers'!$D$27 -> 0.898851129 | AE55: Amber | AF55: 7 | AG55: 7 | AH55: 117.8945334 | AJ55: SSES | AK55: 3.414524301 | AL55: 3 | AM55: 45.71127332 | AN55: 11 | AO55: 9.283271375 | AP55: 9 | AQ55: 64.00564972 | AR55: 12 | AS55: 0.8 | AT55: 0.8988522189 | AU55: Amber | AV55: 8.75 | AW55: 9 | AX55: 122.4147187
D56: Industry Average Score/Total Reward | E56: =AVERAGE(E42:E55) -> 4.913018774 | G56: 35.71963442 | I56: 7.438419017 | K56: 43.1603969 | M56: =SUM(M42:M55) -> 13.87388275 | N56: =SUM(N42:N55) -> 15.58819397 | T56: Industry Average Score/Total Reward | U56: =AVERAGE(U42:U55) -> 4.641116624 | W56: =AVERAGE(W42:W55) -> 43.50555453 | Y56: =AVERAGE(Y42:Y55) -> 7.178433711 | AA56: =AVERAGE(AA42:AA55) -> 53.13871612 | AC56: =SUM(AC42:AC55) -> 11.28 | AD56: =SUM(AD42:AD55) -> 12.67380092 | AG56: Industry Average Score/Total Reward | AK56: =AVERAGE(AK42:AK55) -> 4.979260877 | AM56: =AVERAGE(AM42:AM55) -> 38.62718439 | AO56: =AVERAGE(AO42:AO55) -> 8.906817939 | AQ56: =AVERAGE(AQ42:AQ55) -> 47.51635595 | AS56: =SUM(AS42:AS55) -> 11.37 | AT56: =SUM(AT42:AT55) -> 12.77451437
D57: Target | E57: 8.21 | G57: 42.08 | I57: 11.73 | K57: 52.7 | T57: Target | U57: 8.21 | W57: 42.08 | Y57: 11.73 | AA57: 52.7 | AJ57: Target | AK57: 8.21 | AM57: 42.08 | AO57: 11.73 | AQ57: 52.7
D58: Maximum Reward score | E58: 6.4 | G58: 32.47 | I58: 10.12 | K58: 39.91 | T58: Maximum Reward score | U58: 6.4 | W58: 32.47 | Y58: 10.12 | AA58: 39.91 | AJ58: Maximum Reward score | AK58: =E58 -> 6.4 | AL58: =G58 -> 32.47 | AM58: =I58 -> 10.12 | AN58: =K58 -> 39.91 | AU58: =U58 -> 6.4 | AV58: =W58 -> 32.47 | AW58: =Y58 -> 10.12 | AX58: =AA58 -> 39.91 | BE58: =AK58 -> 6.4 | BF58: =AL58 -> 32.47 | BG58: =AM58 -> 10.12 | BH58: =AN58 -> 39.91 | BO58: =AU58 -> 6.4 | BP58: =AV58 -> 32.47 | BQ58: =AW58 -> 10.12 | BR58: =AX58 -> 39.91 | BY58: =BE58 -> 6.4 | BZ58: =BF58 -> 32.47 | CA58: =BG58 -> 10.12 | CB58: =BH58 -> 39.91 | CI58: =BO58 -> 6.4 | CJ58: =BP58 -> 32.47 | CK58: =BQ58 -> 10.12 | CL58: =BR58 -> 39.91
D59: 105% of target | E59: =E57*1.05 -> 8.6205 | G59: =G57*1.05 -> 44.184 | I59: =I57*1.05 -> 12.3165 | K59: =K57*1.05 -> 55.335 | T59: 105% of target | U59: =U57*1.05 -> 8.6205 | W59: =W57*1.05 -> 44.184 | Y59: =Y57*1.05 -> 12.3165 | AA59: =AA57*1.05 -> 55.335 | AI59: 105% of target | AK59: =AK57*1.05 -> 8.6205 | AM59: =AM57*1.05 -> 44.184 | AO59: =AO57*1.05 -> 12.3165 | AQ59: =AQ57*1.05 -> 55.335
D61: Time to Connect improvements from 2013
E62: 2015/16 | L62: 2016/17 | S62: 2017/18 | Z62: 2018/19 | AG62: 2019/20 | AN62: 2020/21 | AU62: 2021/22 | BB62: 2022/23
E63: LVSSA | H63: LVSSB | L63: LVSSA | O63: LVSSB | S63: LVSSA | V63: LVSSB | Z63: LVSSA | AC63: LVSSB | AG63: LVSSA | AJ63: LVSSB | AN63: LVSSA | AQ63: LVSSB | AU63: LVSSA | AX63: LVSSB | BB63: LVSSA | BE63: LVSSB
E64: Average Time to Quote | F64: Time to Connect | G64: Overall | H64: Average Time to Quote | I64: Time to Connect | J64: Overall | L64: Average Time to Quote | M64: Time to Connect | N64: Overall | O64: Average Time to Quote | P64: Time to Connect | Q64: Overall | S64: Average Time to Quote | T64: Time to Connect | U64: Overall | V64: Average Time to Quote | W64: Time to Connect | X64: Overall | Z64: Average Time to Quote | AA64: Time to Connect | AB64: Overall | AC64: Average Time to Quote | AD64: Time to Connect | AE64: Overall | AG64: Average Time to Quote | AH64: Time to Connect | AI64: Overall | AJ64: Average Time to Quote | AK64: Time to Connect | AL64: Overall | AN64: Average Time to Quote | AO64: Time to Connect | AP64: Overall | AQ64: Average Time to Quote | AR64: Time to Connect | AS64: Overall | AU64: Average Time to Quote | AV64: Time to Connect | AW64: Overall | AX64: Average Time to Quote | AY64: Time to Connect | AZ64: Overall | BB64: Average Time to Quote | BC64: Time to Connect | BD64: Overall | BE64: Average Time to Quote | BF64: Time to Connect | BG64: Overall
D65: ENWL | E65: 3.523335197 | F65: 43.79341055 | G65: 47.31674575 | H65: 4.083818411 | I65: 45.79215901 | J65: 49.87597742 | L65: 4.565776603 | M65: 42.24530686 | N65: 46.81108347 | O65: 3.602331821 | P65: 51.00187944 | Q65: 54.60421126 | S65: 3.825776603 | T65: 42.4354015 | U65: 46.2611781 | V65: 3.26789549 | W65: 48.39387944 | X65: 51.66177493
D66: NPgN | E66: 5.407092376 | F66: 11.4797201 | G66: 16.88681248 | H66: 10.23449286 | I66: 5.570614035 | J66: 15.8051069 | L66: 5.541641571 | M66: 1.002505593 | N66: 6.544147164 | O66: 10.40974178 | P66: -4.999478042 | Q66: 5.410263742 | S66: 3.132990777 | T66: -2.123333333 | U66: 1.009657444 | V66: 3.918663717 | W66: -10.31833333 | X66: -6.399669617
D67: NPgY | E67: 5.193938789 | F67: 4.234720102 | G67: 9.428658891 | H67: 10.50699056 | I67: 11.71872881 | J67: 22.22571938 | L67: 5.673779421 | M67: 0.318827607 | N67: 5.992607028 | O67: 10.86290804 | P67: 3.770033738 | Q67: 14.63294178 | S67: 3.282990777 | T67: 0.5616666667 | U67: 3.844657444 | V67: 2.508663717 | W67: 4.118333333 | X67: 6.62699705
D68: WMID | E68: 4.272990777 | F68: 17.82 | G68: 22.09299078 | H68: 11.04199705 | I68: 11.72 | J68: 22.76199705 | L68: 4.556233766 | M68: 14.95552124 | N68: 19.51175501 | O68: 11.06869694 | P68: 9.01640274 | Q68: 20.08509968 | S68: 4.932990777 | T68: 24.06 | U68: 28.99299078 | V68: 12.68199705 | W68: 16.24 | X68: 28.92199705
D69: EMID | E69: 4.762990777 | F69: 12.33 | G69: 17.09299078 | H69: 9.19199705 | I69: 13.85 | J69: 23.04199705 | L69: 4.767226026 | M69: 9.815439911 | N69: 14.58266594 | O69: 9.657633971 | P69: 9.323697662 | Q69: 18.98133163 | S69: 4.732990777 | T69: 16.06 | U69: 20.79299078 | V69: 9.48199705 | W69: 19.68 | X69: 29.16199705
D70: SWALES | E70: -1.257009223 | F70: 11.81 | G70: 10.55299078 | H70: -1.24800295 | I70: 21.55 | J70: 20.30199705 | L70: 2.814132611 | M70: 8.314525909 | N70: 11.12865852 | O70: 4.073705825 | P70: 13.5493103 | Q70: 17.62301613 | S70: 3.812990777 | T70: 13.72 | U70: 17.53299078 | V70: 4.92199705 | W70: 17.59 | X70: 22.51199705
D71: SWEST | E71: 0.8729907772 | F71: 11.59 | G71: 12.46299078 | H71: 2.25199705 | I71: 19.79 | J71: 22.04199705 | L71: 2.357785527 | M71: 7.073178864 | N71: 9.430964391 | O71: 4.258711985 | P71: 14.08139297 | Q71: 18.34010496 | S71: 2.642990777 | T71: 17.87 | U71: 20.51299078 | V71: 4.72199705 | W71: 27.55 | X71: 32.27199705
D72: LPN | E72: 6.07755102 | F72: 7.734255319 | G72: 13.81180634 | H72: 11.37038123 | I72: 23.02457604 | J72: 34.39495727 | L72: 4.35 | M72: -10.61 | N72: -6.26 | O72: 7.72 | P72: 11.97 | Q72: 19.69 | S72: 3.985968586 | T72: 8.052727273 | U72: 12.03869586 | V72: 8.731366209 | W72: 24.77611702 | X72: 33.50748323
D73: SPN | E73: 5.775312761 | F73: 11.4338061 | G73: 17.20911886 | H73: 10.5447812 | I73: 18.23171975 | J73: 28.77650094 | L73: 4.83 | M73: -3.82 | N73: 1.01 | O73: 11.37 | P73: -2.89 | Q73: 8.48 | S73: 4.651934985 | T73: 12.58096168 | U73: 17.23289666 | V73: 8.092173913 | W73: 17.51319347 | X73: 25.60536739
D74: EPN | E74: 4.499697838 | F74: -0.5103448276 | G74: 3.98935301 | H74: 5.914862249 | I74: 2.693236715 | J74: 8.608098964 | L74: 3.94 | M74: -11.92 | N74: -7.98 | O74: 5.86 | P74: -13.67 | Q74: -7.81 | S74: 2.819681698 | T74: -0.9793198529 | U74: 1.840361845 | V74: 4.156377473 | W74: 4.686503067 | X74: 8.842880541
D75: SPD | E75: 4.574434157 | F75: 6.391408755 | G75: 10.96584291 | H75: 6.171719278 | I75: 2.598634413 | J75: 8.77035369 | L75: 4.902258217 | M75: -8.978408603 | N75: -4.076150386 | O75: 7.187779061 | P75: -18.94621558 | Q75: -11.75843652 | S75: 6.615863249 | T75: -16.80675337 | U75: -10.19089012 | V75: 6.491296166 | W75: -24.55302072 | X75: -18.06172455
D76: SPMW | E76: 3.668890964 | F76: 1.269745615 | G76: 4.93863658 | H76: 4.161614039 | I76: 2.508318091 | J76: 6.66993213 | L76: 3.961062549 | M76: -8.430618732 | N76: -4.469556183 | O76: 4.204136865 | P76: -13.79394598 | Q76: -9.589809117 | S76: 4.484330702 | T76: -7.892007742 | U76: -3.40767704 | V76: 0.9535346184 | W76: -19.90737139 | X76: -18.95383677
D77: SSEH | E77: 6.278027356 | F77: 3.581850534 | G77: 9.859877889 | H77: 8.599600464 | I77: 12.68906631 | J77: 21.28866677 | L77: 5.225880116 | M77: 5.102575922 | N77: 10.32845604 | O77: 6.479039717 | P77: 12.27133046 | Q77: 18.75037017 | S77: 4.555877945 | T77: 7.24480318 | U77: 11.80068113 | V77: 4.683975464 | W77: 23.9499754 | X77: 28.63395086
D78: SSES | E78: 5.533227827 | F78: 6.316136364 | G78: 11.84936419 | H78: 5.432283935 | I78: 2.147936191 | J78: 7.580220127 | L78: 5.504325084 | M78: -4.797027528 | N78: 0.7072975564 | O78: 5.143640719 | P78: -16.49588734 | Q78: -11.35224662 | S78: 4.778703526 | T78: -6.215136953 | U78: -1.436433427 | V78: 3.08901256 | W78: -16.81771353 | X78: -13.72870097
D79: Industry Average | E79: =AVERAGE(E65:E78) -> 4.227390814 | F79: 10.66247919 | G79: 14.88987 | H79: 7.018466603 | I79: 13.84892781 | J79: 20.86739441 | L79: =AVERAGE(L65:L78) -> 4.499292964 | M79: 2.876559075 | N79: 7.375852039 | O79: 7.278451909 | P79: 3.870608598 | Q79: 11.14906051 | S79: 4.161148711 | T79: 7.754929218 | U79: 11.91607793 | V79: 5.55006768 | W79: 9.492968769 | X79: 15.04303645
D80: *2015/16 targets in cells E57:K57 | L80: *2016/17 targets in cells U57:AA57 | S80: *2017/18 targets in cells AJ57:AP57
B82: Connections Guaranteed Standards of Performance (GSOPs) | D82: Connections Guaranteed Standard of Performance
E83: 2015/16 | L83: 2016/17 | S83: 2017/18 | Z83: 2018/19 | AG83: 2019/20 | AN83: 2020/21 | AU83: 2021/22 | BB83: 2022/23
E84: Total number of cases where the Connection GSOPs apply | F84: Total number of cases where the Connection GSOPs apply and the standard was not met | G84: Total penalties paid against the Connection GSOPs (£) (2017/18 prices) | H84: % of total cases when standard not met | I84: RAG | J84: Ranking | L84: Total number of cases where the Connection GSOPs apply | M84: Total number of cases where the Connection GSOPs apply and the standard was not met | N84: Total penalties paid against the Connection GSOPs (£) (2017/18 prices) | O84: % of total cases when standard not met | P84: RAG | Q84: Ranking | S84: Total number of cases where the Connection GSOPs apply | T84: Total number of cases where the Connection GSOPs apply and the standard was not met | U84: Total penalties paid against the Connection GSOPs (£) | V84: % of total cases when standard not met | W84: RAG | X84: Ranking | Z84: Total number of cases where the Connection GSOPs apply | AA84: Total number of cases where the Connection GSOPs apply and the standard was not met | AB84: Total penalties paid against the Connection GSOPs (£) | AC84: % of total cases when standard not met | AD84: RAG | AE84: Ranking | AG84: Total number of cases where the Connection GSOPs apply | AH84: Total number of cases where the Connection GSOPs apply and the standard was not met | AI84: Total penalties paid against the Connection GSOPs (£) | AJ84: % of total cases when standard not met | AK84: RAG | AL84: Ranking | AN84: Total number of cases where the Connection GSOPs apply | AO84: Total number of cases where the Connection GSOPs apply and the standard was not met | AP84: Total penalties paid against the Connection GSOPs (£) | AQ84: % of total cases when standard not met | AR84: RAG | AS84: Ranking | AU84: Total number of cases where the Connection GSOPs apply | AV84: Total number of cases where the Connection GSOPs apply and the standard was not met | AW84: Total penalties paid against the Connection GSOPs (£) | AX84: % of total cases when standard not met | AY84: RAG | AZ84: Ranking | BB84: Total number of cases where the Connection GSOPs apply | BC84: Total number of cases where the Connection GSOPs apply and the standard was not met | BD84: Total penalties paid against the Connection GSOPs (£) | BE84: % of total cases when standard not met | BF84: RAG | BG84: Ranking
D85: ENWL | E85: 21541 | F85: 338 | G85: 101201.8076 | H85: =F85/E85 -> 0.01569100785 | I85: =IF(H85<=2%,"Green",IF(H85:H85>5%,"Red","Amber")) -> Green | J85: =RANK(H85,$H$85:$H$98,1) -> 14 | L85: 19435 | M85: 179 | N85: 44116.2854 | O85: =M85/L85 -> 0.009210187806 | P85: =IF(O85<=2%,"Green",IF(O85:O85>5%,"Red","Amber")) -> Green | Q85: =RANK(O85,O$85:O$98,1) -> 14 | S85: 19960 | T85: 59 | U85: 10375 | V85: =T85/S85 -> 0.002955911824 | W85: =IF(V85<=2%,"Green",IF(V85:V85>5%,"Red","Amber")) -> Green | X85: =RANK(V85,V$85:V$98,1) -> 9
D86: NPgN | E86: 25025 | F86: 32 | G86: 4312.7727 | H86: =F86/E86 -> 0.001278721279 | I86: =IF(H86<=2%,"Green",IF(H86:H86>5%,"Red","Amber")) -> Green | J86: =RANK(H86,$H$85:$H$98,1) -> 9 | L86: 21151 | M86: 66 | N86: 9793.244777 | O86: =M86/L86 -> 0.003120419838 | P86: =IF(O86<=2%,"Green",IF(O86:O86>5%,"Red","Amber")) -> Green | Q86: =RANK(O86,O$85:O$98,1) -> 10 | S86: 22582 | T86: 110 | U86: 26185 | V86: =T86/S86 -> 0.004871136303 | W86: =IF(V86<=2%,"Green",IF(V86:V86>5%,"Red","Amber")) -> Green | X86: =RANK(V86,V$85:V$98,1) -> 11
D87: NPgY | E87: 35257 | F87: 29 | G87: 9494.457837 | H87: 0.0008225316958 | I87: =IF(H87<=2%,"Green",IF(H87:H87>5%,"Red","Amber")) -> Green | J87: 7 | L87: 30076 | M87: 50 | N87: 14290.46047 | O87: 0.001662455114 | P87: Green | Q87: =RANK(O87,O$85:O$98,1) -> 8 | S87: 29262 | T87: 176 | U87: 35130 | V87: 0.006014626478 | W87: Green | X87: =RANK(V87,V$85:V$98,1) -> 12
D88: WMID | E88: 36475 | F88: 0 | G88: 0 | H88: 0 | I88: Green | J88: 1 | L88: 33786 | M88: 0 | N88: 0 | O88: 0 | P88: Green | Q88: 1 | S88: 37789 | T88: 0 | U88: 0 | V88: 0 | W88: Green | X88: 1
D89: EMID | E89: 36477 | F89: 3 | G89: 275.5088212 | H89: 8.224360556e-05 | I89: Green | J89: 4 | L89: 35861 | M89: 0 | N89: 0 | O89: 0 | P89: Green | Q89: 1 | S89: 37198 | T89: 0 | U89: 0 | V89: 0 | W89: Green | X89: 1
D90: SWALES | E90: 17189 | F90: 0 | G90: 0 | H90: 0 | I90: Green | J90: 1 | L90: 17373 | M90: 0 | N90: 0 | O90: 0 | P90: Green | Q90: 1 | S90: 16412 | T90: 0 | U90: 0 | V90: 0 | W90: Green | X90: 1
D91: SWEST | E91: 34727 | F91: 1 | G91: 68.87720529 | H91: 2.879603767e-05 | I91: Green | J91: 3 | L91: 35009 | M91: 0 | N91: 0 | O91: 0 | P91: Green | Q91: 1 | S91: 36429 | T91: 0 | U91: 0 | V91: 0 | W91: Green | X91: 1
D92: LPN | E92: 23103 | F92: 59 | G92: 21140.00378 | H92: 0.002553780894 | I92: Green | J92: 11 | L92: 24042 | M92: 33 | N92: 3013.705093 | O92: 0.001372597954 | P92: Green | Q92: 7 | S92: 22392 | T92: 20 | U92: 5870 | V92: 0.0008931761343 | W92: Green | X92: 6
D93: SPN | E93: 28093 | F93: 106 | G93: 46735.83291 | H93: 0.003773181931 | I93: Green | J93: 12 | L93: 28894 | M93: 148 | N93: 33503.47882 | O93: 0.005122170693 | P93: Green | Q93: 13 | S93: 29614 | T93: 65 | U93: 18305 | V93: 0.002194907814 | W93: Green | X93: 7
D94: EPN | E94: 48149 | F94: 183 | G94: 49559.79833 | H94: 0.003800701988 | I94: Green | J94: 13 | L94: 51074 | M94: 241 | N94: 50117.76008 | O94: 0.004718643537 | P94: Green | Q94: 12 | S94: 51254 | T94: 113 | U94: 16590 | V94: 0.002204705974 | W94: Green | X94: 8
D95: SPD | E95: 14518 | F95: 23 | G95: 2680.91276 | H95: 0.001584240253 | I95: Green | J95: 10 | L95: 14270 | M95: 54 | N95: 8216.366381 | O95: 0.003784162579 | P95: Green | Q95: 11 | S95: 13973 | T95: 55 | U95: 10925 | V95: 0.003936162599 | W95: Green | X95: 10
D96: SPMW | E96: 17438 | F96: 12 | G96: 10199.12463 | H96: 0.000688152311 | I96: Green | J96: 5 | L96: 16411 | M96: 18 | N96: 3226.376192 | O96: 0.0010968253 | P96: Green | Q96: 6 | S96: 15272 | T96: 96 | U96: 25510 | V96: 0.00628601362 | W96: Green | X96: 13
D97: SSEH | E97: 17111 | F97: 16 | G97: 8975.229674 | H97: 0.000935071007 | I97: Green | J97: 8 | L97: 16147 | M97: 10 | N97: 5902.919786 | O97: 0.0006193100886 | P97: Green | Q97: 5 | S97: 15972 | T97: 14 | U97: 41845 | V97: 0.0008765339344 | W97: Green | X97: 5
D98: SSES | E98: 50730 | F98: 38 | G98: 12641.61629 | H98: 0.0007490636704 | I98: Green | J98: 6 | L98: 24035 | M98: 45 | N98: 17158.92676 | O98: 0.001872269607 | P98: Green | Q98: 9 | S98: 48229 | T98: 307 | U98: 65000 | V98: 0.006365464762 | W98: Green | X98: 14
D99: Total | E99: =SUM(E85:E98) -> 405833 | F99: =SUM(F85:F98) -> 840 | G99: =SUM(G85:G98) -> 267285.9425 | L99: =SUM(L85:L98) -> 367564 | M99: =SUM(M85:M98) -> 844 | N99: =SUM(N85:N98) -> 189339.5238 | S99: =SUM(S85:S98) -> 396338 | T99: =SUM(T85:T98) -> 1015 | U99: =SUM(U85:U98) -> 255735 | Z99: =SUM(Z85:Z98) -> 0 | AA99: =SUM(AA85:AA98) -> 0 | AB99: =SUM(AB85:AB98) -> 0 | AG99: =SUM(AG85:AG98) -> 0 | AH99: =SUM(AH85:AH98) -> 0 | AI99: =SUM(AI85:AI98) -> 0 | AN99: =SUM(AN85:AN98) -> 0 | AO99: =SUM(AO85:AO98) -> 0 | AP99: =SUM(AP85:AP98) -> 0 | AU99: =SUM(AU85:AU98) -> 0 | AV99: =SUM(AV85:AV98) -> 0 | AW99: =SUM(AW85:AW98) -> 0 | BB99: =SUM(BB85:BB98) -> 0 | BC99: =SUM(BC85:BC98) -> 0 | BD99: =SUM(BD85:BD98) -> 0

Sheet Ch2 outputs - cust sat
A1: Chapter 2 - Customer Satisfaction
C2: Performance against the outputs that DNOs are incentivised to deliver under RIIO-ED1.
B4: Customer Service: maintaining high levels of customer satisfaction and improving service where required. Undertaking effective stakeholder engagement and reflecting stakeholders' views in the day-to-day operation of their business.
B5: Incentive measure | F5: Incentive type
B6: Customer satisfaction survey: a survey under the Broad Measure of Customer Satisfaction (BMCS) of three customer types (connections, interruptions, general enquiries) to drive DNOs to deliver good customer service. | F6: Financial: reward or penalty of +/- 1% of base revenue which feeds into the overall reward or penalty under BMCS of +/- 1.5% of base revenues.
B7: Complaints metric: part of the Broad Measure of Customer Satisfaction measuring DNOs' complaint handling procedures to drive DNOs to deliver good customer service. | F7: Financial: penalty only of 0.5% of base revenue which feeds into the overall reward or penalty under BMCS of +/- 1.5% of base revenues.
B8: Stakeholder engagement and customer vulnerability: annual panel assessment with reward for DNOs who demonstrate strong engagement with all stakeholders and address customer vulnerability issues. | F8: Financial: reward only of 0.5% of base revenue which feeds into the reward or penalty under BMCS of +/- 1.5% of base revenues.
B11: Customer satisfaction survey
D12: Customer satisfaction scores (out of 10)
E13: 2014/15 | F13: 2015/16 | G13: 2016/17 | H13: 2017/18 | I13: 2018/19 | J13: 2019/20 | K13: 2020/21 | L13: 2021/22 | M13: 2022/23 | O13: 2012/13 - baseline
D14: Interruptions | E14: 8.624285714 | F14: =AVERAGE(E23:E36) -> 8.745 | G14: =AVERAGE(K23:K36) -> 8.798335714 | H14: =AVERAGE(Q23:Q36) -> 8.839011901 | O14: 8.2
D15: Connections | E15: 8.16 | F15: =AVERAGE(F23:F36) -> 8.320714286 | G15: =AVERAGE(L23:L36) -> 8.485342857 | H15: =AVERAGE(R23:R36) -> 8.55074279 | O15: 7.76
D16: General Enquiries | E16: 8.725714286 | F16: =AVERAGE(G23:G36) -> 8.974285714 | G16: =AVERAGE(M23:M36) -> 9.09265 | H16: =AVERAGE(S23:S36) -> 9.054650962 | O16: 8.05
D19: Annual customer satisfaction score by DNO per category (out of 10)
E20: 2015/16 | K20: 2016/17 | Q20: 2017/18 | W20: 2018/19 | AB20: 2019/20 | AG20: 2020/21 | AL20: 2021/22 | AQ20: 2022/23
E21: Interruptions | F21: Connections | G21: General Enquiries | H21: Overall | I21: RAG | J21: Ranking | K21: Interruptions | L21: Connections | M21: General Enquiries | N21: Overall | O21: RAG | P21: Ranking | Q21: Interruptions | R21: Connections | S21: General Enquiries | T21: Overall | U21: RAG | V21: Ranking | W21: Interruptions | X21: Connections | Y21: General Enquiries | Z21: RAG | AA21: Ranking | AB21: Interruptions | AC21: Connections | AD21: General Enquiries | AE21: RAG | AF21: Ranking | AG21: Interruptions | AH21: Connections | AI21: General Enquiries | AJ21: RAG | AK21: Ranking | AL21: Interruptions | AM21: Connections | AN21: General Enquiries | AO21: RAG | AP21: Ranking | AQ21: Interruptions | AR21: Connections | AS21: General Enquiries | AT21: RAG | AU21: Ranking
E22: 0.3 | F22: 0.5 | G22: 0.2 | K22: 0.3 | L22: 0.5 | M22: 0.2 | Q22: 0.3 | R22: 0.5 | S22: 0.2 | W22: 0.3 | X22: 0.5 | Y22: 0.2 | AB22: 0.3 | AC22: 0.5 | AD22: 0.2 | AG22: 0.3 | AH22: 0.5 | AI22: 0.2 | AL22: 0.3 | AM22: 0.5 | AN22: 0.2 | AQ22: 0.3 | AR22: 0.5 | AS22: 0.2
D23: ENWL | E23: 8.08 | F23: 7.75 | G23: 8.52 | H23: =(E23*E$22)+(F23*F$22)+(G23*G$22) -> 8.003 | I23: =IF(H23<7.79,"Red",IF(H23>=8.2,"Green","Amber")) -> Amber | J23: =RANK(H23,H$23:H$36,0) -> 14 | K23: 8.1788 | L23: 8.2403 | M23: 8.7478 | N23: =(K23*K$22)+(L23*L$22)+(M23*M$22) -> 8.32335 | O23: =IF(N23<7.79,"Red",IF(N23>=8.2,"Green","Amber")) -> Green | P23: =RANK(N23,N$23:N$36,0) -> 14 | Q23: 8.3228 | R23: 8.3476 | S23: 8.9806 | T23: =(Q23*Q$22)+(R23*R$22)+(S23*S$22) -> 8.46676 | U23: =IF(T23<7.79,"Red",IF(T23>=8.2,"Green","Amber")) -> Green | V23: =RANK(T23,T$23:T$36,0) -> 13
D24: NPgN | E24: 8.68 | F24: 8.03 | G24: 8.93 | H24: =(E24*E$22)+(F24*F$22)+(G24*G$22) -> 8.405 | I24: =IF(H24<7.79,"Red",IF(H24>=8.2,"Green","Amber")) -> Green | J24: =RANK(H24,H$23:H$36,0) -> 10 | K24: 8.8098 | L24: 8.4809 | M24: 9.0074 | N24: =(K24*K$22)+(L24*L$22)+(M24*M$22) -> 8.68487 | O24: =IF(N24<7.79,"Red",IF(N24>=8.2,"Green","Amber")) -> Green | P24: =RANK(N24,N$23:N$36,0) -> 8 | Q24: 8.77 | R24: 8.55 | S24: 9.05 | T24: =(Q24*Q$22)+(R24*R$22)+(S24*S$22) -> 8.716 | U24: =IF(T24<7.79,"Red",IF(T24>=8.2,"Green","Amber")) -> Green | V24: =RANK(T24,T$23:T$36,0) -> 10
D25: NPgY | E25: 8.69 | F25: 7.95 | G25: 8.76 | H25: 8.334 | I25: =IF(H25<7.79,"Red",IF(H25>=8.2,"Green","Amber")) -> Green | J25: =RANK(H25,H$23:H$36,0) -> 12 | K25: 8.7253 | L25: 8.4332 | M25: 8.7674 | N25: 8.58767 | O25: Green | P25: 12 | Q25: 8.73 | R25: 8.34 | S25: 8.84 | T25: =(Q25*Q$22)+(R25*R$22)+(S25*S$22) -> 8.557 | U25: =IF(T25<7.79,"Red",IF(T25>=8.2,"Green","Amber")) -> Green | V25: =RANK(T25,T$23:T$36,0) -> 12
D26: WMID | E26: 8.88 | F26: 8.7 | G26: 9.14 | H26: 8.842 | I26: Green | J26: 4 | K26: 8.98 | L26: 8.66 | M26: 9.2 | N26: 8.864 | O26: Green | P26: 4 | Q26: 8.9862 | R26: 8.7127 | S26: 9.2665 | T26: 8.90551 | U26: Green | V26: 2
D27: EMID | E27: 8.97 | F27: 8.79 | G27: 9.35 | H27: 8.956 | I27: Green | J27: 2 | K27: 9.02 | L27: 8.78 | M27: 9.32 | N27: 8.96 | O27: =IF(N27<7.79,"Red",IF(N27>=8.2,"Green","Amber")) -> Green | P27: 1 | Q27: 8.8675 | R27: 8.8073 | S27: 9.1944 | T27: 8.90278 | U27: Green | V27: 3
D28: SWALES | E28: 9.14 | F28: 8.75 | G28: 9.29 | H28: 8.975 | I28: Green | J28: 1 | K28: 9.07 | L28: 8.68 | M28: 9.15 | N28: 8.891 | O28: Green | P28: 3 | Q28: 9.1037 | R28: 8.9076 | S28: 9.2067 | T28: 9.02625 | U28: Green | V28: 1
D29: SWEST | E29: 8.86 | F29: 8.73 | G29: 9.18 | H29: 8.859 | I29: Green | J29: 3 | K29: 8.92 | L29: 8.77 | M29: 9.24 | N29: 8.909 | O29: Green | P29: 2 | Q29: 8.8683 | R29: 8.7658 | S29: 9.2888 | T29: 8.90115 | U29: Green | V29: 4
D30: LPN | E30: 8.52 | F30: 8.13 | G30: 8.86 | H30: 8.393 | I30: Green | J30: 11 | K30: 8.5501 | L30: 8.4166 | M30: 9.3043 | N30: 8.63419 | O30: Green | P30: 10 | Q30: 8.77 | R30: 8.7 | S30: 8.84 | T30: 8.749 | U30: Green | V30: 6
D31: SPN | E31: 8.63 | F31: 8.34 | G31: 9.12 | H31: 8.583 | I31: Green | J31: 8 | K31: 8.7693 | L31: 8.4119 | M31: 9.2622 | N31: 8.68918 | O31: Green | P31: 7 | Q31: 8.793373494 | R31: 8.503448276 | S31: 9.254901961 | T31: 8.740716578 | U31: Green | V31: 8
D32: EPN | E32: 8.88 | F32: 8.1 | G32: 9.16 | H32: 8.546 | I32: Green | J32: 9 | K32: 8.8178 | L32: 8.18 | M32: 9.3541 | N32: 8.60616 | O32: Green | P32: 11 | Q32: 8.883293124 | R32: 8.429350791 | S32: 9.228611501 | T32: 8.725385633 | U32: Green | V32: 9
D33: SPD | E33: 8.79 | F33: 8.36 | G33: 8.84 | H33: 8.585 | I33: Green | J33: 7 | K33: 8.7406 | L33: 8.4311 | M33: 9.045 | N33: 8.64673 | O33: Green | P33: 9 | Q33: 8.822 | R33: 8.5213 | S33: 8.9478 | T33: 8.69681 | U33: Green | V33: 11
D34: SPMW | E34: 8.86 | F34: 8.43 | G34: 9.24 | H34: 8.721 | I34: Green | J34: 6 | K34: 8.735 | L34: 8.6808 | M34: 9.2989 | N34: 8.82068 | O34: =IF(N34<7.79,"Red",IF(N34>=8.2,"Green","Amber")) -> Green | P34: 6 | Q34: 8.859 | R34: 8.4253 | S34: 9.3868 | T34: 8.74771 | U34: Green | V34: 7
D35: SSEH | E35: 9.06 | F35: 8.55 | G35: 8.72 | H35: 8.737 | I35: Green | J35: 5 | K35: 9.15 | L35: 8.53 | M35: 9.06 | N35: 8.822 | O35: Green | P35: 5 | Q35: 9.22 | R35: 8.59 | S35: 8.96 | T35: 8.853 | U35: Green | V35: 5
D36: SSES | E36: 8.39 | F36: 7.88 | G36: 8.53 | H36: 8.163 | I36: =IF(H36<7.79,"Red",IF(H36>=8.2,"Green","Amber")) -> Amber | J36: 13 | K36: 8.71 | L36: 8.1 | M36: 8.54 | N36: 8.371 | O36: =IF(N36<7.79,"Red",IF(N36>=8.2,"Green","Amber")) -> Green | P36: 13 | Q36: 8.75 | R36: 8.11 | S36: 8.32 | T36: 8.344 | U36: Green | V36: 14
D37: Target | E37: 8.2 | F37: 8.2 | G37: 8.2 | H37: 8.2 | K37: 8.2 | L37: 8.2 | M37: 8.2 | N37: 8.2 | Q37: 8.2 | R37: 8.2 | S37: 8.2 | T37: 8.2 | W37: 8.2 | X37: 8.2 | Y37: 8.2 | AB37: 8.2 | AC37: 8.2 | AD37: 8.2 | AG37: 8.2 | AH37: 8.2 | AI37: 8.2 | AL37: 8.2 | AM37: 8.2 | AN37: 8.2 | AQ37: 8.2 | AR37: 8.2 | AS37: 8.2
B40: Complaints metric | D40: DNO complaint metric scores
E41: 2015/16 | L41: 2016/17 | S41: 2017/18 | AA41: 2018/19 | AH41: 2020/21 | AO41: 2021/22 | AV41: 2022/23
E42: The percentage of total complaints outstanding after one day | F42: The percentage of total complaints outstanding after 31 days | G42: The percentage of total complaints that are repeat complaints | H42: The number of Energy Ombudsman (EO) Findings Against the Licensee as a percentage of the total complaints | I42: Complaints Metric Score | J42: RAG | K42: Ranking | L42: The percentage of total complaints outstanding after one day | M42: The percentage of total complaints outstanding after 31 days | N42: The percentage of total complaints that are repeat complaints | O42: The number of Energy Ombudsman (EO) Findings Against the Licensee as a percentage of the total complaints | P42: Complaints Metric Score | Q42: RAG | R42: Ranking | S42: The percentage of total complaints outstanding after one day | T42: The percentage of total complaints outstanding after 31 days | U42: The percentage of total complaints that are repeat complaints | V42: The number of Energy Ombudsman (EO) Findings Against the Licensee as a percentage of the total complaints | W42: Complaints Metric Score | X42: RAG | Y42: Ranking | Z42: The percentage of total complaints outstanding after one day | AA42: The percentage of total complaints outstanding after 31 days | AB42: The percentage of total complaints that are repeat complaints | AC42: The number of Energy Ombudsman (EO) Findings Against the Licensee as a percentage of the total complaints | AD42: Complaints Metric Score | AE42: RAG | AF42: Ranking | AG42: The percentage of total complaints outstanding after one day | AH42: The percentage of total complaints outstanding after 31 days | AI42: The percentage of total complaints that are repeat complaints | AJ42: The number of Energy Ombudsman (EO) Findings Against the Licensee as a percentage of the total complaints | AK42: Complaints Metric Score | AL42: RAG | AM42: Ranking | AN42: The percentage of total complaints outstanding after one day | AO42: The percentage of total complaints outstanding after 31 days | AP42: The percentage of total complaints that are repeat complaints | AQ42: The number of Energy Ombudsman (EO) Findings Against the Licensee as a percentage of the total complaints | AR42: Complaints Metric Score | AS42: RAG | AT42: Ranking | AU42: The percentage of total complaints outstanding after one day | AV42: The percentage of total complaints outstanding after 31 days | AW42: The percentage of total complaints that are repeat complaints | AX42: The number of Energy Ombudsman (EO) Findings Against the Licensee as a percentage of the total complaints | AY42: Complaints Metric Score | AZ42: RAG | BA42: Ranking
D43: ENWL | E43: 0.4879626684 | F43: 0.09248064482 | G43: 0 | H43: 0 | I43: 7.654046028 | J43: =IF(I43<=$I$57,"Green",IF(I43<=$I$57*1.05,"Amber","Red")) -> Green | K43: =RANK(I43,I$43:I$56,1) -> 13 | L43: 0.2330568481 | M43: 0.03722435768 | N43: 0 | O43: 0 | P43: 3.447299211 | Q43: =IF(P43<=$P$57,"Green",IF(P43<=$P$57*1.05,"Amber","Red")) -> Green | R43: =RANK(P43,P$43:P$56,1) -> 9 | S43: 0.1792799412 | T43: 0.01653196179 | U43: 0 | V43: 0 | W43: 2.288758266 | X43: =IF(W43<=$W$57,"Green",IF(W43<=$W$57*1.05,"Amber","Red")) -> Green | Y43: =RANK(W43,W$43:W$56,1) -> 6
D44: NPgN | E44: 0.4985549133 | F44: 0.09971098266 | G44: 0.0004816955684 | H44: 0 | I44: 8.000963391 | J44: Green | K44: 14 | L44: 0.3858093126 | M44: 0.1075388027 | N44: 0 | O44: 0 | P44: 7.084257206 | Q44: =IF(P44<=$P$57,"Green",IF(P44<=$P$57*1.05,"Amber","Red")) -> Green | R44: 14 | S44: 0.2820343461 | T44: 0.07529722589 | U44: 0 | V44: 0 | W44: 5.079260238 | X44: =IF(W44<=$W$57,"Green",IF(W44<=$W$57*1.05,"Amber","Red")) -> Green | Y44: =RANK(W44,W$43:W$56,1) -> 14
D45: NPgY | E45: 0.473316913 | F45: 0.08128078818 | G45: 0.0004105090312 | H45: 0 | I45: 7.192118227 | J45: Green | K45: 12 | L45: 0.3170620438 | M45: 0.07436131387 | N45: 0 | O45: 0 | P45: 5.401459854 | Q45: Green | R45: 12 | S45: 0.2820242488 | T45: 0.06062203479 | U45: 0 | V45: 0 | W45: 4.638903532 | X45: Green | Y45: 13
D46: WMID | E46: 0.1480505796 | F46: 0.007376185458 | G46: 0 | H46: 0 | I46: 1.701791359 | J46: Green | K46: 1 | L46: 0.1252399232 | M46: 0.00575815739 | N46: 0 | O46: 0 | P46: 1.425143954 | Q46: Green | R46: 1 | S46: 0.1162909836 | T46: 0.006147540984 | U46: 0 | V46: 0 | W46: 1.347336066 | X46: Green | Y46: 1
D47: EMID | E47: 0.1588669951 | F47: 0.01108374384 | G47: 0 | H47: 0 | I47: 1.921182266 | J47: Green | K47: 2 | L47: 0.1431034483 | M47: 0.01034482759 | N47: 0 | O47: 0 | P47: 1.74137931 | Q47: Green | R47: 2 | S47: 0.1253644315 | T47: 0.008163265306 | U47: 0 | V47: 0 | W47: 1.498542274 | X47: Green | Y47: 2
D48: SWALES | E48: 0.2439281943 | F48: 0.02006335797 | G48: 0 | H48: 0 | I48: 3.041182682 | J48: Green | K48: 4 | L48: 0.1983663944 | M48: 0.02100350058 | N48: 0 | O48: 0 | P48: 2.613768961 | Q48: Green | R48: 5 | S48: 0.2054794521 | T48: 0.01598173516 | U48: 0 | V48: 0 | W48: 2.534246575 | X48: Green | Y48: 7
D49: SWEST | E49: 0.1954066265 | F49: 0.01468373494 | G49: 0.0003765060241 | H49: 0 | I49: 2.413403614 | J49: Green | K49: 3 | L49: 0.1814569536 | M49: 0.01589403974 | N49: 0 | O49: 0 | P49: 2.291390728 | Q49: Green | R49: 4 | S49: 0.1635420822 | T49: 0.009972078181 | U49: 0 | V49: 0 | W49: 1.934583167 | X49: Green | Y49: 4
D50: LPN | E50: 0.3590096286 | F50: 0.05295735901 | G50: 0 | H50: 0 | I50: 5.178817056 | J50: Green | K50: 9 | L50: 0.3456090652 | M50: 0.07507082153 | N50: 0 | O50: 0 | P50: 5.708215297 | Q50: Green | R50: 13 | S50: 0.2565130261 | T50: 0.05911823647 | U50: 0 | V50: 0 | W50: 4.338677355 | X50: Green | Y50: 12
D51: SPN | E51: 0.4019534185 | F51: 0.06949661908 | G51: 0 | H51: 0 | I51: 6.104432757 | J51: Green | K51: 11 | L51: 0.3390461997 | M51: 0.06333830104 | N51: 0 | O51: 0 | P51: 5.290611028 | Q51: Green | R51: 11 | S51: 0.2431451613 | T51: 0.05725806452 | U51: 0 | V51: 0 | W51: 4.149193548 | X51: Green | Y51: 11
D52: EPN | E52: 0.3853528628 | F52: 0.05832223702 | G52: 0 | H52: 0 | I52: 5.603195739 | J52: Green | K52: 10 | L52: 0.3233442458 | M52: 0.06094182825 | N52: 0 | O52: 0 | P52: 5.061697305 | Q52: Green | R52: 10 | S52: 0.2247032222 | T52: 0.04663651781 | U52: 0 | V52: 0 | W52: 3.646127756 | X52: Green | Y52: 10
D53: SPD | E53: 0.2331428571 | F53: 0.04228571429 | G53: 0 | H53: 0 | I53: 3.6 | J53: Green | K53: 6 | L53: 0.1892575928 | M53: 0.03205849269 | N53: 0 | O53: 0 | P53: 2.854330709 | Q53: Green | R53: 7 | S53: 0.1291525424 | T53: 0.02677966102 | U53: 0 | V53: 0 | W53: 2.094915254 | X53: Green | Y53: 5
D54: SPMW | E54: 0.2110125647 | F54: 0.0421286031 | G54: 0 | H54: 0 | I54: 3.37398374 | J54: Green | K54: 5 | L54: 0.1909353905 | M54: 0.03053680489 | N54: 0 | O54: 0 | P54: 2.825458052 | Q54: Green | R54: 6 | S54: 0.1856060606 | T54: 0.02840909091 | U54: 0 | V54: 0 | W54: 2.708333333 | X54: Green | Y54: 8
D55: SSEH | E55: 0.3041594454 | F55: 0.03466204506 | G55: 0 | H55: 0 | I55: 4.081455806 | J55: Green | K55: 7 | L55: 0.1479680445 | M55: 0.02327196943 | N55: 0 | O55: 0 | P55: 2.177839528 | Q55: Green | R55: 3 | S55: 0.1321299639 | T55: 0.009386281588 | U55: 0 | V55: 0 | W55: 1.602888087 | X55: Green | Y55: 3
D56: SSES | E56: 0.3249506903 | F56: 0.04684418146 | G56: 0 | H56: 0 | I56: 4.654832347 | J56: Green | K56: 8 | L56: 0.2343330349 | M56: 0.03304983587 | N56: 0 | O56: 0 | P56: 3.334825425 | Q56: Green | R56: 8 | S56: 0.1957754979 | T56: 0.02697646349 | U56: 0 | V56: 0 | W56: 2.767048884 | X56: Green | Y56: 9
D57: Target | I57: 8.33 | P57: 8.33 | W57: 8.33 | AD57: 8.33 | AK57: 8.33 | AR57: 8.33 | AY57: 8.33
B59: Stakeholder Engagement and Consumer Vulnerability Incentive
E60: Score (out of 10)
E61: 2015/16 | F61: 2016/17 | G61: 2017/18 | H61: 2018/19 | I61: 2019/20 | J61: 2020/21 | K61: 2021/22 | L61: 2022/23
D62: ENWL | E62: 6.9 | F62: 6.375 | G62: 5.75
D63: NPg | E63: 6.5 | F63: 6.5 | G63: 7.5
D64: WPD | E64: 8.75 | F64: 8.525 | G64: 8.75
D65: UKPN | E65: 7.525 | F65: 7.525 | G65: 7.25
D66: SPEN | E66: 6.775 | F66: 6.275 | G66: 6.35
D67: SSEN | E67: 5.725 | F67: 5.225 | G67: 5.5
E69: Reward (£m)
E70: 2015/16 | F70: 2016/17 | G70: 2017/18 | H70: 2018/19 | I70: 2019/20 | J70: 2020/21 | K70: 2021/22 | L70: 2022/23
D71: ENWL | E71: 1.04266731 | F71: 0.8539085726 | G71: 0.6291957903
D72: NPg | E72: 1.51681128 | F72: 1.51681128 | G72: 2.123535792
D73: WPD | E73: 6.724530009 | F73: 6.40599964 | G73: 6.724530009
D74: UKPN | E74: 4.27740781 | F74: 4.27740781 | G74: 3.943709329
D75: SPEN | E75: 2.057807304 | F75: 1.687031213 | G75: 1.742647626
D76: SSEN | E76: 1.201651603 | F76: 0.8533467906 | G76: 1.044914438
E78: RAG
E79: 2015/16 | F79: 2016/17 | G79: 2017/18 | H79: 2018/19 | I79: 2019/20 | J79: 2020/21 | K79: 2021/22 | L79: 2022/23
D80: ENWL | E80: =IF(E62>=5, "Green", "Red") -> Green | F80: Green | G80: Green
D81: NPg | E81: Green | F81: Green | G81: =IF(G63>=5, "Green", "Red") -> Green
D82: WPD | E82: Green | F82: Green | G82: =IF(G64>=5, "Green", "Red") -> Green
D83: UKPN | E83: Green | F83: Green | G83: =IF(G65>=5, "Green", "Red") -> Green
D84: SPEN | E84: Green | F84: Green | G84: =IF(G66>=5, "Green", "Red") -> Green
D85: SSEN | E85: Green | F85: Green | G85: =IF(G67>=5, "Green", "Red") -> Green
E87: Ranking
E88: 2015/16 | F88: 2016/17 | G88: 2017/18 | H88: 2018/19 | I88: 2019/20 | J88: 2020/21 | K88: 2021/22 | L88: 2022/23
D89: ENWL | E89: =RANK(E62,$E$62:$E$67,0) -> 3 | F89: =RANK(F62,$F$62:$F$67,0) -> 4 | G89: =RANK(G62,$G$62:$G$67,0) -> 5
D90: NPg | E90: 5 | F90: 3 | G90: 2
D91: WPD | E91: 1 | F91: 1 | G91: 1
D92: UKPN | E92: 2 | F92: 2 | G92: 3
D93: SPEN | E93: 4 | F93: 5 | G93: 4
D94: SSEN | E94: 6 | F94: 6 | G94: 6
B96: Broad Measure of Customer Service
E97: 2015/16 | J97: 2016/17 | O97: 2017/18 | T97: 2018/19 | Y97: 2019/20 | AD97: 2020/21 | AI97: 2021/22 | AN97: 2022/23
E98: Customer Satisfaction Survey Reward/Penalty (£m) | F98: Complaints Metric Penalty (£m) | G98: Stakeholder Engagement and Consumer Vulnerability Financial Reward (£m) | H98: Broad Measure of Customer Service reward (£m) | J98: Customer Satisfaction Survey Reward/Penalty (£m) | K98: Complaints Metric Penalty (£m) | L98: Stakeholder Engagement and Consumer Vulnerability Financial Reward (£m) | M98: Broad Measure of Customer Service reward (£m) | O98: Customer Satisfaction Survey Reward/Penalty (£m) | P98: Complaints Metric Penalty (£m) | Q98: Stakeholder Engagement and Consumer Vulnerability Financial Reward (£m) | R98: Broad Measure of Customer Service reward (£m) | T98: Customer Satisfaction Survey Reward/Penalty (£m) | U98: Complaints Metric Penalty (£m) | V98: Stakeholder Engagement and Consumer Vulnerability Financial Reward (£m) | W98: Broad Measure of Customer Service reward (£m) | Y98: Customer Satisfaction Survey Reward/Penalty (£m) | Z98: Complaints Metric Penalty (£m) | AA98: Stakeholder Engagement and Consumer Vulnerability Financial Reward (£m) | AB98: Broad Measure of Customer Service reward (£m) | AD98: Customer Satisfaction Survey Reward/Penalty (£m) | AE98: Complaints Metric Penalty (£m) | AF98: Stakeholder Engagement and Consumer Vulnerability Financial Reward (£m) | AG98: Broad Measure of Customer Service reward (£m) | AI98: Customer Satisfaction Survey Reward/Penalty (£m) | AJ98: Complaints Metric Penalty (£m) | AK98: Stakeholder Engagement and Consumer Vulnerability Financial Reward (£m) | AL98: Broad Measure of Customer Service reward (£m) | AN98: Customer Satisfaction Survey Reward/Penalty (£m) | AO98: Complaints Metric Penalty (£m) | AP98: Stakeholder Engagement and Consumer Vulnerability Financial Reward (£m) | AQ98: Broad Measure of Customer Service reward (£m)
D99: ENWL | E99: -0.6291959406 | F99: 0 | G99: 1.044914687 | H99: 0.4157187465 | J99: 0.4085527033 | K99: 0 | L99: 0.8539085726 | M99: =SUM(J99:L99) -> 1.262461276 | O99: 1.02205578 | P99: 0 | Q99: 0.6291957903 | R99: =SUM(O99:Q99) -> 1.65125157
D100: NPgN | E100: 0.7415523586 | F100: 0 | G100: 0.6179602988 | H100: 1.359512657 | J100: 1.638021614 | K100: 0 | L100: 0.6179601512 | M100: =SUM(J100:L100) -> 2.255981765 | O100: 1.712938325 | P100: 0 | Q100: 0.8651442117 | R100: =SUM(O100:Q100) -> 2.578082536
D101: NPgY | E101: 0.7864949258 | F101: 0 | G101: 0.8988513438 | H101: 1.68534627 | J101: 1.84309959 | K101: 0 | L101: 0.898851129 | M101: 2.741950719 | O101: 1.619590717 | P101: 0 | Q101: 1.258391581 | R101: 2.877982298
D102: WMID | E102: 3.820118211 | F102: 0 | G102: 2.134771941 | H102: 5.954890152 | J102: 3.74596208 | K102: 0 | L102: 2.033650679 | M102: 5.77961276 | O102: 3.917676353 | P102: 0 | Q102: 2.134771431 | R102: 6.052447784
D103: EMID | E103: 4.112244898 | F103: 0 | G103: 2.134771941 | H103: 6.247016839 | J103: 4.078312285 | K103: 0 | L103: 2.033650679 | M103: 6.111962965 | O103: 4.04902336 | P103: 0 | Q103: 2.134771431 | R103: 6.183794791
D104: SWALES | E104: 1.955001673 | F104: 0 | G104: 0.9662651946 | H104: 2.910031225 | J104: 1.846240219 | K104: 0 | L104: 0.9151428058 | M104: 2.761383025 | O104: 2.134771431 | P104: 0 | Q104: 0.9606471442 | R104: 3.095418576
D105: SWEST | E105: 2.730260957 | F105: 0 | G105: 1.494340359 | H105: 4.224601316 | J105: 2.853852335 | K105: 0 | L105: 1.423555476 | M105: 4.27740781 | O105: 2.822095472 | P105: 0 | Q105: 1.494340002 | R105: 4.316435474
D106: LPN | E106: 0.9550295528 | F106: 0 | G106: 1.19097803 | H106: 2.146007583 | J106: 1.686279087 | K106: 0 | L106: 1.188168836 | M106: 2.874447923 | O106: 2.627314822 | P106: 0 | Q106: 1.095474814 | R106: 3.722789635
D107: SPN | E107: 1.617932419 | F107: 0 | G107: 1.269627523 | H107: 2.8763243 | J107: 2.031890396 | K107: 0 | L107: 1.267380092 | M107: 3.299270488 | O107: 2.285102526 | P107: 0 | Q107: 1.168506468 | R107: 3.453608994
D108: EPN | E108: 2.202185792 | F108: 0 | G108: 1.820173971 | H108: 4.022359763 | J108: 2.291383295 | K108: 0 | L108: 1.821858882 | M108: 4.113242177 | O108: 3.357458153 | P108: 0 | Q108: 1.679728047 | R108: 5.037186201
D109: SPD | E109: 1.887587822 | F109: 0 | G109: 0.9999721199 | H109: 2.887559942 | J109: 2.020632927 | K109: 0 | L109: 0.8179545274 | M109: 2.838587454 | O109: 2.340005337 | P109: 0 | Q109: 0.8449200613 | R109: 3.184925398
D110: SPMW | E110: 2.426898628 | F110: 0 | G110: 1.056150329 | H110: 3.483048957 | J110: 2.807678096 | K110: 0 | L110: 0.8690766854 | M110: 3.676754781 | O110: 2.360442623 | P110: 0 | Q110: 0.8977275651 | R110: 3.258170189
D111: SSEH | E111: 1.550518568 | F111: 0 | G111: 0.3932474629 | H111: 1.943766031 | J111: 1.642650438 | K111: 0 | L111: 0.2752731583 | M111: 1.917923597 | O111: 1.737029807 | P111: 0 | Q111: 0.3370691734 | R111: 2.07409898
D112: SSES | E112: 0.2359484777 | F112: 0 | G112: 0.8089662094 | H112: 1.044914687 | J112: 1.246944312 | K112: 0 | L112: 0.5780736324 | M112: 1.825017945 | O112: 1.028935312 | P112: 0 | Q112: 0.7078452641 | R112: 1.736780577
D113: Total | E113: =SUM(E99:E112) -> 24.39257834 | F113: =SUM(F99:F112) -> 0 | G113: =SUM(G99:G112) -> 16.83099141 | H113: =SUM(H99:H112) -> 41.20109847 | J113: =SUM(J99:J112) -> 30.14149938 | K113: =SUM(K99:K112) -> 0 | L113: =SUM(L99:L112) -> 15.59450531 | M113: =SUM(M99:M112) -> 45.73600468 | O113: =SUM(O99:O112) -> 33.01444002 | P113: =SUM(P99:P112) -> 0 | Q113: =SUM(Q99:Q112) -> 16.20853298 | R113: =SUM(R99:R112) -> 49.222973

Sheet Ch2 outputs - environment
A1: Chapter 2 - Environment
B4: Environment: encouraging DNOs to play their role in achieving broader environmental objectives, namely the reduction in carbon emissions, as well as minimising the narrow environmental impact of the company's activities by managing their own carbon footprint, visual amenity and pollution.
B5: Incentive measure | F5: Incentive type
B6: Obligation to manage losses | F6: Financial: Losses Discretionary Reward of up to £32m across all DNOs, awarded in three tranches. Reputational: publish annual progress and a losses strategy. Licence obligation: to keep losses as low as reasonably practicable.
B7: Business Carbon Footprint (BCF) | F7: Reputational: publish annual progress.
B8: Limiting emissions of Sulphur Hexafluoride (SF6) | F8: Reputational: publish annual progress.
B9: Fluid filled cable leakage | F9: Reputational: publish annual progress.
B10: Noise pollution | F10: Reputational: publish annual progress.
B11: Visual impact allowance for undergrounding overhead lines in Areas of Outstanding Natural Beauty (AONB) and National Parks. | F11: Reputational incentive in the context of its performance in the utilisation of a funding pot of £103.6m (split between DNOs).
B12: Environmental report: obligation to inform stakeholders about the activities they have undertaken in relation to environmental matters, including their role in the transition to a low carbon economy. | F12: Licence obligation. Reputational.
D15: Reward allocated for the LDR
B16: Losses Discretionary Reward (LDR) | E16: Score
E17: 2015/16 | F17: 2016/17 | G17: 2017/18 | H17: 2018/19 | I17: 2019/20 | J17: 2020/21 | K17: 2021/22 | L17: 2022/23
D18: ENWL | F18: 0.52
D19: NPg | F19: 0.26
D20: WPD | F20: 0.12
D21: UKPN | F21: 0.71
D22: SPEN | F22: 0.58
D23: SSEN | F23: 0.68
D24: Total | F24: 0.48
E26: Reward (£)
E27: 2015/16 | F27: 2016/17 | G27: 2017/18 | H27: 2018/19 | I27: 2019/20 | J27: 2020/21 | K27: 2021/22 | L27: 2022/23
D28: ENWL | F28: =SUM(695000*'Guide & drivers'!D27) -> 780876.9184
D29: NPg | F29: =SUM(350000*'Guide & drivers'!D27) -> 393247.369
D30: WPD | F30: =SUM(160000*'Guide & drivers'!D27) -> 179770.2258
D31: UKPN | F31: =SUM(945000*'Guide & drivers'!D27) -> 1061767.896
D32: SPEN | F32: =SUM(770000*'Guide & drivers'!D27) -> 865144.2117
D33: SSEN | F33: =SUM(910000*'Guide & drivers'!D27) -> 1022443.159
D34: Total | F34: =SUM(3830000*'Guide & drivers'!$D$27) -> 4303249.78
D36: Distribution losses (as % of units distributed)
E37: 2015/16 | F37: 2016/17 | G37: 2017/18 | H37: 2018/19 | I37: 2019/20 | J37: 2020/21 | K37: 2021/22 | L37: 2022/23
D38: ENWL | E38: 0.06503127969 | F38: 0.06384746757 | G38: 0.0666740889
D39: NPGN | E39: 0.0532639851 | F39: 0.0528818281 | G39: 0.05320209731
D40: NPGY | E40: 0.05812554782 | F40: 0.05827591783 | G40: 0.06339824738
D41: WMID | E41: 0.052407266 | F41: 0.05727760573 | G41: 0.06078993155
D42: EMID | E42: 0.04789764462 | F42: 0.04793355787 | G42: 0.05151120782
D43: SWALES | E43: 0.04387109772 | F43: 0.04015483361 | G43: 0.04080489112
D44: SWEST | E44: 0.04667943125 | F44: 0.04672545331 | G44: 0.04995502801
D45: LPN | E45: 0.06938168673 | F45: 0.06939044964 | G45: 0.06782170887
D46: SPN | E46: 0.06232808266 | F46: 0.06744401068 | G46: 0.07190419656
D47: EPN | E47: 0.06839644265 | F47: 0.07412524403 | G47: 0.07207152782
D48: SPD | E48: 0.06801831262 | F48: 0.06948388174 | G48: 0.0699826165
D49: SPMW | E49: 0.06589423264 | F49: 0.06692525146 | G49: 0.06733694933
D50: SSEH | E50: 0.06611154598 | F50: 0.07151942211 | G50: 0.06969440421
D51: SSES | E51: 0.05674256815 | F51: 0.05790632281 | G51: 0.05185657632
D52: Total | E52: 0.05953533693 | F52: 0.06114940342 | G52: 0.06182249045
B55: Business Carbon Footprint (BCF)
D56: Business Carbon Footprint (excluding losses and contractors) (tCO2e)
E57: DPCR5 - 2013/14 | F57: DPCR5 - 2014/15 | G57: 2015/16 | H57: 2016/17 | I57: 2017/18 | J57: 2018/19 | K57: 2019/20 | L57: 2020/21 | M57: 2021/22 | N57: 2022/23
D58: ENWL | E58: 23717.1 | F58: 24476.94 | G58: 15723.92943 | H58: 15311.73892 | I58: 14147.27178
D59: NPgN | E59: 23340.63165 | F59: 22732.427 | G59: 10451.02543 | H59: 9460.045942 | I59: 9162.694699
D60: NPgY | E60: 26562.65153 | F60: 28725.73861 | G60: 14569.30463 | H60: 13954.0795 | I60: 12110.70638
D61: WMID | E61: 29123.55226 | F61: 29746.71719 | G61: 26249.03128 | H61: 23002.93344 | I61: 20832.01647
D62: EMID | E62: 29984.69313 | F62: 30195.70719 | G62: 22370.50788 | H62: 21167.2377 | I62: 19571.0382
D63: SWALES | E63: 13395.90798 | F63: 18352.2136 | G63: 13370.58312 | H63: 12521.44122 | I63: 12144.53251
D64: SWEST | E64: 23066.61969 | F64: 23792.86933 | G64: 17044.24944 | H64: 15726.75286 | I64: 15183.02573
D65: LPN | E65: 16474.82032 | F65: 19500.03271 | G65: 14221.8353 | H65: 14816.74921 | I65: 12807.22149
D66: SPN | E66: 26976.6101 | F66: 24873.90267 | G66: 17825.3228 | H66: 16714.36108 | I66: 15607.20966
D67: EPN | E67: 35254.64072 | F67: 32479.85262 | G67: 23648.41965 | H67: 26206.26725 | I67: 24848.05331
D68: SPD* | E68: 23424.54732 | F68: 13854 | G68: 10545.41283 | H68: 9531.475823 | I68: 7853.030149
D69: SPMW* | E69: 6119.730799 | F69: 13907.15835 | G69: 8421.325024 | H69: 7416.456955 | I69: 6291.220419
D70: SSEH | E70: 23881.99355 | F70: 44024.9037 | G70: 19868.82343 | H70: 20028.61282 | I70: 22623.39414
D71: SSES | E71: 35628.10719 | F71: 34347.79727 | G71: 26993.65897 | H71: 26865.77519 | I71: 25765.88702
D72: Total | E72: =SUM(E58:E71) -> 336951.6062 | F72: =SUM(F58:F71) -> 361010.2602 | G72: =SUM(G58:G71) -> 241303.4292 | H72: =SUM(H58:H71) -> 232723.9279 | I72: =SUM(I58:I71) -> 218947.302
D73: *SPEN have moved from estimation to direct observation for a large proposition of it's activities
D74: Business Carbon Footprint (excluding losses and contractors) as % network length and customer numbers
E75: DPCR5 - 2013/14 | F75: DPCR5 - 2014/15 | G75: 2015/16 | H75: 2016/17 | I75: 2017/18 | J75: 2018/19 | K75: 2019/20 | L75: 2020/21 | M75: 2021/22 | N75: 2022/23 | P75: Ranking | Q75: 2015/16 | R75: 2016/17 | S75: 2017/18 | T75: 2018/19 | U75: 2019/20 | V75: 2020/21 | W75: 2021/22 | X75: 2022/23
D76: ENWL | E76: =((E58/'Guide & drivers'!F42)*50%)+(E58/'Guide & drivers'!F61)*50% -> 0.2110643784 | F76: =((F58/'Guide & drivers'!G42)*50%)+(F58/'Guide & drivers'!G61)*50% -> 0.2171761898 | G76: =((G58/'Guide & drivers'!H42)*50%)+(G58/'Guide & drivers'!H61)*50% -> 0.1389784232 | H76: =((H58/'Guide & drivers'!I42)*50%)+(H58/'Guide & drivers'!I61)*50% -> 0.1373131027 | I76: =((I58/'Guide & drivers'!J42)*50%)+(I58/'Guide & drivers'!J61)*50% -> 0.1263644044 | P76: ENWL | Q76: =RANK(G76,$G$76:$G$89,1) -> 6 | R76: =RANK(H76,$H$76:$H$89,1) -> 5 | S76: =RANK(I76,$I$76:$I$89,1) -> 5
D77: NPgN | E77: =((E59/'Guide & drivers'!F43)*50%)+(E59/'Guide & drivers'!F62)*50% -> 0.2934835044 | F77: =((F59/'Guide & drivers'!G43)*50%)+(F59/'Guide & drivers'!G62)*50% -> 0.2842832045 | G77: =((G59/'Guide & drivers'!H43)*50%)+(G59/'Guide & drivers'!H62)*50% -> 0.1299723982 | H77: =((H59/'Guide & drivers'!I43)*50%)+(H59/'Guide & drivers'!I62)*50% -> 0.116921928 | I77: =((I59/'Guide & drivers'!J43)*50%)+(I59/'Guide & drivers'!J62)*50% -> 0.1127109702 | P77: NPgN | Q77: =RANK(G77,$G$76:$G$89,1) -> 4 | R77: =RANK(H77,$H$76:$H$89,1) -> 3 | S77: =RANK(I77,$I$76:$I$89,1) -> 3
D78: NPgY | E78: =((E60/'Guide & drivers'!F44)*50%)+(E60/'Guide & drivers'!F63)*50% -> 0.2550147289 | F78: =((F60/'Guide & drivers'!G44)*50%)+(F60/'Guide & drivers'!G63)*50% -> 0.2744169957 | G78: =((G60/'Guide & drivers'!H44)*50%)+(G60/'Guide & drivers'!H63)*50% -> 0.138395564 | H78: =((H60/'Guide & drivers'!I44)*50%)+(H60/'Guide & drivers'!I63)*50% -> 0.132012778 | I78: =((I60/'Guide & drivers'!J44)*50%)+(I60/'Guide & drivers'!J63)*50% -> 0.114111096 | P78: NPgY | Q78: 5 | R78: 4 | S78: =RANK(I78,$I$76:$I$89,1) -> 4
D79: WMID | E79: =((E61/'Guide & drivers'!F45)*50%)+(E61/'Guide & drivers'!F64)*50% -> 0.2324816108 | F79: =((F61/'Guide & drivers'!G45)*50%)+(F61/'Guide & drivers'!G64)*50% -> 0.2363274215 | G79: =((G61/'Guide & drivers'!H45)*50%)+(G61/'Guide & drivers'!H64)*50% -> 0.2095405321 | H79: =((H61/'Guide & drivers'!I45)*50%)+(H61/'Guide & drivers'!I64)*50% -> 0.1827658208 | I79: =((I61/'Guide & drivers'!J45)*50%)+(I61/'Guide & drivers'!J64)*50% -> 0.1647423725 | P79: WMID | Q79: 13 | R79: 12 | S79: 10
D80: EMID | E80: =((E62/'Guide & drivers'!F46)*50%)+(E62/'Guide & drivers'!F65)*50% -> 0.2128857203 | F80: =((F62/'Guide & drivers'!G46)*50%)+(F62/'Guide & drivers'!G65)*50% -> 0.2132748062 | G80: =((G62/'Guide & drivers'!H46)*50%)+(G62/'Guide & drivers'!H65)*50% -> 0.1575374679 | H80: =((H62/'Guide & drivers'!I46)*50%)+(H62/'Guide & drivers'!I65)*50% -> 0.1482539368 | I80: =((I62/'Guide & drivers'!J46)*50%)+(I62/'Guide & drivers'!J65)*50% -> 0.136389936 | P80: EMID | Q80: 7 | R80: 7 | S80: 7
D81: SWALES | E81: =((E63/'Guide & drivers'!F47)*50%)+(E63/'Guide & drivers'!F66)*50% -> 0.1949123625 | F81: =((F63/'Guide & drivers'!G47)*50%)+(F63/'Guide & drivers'!G66)*50% -> 0.2657312262 | G81: =((G63/'Guide & drivers'!H47)*50%)+(G63/'Guide & drivers'!H66)*50% -> 0.1936777215 | H81: =((H63/'Guide & drivers'!I47)*50%)+(H63/'Guide & drivers'!I66)*50% -> 0.1804797488 | I81: =((I63/'Guide & drivers'!J47)*50%)+(I63/'Guide & drivers'!J66)*50% -> 0.1755520401 | P81: SWALES | Q81: 11 | R81: 11 | S81: 13
D82: SWEST | E82: =((E64/'Guide & drivers'!F48)*50%)+(E64/'Guide & drivers'!F67)*50% -> 0.2345501213 | F82: =((F64/'Guide & drivers'!G48)*50%)+(F64/'Guide & drivers'!G67)*50% -> 0.2405647518 | G82: =((G64/'Guide & drivers'!H48)*50%)+(G64/'Guide & drivers'!H67)*50% -> 0.1749616226 | H82: =((H64/'Guide & drivers'!I48)*50%)+(H64/'Guide & drivers'!I67)*50% -> 0.1607773822 | I82: =((I64/'Guide & drivers'!J48)*50%)+(I64/'Guide & drivers'!J67)*50% -> 0.1547060723 | P82: SWEST | Q82: 9 | R82: 8 | S82: 9
D83: LPN | E83: =((E65/'Guide & drivers'!F49)*50%)+(E65/'Guide & drivers'!F68)*50% -> 0.2273078223 | F83: =((F65/'Guide & drivers'!G49)*50%)+(F65/'Guide & drivers'!G68)*50% -> 0.2688593432 | G83: =((G65/'Guide & drivers'!H49)*50%)+(G65/'Guide & drivers'!H68)*50% -> 0.1956121113 | H83: =((H65/'Guide & drivers'!I49)*50%)+(H65/'Guide & drivers'!I68)*50% -> 0.203179229 | I83: =((I65/'Guide & drivers'!J49)*50%)+(I65/'Guide & drivers'!J68)*50% -> 0.175056848 | P83: LPN | Q83: 12 | R83: 13 | S83: 12
D84: SPN | E84: =((E66/'Guide & drivers'!F50)*50%)+(E66/'Guide & drivers'!F69)*50% -> 0.2619703634 | F84: =((F66/'Guide & drivers'!G50)*50%)+(F66/'Guide & drivers'!G69)*50% -> 0.2409982055 | G84: =((G66/'Guide & drivers'!H50)*50%)+(G66/'Guide & drivers'!H69)*50% -> 0.1725765892 | H84: =((H66/'Guide & drivers'!I50)*50%)+(H66/'Guide & drivers'!I69)*50% -> 0.1615606474 | I84: =((I66/'Guide & drivers'!J50)*50%)+(I66/'Guide & drivers'!J69)*50% -> 0.15059491 | P84: SPN | Q84: 8 | R84: 9 | S84: 8
D85: EPN | E85: =((E67/'Guide & drivers'!F51)*50%)+(E67/'Guide & drivers'!F70)*50% -> 0.1871055312 | F85: =((F67/'Guide & drivers'!G51)*50%)+(F67/'Guide & drivers'!G70)*50% -> 0.1721063319 | G85: =((G67/'Guide & drivers'!H51)*50%)+(G67/'Guide & drivers'!H70)*50% -> 0.1248563454 | H85: =((H67/'Guide & drivers'!I51)*50%)+(H67/'Guide & drivers'!I70)*50% -> 0.1378346898 | I85: =((I67/'Guide & drivers'!J51)*50%)+(I67/'Guide & drivers'!J70)*50% -> 0.1304369811 | P85: EPN | Q85: 3 | R85: 6 | S85: 6
D86: SPD* | E86: =((E68/'Guide & drivers'!F52)*50%)+(E68/'Guide & drivers'!F71)*50% -> 0.2101827489 | F86: =((F68/'Guide & drivers'!G52)*50%)+(F68/'Guide & drivers'!G71)*50% -> 0.1236655468 | G86: =((G68/'Guide & drivers'!H52)*50%)+(G68/'Guide & drivers'!H71)*50% -> 0.09356657058 | H86: =((H68/'Guide & drivers'!I52)*50%)+(H68/'Guide & drivers'!I71)*50% -> 0.08411717228 | I86: =((I68/'Guide & drivers'!J52)*50%)+(I68/'Guide & drivers'!J71)*50% -> 0.0690584437 | P86: SPD | Q86: 2 | R86: 2 | S86: 2
D87: SPMW* | E87: =((E69/'Guide & drivers'!F53)*50%)+(E69/'Guide & drivers'!F72)*50% -> 0.06793927823 | F87: =((F69/'Guide & drivers'!G53)*50%)+(F69/'Guide & drivers'!G72)*50% -> 0.1538880388 | G87: =((G69/'Guide & drivers'!H53)*50%)+(G69/'Guide & drivers'!H72)*50% -> 0.09268669619 | H87: =((H69/'Guide & drivers'!I53)*50%)+(H69/'Guide & drivers'!I72)*50% -> 0.08144549145 | I87: =((I69/'Guide & drivers'!J53)*50%)+(I69/'Guide & drivers'!J72)*50% -> 0.06893388449 | P87: SPMW | Q87: 1 | R87: 1 | S87: 1
D88: SSEH | E88: =((E70/'Guide & drivers'!F54)*50%)+(E70/'Guide & drivers'!F73)*50% -> 0.2643269403 | F88: =((F70/'Guide & drivers'!G54)*50%)+(F70/'Guide & drivers'!G73)*50% -> 0.4837731444 | G88: =((G70/'Guide & drivers'!H54)*50%)+(G70/'Guide & drivers'!H73)*50% -> 0.2186518684 | H88: =((H70/'Guide & drivers'!I54)*50%)+(H70/'Guide & drivers'!I73)*50% -> 0.2185788034 | I88: =((I70/'Guide & drivers'!J54)*50%)+(I70/'Guide & drivers'!J73)*50% -> 0.2447619652 | P88: SSEH | Q88: 14 | R88: 14 | S88: 14
D89: SSES | E89: =((E71/'Guide & drivers'!F55)*50%)+(E71/'Guide & drivers'!F74)*50% -> 0.2381637334 | F89: =((F71/'Guide & drivers'!G55)*50%)+(F71/'Guide & drivers'!G74)*50% -> 0.2283852968 | G89: =((G71/'Guide & drivers'!H55)*50%)+(G71/'Guide & drivers'!H74)*50% -> 0.1774831599 | H89: =((H71/'Guide & drivers'!I55)*50%)+(H71/'Guide & drivers'!I74)*50% -> 0.1780288714 | I89: =((I71/'Guide & drivers'!J55)*50%)+(I71/'Guide & drivers'!J74)*50% -> 0.1704835298 | P89: SSES | Q89: 10 | R89: 10 | S89: 11
D90: Total | E90: =((E72/'Guide & drivers'!F56)*50%)+(E72/'Guide & drivers'!F75)*50% -> 0.2186435365 | F90: =((F72/'Guide & drivers'!G56)*50%)+(F72/'Guide & drivers'!G75)*50% -> 0.2332763133 | G90: =((G72/'Guide & drivers'!H56)*50%)+(G72/'Guide & drivers'!H75)*50% -> 0.1555807534 | H90: =((H72/'Guide & drivers'!I56)*50%)+(H72/'Guide & drivers'!I75)*50% -> 0.1497671065 | I90: =((I72/'Guide & drivers'!J56)*50%)+(I72/'Guide & drivers'!J75)*50% -> 0.1404370899
B93: Sulphur hexafluoride emissions (SF6)
D94: SF6 emissions (kg) | P94: SF6 bank (kg)
E95: DPCR5 - 2013/14 | F95: DPCR5 - 2014/15 | G95: 2015/16 | H95: 2016/17 | I95: 2017/18 | J95: 2018/19 | K95: 2019/20 | L95: 2020/21 | M95: 2021/22 | N95: 2022/23 | Q95: DPCR5 - 2013/14 | R95: DPCR5 - 2014/15 | S95: 2015/16 | T95: 2016/17 | U95: 2017/18 | V95: 2018/19 | W95: 2019/20 | X95: 2020/21 | Y95: 2021/22 | Z95: 2022/23
D96: ENWL | E96: 57.1 | F96: 36.1 | G96: 14.627 | H96: 55.23 | I96: 54.27 | P96: ENWL | Q96: 13508.72 | R96: 16852.1 | S96: 14736.27 | T96: 14159.45 | U96: 14615.28
D97: NPgN | E97: 25.11 | F97: 16.12 | G97: 23.75 | H97: 14.87 | I97: 36 | P97: NPgN | Q97: 14530.14981 | R97: 15125.06981 | S97: 15258.78981 | T97: 15392.50981 | U97: 16174
D98: NPgY | E98: 97.98 | F98: 79.105 | G98: 84.49 | H98: 98.75 | I98: 61.96 | P98: NPgY | Q98: 17280.80328 | R98: 17816.80328 | S98: 18304.15328 | T98: 18637.59328 | U98: 19101.25328
D99: WMID | E99: 94.66088137 | F99: 62 | G99: 352.64 | H99: 199.63 | I99: 186.96 | P99: WMID | Q99: 17537 | R99: 19464 | S99: 20866 | T99: 22761 | U99: 24570
D100: EMID | E100: 43.52911863 | F100: 14.14 | G100: 75.61 | H100: 56.74 | I100: 56.96 | P100: EMID | Q100: 15684 | R100: 16952 | S100: 18231 | T100: 20124 | U100: 22588
D101: SWALES | E101: 41.83 | F101: 141.42 | G101: 93.9 | H101: 88.3 | I101: 103.64 | P101: SWALES | Q101: 15597 | R101: 16227 | S101: 16632 | T101: 17455 | U101: 18098
D102: SWEST | E102: 157.67 | F102: 128.97 | G102: 105.3 | H102: 74 | I102: 121.28 | P102: SWEST | Q102: 11327 | R102: 11558 | S102: 11684 | T102: 12368 | U102: 13277
D103: LPN | E103: 10.42 | F103: 20.609 | G103: 9.55 | H103: 16.1 | I103: 7.35 | P103: LPN | Q103: 43149.7 | R103: 40825.459 | S103: 41889.606 | T103: 42305 | U103: 46089
D104: SPN | E104: 16.578 | F104: 15.138 | G104: 17.609 | H104: 16.5 | I104: 35.7 | P104: SPN | Q104: 19622.9 | R104: 20451.965 | S104: 21158.534 | T104: 21124 | U104: 21603
D105: EPN | E105: 71.86 | F105: 64.47 | G105: 66.89 | H105: 98.96 | I105: 93.28 | P105: EPN | Q105: 32780.7 | R105: 34185.484 | S105: 36058.736 | T105: 36921 | U105: 41022
D106: SPD | E106: 61.7 | F106: 62.4 | G106: 0.8 | H106: 1.04 | I106: 36.502 | P106: SPD | Q106: 12564 | R106: 13259 | S106: 12709.962 | T106: 25114.642 | U106: 15181.751
D107: SPMW | E107: 121.8 | F107: 124.2 | G107: 29.87 | H107: 46.69 | I107: 67.49 | P107: SPMW | Q107: 22193 | R107: 23117 | S107: 16893.361 | T107: 16922.361 | U107: 17833.271
D108: SSEH | E108: 9 | F108: 14 | G108: 5.8 | H108: 3.9 | I108: 1.56 | P108: SSEH | Q108: 4887.276 | R108: 5231.978 | S108: 5510.844556 | T108: 5716.13 | U108: 5653.77
D109: SSES | E109: 107 | F109: 102 | G109: 133 | H109: 132.3 | I109: 186.2 | P109: SSES | Q109: 22983.677 | R109: 21967.991 | S109: 25702 | T109: 24272.526 | U109: 23941.639
D110: Total | E110: =SUM(E96:E109) -> 916.238 | F110: =SUM(F96:F109) -> 880.672 | G110: =SUM(G96:G109) -> 1013.836 | H110: =SUM(H96:H109) -> 903.01 | I110: =SUM(I96:I109) -> 1049.152 | P110: Total | Q110: =SUM(Q96:Q109) -> 263645.9261 | R110: =SUM(R96:R109) -> 273033.8501 | S110: =SUM(S96:S109) -> 275635.2566 | T110: =SUM(T96:T109) -> 293273.2121 | U110: =SUM(U96:U109) -> 299747.9643
D114: SF6 emissions as a percentage of the SF6 bank | P114: SF6 emitted as % of bank - SNAPSHOT
E115: DPCR5 - 2013/14 | F115: DPCR5 - 2014/15 | G115: 2015/16 | H115: 2016/17 | I115: 2017/18 | J115: 2018/19 | K115: 2019/20 | L115: 2020/21 | M115: 2021/22 | N115: 2022/23 | P115: Ranking | Q115: 2015/16 | R115: 2016/17 | S115: 2017/18 | T115: 2018/19 | U115: 2019/20 | V115: 2020/21 | W115: 2021/22 | X115: 2022/23
D116: ENWL | E116: =E96/Q96 -> 0.004226899366 | F116: =F96/R96 -> 0.002142166258 | G116: =G96/S96 -> 0.0009925849621 | H116: =H96/T96 -> 0.003900575234 | I116: =I96/U96 -> 0.003713237105 | P116: ENWL | Q116: =RANK(G116,$G$116:$G$129,1) -> 4 | R116: =RANK(H116,$H$116:$H$129,1) -> 9 | S116: =RANK(I116,$I$116:$I$129,1) -> 9
D117: NPgN | E117: =E97/Q97 -> 0.001728130841 | F117: =F97/R97 -> 0.001065780205 | G117: =G97/S97 -> 0.001556479924 | H117: =H97/T97 -> 0.0009660542813 | I117: =I97/U97 -> 0.002225794485 | P117: NPgN | Q117: =RANK(G117,$G$116:$G$129,1) -> 6 | R117: =RANK(H117,$H$116:$H$129,1) -> 5 | S117: =RANK(I117,$I$116:$I$129,1) -> 4
D118: NPgY | E118: 0.00566987532 | F118: 0.00443990983 | G118: 0.004615892291 | H118: 0.005298430894 | I118: =I98/U98 -> 0.003243766213 | P118: NPgY | Q118: 10 | R118: 11 | S118: 8
D119: WMID | E119: 0.00539778077 | F119: 0.003185367859 | G119: 0.01690022045 | H119: 0.008770704275 | I119: 0.007609279609 | P119: WMID | Q119: 14 | R119: 14 | S119: 12
D120: EMID | E120: 0.002775383743 | F120: 0.0008341198679 | G120: 0.004147331468 | H120: 0.002819518982 | I120: 0.002521692934 | P120: EMID | Q120: 9 | R120: 8 | S120: 7
D121: SWALES | E121: 0.002681926011 | F121: 0.008715104456 | G121: 0.005645743146 | H121: 0.005058722429 | I121: 0.005726599624 | P121: SWALES | Q121: 12 | R121: 10 | S121: 11
D122: SWEST | E122: 0.01391983756 | F122: 0.01115850493 | G122: 0.009012324546 | H122: 0.005983182406 | I122: 0.009134593658 | P122: SWEST | Q122: 13 | R122: 13 | S122: 14
D123: LPN | E123: 0.0002414848771 | F123: 0.0005048075516 | G123: 0.000227980182 | H123: 0.0003805696726 | I123: 0.0001594740611 | P123: LPN | Q123: 2 | R123: 2 | S123: 1
D124: SPN | E124: 0.0008448292556 | F124: 0.000740173377 | G124: 0.0008322410239 | H124: 0.000781102064 | I124: 0.001652548257 | P124: SPN | Q124: 3 | R124: 4 | S124: 3
D125: EPN | E125: 0.002192143548 | F125: 0.001885888174 | G125: 0.001855028973 | H125: 0.002680317435 | I125: 0.002273901809 | P125: EPN | Q125: 8 | R125: 6 | S125: 5
D126: SPD | E126: 0.004910856415 | F126: 0.004706237273 | G126: 6.294275309e-05 | H126: 4.14101065e-05 | I126: 0.002404333993 | P126: SPD | Q126: 1 | R126: 1 | S126: 6
D127: SPMW | E127: 0.005488217005 | F127: 0.005372669464 | G127: 0.001768150222 | H127: 0.002759071267 | I127: 0.003784499209 | P127: SPMW | Q127: 7 | R127: 7 | S127: 10
D128: SSEH | E128: 0.001841516624 | F128: 0.00267585223 | G128: 0.00105247026 | H128: 0.0006822797942 | I128: 0.0002759220838 | P128: SSEH | Q128: 5 | R128: 3 | S128: 2
D129: SSES | E129: 0.004655477885 | F129: 0.004643119164 | G129: 0.005174694576 | H129: 0.005450606995 | I129: 0.007777245326 | P129: SSES | Q129: 11 | R129: 12 | S129: 13
D130: Total | E130: 0.003475259465 | F130: 0.003225504822 | G130: 0.00367817968 | H130: 0.003079074265 | I130: 0.003500113846
B133: Leakages from fluid filled cables
D134: Top up of fluid filled cables (litres) | P134: Oil in Service in Cables (litres)
E135: DPCR5 - 2013/14 | F135: DPCR5 - 2014/15 | G135: 2015/16 | H135: 2016/17 | I135: 2017/18 | J135: 2018/19 | K135: 2019/20 | L135: 2020/21 | M135: 2021/22 | N135: 2022/23 | Q135: DPCR5 - 2013/14 | R135: DPCR5 - 2014/15 | S135: 2015/16 | T135: 2016/17 | U135: 2017/18 | V135: 2018/19 | W135: 2019/20 | X135: 2020/21 | Y135: 2021/22 | Z135: 2022/23
D136: ENWL | E136: 33115 | F136: 28318 | G136: 31220 | H136: 21096 | I136: 67398 | P136: ENWL | Q136: 1311206 | R136: 1266283.417 | S136: 1202260.53 | T136: 1319898.91 | U136: 1106980.41
D137: NPgN | E137: 16837 | F137: 15890 | G137: 13021 | H137: 18641 | I137: 12124 | P137: NPgN | Q137: 1469598.816 | R137: 1419147.339 | S137: 1433538.018 | T137: 1429192.027 | U137: 1347254
D138: NPgY | E138: 42951 | F138: 28113 | G138: 18732 | H138: 18150 | I138: 17438 | P138: NPgY | Q138: 1398926.373 | R138: 1362750.509 | S138: 1145692.085 | T138: 1089977.698 | U138: 1078595.852
D139: WMID | E139: 11382 | F139: 19717 | G139: 8392 | H139: 9421 | I139: 12771 | P139: WMID | Q139: 918008.229 | R139: 877755.234 | S139: 865392 | T139: 935150 | U139: 663808
D140: EMID | E140: 10110 | F140: 9303 | G140: 7255 | H140: 7220 | I140: 9630 | P140: EMID | Q140: 794256.8495 | R140: 770711.498 | S140: 711036 | T140: 694510 | U140: 521215
D141: SWALES | E141: 0 | F141: 0 | G141: 938 | H141: 400 | I141: 270 | P141: SWALES | Q141: 144156.0682 | R141: 143999.3922 | S141: 144974 | T141: 182210 | U141: 161291
D142: SWEST | E142: 724 | F142: 1930 | G142: 706 | H142: 210 | I142: 687 | P142: SWEST | Q142: 311241.5292 | R142: 314455.3845 | S142: 303186 | T142: 285380 | U142: 241053
D143: LPN | E143: 143605 | F143: 165221 | G143: 151557 | H143: 137086 | I143: 114723 | P143: LPN | Q143: 3111189.2 | R143: 3158906.69 | S143: 3156496.207 | T143: 3147849.79 | U143: 3248501.919
D144: SPN | E144: 66208 | F144: 71297 | G144: 52446 | H144: 52068 | I144: 72233 | P144: SPN | Q144: 1981939.81 | R144: 2002002.87 | S144: 2012486.878 | T144: 1998070.872 | U144: 2062679.84
D145: EPN | E145: 30829 | F145: 46916 | G145: 37768 | H145: 42306 | I145: 55978 | P145: EPN | Q145: 1943552.7 | R145: 1989261.7 | S145: 1968839.62 | T145: 1915399.521 | U145: 2191115.713
D146: SPD | E146: 46 | F146: 37 | G146: 0 | H146: 0 | I146: 20 | P146: SPD | Q146: 0 | R146: 0 | S146: 86700 | T146: 86700 | U146: 86700
D147: SPMW | E147: 5535 | F147: 3555 | G147: 13600 | H147: 9315 | I147: 4420 | P147: SPMW | Q147: 0 | R147: 0 | S147: 699600 | T147: 699600 | U147: 699319.28
D148: SSEH | E148: 1077 | F148: 1623 | G148: 410 | H148: 612 | I148: 3440 | P148: SSEH | Q148: 38188.995 | R148: 38116.845 | S148: 35090.393 | T148: 32744.075 | U148: 32744.075
D149: SSES | E149: 17184 | F149: 18804 | G149: 14851 | H149: 21199 | I149: 31857 | P149: SSES | Q149: 513316.1781 | R149: 513316.1781 | S149: 689617.708 | T149: 684272.836 | U149: 646332.3588
D150: Total | E150: =SUM(E136:E149) -> 379603 | F150: =SUM(F136:F149) -> 410724 | G150: =SUM(G136:G149) -> 350896 | H150: =SUM(H136:H149) -> 337724 | I150: =SUM(I136:I149) -> 402989 | P150: Total | Q150: =SUM(Q136:Q149) -> 13935580.75 | R150: =SUM(R136:R149) -> 13856707.06 | S150: =SUM(S136:S149) -> 14454909.44 | T150: =SUM(T136:T149) -> 14500955.73 | U150: =SUM(U136:U149) -> 14087590.45
D153: Top up as a % of oil in service
E154: DPCR5 - 2013/14 | F154: DPCR5 - 2014/15 | G154: 2015/16 | H154: 2016/17 | I154: 2017/18 | J154: 2018/19 | K154: 2019/20 | L154: 2020/21 | M154: 2021/22 | N154: 2022/23 | P154: Top up as a % of oil in service - SNAPSHOT
D155: ENWL | E155: =IFERROR(E136/Q136,"") -> 0.02525537559 | F155: =IFERROR(F136/R136,"") -> 0.02236308208 | G155: =IFERROR(G136/S136,"") -> 0.02596774927 | H155: =IFERROR(H136/T136,"") -> 0.01598304222 | I155: 0.06088454628 | J155: =IFERROR(J136/V136,"") ->  | K155: =IFERROR(K136/W136,"") ->  | L155: =IFERROR(L136/X136,"") ->  | M155: =IFERROR(M136/Y136,"") ->  | N155: =IFERROR(N136/Z136,"") ->  | P155: Ranking | Q155: 2015/16 | R155: 2016/17 | S155: 2017/18 | T155: 2018/19 | U155: 2019/20 | V155: 2020/21 | W155: 2021/22 | X155: 2022/23 | AA155: 2015/16 | AB155: 2016/17 | AC155: 2017/18 | AD155: 2018/19 | AE155: 2019/20 | AF155: 2020/21 | AG155: 2021/22 | AH155: 2022/23
D156: NPgN | E156: 0.01145686824 | F156: 0.01119686418 | G156: 0.009083121506 | H156: 0.01304303386 | I156: 0.008999045466 | P156: ENWL | Q156: =RANK(AA156,$AA$156:$AA$168,1) -> 11 | R156: =RANK(AB156,$AB$156:$AB$168,1) -> 7 | S156: =RANK(AC156,$AC$156:$AC$168,1) -> 12 | Z156: ENWL | AA156: =G155 -> 0.02596774927 | AB156: =H155 -> 0.01598304222 | AC156: =I155 -> 0.06088454628
D157: NPgY | E157: 0.03070283099 | F157: 0.02062960154 | G157: 0.01634994275 | H157: 0.01665171684 | I157: 0.01616731602 | P157: NPgN | Q157: 3 | R157: 5 | S157: 4 | Z157: NPgN | AA157: 0.009083121506 | AB157: 0.01304303386 | AC157: 0.008999045466
D158: WMID | E158: 0.01239858167 | F158: 0.02246298198 | G158: 0.009697339472 | H158: 0.01007431963 | I158: 0.01923899682 | P158: NPgY | Q158: 7 | R158: 8 | S158: 5 | Z158: NPgY | AA158: 0.01634994275 | AB158: 0.01665171684 | AC158: 0.01616731602
D159: EMID | E159: 0.01272887984 | F159: 0.01207066461 | G159: 0.01020342149 | H159: 0.01039581863 | I159: 0.01847606074 | P159: WMID | Q159: 4 | R159: 3 | S159: 7 | Z159: WMID | AA159: 0.009697339472 | AB159: 0.01007431963 | AC159: 0.01923899682
D160: SWALES | E160: 0 | F160: 0 | G160: 0.006470125678 | H160: 0.002195269195 | I160: 0.001673992969 | N160: =IFERROR(N141/Z141,"") ->  | P160: EMID | Q160: 5 | R160: 4 | S160: 6 | Z160: EMID | AA160: 0.01020342149 | AB160: 0.01039581863 | AC160: 0.01847606074
D161: SWEST | E161: 0.002326167725 | F161: 0.006137595649 | G161: 0.002328603563 | H161: 0.0007358609573 | I161: 0.002849995644 | P161: SWALES | Q161: 2 | R161: 2 | S161: 1 | Z161: SWALES | AA161: 0.006470125678 | AB161: 0.002195269195 | AC161: 0.001673992969
D162: LPN | E162: 0.04615759144 | F162: 0.05230322267 | G162: 0.04801431399 | H162: 0.04354909197 | I162: 0.0353156633 | P162: SWEST | Q162: 1 | R162: 1 | S162: 2 | Z162: SWEST | AA162: 0.002328603563 | AB162: 0.0007358609573 | AC162: 0.002849995644
D163: SPN | E163: 0.03340565625 | F163: 0.03561283606 | G163: 0.02606029415 | H163: 0.0260591357 | I163: 0.03501900712 | P163: LPN | Q163: 13 | R163: 13 | S163: 10 | Z163: LPN | AA163: 0.04801431399 | AB163: 0.04354909197 | AC163: 0.0353156633
D164: EPN | E164: 0.01586218887 | F164: 0.02358462941 | G164: =IFERROR(G145/S145,"") -> 0.0191828728 | H164: 0.022087298 | I164: 0.0255477151 | P164: SPN | Q164: 12 | R164: 11 | S164: 9 | Z164: SPN | AA164: 0.02606029415 | AB164: 0.0260591357 | AC164: 0.03501900712
D165: SPD | E165: =IFERROR(E146/Q146,"") ->  | F165: =IFERROR(F146/R146,"") ->  | G165: =IFERROR(G146/S146,"") -> 0 | H165: =IFERROR(H146/T146,"") -> 0 | I165: =IFERROR(I146/U146,"") -> 0.0002306805075 | J165: - | K165: - | L165: - | M165: - | N165: - | P165: EPN | Q165: 8 | R165: 10 | S165: 8 | Z165: EPN | AA165: 0.0191828728 | AB165: 0.022087298 | AC165: 0.0255477151
D166: SPMW | E166: =IFERROR(E147/Q147,"") ->  | F166: =IFERROR(F147/R147,"") ->  | G166: =IFERROR(G147/S147,"") -> 0.01943967982 | H166: 0.01331475129 | I166: 0.006320432064 | P166: SPMW | Q166: 9 | R166: 6 | S166: 3 | Z166: SPMW | AA166: =G166 -> 0.01943967982 | AB166: 0.01331475129 | AC166: 0.006320432064
D167: SSEH | E167: =IFERROR(E148/Q148,"") -> 0.02820184192 | F167: 0.04257959965 | G167: 0.01168410967 | H167: 0.01869040429 | I167: 0.1050571745 | P167: SSEH | Q167: 6 | R167: 9 | S167: 13 | Z167: SSEH | AA167: 0.01168410967 | AB167: 0.01869040429 | AC167: 0.1050571745
D168: SSES | E168: 0.03347644344 | F168: 0.03663239306 | G168: 0.02153511986 | H168: 0.03098033253 | I168: 0.04928888298 | P168: SSES | Q168: 10 | R168: 12 | S168: 11 | Z168: SSES | AA168: 0.02153511986 | AB168: 0.03098033253 | AC168: 0.04928888298
D169: Total | E169: 0.02723984073 | F169: 0.02964080848 | G169: 0.02427521262 | H169: 0.02328977526 | I169: 0.02860595653
B172: Undergrounding
D173: Undergrounding performance
E174: 2015/16 | H174: 2016/17 | K174: 2017/18 | N174: 2018/19 | Q174: 2019/20 | T174: 2020/21 | W174: 2021/22 | Z174: 2022/23
E175: Length of overhead lines removed (km) | F175: Length of underground lines installed (km) | G175: Undergrounding expenditure (£m) | H175: Length of overhead lines removed (km) | I175: Length of underground lines installed (km) | J175: Undergrounding expenditure (£m) | K175: Length of overhead lines removed (km) | L175: Length of underground lines installed (km) | M175: Undergrounding expenditure (£m) | N175: Length of overhead lines removed (km) | O175: Length of underground lines installed (km) | P175: Undergrounding expenditure (£m) | Q175: Length of overhead lines removed (km) | R175: Length of underground lines installed (km) | S175: Undergrounding expenditure (£m) | T175: Length of overhead lines removed (km) | U175: Length of underground lines installed (km) | V175: Undergrounding expenditure (£m) | W175: Length of overhead lines removed (km) | X175: Length of underground lines installed (km) | Y175: Undergrounding expenditure (£m) | Z175: Length of overhead lines removed (km) | AA175: Length of underground lines installed (km) | AB175: Undergrounding expenditure (£m)
D176: ENWL | E176: 3.79 | F176: 3.41 | G176: 0.8618341041 | H176: 11.23 | I176: 12.206 | J176: 0.9434568215 | K176: 4.88 | L176: 4.46 | M176: 1.075879
D177: NPgN | E177: 9.112 | F177: 9.067 | G177: 0.820401837 | H177: 9.161 | I177: 8.876 | J177: 2.23876601 | K177: 9.995 | L177: 12.03 | M177: 1.75470495
D178: NPgY | E178: 7.751 | F178: 7.845 | G178: 0.3963700746 | H178: 3.85 | I178: 3.645 | J178: 0.5983309096 | K178: 3.87 | L178: 3.585 | M178: 0.6600842334
D179: WMID | E179: 4.655857 | F179: 5.029391 | G179: 0.6922 | H179: 3.293036 | I179: 6.442838042 | J179: 0.4540951583 | K179: 0 | L179: 0 | M179: 0
D180: EMID | E180: 4.160633 | F180: 0 | G180: 0.0167 | H180: 0 | I180: 0.289111 | J180: 0.02281101001 | K180: 1.092980523 | L180: 0.014685116 | M180: 0
D181: SWALES | E181: 0 | F181: 0 | G181: 0 | H181: 1.171771696 | I181: 1.174857 | J181: 0.07285252387 | K181: 0.113239 | L181: 0 | M181: 0.1776
D182: SWEST | E182: 0 | F182: 0 | G182: 0.053 | H182: 0.305728 | I182: 0.685364377 | J182: 0.03733587826 | K182: 1.898316 | L182: 9.438434236 | M182: 1.0883
D183: LPN* | E183: N/A | F183: N/A | G183: - | H183: 0 | I183: 0 | J183: 0 | K183: 0 | L183: 0 | M183: 0
D184: SPN | E184: 5.349638 | F184: 7.883125 | G184: 0.3384673669 | H184: 3.1821 | I184: 1.86 | J184: 0.3441058925 | K184: 0 | L184: 0 | M184: 0.04848401507
D185: EPN | E185: 0 | F185: 0.135 | G185: 0.4780034178 | H185: 1.46682782 | I185: 1.785446065 | J185: 0.1889945416 | K185: 2.053488 | L185: 3.449360167 | M185: 0.1839099611
D186: SPD | E186: 0 | F186: 0 | G186: 0 | H186: 0 | I186: 0 | J186: 0.14459916 | K186: 1.060636806 | L186: 0 | M186: 0
D187: SPMW | E187: 1.6 | F187: 0 | G187: 0.09318197007 | H187: 1.968943195 | I187: 1.623761834 | J187: 0.2094353986 | K187: 7.437 | L187: 5.461 | M187: 0.4936714201
D188: SSEH | E188: 0 | F188: 0 | G188: 0 | H188: 0 | I188: 0 | J188: 0.235661 | K188: 1.922 | L188: 2.509 | M188: 0.81765478
D189: SSES | E189: 2.5 | F189: 2.4 | G189: 0.2497737 | H189: 6.027 | I189: 6.967 | J189: 0.45568641 | K189: 0 | L189: 0 | M189: 0.2033143
D190: Total | E190: =SUM(E176:E189) -> 38.919128 | F190: 35.769516 | G190: =SUM(G176:G189) -> 3.999932471 | H190: 41.65640671 | I190: 45.55537832 | J190: 5.946130715 | K190: 34.32266033 | L190: 40.94747952 | M190: 6.50360266
D191: * nb LPN does not have an undergrounding allowance
D194: Detailed Undergrounding Activity Under ED1 Visual Amenity Allowance
D196: DNO | E196: AONB / national park | F196: 2015/16 | I196: 2016/17 | L196: 2017/18 | O196: 2018/19 | R196: 2019/20 | U196: 2020/21 | X196: 2021/22 | AA196: 2022/23
F197: Length of overhead lines (km) removed | G197: Length of underground cables installed in Designated Areas (km) | H197: Expenditure (£m) | I197: Length of overhead lines (km) removed | J197: Length of underground cables installed in Designated Areas (km) | K197: Expenditure (£m) | L197: Length of overhead lines (km) removed | M197: Length of underground cables installed in Designated Areas (km) | N197: Expenditure (£m) | O197: Length of overhead lines (km) removed | P197: Length of underground cables installed in Designated Areas (km) | Q197: Expenditure (£m) | R197: Length of overhead lines (km) removed | S197: Length of underground cables installed in Designated Areas (km) | T197: Expenditure (£m) | U197: Length of overhead lines (km) removed | V197: Length of underground cables installed in Designated Areas (km) | W197: Expenditure (£m) | X197: Length of overhead lines (km) removed | Y197: Length of underground cables installed in Designated Areas (km) | Z197: Expenditure (£m) | AA197: Length of overhead lines (km) removed | AB197: Length of underground cables installed in Designated Areas (km) | AC197: Expenditure (£m)
D198: ENWL | E198: Arnside & Silverdale | F198: 0 | G198: 0 | H198: 0.009038618554 | I198: 0 | J198: 0 | K198: -0.000139688777 | L198: 0 | M198: 0 | N198: 0
E199: Forest of Bowland | F199: 1.22 | G199: 1.355 | H199: 0.139509517 | I199: 1.801 | J199: 2.251 | K199: 0.167793436 | L199: 2.687 | M199: 3.4 | N199: 0.275539
E200: North Pennines | F200: 0 | G200: 0 | H200: 0.003037031181 | I200: 2.719 | J200: 3.108 | K200: 0.3166764151 | L200: 0 | M200: 0 | N200: 0.007495
E201: Solway Coast | F201: 0.93 | G201: 1.185 | H201: 0.09137931221 | I201: 1.607 | J201: 2.241 | K201: 0.1628672627 | L201: 0 | M201: 0 | N201: 0
E202: The Lake District | F202: 0.8 | G202: 0.87 | H202: 0.5900117355 | I202: 4.052 | J202: 3.555 | K202: 0.1688865509 | L202: 0.882 | M202: 1.06 | N202: 0.692914
E203: The Peak District | F203: 0.84 | G203: 0 | H203: 0.04929907731 | I203: 1.051 | J203: 1.051 | K203: 0.1650136525 | L203: 1.315 | M203: 0 | N203: 0.099931
E204: The Yorkshire Dales | F204: 0 | G204: 0 | H204: 0.0309666239 | I204: 0 | J204: 0 | K204: 0.0007621201765 | L204: 0 | M204: 0 | N204: 0
D205: NPGN | E205: Howardian Hills | F205: 1.505 | G205: 1.505 | H205: 0.1242554957 | I205: 1.07 | J205: 0.965 | K205: 0.2012890831 | L205: 0.27 | M205: 0.425 | N205: 0.05367479
E206: Nidderdale | F206: 1.148 | G206: 1.148 | H206: 0.08718697483 | I206: 0.192 | J206: 0.192 | K206: 0.01126142034 | L206: 0 | M206: 0 | N206: 0.09580627
E207: North Pennines | F207: 1.17 | G207: 1.17 | H207: 0.1502352731 | I207: 1.446 | J207: 1.446 | K207: 0.2767600726 | L207: 1.755 | M207: 1.875 | N207: 0.55014226
E208: Northumberland Coast | F208: 0 | G208: 0 | H208: 0 | I208: 0.73 | J208: 0.73 | K208: 0.0900163472 | L208: 0 | M208: 0 | N208: 0.01703064
E209: Northumberland | F209: 0.78 | G209: 0.78 | H209: 0.07571733717 | I209: 0.86 | J209: 0.5 | K209: 0.1283253783 | L209: 0 | M209: 0 | N209: 0.02625902
E210: North York Moors | F210: 4.309 | G210: 4.264 | H210: 0.4105472383 | I210: 4.863 | J210: 5.043 | K210: 1.612810147 | L210: 4.44 | M210: 5.545 | N210: 0.63374356
E211: Yorkshire Dales | F211: 0.2 | G211: 0.2 | H211: 0.02139592315 | I211: 0 | J211: 0 | K211: 0 | L211: 3.53 | M211: 4.185 | N211: 0.37804844
D212: NPGY | E212: Peak District | F212: 0.481 | G212: 0.575 | H212: 0.01910672599 | I212: 0 | J212: 0 | K212: 0.03916504451 | L212: 0.25 | M212: 0.28 | N212: 0.2959968871
E213: Yorkshire Dales | F213: 0 | G213: 0 | H213: 0 | I213: 0 | J213: 0 | K213: 0.01898763129 | L213: 0 | M213: 0 | N213: 0.005152855657
E214: Nidderdale | F214: 5 | G214: 5 | H214: 0.1065214315 | I214: 0.24 | J214: 0.24 | K214: 0.04872391907 | L214: 0 | M214: 0 | N214: 0.0003168866375
E215: Lincolnshire Wolds | F215: 2.27 | G215: 2.27 | H215: 0.2943851194 | I215: 3.61 | J215: 3.405 | K215: 0.5138438559 | L215: 3.62 | M215: 3.305 | N215: 0.358617604
D216: WMID | E216: Cannock Chase | F216: 0.052672 | G216: 0.015998 | H216: -0.08191089183 | I216: 0 | J216: 0 | K216: -0.08237114781 | L216: 0 | M216: 0 | N216: 0
E217: Cotswolds (WMID) | F217: 0.75935 | G217: 1.100196 | H217: 0.07120843378 | I217: 1.533846 | J217: 1.821023042 | K217: 0.2744 | L217: 0 | M217: 0 | N217: 0
E218: Malvern Hills | F218: 1.826298 | G218: 1.117835 | H218: 0.07512913623 | I218: 0 | J218: 0.18185 | K218: 0 | L218: 0 | M218: 0 | N218: 0
E219: Peak District NP (WMID) | F219: 0.641478 | G219: 0.827735 | H219: 0.2872709285 | I219: 0.416485 | J219: 0.458741 | K219: 0 | L219: 0 | M219: 0 | N219: 0
E220: Wye Valley (WMID) | F220: 0 | G220: 0 | H220: 0.3347432177 | I220: 0 | J220: 1.882215 | K220: 0 | L220: 0 | M220: 0 | N220: 0
E221: Shropshire Hills | F221: 1.376059 | G221: 1.967627 | H221: 0.04673053467 | I221: 1.342705 | J221: 2.099009 | K221: 0 | L221: 0 | M221: 0 | N221: 0
D222: EMID | E222: Lincolnshire Wolds | F222: 0 | G222: 0 | H222: -0.01038456326 | I222: 0 | J222: 0.289111 | K222: 0.01348645997 | L222: 1.092980523 | M222: 0.014685116 | N222: 0
... 95 more rows

Sheet Ch2 - innovation
A1: Chapter 2 - Innovation
B2: Overview of the DNOs’ expenditure in relation to the various innovation schemes in RIIO-ED1.
B3: Network Innovation Allowance (NIA) Source: Expenditure: Revenue Returns R9 Allowance: TBC | D3: Network Innovation Allowance projects and expenditure
E4: 2015/16 (in 15/16 prices) | I4: 2016/17 (in 16/17 prices) | M4: 2017/18 | Q4: 2018/19 | U4: 2019/20 | Y4: 2020/21 | AC4: 2021/22 | AG4: 2022/23
E5: Number of projects | F5: NIA allowance (£m) | G5: NIA expenditure (£m) | H5: % of allowance | I5: Number of projects | J5: NIA allowance (£m) | K5: NIA expenditure (£m) | L5: % of allowance | M5: Number of projects | N5: NIA allowance (£m) | O5: NIA expenditure (£m) | P5: % of allowance | Q5: Number of projects | R5: NIA allowance (£m) | S5: NIA expenditure (£m) | T5: % of allowance | U5: Number of projects | V5: NIA allowance (£m) | W5: NIA expenditure (£m) | X5: % of allowance | Y5: Number of projects | Z5: NIA allowance (£m) | AA5: NIA expenditure (£m) | AB5: % of allowance | AC5: Number of projects | AD5: NIA allowance (£m) | AE5: NIA expenditure (£m) | AF5: % of allowance | AG5: Number of projects | AH5: NIA allowance (£m) | AI5: NIA expenditure (£m) | AJ5: % of allowance
D6: ENWL | E6: 18 | F6: 2.768487026 | G6: 2.525378644 | H6: =G6/F6 -> 0.9121872781 | I6: 18 | J6: 3.103914158 | K6: 2.86498227 | L6: =K6/J6 -> 0.9230223919 | M6: 21 | N6: 2.7 | O6: 2.7 | P6: =O6/N6 -> 1
D7: NPg | E7: 16 | F7: 3.643460405 | G7: 1.335512585 | H7: =G7/F7 -> 0.3665505966 | I7: 18 | J7: 4.017049549 | K7: 1.259185095 | L7: =K7/J7 -> 0.313460185 | M7: 26 | N7: 3.699986137 | O7: 3.697980533 | P7: =O7/N7 -> 0.9994579428
D8: WPD | E8: 14 | F8: 6.666211387 | G8: 1.567459133 | H8: 0.2351349278 | I8: 22 | J8: 7.63689128 | K8: 5.060908023 | L8: 0.6626921658 | M8: 33 | N8: 7.2 | O8: 6.20455 | P8: 0.8617430556
D9: UKPN | E9: 24 | F9: 6.285557674 | G9: 2.52136008 | H9: 0.4011354618 | I9: 22 | J9: 7.163043779 | K9: 4.523898929 | L9: 0.6315609772 | M9: 46 | N9: 5.9 | O9: 5.473571124 | P9: 0.9277239193
D10: SPEN | E10: 21 | F10: 3.408388182 | G10: 3.139765985 | H10: 0.9211879097 | I10: 22 | J10: 3.847877162 | K10: 3.0412 | L10: 0.7903578706 | M10: 39 | N10: 3.2 | O10: 2.0511 | P10: 0.64096875
D11: SSEN | E11: 35 | F11: 3.817670447 | G11: 3.151693889 | H11: 0.8255542047 | I11: 30 | J11: 4.243436815 | K11: 2.790449717 | L11: 0.6575919092 | M11: 32 | N11: 3.8 | O11: 1.813750698 | P11: 0.4773028153
D12: Total | E12: 128 | F12: =SUM(F6:F11) -> 26.58977512 | G12: =SUM(G6:G11) -> 14.24117032 | H12: 0.5355882196 | I12: =SUM(I6:I11) -> 132 | J12: =SUM(J6:J11) -> 30.01221274 | K12: =SUM(K6:K11) -> 19.54062403 | L12: 0.6510890817 | M12: =SUM(M6:M11) -> 197 | N12: =SUM(N6:N11) -> 26.49998614 | O12: =SUM(O6:O11) -> 21.94095235 | P12: 0.8279608993
B15: Network Innovation Competition (NIC) | D15: Network Innovation Competition projects
D16: 2015/16
D17: Project Title | E17: Lead company | F17: Description | G17: NIC funding awarded (£m) | H17: Total project costs (£m) | I17: Project end date
D18: Celsius | E18: ENWL | F18: To develop a new way of managing the temperature of substations – increasing their operational capacity and lifespan. | G18: 5.026799916 | H18: 5.821908296 | I18: 2020
D19: ANGLE- DC | E19: SPEN - SPMW | F19: To increase Network Reinforcement through converting an existing Alternating Current (AC) circuit between the mainland and Anglesey to Direct Current (DC). | G19: 13.90412085 | H19: 15.47652447 | I19: 2020
D20: Source: https://www.ofgem.gov.uk/sites/default/files/docs/innovation_competitions_brochure_webready_0.pdf
D22: 2016/17
D23: Project Title | E23: Lead company | F23: Description | G23: NIC funding awarded (£m) | H23: Total project costs (£m) | I23: Project end date
D24: Open LV | E24: WPD - WMID | F24: To develop a new software platform which uses cloud technology to enhance visibility of residential-level substations. | G24: 5.03623684 | H24: 6.129378198 | I24: 2020
D25: PowerFul-CB | E25: UKPN - LPN | F25: To develop two new types of circuit breaker on the GB network. | G25: 4.766355276 | H25: 6.420323113 | I25: 2021
D26: Source: https://www.ofgem.gov.uk/system/files/docs/2016/11/innovation_competitions_brochure_to_upload.pdf
D28: 2017/18
D29: Project Title | E29: Lead company | F29: Description | G29: NIC funding awarded (£m) | H29: Total project costs (£m) | I29: Project end date
D30: Active Response | E30: UKPN - LPN | F30: To develop two new types of network equipment to direct power flows across the distribution network | G30: 13.8340495 | H30: 18.29777927 | I30: 2021
D31: LV Engine | E31: SPEN - SPD | F31: To test a new type of solid-state transformer on the GB network | G31: 7.290061428 | H31: 8.295284408 | I31: 2022
D32: EFFS | E32: WPD - EMID | F32: To develop an IT platform to forecast network capacity and identify opportunities to trade flexible network services | G32: 2.942704377 | H32: 4.3116525 | I32: 2020
D33: Transition | E33: SSE - SSES | F33: To test technical and commercial solution to resolve constraints on the distribution network | G33: 13.1 | H33: 14.69085445 | I33: 2021
D34: Fusion | E34: SPEN - SPD | F34: To test a technical and commercial solution developed in Europe to resolve constraints on the distribution network. | G34: 5.29431541 | H34: 5.970844991 | I34: 2022
D35: Source: https://www.ofgem.gov.uk/system/files/docs/2017/11/ofg1031_innovation_competitions_brochure_web.pdf
D37: 2018/19
D38: Project Title | E38: Lead company | F38: Description | G38: NIC funding awarded (£m) | H38: Total project costs (£m) | I38: Project end date
D42: 2019/20
D43: Project Title | E43: Lead company | F43: Description | G43: NIC funding awarded (£m) | H43: Total project costs (£m) | I43: Project end date
D47: 2020/21
D48: Project Title | E48: Lead company | F48: Description | G48: NIC funding awarded (£m) | H48: Total project costs (£m) | I48: Project end date
D52: 2021/22
D53: Project Title | E53: Lead company | F53: Description | G53: NIC funding awarded (£m) | H53: Total project costs (£m) | I53: Project end date
D57: 2022/23
D58: Project Title | E58: Lead company | F58: Description | G58: NIC funding awarded (£m) | H58: Total project costs (£m) | I58: Project end date
D62: 2023
D63: Project Title | E63: Lead company | F63: Description | G63: NIC funding awarded (£m) | H63: Total project costs (£m) | I63: Project end date
B67: Innovation project Source data 'Environment and Innovation' Reporting Pack > 'Environment' Spreadsheet > 'E6 - Innovative solutions' | D67: Innovation projects in 2017-18
D68: Solution type/ Primary benefit | E68: ENWL | F68: NPg | G68: WPD | H68: UKPN | I68: SPEN | J68: SSEN
D69: Increase network capacity/optimise utilisation | F69: Voltage Reduction | G69: Voltage Reduction | H69: Demand Side Response; Energy Storage (SNS); Flexible DG Connections; FUN-LV; Load Blinding Relays; LPN Interconnection; Dynamic Transformer Rating; Timed Connections | I69: Bes Section Reactor; Enhanced Transformer Rating | J69: Active Network Management (Western Isles, Orkney); 3rd Party ANM
D70: Improve asset life cycle management | E70: Transformer regeneration | F70: Transformer insulating oil regeneration | H70: CNAIM (Asset Risk Prioritisation); Joint Shell; Oil Regeneration; Woodpecker filler
D71: Improve network performance | E71: Fault support centre and LV reclosing devices | F71: LV Technology Programme; Automatic Power Restoration System | H71: Automated Power Restoration System; LV Re-energising Devices; Point of Connection (POC); Mobile Asset Assessment Vehicle | J71: Bidoyng; Thermal Cameras
D72: Improve vegetation management | H72: LIDAR Vegetation Management | J72: Live Line Tree Cutting; Forestry Mulcher
D73: Improve safety | H73: Public Safety; 3D Laser Surveying
D74: Improve environmental impact | F74: PFT leak detection | H74: Innovative Bunding; PFT leak detection
D75: Improve connection performance | E75: Connect & Manage of PV Clusters on LV networks | F75: Constrained generation connections | G75: Active Network Management; Soft Intertrip; Timed; Export Limiting | H75: Distribution Network Visibility
D77: Number of Projects | E77: 3 | F77: 6 | G77: 5 | H77: 22 | I77: 2 | J77: 6

Sheet Ch3 financial performance
A1: Chapter 3 - Financial Performance
A2: Review of the expenditure and financial performance of DNOs in 2017/18 | E2: Annual (2017-18) | I2: Cumulative to date (2015-16 to 2017-18) | M2: Forecast RIIO-ED1 (2015-16 to 2022-23)
B3: Totex performance Source: PCFM | E3: Allowance | F3: Actual | G3: Difference | H3: Difference | I3: Allowance | J3: Actual | K3: Difference | L3: Difference | M3: Allowance | N3: Actual & Forecast | O3: Difference | P3: Difference
E4: £m | F4: £m | G4: £m | H4: % | I4: £m | J4: £m | K4: £m | L4: % | M4: £m | N4: £m | O4: £m | P4: %
D5: ENWL | E5: =E128 -> 257.5030271 | F5: 254.6194351 | G5: =F5-E5 -> -2.883592015 | H5: =G5/E5 -> -0.01119828395 | I5: =I128 -> 780.1727395 | J5: =J128 -> 733.1454352 | K5: =J5-I5 -> -47.0273043 | L5: =K5/I5 -> -0.06027806654 | M5: =M128 -> 2094.110952 | N5: =N128 -> 2009.904213 | O5: =N5-M5 -> -84.20673868 | P5: =O5/M5 -> -0.04021121164
D6: NPgN | E6: 188.6460675 | F6: 176.7326537 | G6: -11.91341378 | H6: -0.06315219783 | I6: =I129 -> 596.34043 | J6: =J129 -> 572.2100681 | K6: -24.13036193 | L6: -0.04046407172 | M6: =M129 -> 1456.728405 | N6: =N129 -> 1459.818183 | O6: 3.089778139 | P6: 0.002121039261
D7: NPgY | E7: 250.9890165 | F7: 221.0244651 | G7: -29.96455145 | H7: -0.1193859072 | I7: 777.0683017 | J7: 713.4791551 | K7: -63.58914661 | L7: -0.08183212012 | M7: 1942.082544 | N7: 1938.995985 | O7: -3.08655933 | P7: -0.001589303884
D8: WMID | E8: 284.2894463 | F8: 282.2539431 | G8: -2.03550319 | H8: -0.007159967478 | I8: 870.5576807 | J8: 944.4807934 | K8: 73.92311263 | L8: 0.08491466362 | M8: 2347.393891 | N8: 2353.279437 | O8: 5.885545456 | P8: 0.002507267944
D9: EMID | E9: 278.2571758 | F9: 287.1958029 | G9: 8.938627093 | H9: 0.03212361754 | I9: 911.1786356 | J9: 941.8436821 | K9: 30.66504654 | L9: 0.0336542642 | M9: 2361.722547 | N9: 2377.003718 | O9: 15.28117074 | P9: 0.006470349687
D10: SWALES | E10: 157.6735645 | F10: 137.996984 | G10: -19.67658052 | H10: -0.1247931484 | I10: 489.2948404 | J10: 444.3824062 | K10: -44.91243413 | L10: -0.09179012413 | M10: 1221.656849 | N10: 1168.011905 | O10: -53.64494371 | P10: -0.04391163014
D11: SWEST | E11: 237.4356039 | F11: 234.3587416 | G11: -3.076862236 | H11: -0.01295872306 | I11: 720.5690466 | J11: 740.8454924 | K11: 20.2764458 | L11: 0.02813949044 | M11: 1919.925465 | N11: 1873.9769 | O11: -45.94856538 | P11: -0.02393247353
D12: LPN | E12: 258.2142815 | F12: 235.1152525 | G12: -23.09902909 | H12: -0.08945682227 | I12: 808.4886745 | J12: 649.714422 | K12: -158.7742525 | L12: -0.1963840156 | M12: 2006.194494 | N12: 1792.461064 | O12: -213.7334308 | P12: -0.1065367447
D13: SPN | E13: 257.8728527 | F13: 214.193193 | G13: -43.67965968 | H13: -0.1693844824 | I13: 782.6615685 | J13: 610.0267337 | K13: -172.6348348 | L13: -0.2205740537 | M13: 1941.742059 | N13: 1640.842725 | O13: -300.8993341 | P13: -0.1549635971
D14: EPN | E14: 367.0872364 | F14: 345.566696 | G14: -21.52054047 | H14: -0.05862513956 | I14: 1127.241252 | J14: 965.3703417 | K14: -161.87091 | L14: -0.1435991716 | M14: 2877.953314 | N14: 2487.404554 | O14: -390.5487596 | P14: -0.1357036467
D15: SPD | E15: 230.1260546 | F15: 224.9373846 | G15: -5.188669951 | H15: -0.02254707734 | I15: 689.6760998 | J15: 648.4337525 | K15: -41.24234725 | L15: -0.05979958891 | M15: 1721.283873 | N15: 1721.083197 | O15: -0.2006763531 | P15: -0.0001165852747
D16: SPMW | E16: 251.0422709 | F16: 270.8503952 | G16: 19.80812424 | H16: 0.07890354149 | I16: 790.3662943 | J16: 790.0415258 | K16: -0.3247685077 | L16: -0.0004109088533 | M16: 1909.135677 | N16: 1909.142746 | O16: 0.007069435023 | P16: 3.70295056e-06
D17: SSEH | E17: 180.9288739 | F17: 170.9063116 | G17: -10.02256231 | H17: -0.05539504054 | I17: 543.4096136 | J17: 511.7093672 | K17: -31.70024637 | L17: -0.05833582178 | M17: 1423.371456 | N17: 1336.157211 | O17: -87.21424526 | P17: -0.06127300425
D18: SSES | E18: 340.6887275 | F18: 359.4229367 | G18: 18.73420916 | H18: 0.0549892252 | I18: 1039.031995 | J18: 976.6972031 | K18: -62.33479192 | L18: -0.05999313998 | M18: 2623.845545 | N18: 2485.742197 | O18: -138.1033478 | P18: -0.05263394715
D19: Total | E19: =SUM(E5:E18) -> 3540.754199 | F19: =SUM(F5:F18) -> 3415.174195 | G19: =SUM(G5:G18) -> -125.5800042 | H19: -0.03546702118 | I19: =SUM(I5:I18) -> 10926.05717 | J19: =SUM(J5:J18) -> 10242.38038 | K19: =SUM(K5:K18) -> -683.6767934 | L19: -0.06257305656 | M19: =SUM(M5:M18) -> 27847.14707 | N19: =SUM(N5:N18) -> 26553.82403 | O19: =SUM(O5:O18) -> -1293.323037 | P19: -0.04644364587
E21: Annual (2017-18) | I21: Cumulative to date (2015-16 to 2017-18) | M21: Forecast RIIO-ED1 (2015-16 to 2022-23)
E22: Allowance | F22: Actual | G22: Difference | H22: Difference | I22: Allowance | J22: Actual | K22: Difference | L22: Difference | M22: Allowance | N22: Actual & Forecast | O22: Difference | P22: Difference
E23: £m | F23: £m | G23: £m | H23: % | I23: £m | J23: £m | K23: £m | L23: % | M23: £m | N23: £m | O23: £m | P23: %
D24: ENWL | E24: =E5 -> 257.5030271 | F24: =F5 -> 254.6194351 | G24: =F24-E24 -> -2.883592015 | H24: =G24/E24 -> -0.01119828395 | I24: =I5 -> 780.1727395 | J24: =J5 -> 733.1454352 | K24: =J24-I24 -> -47.0273043 | L24: =K24/I24 -> -0.06027806654 | M24: =M5 -> 2094.110952 | N24: =N5 -> 2009.904213 | O24: =N24-M24 -> -84.20673868 | P24: =O24/M24 -> -0.04021121164
D25: NPg | E25: =SUM(E6:E7) -> 439.6350841 | F25: =SUM(F6:F7) -> 397.7571188 | G25: -41.87796522 | H25: -0.09525619483 | I25: =SUM(I6:I7) -> 1373.408732 | J25: =SUM(J6:J7) -> 1285.689223 | K25: -87.71950854 | L25: -0.06386992198 | M25: =SUM(M6:M7) -> 3398.810949 | N25: =SUM(N6:N7) -> 3398.814168 | O25: 0.003218808295 | P25: 9.470395215e-07
D26: WPD | E26: =SUM(E8:E11) -> 957.6557905 | F26: =SUM(F8:F11) -> 941.8054716 | G26: -15.85031886 | H26: -0.01655116485 | I26: =SUM(I8:I11) -> 2991.600203 | J26: =SUM(J8:J11) -> 3071.552374 | K26: 79.95217083 | L26: 0.02672555335 | M26: =SUM(M8:M11) -> 7850.698752 | N26: =SUM(N8:N11) -> 7772.271959 | O26: -78.42679289 | P26: -0.009989785032
D27: UKPN | E27: =SUM(E12:E14) -> 883.1743707 | F27: =SUM(F12:F14) -> 794.8751414 | G27: -88.29922924 | H27: -0.09997938366 | I27: =SUM(I12:I14) -> 2718.391495 | J27: =SUM(J12:J14) -> 2225.111497 | K27: -493.2799973 | L27: -0.1814602489 | M27: =SUM(M12:M14) -> 6825.889867 | N27: =SUM(N12:N14) -> 5920.708343 | O27: -905.1815245 | P27: -0.1326100394
D28: SPEN | E28: =SUM(E15:E16) -> 481.1683255 | F28: =SUM(F15:F16) -> 495.7877798 | G28: 14.61945429 | H28: 0.03038324327 | I28: =SUM(I15:I16) -> 1480.042394 | J28: =SUM(J15:J16) -> 1438.475278 | K28: -41.56711575 | L28: -0.02808508454 | M28: =SUM(M15:M16) -> 3630.41955 | N28: =SUM(N15:N16) -> 3630.225943 | O28: -0.1936069181 | P28: -5.332907545e-05
D29: SSEN | E29: =SUM(E17:E18) -> 521.6176015 | F29: =SUM(F17:F18) -> 530.3292483 | G29: 8.711646854 | H29: 0.01670121336 | I29: =SUM(I17:I18) -> 1582.441609 | J29: =SUM(J17:J18) -> 1488.40657 | K29: -94.03503829 | L29: -0.05942401778 | M29: =SUM(M17:M18) -> 4047.217001 | N29: =SUM(N17:N18) -> 3821.899408 | O29: -225.317593 | P29: -0.05567222933
D30: Total | E30: =SUM(E24:E29) -> 3540.754199 | F30: =SUM(F24:F29) -> 3415.174195 | G30: -125.5800042 | H30: -0.03546702118 | I30: =SUM(I24:I29) -> 10926.05717 | J30: =SUM(J24:J29) -> 10242.38038 | K30: =J30-I30 -> -683.6767934 | L30: =K30/I30 -> -0.06257305656 | M30: =SUM(M24:M29) -> 27847.14707 | N30: =SUM(N24:N29) -> 26553.82403 | O30: =N30-M30 -> -1293.323037 | P30: =O30/M30 -> -0.04644364587
F33: Annual (2017-18) | I33: Cumulative to date (2015-16 to 2017-18) | L33: Forecast RIIO-ED1 (2015-16 to 2022-23)
E34: Sharing factor | F34: Totex performance | G34: Customer share | H34: DNO share | I34: Totex performance | J34: Customer share | K34: DNO share | L34: Totex performance | M34: Customer share | N34: DNO share
D35: ENWL | E35: =E57 -> 0.5811466619 | F35: =G5 -> -2.883592015 | G35: =F35*(1-$E$35) -> -1.207802141 | H35: =F35*$E$35 -> -1.675789874 | I35: =K5 -> -47.0273043 | J35: =I35*(1-$E$35) -> -19.69754339 | K35: =I35*$E$35 -> -27.32976091 | L35: =O5 -> -84.20673868 | M35: =L35*(1-$E$35) -> -35.27027359 | N35: =L35*$E$35 -> -48.93646509
D36: NPgN | E36: =F57 -> 0.5584370346 | F36: -11.91341378 | G36: =F36*(1-$E$36) -> -5.260522315 | H36: =F36*$E$36 -> -6.652891461 | I36: -24.13036193 | J36: =I36*(1-$E$36) -> -10.65507417 | K36: =I36*$E$36 -> -13.47528776 | L36: 3.089778139 | M36: =L36*(1-$E$36) -> 1.364331597 | N36: =L36*$E$36 -> 1.725446541
D37: NPgY | E37: =G57 -> 0.5584370346 | F37: -29.96455145 | G37: =F37*(1-$E$37) -> -13.2312362 | H37: =F37*$E$37 -> -16.73331525 | I37: -63.58914661 | J37: =I37*(1-$E$37) -> -28.07861214 | K37: =I37*$E$37 -> -35.51053446 | L37: -3.08655933 | M37: =L37*(1-$E$37) -> -1.362910291 | N37: =L37*$E$37 -> -1.723649039
D38: WMID | E38: =H57 -> 0.7 | F38: -2.03550319 | G38: =F38*(1-$E$38) -> -0.610650957 | H38: =F38*$E$38 -> -1.424852233 | I38: 73.92311263 | J38: =I38*(1-$E$38) -> 22.17693379 | K38: =I38*$E$38 -> 51.74617884 | L38: 5.885545456 | M38: =L38*(1-$E$38) -> 1.765663637 | N38: =L38*$E$38 -> 4.119881819
D39: EMID | E39: =I57 -> 0.7 | F39: 8.938627093 | G39: =F39*(1-$E$38) -> 2.681588128 | H39: =F39*$E$38 -> 6.257038965 | I39: 30.66504654 | J39: =I39*(1-$E$38) -> 9.199513961 | K39: =I39*$E$38 -> 21.46553257 | L39: 15.28117074 | M39: =L39*(1-$E$38) -> 4.584351223 | N39: =L39*$E$38 -> 10.69681952
D40: SWALES | E40: =J57 -> 0.7 | F40: -19.67658052 | G40: =F40*(1-$E$38) -> -5.902974157 | H40: =F40*$E$38 -> -13.77360637 | I40: -44.91243413 | J40: =I40*(1-$E$38) -> -13.47373024 | K40: =I40*$E$38 -> -31.43870389 | L40: -53.64494371 | M40: =L40*(1-$E$38) -> -16.09348311 | N40: =L40*$E$38 -> -37.5514606
D41: SWEST | E41: =K57 -> 0.7 | F41: -3.076862236 | G41: =F41*(1-$E$38) -> -0.9230586707 | H41: =F41*$E$38 -> -2.153803565 | I41: 20.2764458 | J41: =I41*(1-$E$38) -> 6.08293374 | K41: =I41*$E$38 -> 14.19351206 | L41: -45.94856538 | M41: =L41*(1-$E$38) -> -13.78456961 | N41: =L41*$E$38 -> -32.16399576
D42: LPN | E42: =L57 -> 0.5328418572 | F42: -23.09902909 | G42: =F42*(1-$E$42) -> -10.79089953 | H42: =F42*$E$42 -> -12.30812956 | I42: -158.7742525 | J42: =I42*(1-$E$42) -> -74.17268491 | K42: =I42*$E$42 -> -84.60156756 | L42: -213.7334308 | M42: =L42*(1-$E$42) -> -99.84731258 | N42: =L42*$E$42 -> -113.8861182
D43: SPN | E43: =M57 -> 0.5328418572 | F43: -43.67965968 | G43: =F43*(1-$E$42) -> -20.4053087 | H43: =F43*$E$42 -> -23.27435099 | I43: -172.6348348 | J43: =I43*(1-$E$42) -> -80.64776883 | K43: =I43*$E$42 -> -91.98706602 | L43: -300.8993341 | M43: =L43*(1-$E$42) -> -140.5675741 | N43: =L43*$E$42 -> -160.33176
D44: EPN | E44: =N57 -> 0.5328418572 | F44: -21.52054047 | G44: =F44*(1-$E$42) -> -10.05349572 | H44: =F44*$E$42 -> -11.46704475 | I44: -161.87091 | J44: =I44*(1-$E$42) -> -75.61931368 | K44: =I44*$E$42 -> -86.2515963 | L44: -390.5487596 | M44: =L44*(1-$E$42) -> -182.4480332 | N44: =L44*$E$42 -> -208.1007264
D45: SPD | E45: =O57 -> 0.5350457456 | F45: -5.188669951 | G45: =F45*(1-$E$45) -> -2.412494168 | H45: =F45*$E$45 -> -2.776175782 | I45: -41.24234725 | J45: =I45*(1-$E$45) -> -19.17580481 | K45: =I45*$E$45 -> -22.06654243 | L45: -0.2006763531 | M45: =L45*(1-$E$45) -> -0.09330532414 | N45: =L45*$E$45 -> -0.107371029
D46: SPMW | E46: =P57 -> 0.5350457456 | F46: 19.80812424 | G46: =F46*(1-$E$45) -> 9.209871638 | H46: =F46*$E$45 -> 10.5982526 | I46: -0.3247685077 | J46: =I46*(1-$E$45) -> -0.1510024993 | K46: =I46*$E$45 -> -0.1737660083 | L46: 0.007069435023 | M46: =L46*(1-$E$45) -> 0.00328696389 | N46: =L46*$E$45 -> 0.003782471133
D47: SSEH | E47: =Q57 -> 0.5647137527 | F47: -10.02256231 | G47: =F47*(1-$E$47) -> -4.362683535 | H47: =F47*$E$47 -> -5.659878772 | I47: -31.70024637 | J47: =I47*(1-$E$47) -> -13.79868128 | K47: =I47*$E$47 -> -17.90156509 | L47: -87.21424526 | M47: =L47*(1-$E$47) -> -37.96316153 | N47: =L47*$E$47 -> -49.25108373
D48: SSES | E48: =R57 -> 0.5647137527 | F48: 18.73420916 | G48: =F48*(1-$E$47) -> 8.154743602 | H48: =F48*$E$47 -> 10.57946556 | I48: -62.33479192 | J48: =I48*(1-$E$47) -> -27.13347765 | K48: =I48*$E$47 -> -35.20131427 | L48: -138.1033478 | M48: =L48*(1-$E$47) -> -60.11448798 | N48: =L48*$E$47 -> -77.98885977
D49: Total | F49: =SUM(F35:F48) -> -125.5800042 | G49: -55.11492271 | H49: -70.46508148 | I49: -683.6767934 | J49: -325.1443121 | K49: -358.5324812 | L49: -1293.323037 | M49: -579.8274779 | N49: -713.4955593
D52: Pre-tax Totex (£m) | E52: 2015/16
E53: ENWL | F53: NPgN | G53: NPgY | H53: WMID | I53: EMID | J53: SWALES | K53: SWEST | L53: LPN | M53: SPN | N53: EPN | O53: SPD | P53: SPMW | Q53: SSEH | R53: SSES
D54: Allowed Totex | E54: 267.2670928 | F54: 205.745853 | G54: 270.7882217 | H54: 292.6247846 | I54: 319.9109555 | J54: 165.0567893 | K54: 241.2265169 | L54: 277.7351555 | M54: 250.4371271 | N54: 374.0042838 | O54: 230.4262346 | P54: 264.1695809 | Q54: 179.7710902 | R54: 345.8051629
D55: Actual Totex | E55: 258.9991878 | F55: 199.8055683 | G55: 264.4177006 | H55: 330.4402997 | I55: 326.266553 | J55: 150.4695665 | K55: 236.4499356 | L55: 200.3081331 | M55: 183.2820485 | N55: 297.6190222 | O55: 203.0094412 | P55: 252.9747654 | Q55: 160.3560949 | R55: 297.5627424
D56: Overspend (underspend) | E56: =E55-E54 -> -8.267905061 | F56: =F55-F54 -> -5.940284691 | G56: -6.370521069 | H56: 37.81551518 | I56: 6.355597569 | J56: -14.58722275 | K56: -4.776581283 | L56: -77.42702236 | M56: -67.15507861 | N56: -76.38526157 | O56: -27.41679343 | P56: -11.19481553 | Q56: -19.41499529 | R56: -48.2424205
D57: Totex incentive rate | E57: 0.5811466619 | F57: 0.5584370346 | G57: 0.5584370346 | H57: 0.7 | I57: 0.7 | J57: 0.7 | K57: 0.7 | L57: 0.5328418572 | M57: 0.5328418572 | N57: 0.5328418572 | O57: 0.5350457456 | P57: 0.5350457456 | Q57: 0.5647137527 | R57: 0.5647137527
D58: Allowed Totex after Totex incentive rate | E58: =(E57*-E56)+E55 -> 263.8040532 | F58: 203.1228433 | G58: 267.9752355 | H58: 303.9694391 | I58: 321.8176347 | J58: 160.6806225 | K58: 239.7935425 | L58: 241.5644915 | M58: 219.0650853 | N58: 338.3202868 | O58: 217.6786798 | P58: 258.9645038 | Q58: 171.3200097 | R58: 324.8059007
E61: 2016/17
E62: ENWL | F62: NPgN | G62: NPgY | H62: WMID | I62: EMID | J62: SWALES | K62: SWEST | L62: LPN | M62: SPN | N62: EPN | O62: SPD | P62: SPMW | Q62: SSEH | R62: SSES
D63: Allowed Totex | E63: 255.4026196 | F63: 201.9485094 | G63: 255.2910635 | H63: 293.6434498 | I63: 313.0105043 | J63: 166.5644866 | K63: 241.9069258 | L63: 272.5392375 | M63: 274.3515887 | N63: 386.1497315 | O63: 229.1238106 | P63: 275.1544424 | Q63: 182.7096495 | R63: 352.5381046
D64: Actual Totex | E64: 219.5268123 | F64: 195.671846 | G64: 228.0369894 | H64: 331.7865505 | I64: 328.3813262 | J64: 155.9158557 | K64: 270.0368151 | L64: 214.2910365 | M64: 212.5514922 | N64: 322.1846236 | O64: 220.4869267 | P64: 266.2163652 | Q64: 180.4469607 | R64: 319.711524
D65: Overspend (underspend) | E65: =E64-E63 -> -35.87580723 | F65: =F64-F63 -> -6.276663462 | G65: -27.25407409 | H65: 38.14310063 | I65: 15.37082187 | J65: -10.64863086 | K65: 28.12988932 | L65: =L64-L63 -> -58.24820103 | M65: =M64-M63 -> -61.80009656 | N65: -63.96510794 | O65: -8.63688386 | P65: -8.938077214 | Q65: -2.262688775 | R65: -32.82658057
D66: Totex incentive rate | E66: =E57 -> 0.5811466619 | F66: =F57 -> 0.5584370346 | G66: 0.5584370346 | H66: 0.7 | I66: 0.7 | J66: 0.7 | K66: 0.7 | L66: =L57 -> 0.5328418572 | M66: =M57 -> 0.5328418572 | N66: 0.5328418572 | O66: 0.5350457456 | P66: 0.5350457456 | Q66: 0.5647137527 | R66: 0.5647137527
D67: Allowed Totex after Totex incentive rate | E67: =(E66*-E65)+E64 -> 240.3759179 | F67: =(F66*-F65)+F64 -> 199.1769673 | G67: 243.2566737 | H67: 305.08638 | I67: 317.6217509 | J67: 163.3698973 | K67: 250.3458926 | L67: 245.3281161 | M67: 245.4811704 | N67: 356.2679105 | O67: 225.1080547 | P67: 270.9986454 | Q67: 181.7247322 | R67: 338.2491455
E70: 2017/18
E71: ENWL | F71: NPgN | G71: NPgY | H71: WMID | I71: EMID | J71: SWALES | K71: SWEST | L71: LPN | M71: SPN | N71: EPN | O71: SPD | P71: SPMW | Q71: SSEH | R71: SSES
D72: Allowed Totex | E72: 257.5030271 | F72: 188.6460675 | G72: 250.9890165 | H72: 284.2894463 | I72: 278.2571758 | J72: 157.6735645 | K72: 237.4356039 | L72: 258.2142815 | M72: 257.8728527 | N72: 367.0872364 | O72: 230.1260546 | P72: 251.0422709 | Q72: 180.9288739 | R72: 340.6887275
D73: Actual Totex | E73: 254.6194351 | F73: 176.7326537 | G73: 221.0244651 | H73: 282.2539431 | I73: 287.1958029 | J73: 137.996984 | K73: 234.3587416 | L73: 235.1152525 | M73: 214.193193 | N73: 345.566696 | O73: 224.9373846 | P73: 270.8503952 | Q73: 170.9063116 | R73: 359.4229367
D74: Overspend (underspend) | E74: =E73-E72 -> -2.883592015 | F74: =F73-F72 -> -11.91341378 | G74: -29.96455145 | H74: -2.03550319 | I74: 8.938627093 | J74: -19.67658052 | K74: -3.076862236 | L74: =L73-L72 -> -23.09902909 | M74: =M73-M72 -> -43.67965968 | N74: -21.52054047 | O74: -5.188669951 | P74: 19.80812424 | Q74: -10.02256231 | R74: 18.73420916
D75: Totex incentive rate | E75: =E57 -> 0.5811466619 | F75: =F57 -> 0.5584370346 | G75: 0.5584370346 | H75: 0.7 | I75: 0.7 | J75: 0.7 | K75: 0.7 | L75: 0.5328418572 | M75: 0.5328418572 | N75: 0.5328418572 | O75: 0.5350457456 | P75: 0.5350457456 | Q75: 0.5647137527 | R75: 0.5647137527
D76: Allowed Totex after Totex incentive rate | E76: =(E75*-E74)+E73 -> 256.2952249 | F76: =(F75*-F74)+F73 -> 183.3855452 | G76: 237.7577804 | H76: 283.6787954 | I76: 280.9387639 | J76: 151.7705903 | K76: 236.5125452 | L76: 247.423382 | M76: 237.467544 | N76: 357.0337407 | O76: 227.7135604 | P76: 260.2521426 | Q76: 176.5661904 | R76: 348.8434711
E79: 2018/19
E80: ENWL | F80: NPgN | G80: NPgY | H80: WMID | I80: EMID | J80: SWALES | K80: SWEST | L80: LPN | M80: SPN | N80: EPN | O80: SPD | P80: SPMW | Q80: SSEH | R80: SSES
D81: Allowed Totex
D82: Actual Totex
D83: Overspend (underspend)
D84: Totex incentive rate
D85: Allowed Totex after Totex incentive rate
E88: 2019/20
E89: ENWL | F89: NPgN | G89: NPgY | H89: WMID | I89: EMID | J89: SWALES | K89: SWEST | L89: LPN | M89: SPN | N89: EPN | O89: SPD | P89: SPMW | Q89: SSEH | R89: SSES
D90: Allowed Totex
D91: Actual Totex
D92: Overspend (underspend)
D93: Totex incentive rate
D94: Allowed Totex after Totex incentive rate
E97: 2020/21
E98: ENWL | F98: NPgN | G98: NPgY | H98: WMID | I98: EMID | J98: SWALES | K98: SWEST | L98: LPN | M98: SPN | N98: EPN | O98: SPD | P98: SPMW | Q98: SSEH | R98: SSES
D99: Allowed Totex
D100: Actual Totex
D101: Overspend (underspend)
D102: Totex incentive rate
D103: Allowed Totex after Totex incentive rate
E106: 2021/22
E107: ENWL | F107: NPgN | G107: NPgY | H107: WMID | I107: EMID | J107: SWALES | K107: SWEST | L107: LPN | M107: SPN | N107: EPN | O107: SPD | P107: SPMW | Q107: SSEH | R107: SSES
D108: Allowed Totex
D109: Actual Totex
D110: Overspend (underspend)
D111: Totex incentive rate
D112: Allowed Totex after Totex incentive rate
E115: 2022/23
E116: ENWL | F116: NPgN | G116: NPgY | H116: WMID | I116: EMID | J116: SWALES | K116: SWEST | L116: LPN | M116: SPN | N116: EPN | O116: SPD | P116: SPMW | Q116: SSEH | R116: SSES
D117: Allowed Totex
D118: Actual Totex
D119: Overspend (underspend)
D120: Totex incentive rate
D121: Allowed Totex after Totex incentive rate
D124: Expenditure relative to cost allowances
E125: 2017-18 | I125: Cumulative to date | M125: RIIO-ED1
E126: Allowance | F126: Actual | G126: Difference | I126: Allowance | J126: Actual | K126: Difference | M126: Allowance | N126: Actual | O126: Difference
G127: No | H127: % | K127: No | L127: % | O127: No | P127: %
D128: ENWL | E128: =TRANSPOSE(E72:R72) -> 257.5030271 | F128: =TRANSPOSE(E73:R73) -> 254.6194351 | G128: =F128-E128 -> -2.883592015 | H128: =G128/E128 -> -0.01119828395 | I128: =E54+E63+E72 -> 780.1727395 | J128: =SUM(E55,E64,E73) -> 733.1454352 | K128: =J128-I128 -> -47.0273043 | L128: =K128/I128 -> -0.06027806654 | M128: 2094.110952 | N128: 2009.904213 | O128: =N128-M128 -> -84.20673868 | P128: =O128/M128 -> -0.04021121164
D129: NPgN | E129: 188.6460675 | F129: 176.7326537 | G129: -11.91341378 | H129: -0.06315219783 | I129: =F54+F63+F72 -> 596.34043 | J129: =SUM(F55,F64,F73) -> 572.2100681 | K129: -24.13036193 | L129: -0.04046407172 | M129: 1456.728405 | N129: 1459.818183 | O129: 3.089778139 | P129: 0.002121039261
D130: NPgY | E130: 250.9890165 | F130: 221.0244651 | G130: -29.96455145 | H130: -0.1193859072 | I130: =SUM(G54,G63,G72) -> 777.0683017 | J130: =SUM(G55,G64,G73) -> 713.4791551 | K130: -63.58914661 | L130: -0.08183212012 | M130: 1942.082544 | N130: 1938.995985 | O130: -3.08655933 | P130: -0.001589303884
D131: WMID | E131: 284.2894463 | F131: 282.2539431 | G131: -2.03550319 | H131: -0.007159967478 | I131: =SUM(H54,H63,H72) -> 870.5576807 | J131: =SUM(H55,H64,H73) -> 944.4807934 | K131: 73.92311263 | L131: 0.08491466362 | M131: 2347.393891 | N131: 2353.279437 | O131: 5.885545456 | P131: 0.002507267944
D132: EMID | E132: 278.2571758 | F132: 287.1958029 | G132: 8.938627093 | H132: 0.03212361754 | I132: =SUM(I54,I63,I72) -> 911.1786356 | J132: =SUM(I55,I64,I73) -> 941.8436821 | K132: 30.66504654 | L132: 0.0336542642 | M132: 2361.722547 | N132: 2377.003718 | O132: 15.28117074 | P132: 0.006470349687
D133: SWALES | E133: 157.6735645 | F133: 137.996984 | G133: -19.67658052 | H133: -0.1247931484 | I133: =SUM(J54,J63,J72) -> 489.2948404 | J133: =SUM(J55,J64,J73) -> 444.3824062 | K133: -44.91243413 | L133: -0.09179012413 | M133: 1221.656849 | N133: 1168.011905 | O133: -53.64494371 | P133: -0.04391163014
D134: SWEST | E134: 237.4356039 | F134: 234.3587416 | G134: -3.076862236 | H134: -0.01295872306 | I134: =SUM(K54,K63,K72) -> 720.5690466 | J134: =SUM(K55,K64,K73) -> 740.8454924 | K134: 20.2764458 | L134: 0.02813949044 | M134: 1919.925465 | N134: 1873.9769 | O134: -45.94856538 | P134: -0.02393247353
D135: LPN | E135: 258.2142815 | F135: 235.1152525 | G135: -23.09902909 | H135: -0.08945682227 | I135: =SUM(L54,L63,L72) -> 808.4886745 | J135: =SUM(L55,L64,L73) -> 649.714422 | K135: -158.7742525 | L135: -0.1963840156 | M135: 2006.194494 | N135: 1792.461064 | O135: -213.7334308 | P135: -0.1065367447
D136: SPN | E136: 257.8728527 | F136: 214.193193 | G136: -43.67965968 | H136: -0.1693844824 | I136: =SUM(M54,M63,M72) -> 782.6615685 | J136: =SUM(M55,M64,M73) -> 610.0267337 | K136: -172.6348348 | L136: -0.2205740537 | M136: 1941.742059 | N136: 1640.842725 | O136: -300.8993341 | P136: -0.1549635971
D137: EPN | E137: 367.0872364 | F137: 345.566696 | G137: -21.52054047 | H137: -0.05862513956 | I137: =SUM(N54,N63,N72) -> 1127.241252 | J137: =SUM(N55,N64,N73) -> 965.3703417 | K137: -161.87091 | L137: -0.1435991716 | M137: 2877.953314 | N137: 2487.404554 | O137: -390.5487596 | P137: -0.1357036467
D138: SPD | E138: 230.1260546 | F138: 224.9373846 | G138: -5.188669951 | H138: -0.02254707734 | I138: =SUM(O54,O63,O72) -> 689.6760998 | J138: =SUM(O55,O64,O73) -> 648.4337525 | K138: -41.24234725 | L138: -0.05979958891 | M138: 1721.283873 | N138: 1721.083197 | O138: -0.2006763531 | P138: -0.0001165852747
D139: SPMW | E139: 251.0422709 | F139: 270.8503952 | G139: 19.80812424 | H139: 0.07890354149 | I139: =SUM(P54,P63,P72) -> 790.3662943 | J139: =SUM(P55,P64,P73) -> 790.0415258 | K139: -0.3247685077 | L139: -0.0004109088533 | M139: 1909.135677 | N139: 1909.142746 | O139: 0.007069435023 | P139: 3.70295056e-06
D140: SSEH | E140: 180.9288739 | F140: 170.9063116 | G140: -10.02256231 | H140: -0.05539504054 | I140: =SUM(Q54,Q63,Q72) -> 543.4096136 | J140: =SUM(Q55,Q64,Q73) -> 511.7093672 | K140: -31.70024637 | L140: -0.05833582178 | M140: 1423.371456 | N140: 1336.157211 | O140: -87.21424526 | P140: -0.06127300425
D141: SSES | E141: 340.6887275 | F141: 359.4229367 | G141: 18.73420916 | H141: 0.0549892252 | I141: =SUM(R54,R63,R72) -> 1039.031995 | J141: =SUM(R55,R64,R73) -> 976.6972031 | K141: -62.33479192 | L141: -0.05999313998 | M141: 2623.845545 | N141: 2485.742197 | O141: -138.1033478 | P141: -0.05263394715
D142: Total | E142: =SUM(E128:E141) -> 3540.754199 | F142: =SUM(F128:F141) -> 3415.174195 | G142: -125.5800042 | H142: -0.03546702118 | I142: =SUM(I128:I141) -> 10926.05717 | J142: =SUM(J128:J141) -> 10242.38038 | K142: -683.6767934 | L142: -0.06257305656 | M142: =SUM(M128:M141) -> 27847.14707 | N142: =SUM(N128:N141) -> 26553.82403 | O142: -1293.323037 | P142: -0.04644364587
E144: 2017-18 | I144: Cumulative to date | M144: RIIO-ED1
E145: Allowance | F145: Actual | G145: Difference | I145: Allowance | J145: Actual | K145: Difference | M145: Allowance | N145: Actual | O145: Difference
G146: No | H146: % | K146: No | L146: % | O146: No | P146: %
D147: ENWL | E147: =E128 -> 257.5030271 | F147: =F128 -> 254.6194351 | G147: =F147-E147 -> -2.883592015 | H147: =G147/E147 -> -0.01119828395 | I147: =I128 -> 780.1727395 | J147: =J128 -> 733.1454352 | K147: =J147-I147 -> -47.0273043 | L147: =K147/I147 -> -0.06027806654 | M147: =M128 -> 2094.110952 | N147: =N128 -> 2009.904213 | O147: =N147-M147 -> -84.20673868 | P147: =O147/M147 -> -0.04021121164
D148: NPg | E148: =SUM(E129:E130) -> 439.6350841 | F148: =SUM(F129:F130) -> 397.7571188 | G148: -41.87796522 | H148: -0.09525619483 | I148: =SUM(I129:I130) -> 1373.408732 | J148: =SUM(J129:J130) -> 1285.689223 | K148: -87.71950854 | L148: -0.06386992198 | M148: =SUM(M129:M130) -> 3398.810949 | N148: =SUM(N129:N130) -> 3398.814168 | O148: 0.003218808295 | P148: 9.470395215e-07
D149: WPD | E149: =SUM(E131:E134) -> 957.6557905 | F149: =SUM(F131:F134) -> 941.8054716 | G149: -15.85031886 | H149: -0.01655116485 | I149: =SUM(I131:I134) -> 2991.600203 | J149: =SUM(J131:J134) -> 3071.552374 | K149: 79.95217083 | L149: 0.02672555335 | M149: =SUM(M131:M134) -> 7850.698752 | N149: =SUM(N131:N134) -> 7772.271959 | O149: -78.42679289 | P149: -0.009989785032
D150: UKPN | E150: =SUM(E135:E137) -> 883.1743707 | F150: =SUM(F135:F137) -> 794.8751414 | G150: -88.29922924 | H150: -0.09997938366 | I150: =SUM(I135:I137) -> 2718.391495 | J150: =SUM(J135:J137) -> 2225.111497 | K150: -493.2799973 | L150: -0.1814602489 | M150: =SUM(M135:M137) -> 6825.889867 | N150: =SUM(N135:N137) -> 5920.708343 | O150: -905.1815245 | P150: -0.1326100394
D151: SPEN | E151: =SUM(E138:E139) -> 481.1683255 | F151: =SUM(F138:F139) -> 495.7877798 | G151: 14.61945429 | H151: 0.03038324327 | I151: =SUM(I138:I139) -> 1480.042394 | J151: =SUM(J138:J139) -> 1438.475278 | K151: -41.56711575 | L151: -0.02808508454 | M151: =SUM(M138:M139) -> 3630.41955 | N151: =SUM(N138:N139) -> 3630.225943 | O151: -0.1936069181 | P151: -5.332907545e-05
D152: SSEN | E152: =SUM(E140:E141) -> 521.6176015 | F152: =SUM(F140:F141) -> 530.3292483 | G152: 8.711646854 | H152: 0.01670121336 | I152: =SUM(I140:I141) -> 1582.441609 | J152: =SUM(J140:J141) -> 1488.40657 | K152: -94.03503829 | L152: -0.05942401778 | M152: =SUM(M140:M141) -> 4047.217001 | N152: =SUM(N140:N141) -> 3821.899408 | O152: -225.317593 | P152: -0.05567222933
D153: Total | E153: =SUM(E147:E152) -> 3540.754199 | F153: =SUM(F147:F152) -> 3415.174195 | G153: -125.5800042 | H153: -0.03546702118 | I153: =SUM(I147:I152) -> 10926.05717 | J153: =SUM(J147:J152) -> 10242.38038 | K153: -683.6767934 | L153: -0.06257305656 | M153: =SUM(M147:M152) -> 27847.14707 | N153: =SUM(N147:N152) -> 26553.82403 | O153: -1293.323037 | P153: -0.04644364587
D156: Allowed Revenue1 | E156: 2015/16 | T156: 2016/17 | AI156: 2017/18 | AX156: 2018/19 | BM156: 2019/20 | CB156: 2020/21 | CQ156: 2021/22 | DF156: 2022/23 | DI156: Allowed Revenue
B157: Allowed Revenue | E157: ENWL | F157: NPg | H157: WPD | L157: UKPN | O157: SPEN | Q157: SSEPD | T157: ENWL | U157: NPg | W157: WPD | AA157: UKPN | AD157: SPEN | AF157: SSEPD | AI157: ENWL | AJ157: NPg | AL157: WPD | AP157: UKPN | AS157: SPEN | AU157: SSEPD | AX157: ENWL | AY157: NPg | BA157: WPD | BE157: UKPN | BH157: SPEN | BJ157: SSEPD | BM157: ENWL | BN157: NPg | BP157: WPD | BT157: UKPN | BW157: SPEN | BY157: SSEPD | CB157: ENWL | CC157: NPg | CE157: WPD | CI157: UKPN | CL157: SPEN | CN157: SSEPD | CQ157: ENWL | CR157: NPg | CT157: WPD | CX157: UKPN | DA157: SPEN | DC157: SSEPD | DF157: ENWL | DG157: NPg | DI157: WPD | DM157: UKPN | DP157: SPEN | DR157: SSEPD | DW157: Opening Base Revenue | DX157: Allowed Revenue
E158: ENWL | F158: NPgN | G158: NPgY | H158: WMID | I158: EMID | J158: SWALES | K158: SWEST | L158: LPN | M158: SPN | N158: EPN | O158: SPD | P158: SPMW | Q158: SSEH | R158: SSES | T158: ENWL | U158: NPgN | V158: NPgY | W158: WMID | X158: EMID | Y158: SWALES | Z158: SWEST | AA158: LPN | AB158: SPN | AC158: EPN | AD158: SPD | AE158: SPMW | AF158: SSEH | AG158: SSES | AI158: ENWL | AJ158: NPgN | AK158: NPgY | AL158: WMID | AM158: EMID | AN158: SWALES | AO158: SWEST | AP158: LPN | AQ158: SPN | AR158: EPN | AS158: SPD | AT158: SPMW | AU158: SSEH | AV158: SSES | AX158: ENWL | AY158: NPgN | AZ158: NPgY | BA158: WMID | BB158: EMID | BC158: SWALES | BD158: SWEST | BE158: LPN | BF158: SPN | BG158: EPN | BH158: SPD | BI158: SPMW | BJ158: SSEH | BK158: SSES | BM158: ENWL | BN158: NPgN | BO158: NPgY | BP158: WMID | BQ158: EMID | BR158: SWALES | BS158: SWEST | BT158: LPN | BU158: SPN | BV158: EPN | BW158: SPD | BX158: SPMW | BY158: SSEH | BZ158: SSES | CB158: ENWL | CC158: NPgN | CD158: NPgY | CE158: WMID | CF158: EMID | CG158: SWALES | CH158: SWEST | CI158: LPN | CJ158: SPN | CK158: EPN | CL158: SPD | CM158: SPMW | CN158: SSEH | CO158: SSES | CQ158: ENWL | CR158: NPgN | CS158: NPgY | CT158: WMID | CU158: EMID | CV158: SWALES | CW158: SWEST | CX158: LPN | CY158: SPN | CZ158: EPN | DA158: SPD | DB158: SPMW | DC158: SSEH | DD158: SSES | DF158: ENWL | DG158: NPgN | DH158: NPgY | DI158: WMID | DJ158: EMID | DK158: SWALES | DL158: SWEST | DM158: LPN | DN158: SPN | DO158: EPN | DP158: SPD | DQ158: SPMW | DR158: SSEH | DS158: SSES | DV158: ENWL | DW158: =T168 -> 414.468 | DX158: =T178 -> 414.1369351
D159: Allowed Revenue (exc. Revenue collection correction) | DV159: NPgN | DW159: =U168 -> 285.94 | DX159: =U178 -> 295.5152046
E160: £m 2012/13 Prices | T160: £m 2012/13 Prices | AI160: £m 2012/13 Prices | AX160: £m 2012/13 Prices | BM160: £m 2012/13 Prices | CB160: £m 2012/13 Prices | CQ160: £m 2012/13 Prices | DF160: £m 2012/13 Prices | DV160: NPgY | DW160: =V168 -> 373.52 | DX160: =V178 -> 384.6567277
D161: 2015/16 | E161: 373.9315141 | F161: 244.6886883 | G161: 322.9847827 | H161: 408.6339371 | I161: 403.4235031 | J161: 199.4844597 | K161: 286.3825356 | L161: 373.7171867 | M161: 325.1277934 | N161: 496.6821577 | O161: 358.1325055 | P161: 316.5623646 | Q161: 203.4649438 | R161: 490.9120973 | T161: 373.9315141 | U161: 244.6886883 | V161: 322.9847827 | W161: 408.6339371 | X161: 403.4235031 | Y161: 199.4844597 | Z161: 286.3825356 | AA161: 373.7171867 | AB161: 325.1277934 | AC161: 496.6821577 | AD161: 358.1325055 | AE161: 316.5623646 | AF161: 203.4649438 | AG161: 490.9120973 | AI161: 373.9315141 | AJ161: 244.6886883 | AK161: 322.9847827 | AL161: 408.6339371 | AM161: 403.4235031 | AN161: 199.4844597 | AO161: 286.3825356 | AP161: 373.7171867 | AQ161: 325.1277934 | AR161: 496.6821577 | AS161: 358.1325055 | AT161: 316.5623646 | AU161: 203.4649438 | AV161: 490.9120973 | DV161: WMID | DW161: =W168 -> 479.428 | DX161: =W178 -> 487.4487389
D162: 2016/17 | E162: 384.0654151 | F162: 247.123168 | G162: 324.9989433 | H162: 427.3985472 | I162: 380.6940436 | J162: 208.8844316 | K162: 296.8017225 | L162: 396.5258272 | M162: 341.8461776 | N162: 472.414356 | O162: 361.7625172 | P162: 316.3723597 | Q162: 212.5098625 | R162: 498.9576614 | T162: 384.0654151 | U162: 247.123168 | V162: 324.9989433 | W162: 427.3985472 | X162: 380.6940436 | Y162: 208.8844316 | Z162: 296.8017225 | AA162: 396.5258272 | AB162: 341.8461776 | AC162: 472.414356 | AD162: 361.7625172 | AE162: 316.3723597 | AF162: 212.5098625 | AG162: 498.9576614 | AI162: 384.0654151 | AJ162: 247.123168 | AK162: 324.9989433 | AL162: 427.3985472 | AM162: 380.6940436 | AN162: 208.8844316 | AO162: 296.8017225 | AP162: 396.5258272 | AQ162: 341.8461776 | AR162: 472.414356 | AS162: 361.7625172 | AT162: 316.3723597 | AU162: 212.5098625 | AV162: 498.9576614 | DV162: EMID | DW162: =X168 -> 481.4 | DX162: =X178 -> 475.05286
D163: 2017/18 | E163: 365.0134335 | F163: 250.4920398 | G163: 324.2768599 | H163: 423.8313747 | I163: 417.4529333 | J163: 212.8417928 | K163: 296.6196581 | L163: 381.2226479 | M163: 329.7558324 | N163: 503.0446433 | O163: 347.2065874 | P163: 307.5760534 | Q163: 206.1215869 | R163: 480.9165288 | T163: 365.0134335 | U163: 250.4920398 | V163: 324.2768599 | W163: 423.8313747 | X163: 417.4529333 | Y163: 212.8417928 | Z163: 296.6196581 | AA163: 381.2226479 | AB163: 329.7558324 | AC163: 503.0446433 | AD163: 347.2065874 | AE163: 307.5760534 | AF163: 206.1215869 | AG163: 480.9165288 | AI163: 365.0135543 | AJ163: 250.4920398 | AK163: 324.2768599 | AL163: 423.8313747 | AM163: 417.4529333 | AN163: 212.8417928 | AO163: 296.6196581 | AP163: 381.2226479 | AQ163: 329.7558324 | AR163: 503.0446433 | AS163: 347.2065874 | AT163: 307.5760534 | AU163: 206.1215869 | AV163: 480.9165288 | DV163: SWALES | DW163: =Y168 -> 243.948 | DX163: =Y178 -> 247.8636175
D164: 2018/19 | E164: 360.8999509 | F164: 256.5769285 | G164: 334.5560111 | H164: 422.1732574 | I164: 415.8724024 | J164: 215.2334706 | K164: 302.7087563 | L164: 380.8051175 | M164: 323.1014944 | N164: 497.0994023 | O164: 358.7532816 | P164: 297.8304574 | Q164: 258.1851626 | R164: 476.436848 | T164: 360.8999509 | U164: 256.5769285 | V164: 334.5560111 | W164: 422.1732574 | X164: 415.8724024 | Y164: 215.2334706 | Z164: 302.7087563 | AA164: 380.8051175 | AB164: 323.1014944 | AC164: 497.0994023 | AD164: 358.7532816 | AE164: 297.8304574 | AF164: 258.1851626 | AG164: 476.436848 | AI164: 360.9118612 | AJ164: 256.5904554 | AK164: 334.5731761 | AL164: 422.1874733 | AM164: 415.8849134 | AN164: 215.2417592 | AO164: 302.7183073 | AP164: 380.8054943 | AQ164: 323.1018713 | AR164: 497.0995275 | AS164: 358.7675225 | AT164: 297.8349933 | AU164: 258.1888766 | AV164: 476.4553178 | DV164: SWEST | DW164: =Z168 -> 347.42 | DX164: =Z178 -> 338.2309031
D165: 2019/20 | AI165: 354.6189575 | AJ165: 251.5680137 | AK165: 321.8329595 | AL165: 418.5787459 | AM165: 418.770735 | AN165: 209.7025202 | AO165: 307.3569477 | AP165: 390.1804364 | AQ165: 342.2067326 | AR165: 514.6870837 | AS165: 345.1272242 | AT165: 310.373615 | AU165: 234.7462633 | AV165: 463.159589 | DV165: LPN | DW165: =AA168 -> 452.4 | DX165: =AA178 -> 436.3179016
D167: 2017-18 Allowed Revenue | E167: £m nominal prices2 | S167: 2018-19 Allowed Revenue | T167: £m nominal prices | AH167: 2019-20 Allowed Revenue | AI167: £m nominal prices | AX167: £m nominal prices | BM167: £m nominal prices | CB167: £m nominal prices | CQ167: £m nominal prices | DF167: £m nominal prices | DV167: SPN | DW167: =AB168 -> 394.748 | DX167: =AB178 -> 368.8061812
D168: Base Revenue | E168: 404.5689 | F168: 276.3265 | G168: 360.962 | H168: 458.7132 | I168: 460.6189 | J168: 233.3922 | K168: 332.3765 | L168: 429.4551 | M168: 372.3962 | N168: 565.3203 | O168: 387.866 | P168: 348.5189 | Q168: 288.2091 | R168: 531.0177 | T168: 414.468 | U168: 285.94 | V168: 373.52 | W168: 479.428 | X168: 481.4 | Y168: 243.948 | Z168: 347.42 | AA168: 452.4 | AB168: 394.748 | AC168: 589.048 | AD168: 401.36 | AE168: 360.644 | AF168: 298.236 | AG168: 549.492 | AI168: 423.8524 | AJ168: 295.307 | AK168: 385.756 | AL168: 500.0452 | AM168: 502.2016 | AN168: 254.4552 | AO168: 362.395 | AP168: 475.8456 | AQ168: 417.7426 | AR168: 618.0482 | AS168: 414.508 | AT168: 372.4582 | AU168: 308.0058 | AV168: 567.4926 | DV168: EPN | DW168: =AC168 -> 589.048 | DX168: =AC178 -> 564.4412351
D169: MOD3 | E169: -5.508394364 | F169: -3.367065332 | G169: -3.182794755 | H169: -3.145524899 | I169: -0.9270265417 | J169: -3.299936636 | K169: -4.472458355 | L169: -17.8201358 | M169: -15.34266469 | N169: -15.38516167 | O169: -4.620286941 | P169: -7.462711214 | Q169: -4.749163298 | R169: -15.49419421 | T169: -13.45235853 | U169: -7.044532564 | V169: -9.21847731 | W169: -8.839637545 | X169: -15.69494254 | Y169: -5.525546678 | Z169: -9.041399232 | AA169: -25.13721467 | AB169: -39.8809351 | AC169: -38.41257109 | AD169: -4.67470213 | AE169: -21.45818962 | AF169: -4.398333227 | AG169: -22.66660175 | AI169: -14.58711138 | AJ169: -11.61941685 | AK169: -14.2832536 | AL169: -14.31682814 | AM169: -13.2394014 | AN169: -6.110610671 | AO169: -8.136320862 | AP169: -19.5123512 | AQ169: -28.90310201 | AR169: -20.63739989 | AS169: -8.811494277 | AT169: -16.31432986 | AU169: -20.4088907 | AV169: -22.78642667 | DV169: SPD | DW169: =AD168 -> 401.36 | DX169: =AD178 -> 422.4737443
D170: Incentive Payments | E170: 17.22572917 | F170: 11.06431687 | G170: 18.3000727 | H170: 28.48679237 | I170: 28.24501611 | J170: 8.489102326 | K170: 11.05664596 | L170: 18.85509558 | M170: 17.73440194 | N170: 29.52540486 | O170: 11.9834203 | P170: 11.73613833 | Q170: 5.874946143 | R170: 21.14212988 | T170: 16.71706603 | U170: 14.52509034 | V170: 20.09616344 | W170: 19.47604254 | X170: 18.72772625 | Y170: 9.035648956 | Z170: 13.48290589 | AA170: 19.69780788 | AB170: 17.86410234 | AC170: 29.89019031 | AD170: 15.91923195 | AE170: 7.419639931 | AF170: 3.612615174 | AG170: 17.65622185 | AI170: 15.01870409 | AJ170: 12.04520479 | AK170: 17.34383994 | AL170: 17.9309721 | AM170: 17.23173394 | AN170: 8.320334442 | AO170: 12.42014017 | AP170: 18.81930226 | AQ170: 13.41813284 | AR170: 21.88083747 | AS170: 13.28858024 | AT170: 8.616721611 | AU170: 4.816299357 | AV170: 6.846868857 | DV170: SPMW | DW170: =AE168 -> 360.644 | DX170: =AE178 -> 348.504238
D171: Network Innovation Allowance4 | E171: 2.981036879 | F171: 1.769101061 | G171: 2.340573382 | H171: 2.10898297 | I171: 2.13403423 | J171: 1.17094733 | K171: 1.61639228 | L171: 1.293062084 | M171: 1.987092729 | N171: 3.060930801 | O171: 1.2936 | P171: 1.1285 | Q171: 0.6649895373 | R171: 1.548420971 | T171: 3.478070798 | U171: 2.125139939 | V171: 2.835305462 | W171: 3.050830973 | X171: 3.072279693 | Y171: 1.510464345 | Z171: 2.143264863 | AA171: 2.794534808 | AB171: 2.421982428 | AC171: 3.776597324 | AD171: 2.549523345 | AE171: 2.120898463 | AF171: 1.683371299 | AG171: 3.492511813 | AI171: 3.373467829 | AJ171: 1.354824942 | AK171: 1.821498847 | AL171: 1.965522184 | AM171: 2.044889341 | AN171: 0.990628462 | AO171: 1.446522405 | AP171: 1.833305007 | AQ171: 1.890991597 | AR171: 2.720712086 | AS171: 1.993665627 | AT171: 1.710434682 | AU171: 1.084189695 | AV171: 2.534201998 | DV171: SSEH | DW171: =AF168 -> 298.236 | DX171: =AF178 -> 296.6612067
D172: Uncontrollable Costs5 | E172: -0.8893180115 | F172: 1.151339437 | G172: 0.5908735621 | H172: -1.511634565 | I172: 0.5549474653 | J172: 3.755133151 | K172: -0.9743727796 | L172: 4.61493981 | M172: 0.8239977524 | N172: -2.162650117 | O172: 1.038070317 | P172: -1.616868278 | Q172: -61.54243374 | R172: 4.345204865 | T172: -0.847022132 | U172: 3.202543627 | V172: 2.322925298 | W172: -1.572089591 | X172: -0.01867257557 | Y172: 1.631843531 | Z172: -1.536986035 | AA172: -6.265367931 | AB172: 1.115163244 | AC172: -5.350945698 | AD172: 2.580382381 | AE172: -1.836900385 | AF172: 1.524542392 | AG172: 6.815647338 | AI172: -3.847429311 | AJ172: 3.590668916 | AK172: -6.007828705 | AL172: -5.345727535 | AM172: -7.743546874 | AN172: -7.024212113 | AO172: -0.7352356175 | AP172: -10.61890807 | AQ172: 4.895462818 | AR172: -6.832211199 | AS172: -8.486915282 | AT172: 4.499522511 | AU172: -12.97401118 | AV172: -0.5531085947 | DV172: SSES | DW172: =AG168 -> 549.492 | DX172: =AG178 -> 544.8330682
D173: DPCR4 Residual Losses6 | E173: 0 | F173: 0 | G173: -7.516636466 | H173: 0 | I173: -13.11934434 | J173: 0 | K173: 0 | L173: 0 | M173: 0 | N173: -4.200002572 | O173: 0 | P173: 0 | Q173: 8.680895812 | R173: 8.229246871 | T173: 0 | U173: 0 | V173: 0 | W173: 0 | X173: -3.225285133 | Y173: 0 | Z173: 0 | AA173: 0 | AB173: 0 | AC173: 0 | AD173: 0 | AE173: 0 | AF173: 0 | AG173: 0 | AI173: 0 | AJ173: 0 | AK173: 0 | AL173: 0 | AM173: 0 | AN173: 0 | AO173: 0 | AP173: 0 | AQ173: 0 | AR173: 0 | AS173: 0 | AT173: 0 | AU173: 0 | AV173: 0 | DV173: Total | DW173: =SUM(DW158:DW172) -> 5672.052 | DX173: =SUM(DX158:DX172) -> 5624.942562
D174: Connections Adjustments | E174: 0 | F174: 0 | G174: 0 | H174: 0 | I174: 0 | J174: 0 | K174: 0 | L174: 0 | M174: 0 | N174: 0 | O174: 0 | P174: 0 | Q174: 0 | R174: 0 | T174: 0 | U174: 0 | V174: 0 | W174: 0 | X174: 0 | Y174: 0 | Z174: 0 | AA174: 0 | AB174: 0 | AC174: 0 | AD174: 0 | AE174: 0 | AF174: 0 | AG174: 0 | AI174: 0 | AJ174: 0 | AK174: 0 | AL174: 0 | AM174: 0 | AN174: 0 | AO174: 0 | AP174: 0 | AQ174: 0 | AR174: 0 | AS174: 0 | AT174: 0 | AU174: 0 | AV174: 0
D175: Correction Factors7
D176: Revenue collection | E176: -11.08867309 | F176: 1.459125745 | G176: 0.6775375119 | H176: -1.607344112 | I176: -0.6923945697 | J176: 3.235115767 | K176: 2.915823346 | L176: 0.9047106962 | M176: -2.137311887 | N176: 3.428257076 | O176: -7.874037144 | P176: -10.49549997 | Q176: -0.6907812932 | R176: 5.196480882 | T176: -4.159912064 | U176: -1.873133203 | V176: -3.113583476 | W176: -1.866542624 | X176: -6.957754703 | Y176: -1.601581378 | Z176: -12.61961503 | AA176: -5.416471844 | AB176: -6.012554427 | AC176: -12.19421677 | AD176: 6.662185669 | AE176: 3.313480741 | AF176: -2.579701333 | AG176: -7.378645078 | AI176: 3.807697532 | AJ176: 2.470301933 | AK176: 1.759084713 | AL176: -0.684790271 | AM176: 1.196238099 | AN176: 5.539871282 | AO176: -8.842909998 | AP176: -13.99895459 | AQ176: -16.12330353 | AR176: -10.68914478 | AS176: 4.151286832 | AT176: -3.046348123 | AU176: -8.711763084 | AV176: -16.41998551
D177: Inflation forecast true-up | E177: -9.197894666 | F177: -6.142615446 | G177: -7.979728456 | H177: -9.536844788 | I177: -9.54178872 | J177: -4.911796422 | K177: -7.092070425 | L177: -9.047473333 | M177: -7.942739603 | N177: -12.24577612 | O177: -8.342219211 | P177: -7.51120299 | Q177: -6.076035511 | R177: -11.68107963 | T177: -1.719813112 | U177: -1.119004308 | V177: -1.470944064 | W177: -1.822167801 | X177: -1.849118892 | Y177: -0.9295842254 | Z177: -1.325628217 | AA177: -1.755823797 | AB177: -1.47057936 | AC177: -2.315964184 | AD177: -1.580628916 | AE177: -1.406117855 | AF177: -1.16340707 | AG177: -2.123035551 | AI177: 1.023479895 | AJ177: 0.7001986516 | AK177: 0.9256289754 | AL177: 1.178199015 | AM177: 1.192065492 | AN177: 0.5922790689 | AO177: 0.8235172808 | AP177: 1.069214816 | AQ177: 0.9195803757 | AR177: 1.414987798 | AS177: 0.9705783344 | AT177: 0.8570418211 | AU177: 0.702636272 | AV177: 1.331052048
D178: Corrected Allowed Revenue | E178: 398.0913859 | F178: 282.2607023 | G178: 364.1918975 | H178: 473.507627 | I178: 467.2723436 | J178: 241.8307655 | K178: 335.42646 | L178: 428.255299 | M178: 367.5189762 | N178: 567.3413023 | O178: 381.3445473 | P178: 334.2972559 | Q178: 230.3715177 | R178: 544.3039096 | T178: 414.1369351 | U178: 295.5152046 | V178: 384.6567277 | W178: 487.4487389 | X178: 475.05286 | Y178: 247.8636175 | Z178: 338.2309031 | AA178: 436.3179016 | AB178: 368.8061812 | AC178: 564.4412351 | AD178: 422.4737443 | AE178: 348.504238 | AF178: 296.6612067 | AG178: 544.8330682 | AI178: 428.6412086 | AJ178: 303.8487824 | AK178: 387.3149702 | AL178: 500.7725474 | AM178: 502.8835786 | AN178: 256.7634905 | AO178: 359.3707134 | AP178: 453.4372082 | AQ178: 393.8403621 | AR178: 605.9059815 | AS178: 417.6137015 | AT178: 368.7812426 | AU178: 272.5142604 | AV178: 538.4452021
D180: 1. Allowed Revenue values reported in this section of the Table are exclusive of the “revenue collection” correction factor (licence term: k) and years are reported in a consistent price base, the method of calculation is otherwise identical to the method in the lower part of the table.
D181: 2. This is our view of 2019-20 prices as of November 2018.
D182: 3. The MOD is an annual modification term, which modifies the opening base revenue to reflect the underspend/overspend compared to allowed totex.
D183: 4. We have assumed that the forecast allowance for Network Innovation Allowance will be equal to the average of the yearly funding received over the years to date
D184: 5. Uncontrollable costs are cost items over which the company has no control. Examples include the charge levied on the company to cover the cost relating to Ofgem carrying out its regulatory activities and adjustments to taxes, such as business rates, that a company cannot influence
D185: 6. For electricity distribution there remains a DPCR4 legacy revenue adjustment for its Losses Incentive Mechanism (“Direction pursuant to paragraph 7.7 of Charge Restriction Condition (CRC) 7 of the Electricity Distribution licence”: https://www.ofgem.gov.uk/sites/default/files/docs/2014/03/ppl_direction_-_march-14_0.pdf).
D186: 7. These adjustments reconcile previous years’ actual revenue to the allowed revenue of those years. These are the differences between actual inflation and our forecast; and revenue collection (it is not practical to collect the exact revenue allowed owing to tariffs being set before network usage is known).
D188: Regional estimates of typical GB customer cost to meet Allowed Revenue
B189: Customer Bll Impact | D189: £ real prices per domestic consumer
F190: 2015-04-01 | G190: 2016-04-01 | H190: 2017-04-01 | I190: 2018-04-01 | J190: 2019-04-01
D191: GB average | F191: 96.49222647 | G191: 101.0436185 | H191: 89.83639286 | I191: 85.07510593 | J191: 86.9276945
D192: Region | E192: DNO
D193: North West | E193: ENWL | F193: 94.16997472 | G193: 95.80884904 | H193: 79.0355 | I193: 77.99381336 | J193: 81.81453311
D194: North East | E194: NPgN | F194: 103.2665342 | G194: 100.7926147 | H194: 90.6365 | I194: 85.229693 | J194: 87.50437287
D195: Yorkshire | E195: NPgY | F195: 88.50561932 | G195: 82.88311458 | H195: 75.5985 | I195: 72.58859916 | J195: 73.0228916
D196: Midlands | E196: WMID | F196: 84.29192383 | G196: 96.2788003 | H196: 83.272 | I196: 79.68873029 | J196: 78.26365684
D197: East Midlands | E197: EMID | F197: 80.16194064 | G197: 85.97929456 | H197: 75.527 | I197: 70.53928169 | J197: 70.51266818
D198: South Wales | E198: SWALES | F198: 101.5181129 | G198: 116.2149004 | H198: 102.386 | I198: 98.47971581 | J198: 98.59810724
D199: South West | E199: SWEST | F199: 113.2277676 | G199: 126.1596085 | H199: 113.047 | I199: 99.61854872 | J199: 97.37604329
D200: London | E200: LPN | F200: 69.51670365 | G200: 78.53570234 | H200: 66.9975 | I200: 64.56731751 | J200: 70.54782537
D201: South East | E201: SPN | F201: 90.9332759 | G201: 106.6767572 | H201: 91.1405 | I201: 81.41661472 | J201: 86.79747896
D202: East Anglia | E202: EPN | F202: 80.71719688 | G202: 81.86125588 | H202: 79.0565 | I202: 75.52513001 | J202: 78.30818928
D203: South Scotland | E203: SPD | F203: 101.9811796 | G203: 99.05856718 | H203: 91.3065 | I203: 90.67126841 | J203: 91.93136634
D204: Merseyside and N Wales | E204: SPMW | F204: 128.0913625 | G204: 112.4324671 | H204: 103.906 | I204: 98.54613561 | J204: 110.1291971
D205: North Scotland | E205: SSEH | F205: 129.5574933 | G205: 142.2142017 | H205: 124.923 | I205: 122.5275618 | J205: 120.7729194
D206: Southern | E206: SSES | F206: 84.95208536 | G206: 89.71452526 | H206: 80.877 | I206: 73.65907301 | J206: 71.4084734
B211: RAV | D211: 2015/16 | E211: ENWL | F211: NPgN | G211: NPgY | H211: WMID | I211: EMID | J211: SWALES | K211: SWEST | L211: LPN | M211: SPN | N211: EPN | O211: SPD | P211: SPMW | Q211: SSEH | R211: SSES
D212: RAV at 1st April 2015 | E212: 1714.810347 | F212: 1268.723068 | G212: 1672.348266 | H212: 2206.240949 | I212: 2167.312554 | J212: 944.861762 | K212: 1355.805661 | L212: 1590.254998 | M212: 1621.691781 | N212: 2585.03381 | O212: 1710.521059 | P212: 1713.483748 | Q212: 1070.937226 | R212: 2263.976667
D213: Slow Money | E213: 178.6839462 | F213: 142.1859903 | G213: 192.9428993 | H213: 243.1755513 | I213: 257.4226734 | J213: 128.5558235 | K213: 191.8178457 | L213: 164.2638542 | M213: 148.964258 | N213: 230.0576173 | O213: 174.140246 | P213: 207.1724951 | Q213: 106.1754134 | R213: 226.7237446
D214: Depreciation | E214: -165.9324177 | F214: -114.0669969 | G214: -151.9374445 | H214: -193.0364214 | I214: -187.6109474 | J214: -95.62811984 | K214: -125.7690475 | L214: -154.801725 | M214: -136.8700844 | N214: -233.726406 | O214: -156.5041134 | P214: -148.763177 | Q214: -102.3971381 | R214: -221.1692926
D215: RAV at 31st March 2016 | E215: 1727.561875 | F215: 1296.842061 | G215: 1713.353721 | H215: 2256.380079 | I215: 2237.12428 | J215: 977.7894656 | K215: 1421.85446 | L215: 1599.717127 | M215: 1633.785955 | N215: 2581.365022 | O215: 1728.157191 | P215: 1771.893066 | Q215: 1074.715501 | R215: 2269.531119
D217: 2016/17 | E217: ENWL | F217: NPgN | G217: NPgY | H217: WMID | I217: EMID | J217: SWALES | K217: SWEST | L217: LPN | M217: SPN | N217: EPN | O217: SPD | P217: SPMW | Q217: SSEH | R217: SSES
D218: RAV at 1st April 2016 | E218: =E215 -> 1727.561875 | F218: =F215 -> 1296.842061 | G218: 1713.353721 | H218: 2256.380079 | I218: 2237.12428 | J218: 977.7894656 | K218: 1421.85446 | L218: 1599.717127 | M218: 1633.785955 | N218: 2581.365022 | O218: 1728.157191 | P218: 1771.893066 | Q218: 1074.715501 | R218: 2269.531119
D219: Slow Money | E219: 162.7984311 | F219: 139.4238771 | G219: 175.1448051 | H219: 244.0691289 | I219: 254.0974256 | J219: 130.6959179 | K219: 200.2767141 | L219: 166.8231189 | M219: 166.9271959 | N219: 242.2621791 | O219: 180.0752016 | P219: 216.8191648 | Q219: 112.468461 | R219: 235.9605011
D220: Depreciation | E220: -167.4793788 | F220: -116.5889931 | G220: -154.9405769 | H220: -197.5106941 | I220: -193.7139866 | J220: -96.73844622 | K220: -129.8833444 | L220: -155.785702 | M220: -140.5507288 | N220: -236.4822566 | O220: -158.564328 | P220: -153.5847355 | Q220: -102.9378085 | R220: -219.8168304
D221: RAV at 31st March 2017 | E221: 1722.880927 | F221: 1319.676945 | G221: 1733.557949 | H221: 2302.938514 | I221: 2297.507719 | J221: 1011.746937 | K221: 1492.247829 | L221: 1610.754544 | M221: 1660.162422 | N221: 2587.144944 | O221: 1749.668065 | P221: 1835.127495 | Q221: 1084.246153 | R221: 2285.67479
D223: 2017/18 | E223: ENWL | F223: NPgN | G223: NPgY | H223: WMID | I223: EMID | J223: SWALES | K223: SWEST | L223: LPN | M223: SPN | N223: EPN | O223: SPD | P223: SPMW | Q223: SSEH | R223: SSES
D224: RAV at 1st April 2017 | E224: =E221 -> 1722.880927 | F224: =F221 -> 1319.676945 | G224: =G221 -> 1733.557949 | H224: 2302.938514 | I224: 2297.507719 | J224: 1011.746937 | K224: 1492.247829 | L224: 1610.754544 | M224: 1660.162422 | N224: 2587.144944 | O224: 1749.668065 | P224: 1835.127495 | Q224: 1084.246153 | R224: 2285.67479
D225: Slow Money | E225: 173.5661804 | F225: 128.3698816 | G225: 171.1901026 | H225: 226.9430363 | I225: 224.7510111 | J225: 121.4164723 | K225: 189.2100362 | L225: 168.2478998 | M225: 161.4779074 | N225: 242.7829834 | O225: 183.9992483 | P225: 208.1182688 | Q225: 109.9397237 | R225: 244.2681473
D226: Depreciation | E226: -157.9774857 | F226: -118.0141315 | G226: -155.5886439 | H226: -199.8323623 | I226: -197.9583354 | J226: -89.60282635 | K226: -132.7524969 | L226: -155.0088689 | M226: -143.3784817 | N226: -238.1378701 | O226: -161.1832194 | P226: -157.5254989 | Q226: -102.1935692 | R226: -216.9393318
D227: RAV at 31st March 2018 | E227: 1738.469622 | F227: 1330.032696 | G227: 1749.159408 | H227: 2330.049188 | I227: 2324.300395 | J227: 1043.560583 | K227: 1548.705369 | L227: 1623.993575 | M227: 1678.261847 | N227: 2591.790057 | O227: 1772.484094 | P227: 1885.720265 | Q227: 1091.992308 | R227: 2313.003606
D229: 2018/19 | E229: ENWL | F229: NPgN | G229: NPgY | H229: WMID | I229: EMID | J229: SWALES | K229: SWEST | L229: LPN | M229: SPN | N229: EPN | O229: SPD | P229: SPMW | Q229: SSEH | R229: SSES
D230: RAV at 1st April 2018
D231: Slow Money
D232: Depreciation
D233: RAV at 31st March 2019
D235: 2019/20 | E235: ENWL | F235: NPgN | G235: NPgY | H235: WMID | I235: EMID | J235: SWALES | K235: SWEST | L235: LPN | M235: SPN | N235: EPN | O235: SPD | P235: SPMW | Q235: SSEH | R235: SSES
... 19 more rows

Sheet Ch4 expenditure drivers
A1: Chapter 4 - Expenditure Drivers
O2: Disaggregated expenditure v allowances for all DNOs
B3: Distribution of allowances and expenditure per cost category | D3: 2017-18 | E3: Baseline Allowance | F3: % of total baseline allowance | G3: Actual | H3: % of total actual | J3: 2017-18 | K3: Technical / glossary term | L3: % of total actual | M3: % of total baseline allowance | O3: 2017-18 | P3: Allowance (£m) | Q3: Actual (£m) | R3: Difference (£m) | S3: Difference (%)
D4: Network Reinforcement | E4: =$P$185 -> 344.9730851 | F4: =E4/$E$22 -> 0.09843823295 | G4: =$Y$185 -> 240.6286529 | H4: =G4/$G$22 -> 0.06972875907 | J4: Replacing & refurbishing equipment | K4: Asset replacement, Refurbishment, Civil Works Condition Driven, Rising and Lateral Mains and BT21CN | L4: =H5 -> 0.2180150496 | M4: =F5 -> 0.2560099296 | O4: Replacing & refurbishing equipment | P4: =E5 -> 897.1771695 | Q4: =G5 -> 752.3533816 | R4: =Q4-P4 -> -144.8237879 | S4: =R4/P4 -> -0.1614216152
D5: Replacing & refurbishing equipment | E5: =$P$205 -> 897.1771695 | F5: 0.2560099296 | G5: =$Y$205 -> 752.3533816 | H5: 0.2180150496 | J5: Operational support | K5: Closely Associate Indirects | L5: =H7 -> 0.2303041544 | M5: =F7 -> 0.194006012 | O5: Operational support | P5: =E7 -> 679.8867723 | Q5: =G7 -> 794.7621493 | R5: =Q5-P5 -> 114.875377 | S5: =R5/P5 -> 0.168962512
D6: Network Faults | E6: =$P$225 -> 409.309204 | F6: 0.1167965749 | G6: =$Y$225 -> 458.4232569 | H6: 0.1328407256 | J6: Network faults | K6: Faults, ONIs and Severe Weather 1 in 20 | L6: =H6 -> 0.1328407256 | M6: =F6 -> 0.1167965749 | O6: Network faults | P6: =E6 -> 409.309204 | Q6: =G6 -> 458.4232569 | R6: 49.11405299 | S6: 0.1199925448
D7: Operational Support | E7: =$P$245 -> 679.8867723 | F7: 0.194006012 | G7: =$Y$245 -> 794.7621493 | H7: 0.2303041544 | J7: Network Reinforcement | K7: Connections, Reinforcement and Transmission Connection Points | L7: =H4 -> 0.06972875907 | M7: =F4 -> 0.09843823295 | O7: Network Reinforcement | P7: =E4 -> 344.9730851 | Q7: =G4 -> 240.6286529 | R7: -104.3444322 | S7: -0.3024712267
D8: Business Support | E8: =$P$265 -> 368.4094828 | F8: 0.1051258201 | G8: =$Y$265 -> 380.0894029 | H8: 0.1101413406 | J8: Business support | K8: Business support | L8: =H8 -> 0.1101413406 | M8: =F8 -> 0.1051258201 | O8: Business support | P8: =E8 -> 368.4094828 | Q8: =G8 -> 380.0894029 | R8: 11.67992016 | S8: 0.03170363606
D9: Five largest | E9: =$P$165 -> 2699.755714 | F9: 0.7703765695 | G9: =$Y$165 -> 2626.256844 | H9: 0.7610300293 | J9: Resilience | K9: Black start, Flood mitigation, Physical security and Tree cutting | L9: =H11 -> 0.03932404977 | M9: =F11 -> 0.04299101497 | O9: Resilience | P9: =E11 -> 150.660395 | Q9: =G11 -> 135.7043098 | R9: -14.95608527 | S9: -0.09927018486
J10: Property & equipment | K10: Non Op Capex | L10: =H19 -> 0.04795445613 | M10: =F19 -> 0.03409466886 | O10: Property & equipment | P10: =E19 -> 119.4834847 | Q10: =G19 -> 165.4871868 | R10: 46.00370207 | S10: 0.3850214294
D11: Resilience | E11: =$P$285 -> 150.660395 | F11: =E11/$E$22 -> 0.04299101497 | G11: =$Y$285 -> 135.7043098 | H11: =G11/$G$22 -> 0.03932404977 | J11: Network inspection | K11: Inspections and Maintenance | L11: =H16 -> 0.04071838749 | M11: =F16 -> 0.03781880887 | O11: Network inspection | P11: =E16 -> 132.5345933 | Q11: =G16 -> 140.5160634 | R11: 7.981470069 | S11: 0.06022178717
D12: Re-routing | E12: =$P$368+$P$388 -> 98.93725641 | F12: 0.0282317929 | G12: =$Y$368+$Y$388 -> 99.15327033 | H12: 0.02873238252 | J12: Re-routing | K12: Diversions (Excluding Rail Electrification) and Diversions Rail Electrification | L12: =H12 -> 0.02873238252 | M12: =F12 -> 0.0282317929 | O12: Re-routing | P12: =E12 -> 98.93725641 | Q12: =G12 -> 99.15327033 | R12: 0.2160139153 | S12: 0.002183342485
D13: IT | E13: =$P$468 -> 76.48939773 | F13: 0.02182628581 | G13: =$Y$468 -> 54.25669381 | H13: 0.01572236675 | J13: Legal & safety compliance | K13: Legal and Safety and Overhead Line Clearances | L13: =H14 -> 0.02775230536 | M13: =F14 -> 0.02843796636 | O13: Legal & safety compliance | P13: =E14 -> 99.65978355 | Q13: =G14 -> 95.77109848 | R13: -3.888685065 | S13: -0.03901960175
D14: Legal & safety compliance | E14: =$P$528+$P$628 -> 99.65978355 | F14: 0.02843796636 | G14: =$Y$528+$Y$628 -> 95.77109848 | H14: 0.02775230536 | J14: IT | K14: Operational IT and telecoms | L14: =H13 -> 0.01572236675 | M14: =F13 -> 0.02182628581 | O14: IT | P14: =E13 -> 76.48939773 | Q14: =G13 -> 54.25669381 | R14: -22.23270392 | S14: -0.2906638643
D15: Service quality | E15: =$P$548 -> 8.249586399 | F15: 0.00235402338 | G15: =$Y$548 -> 31.46987789 | H15: 0.009119261182 | J15: High value projects | K15: High Value Projects | L15: =H20 -> 0.01031896604 | M15: =F20 -> 0.00961480875 | O15: High value projects | P15: =E20 -> 33.69473565 | Q15: =G20 -> 35.60996825 | R15: 1.915232599 | S15: 0.05684070707
D16: Network inspection | E16: =$P$748 -> 132.5345933 | F16: 0.03781880887 | G16: =$Y$748 -> 140.5160634 | H16: 0.04071838749 | J16: Other operational costs | K16: NOCs Other | L16: =H18 -> 0.007130887744 | M16: =F18 -> 0.01085710081 | O16: Other operational costs | P16: =E18 -> 38.04830144 | Q16: =G18 -> 24.60815214 | R16: -13.44014931 | S16: -0.3532391407
D17: Environment | E17: =$P$648 -> 17.20337761 | F17: 0.004908991935 | G17: =$Y$648 -> 10.52847399 | H17: 0.003050914418 | J17: Environment | K17: Environmental Reporting & Losses | L17: =H17 -> 0.003050914418 | M17: =F17 -> 0.004908991935 | O17: Environment | P17: =E17 -> 17.20337761 | Q17: =G17 -> 10.52847399 | R17: -6.674903617 | S17: -0.3879995992
D18: Other operational costs | E18: =$P$768 -> 38.04830144 | F18: 0.01085710081 | G18: =$Y$768 -> 24.60815214 | H18: 0.007130887744 | J18: Service quality | K18: QoS & North of Scotland Resilience | L18: =H15 -> 0.009119261182 | M18: =F15 -> 0.00235402338 | O18: Service quality | P18: =E15 -> 8.249586399 | Q18: =G15 -> 31.46987789 | R18: 23.22029149 | S18: 2.814721898
D19: Property & equipment | E19: =$P$788 -> 119.4834847 | F19: =E19/$E$22 -> 0.03409466886 | G19: =$Y$788 -> 165.4871868 | H19: 0.04795445613 | J19: =D23 -> Policy Adjustments | K19: Forecast DRS 8, Shetland Competitive Process, Shetland Uncertain Energy | L19: =Q19/Q21 -> -0.01090309793 | M19: =P19/P21 -> 0.007824932304 | O19: =D23 -> Policy Adjustments | P19: =E23 -> 27.63844996 | Q19: =G23 -> -37.21995028 | R19: =Q19-P19 -> -64.85840024 | S19: =R19/P19 -> -2.346672854
D20: High value projects | E20: =$P$868 -> 33.69473565 | F20: 0.00961480875 | G20: =$Y$868+$Y$888 -> 35.60996825 | H20: 0.01031896604 | J20: Smart metering | K20: Smart metering | L20: =H21 -> 0.009145993347 | M20: =F21 -> 0.008487967863 | O20: Smart metering | P20: =E21 -> 29.74576414 | Q20: =G21 -> 31.56212856 | R20: =Q20-P20 -> 1.816364421 | S20: =R20/P20 -> 0.0610629605
D21: Smart metering | E21: =$P$808 -> 29.74576414 | F21: 0.008487967863 | G21: =$Y$808 -> 31.56212856 | H21: 0.009145993347 | O21: Total | P21: =SUM(P4:P20) -> 3532.10084 | Q21: =SUM(Q4:Q20) -> 3413.704117 | R21: =Q21-P21 -> -118.3967228 | S21: =R21/P21 -> -0.03352019895
D22: Total of disaggregated areas | E22: =$P$908 -> 3504.46239 | F22: =SUM(F9:F21) -> 1 | G22: =Y908 -> 3450.924067 | H22: =SUM(H9:H21) -> 1
D23: Policy Adjustments | E23: =P928 -> 27.63844996 | G23: =Y928 -> -37.21995028
D24: Total PCFM Totex | E24: ='Ch3 financial performance '!E142 -> 3540.754199 | G24: ='Ch3 financial performance '!F142 -> 3415.174195
D25: PCFM Totex - (Total disagg+ policy adj) | E25: =E24-(E22+E23) -> 8.653359719 | G25: =G24-(G22+G23) -> 1.470078372
D26: *NB: our totex allowances and actuals when adding up the disaggregated categories in this worksheet are slightly different to the totex figures we report in worksheet "Ch3 financial performance". We are working to understand the cause, but the differences are minimal and does not affect the key messages on totex performance.
D27: Cumulative to date | E27: Baseline Allowance | F27: % of total baseline allowance | G27: Actual | H27: % of total actual | J27: Cumulative to date | K27: Technical / glossary term | L27: % of total actual | M27: % of total baseline allowance | O27: Cumulative to date | P27: Allowance (£m) | Q27: Actual (£m) | R27: Difference (£m) | S27: Difference (%)
D28: Network Reinforcement | E28: =SUM(N185:P185) -> 1088.265103 | F28: =E28/$E$46 -> 0.1004655764 | G28: =SUM(W185:Y185) -> 707.854809 | H28: =G28/$G$46 -> 0.06967890702 | J28: Replacing & refurbishing equipment | K28: Asset replacement, Refurbishment, Civil Works Condition Driven, Rising and Lateral Mains and BT21CN | L28: =H29 -> 0.2192629082 | M28: =F29 -> 0.2553416908 | O28: =D29 -> Replacing & refurbishing equipment | P28: =E29 -> 2765.917057 | Q28: =G29 -> 2227.450323 | R28: =Q28-P28 -> -538.4667336 | S28: =R28/P28 -> -0.1946792773
D29: Replacing & refurbishing equipment | E29: =SUM(N205:P205) -> 2765.917057 | F29: 0.2553416908 | G29: =SUM(W205:Y205) -> 2227.450323 | H29: 0.2192629082 | J29: Operational support | K29: Closely Associate Indirects | L29: =H31 -> 0.2249381869 | M29: =F31 -> 0.1908282181 | O29: =D31 -> Operational Support | P29: =E31 -> 2067.093006 | Q29: =G31 -> 2285.104405 | R29: =Q29-P29 -> 218.0113982 | S29: =R29/P29 -> 0.1054676289
D30: Network Faults | E30: =SUM(N225:P225) -> 1245.63275 | F30: 0.1149933154 | G30: =SUM(W225:Y225) -> 1404.239739 | H30: 0.1382287568 | J30: Network faults | K30: Faults, ONIs and Severe Weather 1 in 20 | L30: =H30 -> 0.1382287568 | M30: =F30 -> 0.1149933154 | O30: =D30 -> Network Faults | P30: =E30 -> 1245.63275 | Q30: =G30 -> 1404.239739 | R30: 158.6069892 | S30: 0.1273304585
D31: Operational Support | E31: =SUM(N245:P245) -> 2067.093006 | F31: =E31/$E$46 -> 0.1908282181 | G31: =SUM(W245:Y245) -> 2285.104405 | H31: 0.2249381869 | J31: Network Reinforcement | K31: Connections, Reinforcement and Transmission Connection Points | L31: =H28 -> 0.06967890702 | M31: =F28 -> 0.1004655764 | O31: =D28 -> Network Reinforcement | P31: =E28 -> 1088.265103 | Q31: =G28 -> 707.854809 | R31: -380.4102939 | S31: -0.349556641
D32: Business Support | E32: =SUM(N265:P265) -> 1117.466907 | F32: 0.1031614049 | G32: =SUM(W265:Y265) -> 1077.299757 | H32: 0.1060458566 | J32: Business support | K32: Business support | L32: =H32 -> 0.1060458566 | M32: =F32 -> 0.1031614049 | O32: =D32 -> Business Support | P32: =E32 -> 1117.466907 | Q32: =G32 -> 1077.299757 | R32: -40.16715021 | S32: -0.03594482303
D33: Five largest | E33: =SUM(N165:P165) -> 8284.374823 | F33: 0.7647902057 | G33: =SUM(W165:Y165) -> 7701.949033 | H33: 0.7581546155 | J33: Resilience | K33: Black start, Flood mitigation, Physical security and Tree cutting | L33: =H35 -> 0.04147855501 | M33: =F35 -> 0.04281062241 | O33: =D35 -> Resilience | P33: =E35 -> 463.7340278 | Q33: =G35 -> 421.3727782 | R33: -42.3612496 | S33: -0.09134815879
J34: Property & equipment | K34: Non Op Capex | L34: =H43 -> 0.04531490097 | M34: =F43 -> 0.03898351483 | O34: =D43 -> Property & equipment | P34: =E43 -> 422.2779612 | Q34: =G43 -> 460.3454896 | R34: 38.06752844 | S34: 0.09014803504
D35: Resilience | E35: =SUM(N285:P285) -> 463.7340278 | F35: =E35/$E$46 -> 0.04281062241 | G35: =SUM(W285:Y285) -> 421.3727782 | H35: =G35/$G$46 -> 0.04147855501 | J35: Network inspection | K35: Inspections and Maintenance | L35: =H40 -> 0.04400601956 | M35: =F40 -> 0.03729916578 | O35: =D40 -> Network inspection | P35: =E40 -> 404.0327238 | Q35: =G40 -> 447.0488114 | R35: 43.01608768 | S35: 0.1064668408
D36: Re-routing | E36: =$N$368+$N$388+$O$368+$O$388+$P$368+$P$388 -> 337.3873542 | F36: 0.03114665252 | G36: =$W$368+$W$388+$X$368+$X$388+$Y$368+$Y$388 -> 288.086189 | H36: 0.02835826009 | J36: Re-routing | K36: Diversions (Excluding Rail Electrification) and Diversions Rail Electrification | L36: =H36 -> 0.02835826009 | M36: =F36 -> 0.03114665252 | O36: =D36 -> Re-routing | P36: =E36 -> 337.3873542 | Q36: =G36 -> 288.086189 | R36: -49.30116516 | S36: -0.1461262983
D37: IT | E37: =SUM(N468:P468) -> 219.4836184 | F37: =E37/$E$46 -> 0.02026211093 | G37: =SUM(W468:Y468) -> 140.6971309 | H37: 0.01384976436 | J37: Legal & safety compliance | K37: Legal and Safety and Overhead Line Clearances | L37: =H38 -> 0.03115323035 | M37: =F38 -> 0.02913451058 | O37: =D38 -> Legal & safety compliance | P37: =E38 -> 315.5913925 | Q37: =G38 -> 316.4797621 | R37: 0.8883696434 | S37: 0.002814936226
D38: Legal & safety compliance | E38: =$O$528+$O$628+$N$528+$N$628+$P$528+$P$628 -> 315.5913925 | F38: 0.02913451058 | G38: =$W$528+$W$628+$X$528+$X$628+$Y$528+$Y$628 -> 316.4797621 | H38: 0.03115323035 | J38: IT | K38: Operational IT and telecoms | L38: =H37 -> 0.01384976436 | M38: =F37 -> 0.02026211093 | O38: =D37 -> IT | P38: =E37 -> 219.4836184 | Q38: =G37 -> 140.6971309 | R38: -78.78648744 | S38: -0.3589629515
D39: Service quality | E39: =SUM(N548:P548) -> 25.39818046 | F39: =E39/$E$46 -> 0.002344688655 | G39: =SUM(W548:Y548) -> 103.9364389 | H39: 0.01023116234 | J39: High value projects | K39: High Value Projects | L39: =H44 -> 0.01045817598 | M39: =F44 -> 0.0105341892 | O39: =D44 -> High value projects | P39: =E44 -> 114.108642 | Q39: =G44 -> 106.2426274 | R39: -7.866014565 | S39: -0.06893443324
D40: Network inspection | E40: =SUM(N748:P748) -> 404.0327238 | F40: 0.03729916578 | G40: =SUM(W748:Y748) -> 447.0488114 | H40: =G40/$G$46 -> 0.04400601956 | J40: Other operational costs | K40: NOCs Other | L40: =H42 -> 0.007668494769 | M40: =F42 -> 0.01064960515 | O40: Other operational costs | P40: =E42 -> 115.3588528 | Q40: =G42 -> 77.90278481 | R40: -37.45606798 | S40: -0.3246917517
D41: Environment | E41: =SUM(N648:P648) -> 53.85007651 | F41: 0.004971287752 | G41: =SUM(W648:Y648) -> 33.1631161 | H41: 0.003264468439 | J41: Environment | K41: Environmental Reporting & Losses | L41: =H41 -> 0.003264468439 | M41: =F41 -> 0.004971287752 | O41: =D41 -> Environment | P41: =E41 -> 53.85007651 | Q41: =G41 -> 33.1631161 | R41: -20.6869604 | S41: -0.3841584218
D42: Other operational costs | E42: =SUM(N768:P768) -> 115.3588528 | F42: =E42/$E$46 -> 0.01064960515 | G42: =SUM(W768:Y768) -> 77.90278481 | H42: 0.007668494769 | J42: Service quality | K42: QoS & North of Scotland Resilience | L42: =H39 -> 0.01023116234 | M42: =F39 -> 0.002344688655 | O42: =D39 -> Service quality | P42: =E39 -> 25.39818046 | Q42: =G39 -> 103.9364389 | R42: 78.53825841 | S42: 3.092278934
D43: Property & equipment | E43: =SUM(N788:P788) -> 422.2779612 | F43: 0.03898351483 | G43: =SUM(W788:Y788) -> 460.3454896 | H43: 0.04531490097 | J43: =D47 -> Policy Adjustments | K43: Forecast DRS 8, Shetland Competitive Process, Shetland Uncertain Energy | L43: =Q43/Q45 -> 0.007301058402 | M43: =P43/P45 -> 0.007270198562 | O43: =D47 -> Policy Adjustments | P43: =E47 -> 79.3291198 | Q43: =G47 -> 74.71557116 | R43: -4.613548641 | S43: -0.05815706329
D44: High value projects | E44: =SUM(N868:P868) -> 114.108642 | F44: 0.0105341892 | G44: =$W$868+$W$888+$X$868+$X$888+$Y$868+$Y$888 -> 106.2426274 | H44: 0.01045817598 | J44: Smart metering | K44: Smart metering | L44: =H45 -> 0.006062352613 | M44: =F45 -> 0.007073446511 | O44: Smart metering | P44: =E45 -> 76.62112008 | Q44: =G45 -> 61.58629109 | R44: =Q44-P44 -> -15.03482899 | S44: =R44/P44 -> -0.1962230384
D45: Smart metering | E45: =SUM(N808:P808) -> 76.62112008 | F45: 0.007073446511 | G45: =SUM(W808:Y808) -> 61.58629109 | H45: 0.006062352613 | O45: Total | P45: =SUM(P28:P44) -> 10911.54789 | Q45: =SUM(Q28:Q44) -> 10233.52602 | R45: =Q45-P45 -> -678.0218689 | S45: =R45/P45 -> -0.06213800972
D46: Total of disaggregated areas | E46: =SUM(N908:P908) -> 10832.21877 | F46: =SUM(F33:F45) -> 1 | G46: =SUM(W908:Y908) -> 10158.81045 | H46: =SUM(H33:H45) -> 1
D47: Policy Adjustments | E47: =SUM(N928:P928) -> 79.3291198 | G47: =SUM(W928:Y928) -> 74.71557116
D48: Total PCFM Totex | E48: =SUM('Ch3 financial performance '!I142) -> 10926.05717 | G48: =SUM('Ch3 financial performance '!J142) -> 10242.38038
D49: PCFM Totex - (Total disagg+ policy adj) | E49: =E48-(E46+E47) -> 14.50927965 | G49: =G48-(G46+G47) -> 8.854355236
D52: Expenditure on largest categories of direct costs by DNO | R52: Expenditure on largest categories of indirect costs by DNO
E53: =D188 -> Replacing & refurbishing equipment total | H53: =D168 -> Network Reinforcement total | K53: =D208 -> Network faults total | N53: Total | S53: =D228 -> Operational support | V53: =D248 -> Business support total | Y53: Total
E54: Allowance | F54: Actual | G54: % difference | H54: Allowance | I54: Actual | J54: % difference | K54: Allowance | L54: Actual | M54: % difference | N54: Allowance | O54: Actual | P54: % difference | S54: Allowance | T54: Actual | U54: % difference | V54: Allowance | W54: Actual | X54: % difference | Y54: Allowance | Z54: Actual | AA54: % difference
D55: =D171 -> ENWL | E55: =AP191 -> 81.14070491 | F55: =AQ191 -> 69.62408928 | G55: =AS191 -> -0.1419338869 | H55: =AP171 -> 13.97272609 | I55: =AQ171 -> 3.917339276 | J55: =AS171 -> -0.7196438797 | K55: =AP211 -> 28.37200201 | L55: =AQ211 -> 31.83396484 | M55: =AS211 -> 0.1220203927 | N55: =SUM(K55,H55,E55) -> 123.485433 | O55: =SUM(L55,I55,F55) -> 105.3753934 | P55: =(O55-N55)/N55 -> -0.1466572953 | R55: =D55 -> ENWL | S55: =AP231 -> 50.92626632 | T55: =AQ231 -> 47.16631948 | U55: =AS231 -> -0.07383118983 | V55: =AP251 -> 33.11828382 | W55: =AQ251 -> 34.39966188 | X55: =AS251 -> 0.03869095601 | Y55: =SUM(V55,S55) -> 84.04455014 | Z55: =SUM(W55,T55) -> 81.56598137 | AA55: =SUM(Z55-Y55)/Y55 -> -0.02949113023
D56: NPgN | E56: =AP192 -> 53.23393193 | F56: =AQ192 -> 45.27096675 | G56: =AS192 -> -0.1495843888 | H56: 15.38763662 | I56: 9.873936182 | J56: -0.3583201615 | K56: 25.60881844 | L56: 30.5532119 | M56: 0.1930738615 | N56: =SUM(K56,H56,E56) -> 94.23038698 | O56: =SUM(L56,I56,F56) -> 85.69811484 | P56: -0.09054692886 | R56: NPgN | S56: 34.03000344 | T56: 35.18269943 | U56: 0.03387293186 | V56: 21.83374044 | W56: 22.71914474 | X56: 0.0405521124 | Y56: =SUM(V56,S56) -> 55.86374388 | Z56: =SUM(W56,T56) -> 57.90184417 | AA56: =SUM(Z56-Y56)/Y56 -> 0.03648341738
D57: NPgY | E57: 71.86379551 | F57: 50.29137826 | G57: -0.3001847745 | H57: 12.05545935 | I57: 8.939585147 | J57: -0.2584616741 | K57: 43.01680814 | L57: 43.09554207 | M57: 0.001830306011 | N57: 126.936063 | O57: 102.3265055 | P57: -0.1938736475 | R57: NPgY | S57: 42.08938167 | T57: 42.68191338 | U57: 0.01407793805 | V57: 24.87248078 | W57: 25.02398461 | X57: 0.006091223266 | Y57: 66.96186245 | Z57: 67.70589799 | AA57: 0.01111133284
D58: WMID | E58: 75.54513279 | F58: 68.4312 | G58: -0.09416798309 | H58: 26.31579273 | I58: 17.5724 | J58: -0.3322488826 | K58: 33.07490879 | L58: 38.0255 | M58: 0.1496781515 | N58: 134.9358343 | O58: 124.0291 | P58: -0.08082904267 | R58: WMID | S58: 59.23370779 | T58: 70.3419 | U58: 0.1875316036 | V58: 30.73521508 | W58: 25.7435 | X58: -0.1624102863 | Y58: 89.96892287 | Z58: 96.0854 | AA58: 0.06798433208
D59: EMID | E59: 63.20089898 | F59: 60.4966 | G59: -0.04278893217 | H59: 23.59346139 | I59: 36.334 | J59: 0.5400029442 | K59: 37.87722877 | L59: 36.6412 | M59: -0.03263250272 | N59: 124.6715891 | O59: 133.4718 | P59: 0.07058713956 | R59: EMID | S59: 58.96377666 | T59: 69.8266 | U59: 0.184228758 | V59: 31.91564211 | W59: 25.9071 | X59: -0.1882632375 | Y59: 90.87941877 | Z59: 95.7337 | AA59: 0.05341452769
D60: SWALES | E60: 42.45653993 | F60: 39.26068258 | G60: -0.07527361767 | H60: 5.472918365 | I60: 5.0813 | J60: -0.07155567447 | K60: 15.18988125 | L60: 14.2782 | M60: -0.06001898476 | N60: 63.11933955 | O60: 58.62018258 | P60: -0.07128016552 | R60: SWALES | S60: 33.03949993 | T60: 33.8371 | U60: 0.02414080342 | V60: 16.52334218 | W60: 13.7294 | X60: -0.1690906203 | Y60: 49.56284211 | Z60: 47.5665 | AA60: -0.04027900783
D61: SWEST | E61: 65.67690971 | F61: 64.1542 | G61: -0.02318485622 | H61: 9.128234961 | I61: 16.5876 | J61: 0.81717496 | K61: 27.37848413 | L61: 28.2802 | M61: 0.03293520082 | N61: 102.1836288 | O61: 109.022 | P61: 0.06692237577 | R61: SWEST | S61: 48.49210227 | T61: 50.4168 | U61: 0.03969095255 | V61: 26.49678076 | W61: 23.5263 | X61: -0.1121072325 | Y61: 74.98888303 | Z61: 73.9431 | AA61: -0.01394584089
D62: LPN | E62: 44.45528773 | F62: 32.2587092 | G62: -0.2743560812 | H62: 51.66835848 | I62: 30.48038897 | J62: -0.4100763046 | K62: 25.44206546 | L62: 31.39056119 | M62: 0.2338055351 | N62: 121.5657117 | O62: 94.12965935 | P62: -0.2256890692 | R62: LPN | S62: 45.73654656 | T62: 59.6109927 | U62: 0.3033557884 | V62: 25.29774242 | W62: 25.86025279 | X62: 0.02223559589 | Y62: 71.03428898 | Z62: 85.4712455 | AA62: 0.2032392627
D63: SPN | E63: 54.62212632 | F63: 37.52959497 | G63: -0.3129232144 | H63: 39.49649328 | I63: 13.31806921 | J63: -0.6628037553 | K63: 26.80558201 | L63: 35.27211877 | M63: 0.3158497647 | N63: 120.9242016 | O63: 86.11978296 | P63: -0.2878201235 | R63: SPN | S63: 49.49524233 | T63: 51.65920596 | U63: 0.04372063917 | V63: 26.16470145 | W63: 22.49961243 | X63: -0.1400776166 | Y63: 75.65994378 | Z63: 74.15881839 | AA63: -0.01984042431
D64: EPN | E64: 73.94522912 | F64: 40.93463965 | G64: -0.4464194629 | H64: 51.88482371 | I64: 27.23380614 | J64: -0.4751103658 | K64: 41.6360455 | L64: 59.59082369 | M64: 0.431231592 | N64: 167.4660983 | O64: 127.7592695 | P64: -0.237103684 | R64: EPN | S64: 71.05258528 | T64: 87.31496601 | U64: 0.2288781002 | V64: 32.46666741 | W64: 39.5386098 | X64: 0.2178216289 | Y64: 103.5192527 | Z64: 126.8535758 | AA64: 0.2254104672
D65: SPD | E65: 62.31403745 | F65: 57.70799782 | G65: -0.07391656539 | H65: 28.21364868 | I65: 19.23696951 | J65: -0.3181679645 | K65: 26.96766997 | L65: 23.88012289 | M65: -0.1144906876 | N65: 117.4953561 | O65: 100.8250902 | P65: -0.1418802106 | R65: SPD | S65: 42.14328866 | T65: 59.20156646 | U65: 0.4047685487 | V65: 23.35025455 | W65: 31.709659 | X65: 0.3580005707 | Y65: 65.49354321 | Z65: 90.91122546 | AA65: 0.3880944746
D66: SPMW | E66: 86.91800979 | F66: 80.63101844 | G66: -0.07233243564 | H66: 22.29377088 | I66: 19.95953994 | J66: -0.1047032802 | K66: 22.08038747 | L66: 27.7920321 | M66: 0.2586750182 | N66: 131.2921681 | O66: 128.3825905 | P66: -0.02216109079 | R66: SPMW | S66: 41.12872128 | T66: 61.40596219 | U66: 0.493018997 | V66: 18.58730121 | W66: 31.38700388 | X66: 0.688626204 | Y66: 59.71602248 | Z66: 92.79296606 | AA66: 0.5539039978
D67: SSEH | E67: 32.17977584 | F67: 26.8095165 | G67: -0.1668830562 | H67: 15.96569407 | I67: 7.938097958 | J67: -0.502802827 | K67: 17.30435848 | L67: 9.950275009 | M67: -0.4249844614 | N67: 65.44982839 | O67: 44.69788947 | P67: -0.3170663611 | R67: SSEH | S67: 34.28235679 | T67: 43.56154469 | U67: 0.2706694864 | V67: 22.02240721 | W67: 21.39512852 | X67: -0.02848365698 | Y67: 56.304764 | Z67: 64.95667321 | AA67: 0.1536621166
D68: SSES | E68: 89.6247895 | F68: 78.95278819 | G68: -0.1190742135 | H68: 29.52406649 | I68: 24.15562053 | J68: -0.1818328774 | K68: 38.55496354 | L68: 47.83950449 | M68: 0.240813117 | N68: 157.7038195 | O68: 150.9479132 | P68: -0.04283920548 | R68: SSES | S68: 69.27329336 | T68: 82.554579 | U68: 0.191723029 | V68: 35.02492336 | W68: 36.65004529 | X68: 0.0463990145 | Y68: 104.2982167 | Z68: 119.2046243 | AA68: 0.1429210204
D69: Total | E69: =AP205 -> 897.1771695 | F69: 752.3533816 | G69: -0.1614216152 | H69: 344.9730851 | I69: 240.6286529 | J69: -0.3024712267 | K69: 409.309204 | L69: 458.4232569 | M69: 0.1199925448 | N69: 1651.459459 | O69: 1451.405291 | P69: -0.1211378009 | R69: Total | S69: 679.8867723 | T69: 794.7621493 | U69: 0.168962512 | V69: 368.4094828 | W69: 380.0894029 | X69: 0.03170363606 | Y69: 1048.296255 | Z69: 1174.851552 | AA69: 0.1207247441
B72: Distribution of overall allowances and expenditure RIGs Annex B Business Plan Data Templates Scores & allowances 2014-20141120-1_7 Post CMA Combining results for Reg Finance-20141120-1 RJ Post CMA DPCR5 Close out report DPCR4 Allowances | D72: Allowances
E73: DR4 | J73: DR5 | O73: ED1
E74: 2005/06 | F74: 2006/07 | G74: 2007/08 | H74: 2008/09 | I74: 2009/10 | J74: 2010/11 | K74: 2011/12 | L74: 2012/13 | M74: 2013/14 | N74: 2014/15 | O74: 2015/16 | P74: 2016/17 | Q74: 2017/18 | R74: 2018/19 | S74: 2019/20 | T74: 2020/21 | U74: 2021/22 | V74: 2022/23
D75: ENWL | E75: 264.1656557 | F75: 259.8294859 | G75: 256.7322218 | H75: 253.7898209 | I75: 250.84742 | J75: 297.1665013 | K75: 315.3507738 | L75: 311.9993823 | M75: 271.5008624 | N75: 278.0612127 | O75: 265.4886364 | P75: 253.7395962 | Q75: 255.6948053 | R75: 253.4585821 | S75: 253.6524445 | T75: 253.9013137 | U75: 262.8222236 | V75: 253.8292402
D76: NPgN | E76: 168.2124136 | F76: 170.0707721 | G76: 169.1415929 | H76: 168.2124136 | I76: 167.4380976 | J76: 193.2536241 | K76: 192.3396495 | L76: 201.6873393 | M76: 208.3783364 | N76: 204.1132469 | O76: 205.745853 | P76: 201.9485094 | Q76: 188.6460675 | R76: 184.6327297 | S76: 181.8089696 | T76: 168.1089992 | U76: 157.9076299 | V76: 154.8199103
D77: NPgY | E77: 224.7994289 | F77: 222.1667544 | G77: 219.3792167 | H77: 218.140311 | I77: 217.0562686 | J77: 259.0831618 | K77: 261.5616601 | L77: 257.579774 | M77: 262.2495554 | N77: 271.7372058 | O77: 270.7900366 | P77: 255.2910635 | Q77: 251.0002104 | R77: 250.5525361 | S77: 237.2604759 | T77: 227.5865915 | U77: 213.5942197 | V77: 218.6665724
D78: WMID | E78: 285.0102431 | F78: 280.3643469 | G78: 276.64763 | H78: 273.8600923 | I78: 272.6211867 | J78: 284.5673408 | K78: 293.3057719 | L78: 309.4094546 | M78: 314.1234358 | N78: 317.8319168 | O78: 292.6247846 | P78: 293.6434498 | Q78: 284.2894463 | R78: 289.4552933 | S78: 298.2585206 | T78: 303.9422406 | U78: 301.2276123 | V78: 304.3123163
D79: EMID | E79: 287.2712459 | F79: 290.5233732 | G79: 290.5233732 | H79: 287.8906987 | I79: 286.4969299 | J79: 283.73675 | K79: 296.2449405 | L79: 324.4913645 | M79: 318.8410543 | N79: 316.8958326 | O79: 319.8547773 | P79: 313.0105043 | Q79: 278.2571758 | R79: 283.5304325 | S79: 280.336203 | T79: 291.5197758 | U79: 306.2948326 | V79: 297.8390684
D80: SWALES | E80: 134.8239066 | F80: 136.9919914 | G80: 137.7663075 | H80: 136.9919914 | I80: 136.2176754 | J80: 139.7874027 | K80: 144.7342031 | L80: 149.6386561 | M80: 148.7125281 | N80: 151.5495035 | O80: 165.0770134 | P80: 166.5644866 | Q80: 157.6735645 | R80: 167.4408954 | S80: 153.3919929 | T80: 153.7396821 | U80: 148.5582957 | V80: 151.1622727
D81: SWEST | E81: 181.2518955 | F81: 184.1942964 | G81: 185.1234757 | H81: 184.1942964 | I81: 183.2651172 | J81: 192.0331195 | K81: 208.8371499 | L81: 214.0182123 | M81: 217.4692034 | N81: 219.5207827 | O81: 241.1961806 | P81: 241.9069258 | Q81: 237.4356039 | R81: 240.9922018 | S81: 236.7467867 | T81: 239.4522806 | U81: 239.2083476 | V81: 250.337004
D82: LPN | E82: 246.6351408 | F82: 250.1969945 | G82: 252.3650794 | H82: 251.1261738 | I82: 249.8872681 | J82: 272.8613886 | K82: 274.4888292 | L82: 267.7613762 | M82: 246.7148753 | N82: 246.2762471 | O82: 277.7351555 | P82: 272.5392375 | Q82: 258.2142815 | R82: 248.229501 | S82: 252.5010402 | T82: 240.1298391 | U82: 224.8491086 | V82: 213.676383
D83: SPN | E83: 256.546386 | F83: 249.7324049 | G83: 243.2281503 | H83: 239.201707 | I83: 232.0779995 | J83: 270.4871406 | K83: 275.9194687 | L83: 265.108359 | M83: 262.8364726 | N83: 276.0696023 | O83: 250.4371271 | P83: 274.3515887 | Q83: 257.8727905 | R83: 244.4903447 | S83: 233.8045519 | T83: 226.8454632 | U83: 227.5574751 | V83: 219.2569399
D84: EPN | E84: 378.1759474 | F84: 378.640537 | G84: 376.9370418 | H84: 375.2335465 | I84: 373.6849145 | J84: 401.8461912 | K84: 385.0319916 | L84: 376.1422927 | M84: 375.421372 | N84: 390.0857844 | O84: 374.0037931 | P84: 386.1497315 | Q84: 367.0873459 | R84: 360.8348156 | S84: 357.4113576 | T84: 342.9688082 | U84: 340.8970326 | V84: 324.0002588
D85: SPD | E85: 241.7492067 | F85: 248.2457181 | G85: 247.1616757 | H85: 245.9227701 | I85: 244.8387276 | J85: 204.4886882 | K85: 216.8872913 | L85: 233.8372128 | M85: 245.955479 | N85: 240.4965271 | O85: 230.4199317 | P85: 229.097546 | Q85: 234.3976519 | R85: 218.2735095 | S85: 212.0484869 | T85: 204.0783543 | U85: 194.8133113 | V85: 188.918422
D86: SPMW | E86: 217.6292625 | F86: 215.5966829 | G86: 213.4644101 | H86: 210.7378498 | I86: 209.8086706 | J86: 269.3999347 | K86: 263.1403426 | L86: 287.5924062 | M86: 278.2477011 | N86: 281.6458979 | O86: 264.1668314 | P86: 275.201748 | Q86: 250.847322 | R86: 227.0962996 | S86: 225.4152245 | T86: 228.834132 | U86: 212.5604734 | V86: 191.5259402
D87: SSEH | E87: 146.3844448 | F87: 147.3405316 | G87: 149.5298182 | H87: 151.1279048 | I87: 150.3535888 | J87: 152.0719574 | K87: 147.7458911 | L87: 143.448635 | M87: 142.3548759 | N87: 148.397402 | O87: 179.648297 | P87: 182.1359275 | Q87: 182.2675071 | R87: 157.0234911 | S87: 158.4223038 | T87: 156.8359648 | U87: 160.1349981 | V87: 155.3667728
D88: SSES | E88: 326.1728831 | F88: 332.8320009 | G88: 335.3098122 | H88: 333.9160433 | I88: 332.5222745 | J88: 357.9626344 | K88: 361.6893907 | L88: 366.0260363 | M88: 360.9253664 | N88: 349.8064458 | O88: 344.1853012 | P88: 350.4791581 | Q88: 340.8853314 | R88: 341.9527231 | S88: 307.7872281 | T88: 308.6700513 | U88: 318.9094788 | V88: 310.7978306
D89: Total | E89: 3358.82806 | F89: 3366.72589 | G89: 3353.309805 | H89: 3330.34562 | I89: 3307.116139 | J89: 3578.745835 | K89: 3637.277354 | L89: 3708.740501 | M89: 3653.731118 | N89: 3692.487607 | O89: 3681.373719 | P89: 3696.059473 | Q89: 3544.569104 | R89: 3467.963355 | S89: 3388.845586 | T89: 3346.613496 | U89: 3309.335039 | V89: 3234.508932
D90: Total Slow Track | E90: =SUM(E75:E77,E82:E88) -> 2470.470769 | F90: =SUM(F75:F77,F82:F88) -> 2474.651882 | G90: 2463.249019 | H90: 2447.408541 | I90: 2428.51523 | J90: 2678.621222 | K90: 2694.155288 | L90: 2711.182814 | M90: 2654.584897 | N90: 2686.689572 | O90: =SUM(O75:O77,O82:O88) -> 2662.620963 | P90: =SUM(P75:P77,P82:P88) -> 2680.934107 | Q90: 2586.913314 | R90: 2486.544532 | S90: 2420.112083 | T90: 2357.959517 | U90: 2314.045951 | V90: 2230.85827
D92: Actuals/Forecasts
E93: DR4 | J93: DR5 | O93: ED1
E94: 2005/06 | F94: 2006/07 | G94: 2007/08 | H94: 2008/09 | I94: 2009/10 | J94: 2013/11 | K94: 2011/12 | L94: 2012/13 | M94: 2013/14 | N94: 2014/15 | O94: 2015/16 | P94: 2016/17 | Q94: 2017/18 | R94: 2018/19 | S94: 2019/20 | T94: 2020/21 | U94: 2021/22 | V94: 2022/23
D95: ENWL | E95: 234.6432695 | F95: 222.369647 | G95: 243.0715632 | H95: 253.8555774 | I95: 239.5303639 | J95: 243.701183 | K95: 267.4827498 | L95: 265.9053086 | M95: 274.6903854 | N95: 290.2269957 | O95: 258.9991878 | P95: 219.5268123 | Q95: 254.6194351 | R95: 267.7768533 | S95: 242.5605347 | T95: 245.2781236 | U95: 239.9646476 | V95: 235.7234814
D96: NPgN | E96: 148.7899798 | F96: 153.5656353 | G96: 166.1312969 | H96: 163.6314703 | I96: 156.557587 | J96: 138.7032464 | K96: 140.1770356 | L96: 195.3369953 | M96: 223.4456639 | N96: 233.9765768 | O96: 199.8055683 | P96: 195.671846 | Q96: 176.7326537 | R96: 186.3052088 | S96: 185.8121004 | T96: 170.8632934 | U96: 166.703069 | V96: 163.9044652
D97: NPgY | E97: 205.7803775 | F97: 182.1146737 | G97: 197.3295576 | H97: 209.8876281 | I97: 225.0880934 | J97: 192.4698365 | K97: 202.7357172 | L97: 257.1817888 | M97: 262.7151331 | N97: 304.2953216 | O97: 264.4177006 | P97: 228.0369894 | Q97: 221.0244651 | R97: 224.2909113 | S97: 254.8316136 | T97: 248.084704 | U97: 246.4415865 | V97: 233.5979116
D98: WMID | E98: 212.6062345 | F98: 271.6462733 | G98: 286.5014759 | H98: 321.4596645 | I98: 297.3162995 | J98: 261.9298435 | K98: 319.0657732 | L98: 300.999533 | M98: 358.8936152 | N98: 356.4690914 | O98: 330.4402997 | P98: 331.7866542 | Q98: 282.2539431 | R98: 278.510875 | S98: 280.4832916 | T98: 278.7481665 | U98: 282.8050487 | V98: 285.9693406
D99: EMID | E99: 201.9779426 | F99: 247.9374972 | G99: 274.4173375 | H99: 306.6662714 | I99: 272.4267355 | J99: 244.9577615 | K99: 293.6111275 | L99: 337.1155869 | M99: 363.9881727 | N99: 396.1308101 | O99: 326.266659 | P99: 328.3814299 | Q99: 287.1958029 | R99: 288.9357349 | S99: 285.4689003 | T99: 290.2588655 | U99: 288.9992158 | V99: 279.0285089
D100: SWALES | E100: 111.0606191 | F100: 115.6169278 | G100: 120.9664769 | H100: 115.4373226 | I100: 119.4691345 | J100: 130.9485133 | K100: 129.4008254 | L100: 149.1422798 | M100: 145.5311077 | N100: 150.7720971 | O100: 150.4695665 | P100: 155.9158557 | Q100: 137.996984 | R100: 150.6106189 | S100: 153.7254587 | T100: 143.5665933 | U100: 133.873461 | V100: 140.7726874
D101: SWEST | E101: 161.7690343 | F101: 169.2091487 | G101: 168.740864 | H101: 171.6908804 | I101: 184.4348641 | J101: 184.72315 | K101: 186.3996034 | L101: 196.5165874 | M101: 215.5986122 | N101: 202.0771466 | O101: 236.4499356 | P101: 270.0368151 | Q101: 234.3587416 | R101: 236.5589796 | S101: 233.427987 | T101: 223.716841 | U101: 214.5395459 | V101: 221.714106
D102: LPN | E102: 190.8354204 | F102: 213.5037162 | G102: 226.8147503 | H102: 241.4772263 | I102: 236.2339794 | J102: 228.166221 | K102: 202.6728648 | L102: 228.3171024 | M102: 244.0427589 | N102: 234.5325642 | O102: 200.3081331 | P102: 214.2910365 | Q102: 235.1152525 | R102: 240.9726041 | S102: 210.7502267 | T102: 228.8338743 | U102: 226.3672129 | V102: 217.0639858
D103: SPN | E103: 212.9765465 | F103: 172.2526895 | G103: 211.3950375 | H103: 267.0740514 | I103: 309.2910682 | J103: 274.1336097 | K103: 245.5906654 | L103: 238.1210464 | M103: 252.6053537 | N103: 207.5898178 | O103: 183.2820485 | P103: 212.5514922 | Q103: 214.193193 | R103: 229.4879555 | S103: 204.9103794 | T103: 205.7664173 | U103: 193.1270976 | V103: 189.5148884
D104: EPN | E104: 277.9502083 | F104: 305.3630311 | G104: 378.3760304 | H104: 431.6137603 | I104: 474.9649619 | J104: 407.5608756 | K104: 356.0543117 | L104: 347.0986315 | M104: 398.970673 | N104: 388.567279 | O104: 297.6190222 | P104: 322.1846236 | Q104: 345.566696 | R104: 320.7991256 | S104: 298.2070871 | T104: 294.7006805 | U104: 294.697636 | V104: 288.0447115
D105: SPD | E105: 185.3502214 | F105: 209.1662637 | G105: 210.2871546 | H105: 207.6738068 | I105: 183.8919672 | J105: 191.3499161 | K105: 214.1783541 | L105: 201.2027963 | M105: 229.754803 | N105: 235.3723824 | O105: 203.0094412 | P105: 220.4869267 | Q105: 224.9373846 | R105: 229.7864149 | S105: 223.1277219 | T105: 217.4421294 | U105: 194.8400354 | V105: 189.3000173
D106: SPMW | E106: 207.8819923 | F106: 197.850527 | G106: 217.0725116 | H106: 229.4480514 | I106: 199.0029196 | J106: 210.0571689 | K106: 239.0034992 | L106: 253.7215754 | M106: 281.8394713 | N106: 313.6298923 | O106: 252.9803277 | P106: 266.2163652 | Q106: 270.8503952 | R106: 234.3552548 | S106: 232.4512503 | T106: 235.6929201 | U106: 200.6113637 | V106: 181.0782117
D107: SSEH | E107: 102.7981718 | F107: 108.3156251 | G107: 116.810201 | H107: 134.5354802 | I107: 143.0647054 | J107: 110.8529563 | K107: 138.381975 | L107: 135.5893333 | M107: 129.2977965 | N107: 138.5669839 | O107: 160.3560949 | P107: 180.4469607 | Q107: 170.9063116 | R107: 167.6154793 | S107: 154.2873733 | T107: 146.5416478 | U107: 145.8426152 | V107: 139.0406224
D108: SSES | E108: 224.1151953 | F108: 251.8264859 | G108: 290.8806219 | H108: 320.4376366 | I108: 326.3628952 | J108: 252.5765728 | K108: 282.3399077 | L108: 312.1215603 | M108: 346.0863675 | N108: 325.5531254 | O108: 297.5625614 | P108: 319.711524 | Q108: 359.4229367 | R108: 313.9142265 | S108: 332.2883472 | T108: 302.6543344 | U108: 282.1868735 | V108: 274.3303633
D109: Total | E109: 2678.535213 | F109: 2820.738142 | G109: 3108.79488 | H109: 3374.888827 | I109: 3367.635575 | J109: 3072.130855 | K109: 3217.09441 | L109: 3418.370125 | M109: 3727.459914 | N109: 3777.760084 | O109: 3361.966546 | P109: 3465.245332 | Q109: 3415.174195 | R109: 3369.920243 | S109: 3292.332272 | T109: 3232.148591 | U109: 3110.999409 | V109: 3039.083301
D110: Total Slow Track | E110: =SUM(E95:E97,E102:E108) -> 1991.121383 | F110: =SUM(F95:F97,F102:F108) -> 2016.328295 | G110: 2258.168725 | H110: 2459.634689 | I110: 2493.988541 | J110: 2249.571586 | K110: 2288.61708 | L110: 2434.596138 | M110: 2643.448406 | N110: 2672.310939 | O110: =SUM(O95:O97,O102:O108) -> 2318.340086 | P110: =SUM(P95:P97,P102:P108) -> 2379.124577 | Q110: =SUM(Q95:Q97,Q102:Q108) -> 2473.368723 | R110: 2415.304034 | S110: 2339.226635 | T110: 2295.858125 | U110: 2190.782138 | V110: 2111.598658
D113: Allowances vs Expenditure
E114: Cumulative to date | I114: Overall ED1 Forecast
E115: Allowance | F115: Actual | G115: Difference | I115: Allowance | J115: Actual (and forecast) | K115: Difference
G116: No | H116: % | K116: No | L116: %
D117: ENWL | E117: =SUM(O75:Q75) -> 774.9230379 | F117: =SUM(O95:Q95) -> 733.1454352 | G117: =F117-E117 -> -41.77760275 | H117: =G117/E117 -> -0.05391193796 | I117: =SUM(O75:V75) -> 2052.586842 | J117: =SUM(O95:V95) -> 1964.449076 | K117: =J117-I117 -> -88.1377662 | L117: =K117/I117 -> -0.04293984761
D118: NPgN | E118: =SUM(O76:Q76) -> 596.34043 | F118: =SUM(O96:Q96) -> 572.2100681 | G118: =F118-E118 -> -24.13036193 | H118: =G118/E118 -> -0.04046407172 | I118: 1443.618669 | J118: =SUM(O96:V96) -> 1445.798205 | K118: =J118-I118 -> 2.179536125 | L118: =K118/I118 -> 0.001509772748
D119: NPgY | E119: 777.0813105 | F119: 713.4791551 | G119: -63.60215543 | H119: -0.08184749083 | I119: 1924.741706 | J119: =SUM(O97:V97) -> 1920.725882 | K119: -4.015823939 | L119: -0.002086422259
D120: WMID | E120: 870.5576807 | F120: =SUM(O98:Q98) -> 944.4808971 | G120: 73.92321637 | H120: 0.08491478279 | I120: 2367.753664 | J120: =SUM(O98:V98) -> 2350.997619 | K120: -16.75604436 | L120: -0.007076768422
D121: EMID | E121: 911.1224574 | F121: 941.8438918 | G121: 30.72143444 | H121: 0.03371822765 | I121: 2370.64277 | J121: 2374.535117 | K121: 3.892347432 | L121: 0.001641895389
D122: SWALES | E122: 489.3150645 | F122: 444.3824062 | G122: -44.93265828 | H122: -0.09182766186 | I122: 1263.608203 | J122: =SUM(O100:V100) -> 1166.931226 | K122: -96.67697756 | L122: -0.07650866567
D123: SWEST | E123: 720.5387104 | F123: 740.8454924 | G123: 20.30678203 | H123: 0.02818277732 | I123: 1927.275331 | J123: 1870.802952 | K123: -56.47237921 | L123: -0.02930166661
D124: LPN | E124: 808.4886745 | F124: 649.714422 | G124: -158.7742525 | H124: -0.1963840156 | I124: 1987.874546 | J124: 1773.702326 | K124: -214.1722206 | L124: -0.1077393043
D125: SPN | E125: 782.6615063 | F125: 610.0267337 | G125: -172.6347727 | H125: -0.2205739918 | I125: 1934.616281 | J125: =SUM(O103:V103) -> 1632.833472 | K125: -301.7828094 | L125: -0.1559910419
D126: EPN | E126: 1127.240871 | F126: 965.3703417 | G126: -161.8705288 | H126: -0.143598882 | I126: 2853.353143 | J126: 2461.819582 | K126: -391.5335609 | L126: -0.1372187532
D127: SPD | E127: 693.9151296 | F127: 648.4337525 | G127: -45.48137711 | H127: -0.06554314089 | I127: 1712.047214 | J127: 1702.930071 | K127: -9.117142243 | L127: -0.005325286692
D128: SPMW | E128: 790.2159014 | F128: 790.0470881 | G128: -0.1688132876 | H128: -0.0002136293224 | I128: 1875.647971 | J128: 1874.236089 | K128: -1.411882387 | L128: -0.0007527438031
D129: SSEH | E129: 544.0517316 | F129: 511.7093672 | G129: -32.34236436 | H129: -0.05944722254 | I129: 1331.835262 | J129: 1265.037105 | K129: -66.79815689 | L129: -0.05015496945
D130: SSES | E130: 1035.549791 | F130: 976.6970221 | G130: -58.85276863 | H130: -0.0568323891 | I130: 2623.667103 | J130: 2482.071167 | K130: -141.5959356 | L130: -0.05396871253
D131: Total | E131: 10922.0023 | F131: 10242.38607 | G131: =F131-E131 -> -679.6162229 | H131: =G131/E131 -> -0.06222450833 | I131: 27669.26871 | J131: =SUM(J117:J130) -> 26286.86989 | K131: =J131-I131 -> -1382.398816 | L131: =K131/I131 -> -0.0499615234
E134: Cumulative to date | I134: Overall ED1 Forecast
E135: Allowance | F135: Actual | G135: Difference | I135: Allowance | J135: Actual | K135: Difference
G136: No | H136: % | K136: No | L136: %
D137: ENWL | E137: =E117 -> 774.9230379 | F137: =F117 -> 733.1454352 | G137: =F137-E137 -> -41.77760275 | H137: =G137/E137 -> -0.05391193796 | I137: =I117 -> 2052.586842 | J137: =J117 -> 1964.449076 | K137: =J137-I137 -> -88.1377662 | L137: =K137/I137 -> -0.04293984761
D138: NPg | E138: =SUM(E118:E119) -> 1373.421741 | F138: =SUM(F118:F119) -> 1285.689223 | G138: =F138-E138 -> -87.73251736 | H138: =G138/E138 -> -0.06387878885 | I138: =SUM(I118:I119) -> 3368.360375 | J138: =SUM(J118:J119) -> 3366.524087 | K138: -1.836287814 | L138: =K138/I138 -> -0.0005451577652
D139: WPD | E139: =SUM(E120:E123) -> 2991.533913 | F139: =SUM(F120:F123) -> 3071.552688 | G139: 80.01877455 | H139: 0.02674840964 | I139: =SUM(I120:I123) -> 7929.279968 | J139: =SUM(J120:J123) -> 7763.266914 | K139: -166.0130537 | L139: -0.02093671233
D140: UKPN | E140: =SUM(E124:E126) -> 2718.391051 | F140: =SUM(F124:F126) -> 2225.111497 | G140: -493.2795539 | H140: -0.1814601154 | I140: =SUM(I124:I126) -> 6775.843971 | J140: =SUM(J124:J126) -> 5868.35538 | K140: -907.4885909 | L140: -0.1339299716
D141: SPEN | E141: =SUM(E127:E128) -> 1484.131031 | F141: =SUM(F127:F128) -> 1438.480841 | G141: -45.6501904 | H141: -0.03075886795 | I141: =SUM(I127:I128) -> 3587.695185 | J141: =SUM(J127:J128) -> 3577.16616 | K141: -10.52902463 | L141: -0.002934760086
D142: SSEN | E142: =SUM(E129:E130) -> 1579.601522 | F142: =SUM(F129:F130) -> 1488.406389 | G142: -91.19513299 | H142: -0.05773299893 | I142: =SUM(I129:I130) -> 3955.502365 | J142: =SUM(J129:J130) -> 3747.108272 | K142: -208.3940925 | L142: -0.05268460825
D143: Total | E143: =SUM(E137:E142) -> 10922.0023 | F143: =SUM(F137:F142) -> 10242.38607 | G143: -679.6162229 | H143: -0.06222450833 | I143: =SUM(I137:I142) -> 27669.26871 | J143: =SUM(J137:J142) -> 26286.86989 | K143: -1382.398816 | L143: -0.0499615234
B146: Baseline allowances and actual expenditure by cost category
AF147: 2015/16 | AK147: 2016/17 | AP147: 2017/18 | AU147: 2018/19 | AZ147: 2019/20 | BE147: 2020/21 | BJ147: 2021/22 | BO147: 2022/23
D148: Largest five total | AF148: Baseline Allowance v Actual | AK148: Baseline Allowance v Actual | AP148: Baseline Allowance v Actual | AU148: Baseline Allowance v Actual | AZ148: Baseline Allowance v Actual | BE148: Baseline Allowance v Actual | BJ148: Baseline Allowance v Actual | BO148: Baseline Allowance v Actual
E149: DNO Forecast (£m) - DNO Business Plan Data Templates | N149: DNO Baseline (£m) | W149: DNO Actual (£m) | AF149: Allowance | AG149: Actual | AH149: Difference | AK149: Allowance | AL149: Actual | AM149: Difference | AP149: Allowance | AQ149: Actual | AR149: Difference | AU149: Allowance | AV149: Actual | AW149: Difference | AZ149: Allowance | BA149: Actual | BB149: Difference | BE149: Allowance | BF149: Actual | BG149: Difference | BJ149: Allowance | BK149: Actual | BL149: Difference | BO149: Allowance | BP149: Actual | BQ149: Difference
E150: 2015/16 | F150: 2016/17 | G150: 2017/18 | H150: 2018/19 | I150: 2019/20 | J150: 2020/21 | K150: 2021/22 | L150: 2022/23 | N150: 2015/16 | O150: 2016/17 | P150: 2017/18 | Q150: 2018/19 | R150: 2019/20 | S150: 2020/21 | T150: 2021/22 | U150: 2022/23 | W150: 2015/16 | X150: 2016/17 | Y150: 2017/18 | Z150: 2018/19 | AA150: 2019/20 | AB150: 2020/21 | AC150: 2021/22 | AD150: 2022/23 | AF150: £ | AG150: £ | AH150: £ | AI150: % | AK150: £ | AL150: £ | AM150: £ | AN150: % | AP150: £ | AQ150: £ | AR150: £ | AS150: % | AU150: £ | AV150: £ | AW150: £ | AX150: % | AZ150: £ | BA150: £ | BB150: £ | BC150: % | BE150: £ | BF150: £ | BG150: £ | BH150: % | BJ150: £ | BK150: £ | BL150: £ | BM150: % | BO150: £ | BP150: £ | BQ150: £ | BR150: %
D151: ENWL | E151: =SUM(E171,E191,E211,E231,E251) -> 214.6323398 | F151: =SUM(F171,F191,F211,F231,F251) -> 209.5145139 | G151: 210.1671405 | H151: 207.9557543 | I151: 217.9821292 | J151: 218.8818651 | K151: 225.8117928 | L151: 219.0885708 | N151: =SUM(N171,N191,N211,N231,N251) -> 218.0941741 | O151: =SUM(O171,O191,O211,O231,O251) -> 209.3859309 | P151: 207.5299832 | Q151: 206.3592383 | R151: 208.8185023 | S151: 209.7070947 | T151: 213.9699844 | U151: 205.898789 | W151: =SUM(W171,W191,W211,W231,W251) -> 191.5693077 | X151: =SUM(X171,X191,X211,X231,X251) -> 159.5620102 | Y151: =SUM(Y171,Y191,Y211,Y231,Y251) -> 186.9413748 | Z151: 0 | AA151: 0 | AB151: 0 | AC151: 0 | AD151: 0 | AF151: =N151 -> 218.0941741 | AG151: =W151 -> 191.5693077 | AH151: =AG151-AF151 -> -26.52486648 | AI151: =AH151/AF151 -> -0.1216211601 | AK151: =O151 -> 209.3859309 | AL151: =X151 -> 159.5620102 | AM151: =AL151-AK151 -> -49.82392066 | AN151: =AM151/AK151 -> -0.2379525713 | AP151: =P151 -> 207.5299832 | AQ151: =Y151 -> 186.9413748 | AR151: =AQ151-AP151 -> -20.58860839 | AS151: =AR151/AP151 -> -0.09920787385
D152: NPgN | E152: =SUM(E172,E192,E212,E232,E252) -> 167.7226232 | F152: 167.3684772 | G152: 160.2419854 | H152: 160.0121588 | I152: 162.7499953 | J152: 150.6693335 | K152: 137.680067 | L152: 137.9074996 | N152: =SUM(N172,N192,N212,N232,N252) -> 164.7385704 | O152: =SUM(O172,O192,O212,O232,O252) -> 160.5498716 | P152: 150.0941309 | Q152: 148.4405272 | R152: 148.229599 | S152: 136.7208203 | T152: 124.8916169 | U152: 123.7778531 | W152: =SUM(W172,W192,W212,W232,W252) -> 159.3382417 | X152: 158.5802972 | Y152: 143.599959 | Z152: 0 | AA152: 0 | AB152: 0 | AC152: 0 | AD152: 0 | AF152: =N152 -> 164.7385704 | AG152: =W152 -> 159.3382417 | AH152: =AG152-AF152 -> -5.400328643 | AI152: =AH152/AF152 -> -0.03278120376 | AK152: 160.5498716 | AL152: 158.5802972 | AM152: =AL152-AK152 -> -1.969574344 | AN152: =AM152/AK152 -> -0.01226767935 | AP152: =P152 -> 150.0941309 | AQ152: =Y152 -> 143.599959 | AR152: =AQ152-AP152 -> -6.494171862 | AS152: =AR152/AP152 -> -0.04326732714
D153: NPgY | E153: =SUM(E173,E193,E213,E233,E253) -> 199.7552271 | F153: 201.1766728 | G153: 201.7198032 | H153: 208.4038828 | I153: 202.250398 | J153: 196.2143587 | K153: 180.5053584 | L153: 192.2620523 | N153: 198.5850802 | O153: =SUM(O173,O193,O213,O233,O253) -> 197.4395667 | P153: 193.8979255 | Q153: 196.8038373 | R153: 188.4595554 | S153: 181.2095886 | T153: 166.9159028 | U153: 173.9632705 | W153: =SUM(W173,W193,W213,W233,W253) -> 192.9520913 | X153: 178.4642659 | Y153: 170.0324035 | Z153: 0 | AA153: 0 | AB153: 0 | AC153: 0 | AD153: 0 | AF153: 198.5850802 | AG153: 192.9520913 | AH153: -5.632988918 | AI153: -0.02836561998 | AK153: 197.4395667 | AL153: 178.4642659 | AM153: -18.97530077 | AN153: -0.0961068801 | AP153: 193.8979255 | AQ153: 170.0324035 | AR153: -23.86552199 | AS153: -0.1230829156
D154: WMID | E154: =SUM(E174,E194,E214,E234,E254) -> 228.9761667 | F154: 231.0553761 | G154: 224.9047572 | H154: 231.3399332 | I154: 235.284978 | J154: 233.3785214 | K154: 239.1091303 | L154: 244.5257276 | N154: 228.9761667 | O154: =SUM(O174,O194,O214,O234,O254) -> 231.0553761 | P154: 224.9047572 | Q154: 231.3399332 | R154: 235.284978 | S154: 233.3785214 | T154: 239.1091303 | U154: 244.5257276 | W154: =SUM(W174,W194,W214,W234,W254) -> 262.8127389 | X154: 242.7221483 | Y154: 220.1145 | Z154: 0 | AA154: 0 | AB154: 0 | AC154: 0 | AD154: 0 | AF154: 228.9761667 | AG154: 262.8127389 | AH154: 33.83657221 | AI154: 0.1477733368 | AK154: 231.0553761 | AL154: 242.7221483 | AM154: 11.66677226 | AN154: 0.05049340317 | AP154: 224.9047572 | AQ154: 220.1145 | AR154: -4.79025718 | AS154: -0.02129904783
D155: EMID | E155: =SUM(E175,E195,E215,E235,E255) -> 256.678341 | F155: 249.7171165 | G155: 215.5510079 | H155: 223.9214358 | I155: 223.096234 | J155: 234.6357934 | K155: 251.9936298 | L155: 246.3756216 | N155: 256.678341 | O155: =SUM(O175,O195,O215,O235,O255) -> 249.7171165 | P155: 215.5510079 | Q155: 223.9214358 | R155: 223.096234 | S155: 234.6357934 | T155: 251.9936298 | U155: 246.3756216 | W155: =SUM(W175,W195,W215,W235,W255) -> 261.2832411 | X155: 253.2828764 | Y155: 229.2055 | Z155: 0 | AA155: 0 | AB155: 0 | AC155: 0 | AD155: 0 | AF155: 256.678341 | AG155: 261.2832411 | AH155: 4.604900091 | AI155: 0.01794035318 | AK155: 249.7171165 | AL155: 253.2828764 | AM155: 3.565759867 | AN155: 0.01427919686 | AP155: 215.5510079 | AQ155: 229.2055 | AR155: 13.65449209 | AS155: 0.06334691832
D156: SWALES | E156: =SUM(E176,E196,E216,E236,E256) -> 110.3746395 | F156: 112.3737723 | G156: 112.6821817 | H156: 121.3455175 | I156: 120.4233694 | J156: 120.6641947 | K156: 118.5368951 | L156: 118.9190627 | N156: 110.3746395 | O156: =SUM(O176,O196,O216,O236,O256) -> 112.3737723 | P156: 112.6821817 | Q156: 121.3455175 | R156: 120.4233694 | S156: 120.6641947 | T156: 118.5368951 | U156: 118.9190627 | W156: =SUM(W176,W196,W216,W236,W256) -> 110.0988351 | X156: 105.6457692 | Y156: 106.1866826 | Z156: 0 | AA156: 0 | AB156: 0 | AC156: 0 | AD156: 0 | AF156: 110.3746395 | AG156: 110.0988351 | AH156: -0.2758043633 | AI156: -0.002498801941 | AK156: 112.3737723 | AL156: 105.6457692 | AM156: -6.728003062 | AN156: -0.05987164911 | AP156: 112.6821817 | AQ156: 106.1866826 | AR156: -6.495499076 | AS156: -0.05764442062
D157: SWEST | E157: =SUM(E177,E197,E217,E237,E257) -> 173.3368566 | F157: 174.8579192 | G157: 177.1725118 | H157: 183.8879461 | I157: 186.4936794 | J157: 188.3464531 | K157: 189.8334417 | L157: 193.0751758 | N157: 173.3368566 | O157: =SUM(O177,O197,O217,O237,O257) -> 174.8579192 | P157: 177.1725118 | Q157: 183.8879461 | R157: 186.4936794 | S157: 188.3464531 | T157: 189.8334417 | U157: 193.0751758 | W157: =SUM(W177,W197,W217,W237,W257) -> 173.6476998 | X157: 183.138242 | Y157: 182.9651 | Z157: 0 | AA157: 0 | AB157: 0 | AC157: 0 | AD157: 0 | AF157: 173.3368566 | AG157: 173.6476998 | AH157: 0.3108432003 | AI157: 0.001793289704 | AK157: 174.8579192 | AL157: 183.138242 | AM157: 8.280322774 | AN157: 0.04735457685 | AP157: 177.1725118 | AQ157: 182.9651 | AR157: 5.792588172 | AS157: 0.03269462126
D158: LPN | E158: =SUM(E178,E198,E218,E238,E258) -> 230.1400848 | F158: 226.2985227 | G158: 214.4073275 | H158: 203.577253 | I158: 213.9541749 | J158: 211.94264 | K158: 202.6541558 | L158: 198.654402 | N158: 211.5211076 | O158: =SUM(O178,O198,O218,O238,O258) -> 205.0100194 | P158: 192.6000006 | Q158: 182.2449343 | R158: 188.6580317 | S158: 184.673435 | T158: 172.1690821 | U158: 166.9400419 | W158: =SUM(W178,W198,W218,W238,W258) -> 146.1897727 | X158: 158.7105508 | Y158: 179.6009048 | Z158: 0 | AA158: 0 | AB158: 0 | AC158: 0 | AD158: 0 | AF158: 211.5211076 | AG158: 146.1897727 | AH158: -65.33133494 | AI158: -0.3088643761 | AK158: 205.0100194 | AL158: 158.7105508 | AM158: -46.29946859 | AN158: -0.2258400284 | AP158: 192.6000006 | AQ158: 179.6009048 | AR158: -12.9990958 | AS158: -0.06749270901
D159: SPN | E159: =SUM(E179,E199,E219,E239,E259) -> 199.8105757 | F159: 218.7884819 | G159: 212.2011891 | H159: 198.0636588 | I159: 190.3923999 | J159: 187.3320155 | K159: 190.6760216 | L159: 189.4159426 | N159: 190.8863086 | O159: =SUM(O179,O199,O219,O239,O259) -> 205.9754397 | P159: 196.5841454 | Q159: 183.5447899 | R159: 174.5898035 | S159: 171.2727435 | T159: 174.6747121 | U159: 169.6482412 | W159: =SUM(W179,W199,W219,W239,W259) -> 135.5844339 | X159: 162.1816081 | Y159: 160.2786014 | Z159: 0 | AA159: 0 | AB159: 0 | AC159: 0 | AD159: 0 | AF159: 190.8863086 | AG159: 135.5844339 | AH159: -55.30187474 | AI159: -0.2897110597 | AK159: 205.9754397 | AL159: 162.1816081 | AM159: -43.7938316 | AN159: -0.2126167647 | AP159: 196.5841454 | AQ159: 160.2786014 | AR159: -36.30554403 | AS159: -0.1846819537
D160: EPN | E160: =SUM(E180,E200,E220,E240,E260) -> 282.4014169 | F160: 286.3970364 | G160: 291.8500937 | H160: 290.5994015 | I160: 291.1782292 | J160: 288.8803744 | K160: 291.4857518 | L160: 278.8169112 | N160: 269.547898 | O160: =SUM(O180,O200,O220,O240,O260) -> 272.3250816 | P160: 270.985351 | Q160: 266.3291393 | R160: 264.1884478 | S160: 259.5105048 | T160: 259.4434402 | U160: 245.9292189 | W160: =SUM(W180,W200,W220,W240,W260) -> 213.6496107 | X160: 221.0389744 | Y160: 254.6128453 | Z160: 0 | AA160: 0 | AB160: 0 | AC160: 0 | AD160: 0 | AF160: 269.547898 | AG160: 213.6496107 | AH160: -55.8982873 | AI160: -0.2073779381 | AK160: 272.3250816 | AL160: 221.0389744 | AM160: -51.28610718 | AN160: -0.1883267853 | AP160: 270.985351 | AQ160: 254.6128453 | AR160: -16.37250574 | AS160: -0.06041841625
D161: SPD | E161: =SUM(E181,E201,E221,E241,E261) -> 171.5871715 | F161: 176.8658626 | G161: 182.9945779 | H161: 173.9117911 | I161: 168.6003838 | J161: 167.8600983 | K161: 171.4338074 | L161: 168.9704944 | N161: 177.9707986 | O161: =SUM(O181,O201,O221,O241,O261) -> 179.195556 | P161: 182.9888993 | Q161: 172.6146367 | R161: 164.826108 | S161: 161.5224631 | T161: 157.1965421 | U161: 152.1378312 | W161: =SUM(W181,W201,W221,W241,W261) -> 170.4152191 | X161: 178.9125964 | Y161: 191.7363157 | Z161: 0 | AA161: 0 | AB161: 0 | AC161: 0 | AD161: 0 | AF161: 177.9707986 | AG161: 170.4152191 | AH161: -7.555579516 | AI161: -0.04245404063 | AK161: 179.195556 | AL161: 178.9125964 | AM161: -0.2829595504 | AN161: -0.001579054508 | AP161: 182.9888993 | AQ161: 191.7363157 | AR161: 8.747416374 | AS161: 0.04780298918
D162: SPMW | E162: =SUM(E182,E202,E222,E242,E262) -> 224.4167557 | F162: 242.5706402 | G162: 218.131662 | H162: 197.4753383 | I162: 196.1296852 | J162: 209.7619668 | K162: 206.6232088 | L162: 186.0042666 | N162: 202.4005228 | O162: =SUM(O182,O202,O222,O242,O262) -> 209.4369058 | P162: 191.0081906 | Q162: 173.8750105 | R162: 170.3030712 | S162: 178.6867632 | T162: 168.5745639 | U162: 149.8867555 | W162: =SUM(W182,W202,W222,W242,W262) -> 211.0193875 | X162: 204.9157329 | Y162: 221.1755565 | Z162: 0 | AA162: 0 | AB162: 0 | AC162: 0 | AD162: 0 | AF162: 202.4005228 | AG162: 211.0193875 | AH162: 8.618864665 | AI162: 0.04258321345 | AK162: 209.4369058 | AL162: 204.9157329 | AM162: -4.521172854 | AN162: -0.0215872787 | AP162: 191.0081906 | AQ162: 221.1755565 | AR162: 30.16736592 | AS162: 0.1579375514
D163: SSEH | E163: =SUM(E183,E203,E223,E243,E263) -> 120.8325126 | F163: 123.5293372 | G163: 128.2122958 | H163: 128.8098967 | I163: 134.5377399 | J163: 135.1268434 | K163: 141.4023738 | L163: 138.5469689 | N163: 118.0485264 | O163: =SUM(O183,O203,O223,O243,O263) -> 119.7144599 | P163: 121.7545924 | Q163: 121.7996607 | R163: 124.7441336 | S163: 124.080782 | T163: 128.5334291 | U163: 124.682305 | W163: =SUM(W183,W203,W223,W243,W263) -> 98.6893291 | X163: 107.7097921 | Y163: 109.6545627 | Z163: 0 | AA163: 0 | AB163: 0 | AC163: 0 | AD163: 0 | AF163: 118.0485264 | AG163: 98.6893291 | AH163: -19.35919731 | AI163: -0.1639935534 | AK163: 119.7144599 | AL163: 107.7097921 | AM163: -12.00466786 | AN163: -0.1002775092 | AP163: 121.7545924 | AQ163: 109.6545627 | AR163: -12.10002971 | AS163: -0.099380479
D164: SSES | E164: =SUM(E184,E204,E224,E244,E264) -> 255.7809218 | F164: 268.4283527 | G164: 263.2977715 | H164: 263.242955 | I164: 249.3808755 | J164: 257.1999959 | K164: 275.0942165 | L164: 269.9568798 | N164: 264.7978899 | O164: =SUM(O184,O204,O224,O244,O264) -> 271.6252133 | P164: 262.0020363 | Q164: 261.5167288 | R164: 244.225517 | S164: 247.6685033 | T164: 260.2606853 | U164: 252.9201294 | W164: =SUM(W184,W204,W224,W244,W264) -> 209.0818574 | X164: 224.495559 | Y164: 270.1525375 | Z164: 0 | AA164: 0 | AB164: 0 | AC164: 0 | AD164: 0 | AF164: 264.7978899 | AG164: 209.0818574 | AH164: -55.71603247 | AI164: -0.2104096543 | AK164: 271.6252133 | AL164: 224.495559 | AM164: -47.12965427 | AN164: -0.1735098657 | AP164: 262.0020363 | AQ164: 270.1525375 | AR164: 8.150501229 | AS164: 0.03110854154
D165: Total | E165: =SUM(E151:E164) -> 2836.445633 | F165: 2888.942082 | G165: 2813.534305 | H165: 2792.546923 | I165: 2792.454272 | J165: 2800.894454 | K165: 2822.839851 | L165: 2782.519576 | N165: =SUM(N151:N164) -> 2785.95688 | O165: 2798.662229 | P165: 2699.755714 | Q165: 2674.023336 | R165: 2642.34103 | S165: 2632.077661 | T165: 2626.103056 | U165: 2568.680023 | W165: =SUM(W151:W164) -> 2536.331766 | X165: 2539.360423 | Y165: =SUM(Y151:Y164) -> 2626.256844 | Z165: 0 | AA165: 0 | AB165: 0 | AC165: 0 | AD165: 0 | AF165: 2785.95688 | AG165: 2536.331766 | AH165: -249.6251145 | AI165: -0.08960121252 | AK165: 2798.662229 | AL165: 2539.360423 | AM165: -259.3018058 | AN165: -0.09265205467 | AP165: 2699.755714 | AQ165: 2626.256844 | AR165: -73.49886998 | AS165: -0.02722426685
D166: Total Slow Track | E166: =E165-SUM(E154:E157) -> 2067.079629 | F166: 2120.937898 | G166: 2083.223847 | H166: 2032.05209 | I166: 2027.156011 | J166: 2023.869492 | K166: 2023.366754 | L166: 1979.623988 | N166: =N165-SUM(N154:N157) -> 2016.590877 | O166: 2030.658045 | P166: 1969.445255 | Q166: 1913.528503 | R166: 1877.04277 | S166: 1855.052698 | T166: 1826.629959 | U166: 1765.784436 | W166: =W165-SUM(W154:W157) -> 1728.489251 | X166: 1754.571387 | Y166: =Y165-SUM(Y154:Y157) -> 1887.785061 | Z166: 0 | AA166: 0 | AB166: 0 | AC166: 0 | AD166: 0 | AF166: 2016.590877 | AG166: 1728.489251 | AH166: -288.1016256 | AI166: -0.1428656794 | AK166: 2030.658045 | AL166: 1754.571387 | AM166: -276.0866577 | AN166: -0.1359592071 | AP166: 1969.445255 | AQ166: =Y166 -> 1887.785061 | AR166: -81.66019399 | AS166: -0.04146355111
D168: Network Reinforcement total | AF168: Baseline Allowance v Actual | AK168: Baseline Allowance v Actual | AP168: Baseline Allowance v Actual | AU168: Baseline Allowance v Actual | AZ168: Baseline Allowance v Actual | BE168: Baseline Allowance v Actual | BJ168: Baseline Allowance v Actual | BO168: Baseline Allowance v Actual
E169: DNO Forecast (£m) - DNO Business Plan Data Templates | N169: DNO Baseline (£m) | W169: DNO Actual (£m) | AF169: Allowance | AG169: Actual | AH169: Difference | AK169: Allowance | AL169: Actual | AM169: Difference | AP169: Allowance | AQ169: Actual | AR169: Difference | AU169: Allowance | AV169: Actual | AW169: Difference | AZ169: Allowance | BA169: Actual | BB169: Difference | BE169: Allowance | BF169: Actual | BG169: Difference | BJ169: Allowance | BK169: Actual | BL169: Difference | BO169: Allowance | BP169: Actual | BQ169: Difference
E170: 2015/16 | F170: 2016/17 | G170: 2017/18 | H170: 2018/19 | I170: 2019/20 | J170: 2020/21 | K170: 2021/22 | L170: 2022/23 | N170: 2015/16 | O170: 2016/17 | P170: 2017/18 | Q170: 2018/19 | R170: 2019/20 | S170: 2020/21 | T170: 2021/22 | U170: 2022/23 | W170: 2015/16 | X170: 2016/17 | Y170: 2017/18 | Z170: 2018/19 | AA170: 2019/20 | AB170: 2020/21 | AC170: 2021/22 | AD170: 2022/23 | AF170: £ | AG170: £ | AH170: £ | AI170: % | AK170: £ | AL170: £ | AM170: £ | AN170: % | AP170: £ | AQ170: £ | AR170: £ | AS170: % | AU170: £ | AV170: £ | AW170: £ | AX170: % | AZ170: £ | BA170: £ | BB170: £ | BC170: % | BE170: £ | BF170: £ | BG170: £ | BH170: % | BJ170: £ | BK170: £ | BL170: £ | BM170: % | BO170: £ | BP170: £ | BQ170: £ | BR170: %
D171: ENWL | E171: =SUM(E294,E314,E334) -> 16.91826006 | F171: =SUM(F294,F314,F334) -> 21.58113596 | G171: 14.75570177 | H171: 19.37623283 | I171: 18.64148914 | J171: 20.71887073 | K171: 28.0887393 | L171: 25.12650637 | N171: =SUM(N294,N314,N334) -> 16.7050076 | O171: =SUM(O294,O314,O334) -> 20.9000868 | P171: 13.97272609 | Q171: 18.08639795 | R171: 17.04643725 | S171: 18.50867982 | T171: 24.95918529 | U171: 21.78369113 | W171: =SUM(W294,W314,W334) -> 11.25712183 | X171: =SUM(X294,X314,X334) -> 2.924843908 | Y171: =SUM(Y294,Y314,Y334) -> 3.917339276 | Z171: 0 | AA171: 0 | AB171: 0 | AC171: 0 | AD171: 0 | AF171: =N171 -> 16.7050076 | AG171: =W171 -> 11.25712183 | AH171: =AG171-AF171 -> -5.447885778 | AI171: =AH171/AF171 -> -0.3261229152 | AK171: =O171 -> 20.9000868 | AL171: =X171 -> 2.924843908 | AM171: =AL171-AK171 -> -17.9752429 | AN171: =AM171/AK171 -> -0.8600558967 | AP171: =P171 -> 13.97272609 | AQ171: =Y171 -> 3.917339276 | AR171: =AQ171-AP171 -> -10.05538681 | AS171: =AR171/AP171 -> -0.7196438797
D172: NPgN | E172: =SUM(E295,E315,E335) -> 23.27703913 | F172: 20.39342193 | G172: 17.14874073 | H172: 16.35301267 | I172: 20.30006945 | J172: 16.97559522 | K172: 10.49020397 | L172: 10.23375175 | N172: =SUM(N295,N315,N335) -> 21.19766844 | O172: =SUM(O295,O315,O335) -> 18.44135823 | P172: 15.38763662 | Q172: 14.56904147 | R172: 17.94078132 | S172: 14.90106751 | T172: 9.155672595 | U172: 8.867775205 | W172: =SUM(W295,W315,W335) -> 17.45725754 | X172: 12.75656583 | Y172: 9.873936182 | Z172: 0 | AA172: 0 | AB172: 0 | AC172: 0 | AD172: 0 | AF172: =N172 -> 21.19766844 | AG172: =W172 -> 17.45725754 | AH172: =AG172-AF172 -> -3.740410897 | AI172: =AH172/AF172 -> -0.1764538825 | AK172: 18.44135823 | AL172: 12.75656583 | AM172: =AL172-AK172 -> -5.684792396 | AN172: =AM172/AK172 -> -0.3082632161 | AP172: =P172 -> 15.38763662 | AQ172: =Y172 -> 9.873936182 | AR172: =AQ172-AP172 -> -5.51370044 | AS172: =AR172/AP172 -> -0.3583201615
D173: NPgY | E173: =SUM(E296,E316,E336) -> 9.413358509 | F173: 12.22039494 | G173: 12.73580775 | H173: 17.3851026 | I173: 22.93701296 | J173: 18.82586156 | K173: 14.80782582 | L173: 17.6916137 | N173: 9.057899491 | O173: 11.65786231 | P173: 12.05545935 | Q173: 16.30026922 | R173: 21.31354023 | S173: 17.37671573 | T173: 13.57744663 | U173: 16.08063125 | W173: =SUM(W296,W316,W336) -> 15.49454723 | X173: 10.12514465 | Y173: 8.939585147 | Z173: 0 | AA173: 0 | AB173: 0 | AC173: 0 | AD173: 0 | AF173: 9.057899491 | AG173: 15.49454723 | AH173: 6.436647741 | AI173: 0.7106115216 | AK173: 11.65786231 | AL173: 10.12514465 | AM173: -1.532717654 | AN173: -0.1314750178 | AP173: 12.05545935 | AQ173: 8.939585147 | AR173: -3.115874207 | AS173: -0.2584616741
D174: WMID | E174: =SUM(E297,E317,E337) -> 26.64271274 | F174: 27.63234002 | G174: 26.31579273 | H174: 31.24295057 | I174: 33.85647102 | J174: 30.57881109 | K174: 34.93692776 | L174: 39.61287889 | N174: 26.64271274 | O174: 27.63234002 | P174: 26.31579273 | Q174: 31.24295057 | R174: 33.85647102 | S174: 30.57881109 | T174: 34.93692776 | U174: 39.61287889 | W174: =SUM(W297,W317,W337) -> 36.26268297 | X174: 18.97908015 | Y174: 17.5724 | Z174: 0 | AA174: 0 | AB174: 0 | AC174: 0 | AD174: 0 | AF174: 26.64271274 | AG174: 36.26268297 | AH174: 9.619970232 | AI174: 0.3610732258 | AK174: 27.63234002 | AL174: 18.97908015 | AM174: -8.653259871 | AN174: -0.3131569699 | AP174: 26.31579273 | AQ174: 17.5724 | AR174: -8.74339273 | AS174: -0.3322488826
D175: EMID | E175: =SUM(E298,E318,E338) -> 59.1564553 | F175: 52.05047742 | G175: 23.59346139 | H175: 31.03833241 | I175: 28.92385394 | J175: 38.35141649 | K175: 53.68997901 | L175: 47.07596017 | N175: 59.1564553 | O175: 52.05047742 | P175: 23.59346139 | Q175: 31.03833241 | R175: 28.92385394 | S175: 38.35141649 | T175: 53.68997901 | U175: 47.07596017 | W175: =SUM(W298,W318,W338) -> 50.54813324 | X175: 36.43834 | Y175: 36.334 | Z175: 0 | AA175: 0 | AB175: 0 | AC175: 0 | AD175: 0 | AF175: 59.1564553 | AG175: 50.54813324 | AH175: -8.608322057 | AI175: -0.1455178816 | AK175: 52.05047742 | AL175: 36.43834 | AM175: -15.61213742 | AN175: -0.2999422522 | AP175: 23.59346139 | AQ175: 36.334 | AR175: 12.74053861 | AS175: 0.5400029442
D176: SWALES | E176: =SUM(E299,E319,E339) -> 4.53417874 | F176: 4.503803239 | G176: 5.472918365 | H176: 11.53081754 | I176: 10.75725635 | J176: 10.57423988 | K176: 7.138003993 | L176: 7.269657108 | N176: 4.53417874 | O176: 4.503803239 | P176: 5.472918365 | Q176: 11.53081754 | R176: 10.75725635 | S176: 10.57423988 | T176: 7.138003993 | U176: 7.269657108 | W176: =SUM(W299,W319,W339) -> 6.658306453 | X176: 3.992407119 | Y176: 5.0813 | Z176: 0 | AA176: 0 | AB176: 0 | AC176: 0 | AD176: 0 | AF176: 4.53417874 | AG176: 6.658306453 | AH176: 2.124127713 | AI176: 0.4684702202 | AK176: 4.503803239 | AL176: 3.992407119 | AM176: -0.5113961206 | AN176: -0.113547616 | AP176: 5.472918365 | AQ176: 5.0813 | AR176: -0.3916183649 | AS176: -0.07155567447
D177: SWEST | E177: =SUM(E300,E320,E340) -> 6.474600619 | F177: 7.314607061 | G177: 9.128234961 | H177: 15.41562504 | I177: 16.46892043 | J177: 16.40481588 | K177: 17.36472863 | L177: 19.22446685 | N177: 6.474600619 | O177: 7.314607061 | P177: 9.128234961 | Q177: 15.41562504 | R177: 16.46892043 | S177: 16.40481588 | T177: 17.36472863 | U177: 19.22446685 | W177: =SUM(W300,W320,W340) -> 9.454085198 | X177: 11.4158734 | Y177: 16.5876 | Z177: 0 | AA177: 0 | AB177: 0 | AC177: 0 | AD177: 0 | AF177: 6.474600619 | AG177: 9.454085198 | AH177: 2.979484579 | AI177: 0.4601804427 | AK177: 7.314607061 | AL177: 11.4158734 | AM177: 4.101266335 | AN177: 0.5606953731 | AP177: 9.128234961 | AQ177: 16.5876 | AR177: 7.459365039 | AS177: 0.81717496
D178: LPN | E178: =SUM(E301,E321,E341) -> 57.01898677 | F178: 53.7011127 | G178: 58.73197533 | H178: 54.16049879 | I178: 62.62233159 | J178: 61.71632306 | K178: 54.92268923 | L178: 54.54633245 | N178: 51.38103172 | O178: 47.80694079 | P178: 51.66835848 | Q178: 47.07113547 | R178: 53.89575429 | S178: 52.51195481 | T178: 46.07222206 | U178: 45.19288426 | W178: =SUM(W301,W321,W341) -> 16.26345359 | X178: 28.62734283 | Y178: 30.48038897 | Z178: 0 | AA178: 0 | AB178: 0 | AC178: 0 | AD178: 0 | AF178: 51.38103172 | AG178: 16.26345359 | AH178: -35.11757813 | AI178: -0.6834735884 | AK178: 47.80694079 | AL178: 28.62734283 | AM178: -19.17959796 | AN178: -0.4011885647 | AP178: 51.66835848 | AQ178: 30.48038897 | AR178: -21.18796951 | AS178: -0.4100763046
D179: SPN | E179: =SUM(E302,E322,E342) -> 30.34178076 | F179: 39.95565668 | G179: 41.54854775 | H179: 30.79705819 | I179: 25.34457644 | J179: 25.27670783 | K179: 33.57233806 | L179: 31.50791375 | N179: 29.34198727 | O179: 38.29442645 | P179: 39.49649328 | Q179: 29.07165042 | R179: 23.73902441 | S179: 23.47668022 | T179: 30.92970641 | U179: 28.78830927 | W179: =SUM(W302,W322,W342) -> 7.505883194 | X179: 15.1371212 | Y179: 13.31806921 | Z179: 0 | AA179: 0 | AB179: 0 | AC179: 0 | AD179: 0 | AF179: 29.34198727 | AG179: 7.505883194 | AH179: -21.83610407 | AI179: -0.7441930867 | AK179: 38.29442645 | AL179: 15.1371212 | AM179: -23.15730525 | AN179: -0.6047173805 | AP179: 39.49649328 | AQ179: 13.31806921 | AR179: -26.17842407 | AS179: -0.6628037553
D180: EPN | E180: =SUM(E303,E323,E343) -> 45.49331724 | F180: 49.99733572 | G180: 50.33943231 | H180: 44.6111312 | I180: 48.42126876 | J180: 54.18365397 | K180: 57.70173444 | L180: 52.50328 | N180: 48.45293738 | O180: 52.38319359 | P180: 51.88482371 | Q180: 45.08533007 | R180: 48.20437943 | S180: 53.26212314 | T180: 55.96514473 | U180: 49.8145917 | W180: =SUM(W303,W323,W343) -> 19.6016108 | X180: 19.59096372 | Y180: 27.23380614 | Z180: 0 | AA180: 0 | AB180: 0 | AC180: 0 | AD180: 0 | AF180: 48.45293738 | AG180: 19.6016108 | AH180: -28.85132657 | AI180: -0.5954505162 | AK180: 52.38319359 | AL180: 19.59096372 | AM180: -32.79222988 | AN180: -0.6260066947 | AP180: 51.88482371 | AQ180: 27.23380614 | AR180: -24.65101757 | AS180: -0.4751103658
D181: SPD | E181: =SUM(E304,E324,E344) -> 19.77662195 | F181: 22.78410438 | G181: 28.72525984 | H181: 23.44523849 | I181: 18.79493673 | J181: 18.66167178 | K181: 20.32105434 | L181: 19.40751823 | N181: 20.69879045 | O181: 22.98288924 | P181: 28.21364868 | Q181: 22.12391961 | R181: 16.66542503 | S181: 15.74350945 | T181: 16.57345137 | U181: 14.8916032 | W181: =SUM(W304,W324,W344) -> 11.12724974 | X181: 11.20873698 | Y181: 19.23696951 | Z181: 0 | AA181: 0 | AB181: 0 | AC181: 0 | AD181: 0 | AF181: 20.69879045 | AG181: 11.12724974 | AH181: -9.571540713 | AI181: -0.4624202914 | AK181: 22.98288924 | AL181: 11.20873698 | AM181: -11.77415226 | AN181: -0.5123007877 | AP181: 28.21364868 | AQ181: 19.23696951 | AR181: -8.976679169 | AS181: -0.3181679645
D182: SPMW | E182: =SUM(E305,E325,E345) -> 32.1882526 | F182: 27.90269892 | G182: 24.18504709 | H182: 19.94878311 | I182: 19.12020612 | J182: 30.2097461 | K182: 32.01574712 | L182: 25.88452847 | N182: 31.42616228 | O182: 26.57334502 | P182: 22.29377088 | Q182: 17.61220762 | R182: 16.14136695 | S182: 25.74717937 | T182: 26.60850894 | U182: 20.20707396 | W182: =SUM(W305,W325,W345) -> 25.95046184 | X182: 21.92641575 | Y182: 19.95953994 | Z182: 0 | AA182: 0 | AB182: 0 | AC182: 0 | AD182: 0 | AF182: 31.42616228 | AG182: 25.95046184 | AH182: -5.47570044 | AI182: -0.1742401885 | AK182: 26.57334502 | AL182: 21.92641575 | AM182: -4.646929271 | AN182: -0.1748718224 | AP182: 22.29377088 | AQ182: 19.95953994 | AR182: -2.33423094 | AS182: -0.1047032802
D183: SSEH | E183: =SUM(E306,E326,E346) -> 10.94121829 | F183: 13.14284199 | G183: 17.79193969 | H183: 19.0932877 | I183: 24.4783364 | J183: 23.97644198 | K183: 29.01481817 | L183: 27.44493966 | N183: 9.898345937 | O183: 11.85430019 | P183: 15.96569407 | Q183: 17.1083937 | R183: 21.7533515 | S183: 21.21121981 | T183: 25.45807444 | U183: 23.97896226 | W183: =SUM(W306,W326,W346) -> 4.57862896 | X183: 9.487160707 | Y183: 7.938097958 | Z183: 0 | AA183: 0 | AB183: 0 | AC183: 0 | AD183: 0 | AF183: 9.898345937 | AG183: 4.57862896 | AH183: -5.319716977 | AI183: -0.5374349423 | AK183: 11.85430019 | AL183: 9.487160707 | AM183: -2.367139482 | AN183: -0.199686143 | AP183: 15.96569407 | AQ183: 7.938097958 | AR183: -8.027596115 | AS183: -0.502802827
D184: SSES | E184: =SUM(E307,E327,E347) -> 32.76456111 | F184: 42.19403776 | G184: 34.29128477 | H184: 39.522681 | I184: 24.95287762 | J184: 37.50710208 | K184: 52.96697284 | L184: 47.13576059 | N184: 29.07621286 | O184: 36.85239662 | P184: 29.52406649 | Q184: 33.65016352 | R184: 20.630517 | S184: 30.87246108 | T184: 43.4137043 | U184: 37.92315895 | W184: =SUM(W307,W327,W347) -> 16.53733284 | X184: 15.91940446 | Y184: 24.15562053 | Z184: 0 | AA184: 0 | AB184: 0 | AC184: 0 | AD184: 0 | AF184: 29.07621286 | AG184: 16.53733284 | AH184: -12.53888002 | AI184: -0.4312418566 | AK184: 36.85239662 | AL184: 15.91940446 | AM184: -20.93299216 | AN184: -0.5680225461 | AP184: 29.52406649 | AQ184: 24.15562053 | AR184: -5.368445961 | AS184: -0.1818328774
D185: Total | E185: =SUM(E171:E184) -> 374.9413438 | F185: 395.3739687 | G185: 364.7641445 | H185: 373.9207521 | I185: 375.6196069 | J185: 403.9612576 | K185: 447.0317627 | L185: 424.665108 | N185: =SUM(N171:N184) -> 364.0439908 | O185: 379.248027 | P185: 344.9730851 | Q185: 349.9062346 | R185: 347.3370792 | S185: 369.5208743 | T185: 405.8427562 | U185: 380.7116442 | W185: =SUM(W171:W184) -> 248.6967554 | X185: 218.5294007 | Y185: =SUM(Y171:Y184) -> 240.6286529 | Z185: 0 | AA185: 0 | AB185: 0 | AC185: 0 | AD185: 0 | AF185: 364.0439908 | AG185: 248.6967554 | AH185: -115.3472354 | AI185: -0.3168497168 | AK185: 379.248027 | AL185: 218.5294007 | AM185: -160.7186263 | AN185: -0.4237823663 | AP185: 344.9730851 | AQ185: 240.6286529 | AR185: -104.3444322 | AS185: -0.3024712267
D186: Total Slow Track | E186: =E185-SUM(E174:E177) -> 278.1333964 | F186: 303.872741 | G186: 300.253737 | H186: 284.6930266 | I186: 285.6131052 | J186: 308.0519743 | K186: 333.9021233 | L186: 311.482145 | N186: =N185-SUM(N174:N177) -> 267.2360434 | O186: 287.7467992 | P186: 280.4626776 | Q186: 260.6785091 | R186: 257.3305774 | S186: 273.6115909 | T186: 292.7131168 | U186: 267.5286812 | W186: =W185-SUM(W174:W177) -> 145.7735476 | X186: 147.7037 | Y186: =Y185-SUM(Y174:Y177) -> 165.0533529 | Z186: 0 | AA186: 0 | AB186: 0 | AC186: 0 | AD186: 0 | AF186: 267.2360434 | AG186: 145.7735476 | AH186: -121.4624959 | AI186: -0.4545138983 | AK186: 287.7467992 | AL186: 147.7037 | AM186: -140.0430992 | AN186: -0.4866886429 | AP186: 280.4626776 | AQ186: =Y186 -> 165.0533529 | AR186: -115.4093248 | AS186: -0.4114961954
D188: Replacing & refurbishing equipment total
E189: DNO Forecast (£m) - DNO Business Plan Data Templates | N189: DNO Baseline (£m) | W189: DNO Actual (£m) | AF189: Allowance | AG189: Actual | AH189: Difference | AK189: Allowance | AL189: Actual | AM189: Difference | AP189: Allowance | AQ189: Actual | AR189: Difference | AU189: Allowance | AV189: Actual | AW189: Difference | AZ189: Allowance | BA189: Actual | BB189: Difference | BE189: Allowance | BF189: Actual | BG189: Difference | BJ189: Allowance | BK189: Actual | BL189: Difference | BO189: Allowance | BP189: Actual | BQ189: Difference
E190: 2015/16 | F190: 2016/17 | G190: 2017/18 | H190: 2018/19 | I190: 2019/20 | J190: 2020/21 | K190: 2021/22 | L190: 2022/23 | N190: 2015/16 | O190: 2016/17 | P190: 2017/18 | Q190: 2018/19 | R190: 2019/20 | S190: 2020/21 | T190: 2021/22 | U190: 2022/23 | W190: 2015/16 | X190: 2016/17 | Y190: 2017/18 | Z190: 2018/19 | AA190: 2019/20 | AB190: 2020/21 | AC190: 2021/22 | AD190: 2022/23 | AF190: £ | AG190: £ | AH190: £ | AI190: % | AK190: £ | AL190: £ | AM190: £ | AN190: % | AP190: £ | AQ190: £ | AR190: £ | AS190: % | AU190: £ | AV190: £ | AW190: £ | AX190: % | AZ190: £ | BA190: £ | BB190: £ | BC190: % | BE190: £ | BF190: £ | BG190: £ | BH190: % | BJ190: £ | BK190: £ | BL190: £ | BM190: % | BO190: £ | BP190: £ | BQ190: £ | BR190: %
D191: ENWL | E191: =SUM(E394,E414,E434,E494,E594) -> 82.97336455 | F191: =SUM(F394,F414,F434,F494,F594) -> 75.19940339 | G191: 83.8547365 | H191: 77.18515569 | I191: 88.59262741 | J191: 86.68614203 | K191: 87.01581111 | L191: 84.21569245 | N191: =SUM(N394,N414,N434,N494,N594) -> 83.10447362 | O191: =SUM(O394,O414,O434,O494,O594) -> 74.11429611 | P191: 81.14070491 | Q191: 76.72317795 | R191: 82.08894633 | S191: 81.46143841 | T191: 80.86660484 | U191: 78.37975061 | W191: =SUM(W394,W414,W434,W494,W594) -> 59.64880886 | X191: 60.21599909 | Y191: =SUM(Y394,Y414,Y434,Y494,Y594) -> 69.62408928 | Z191: 0 | AA191: 0 | AB191: 0 | AC191: 0 | AD191: 0 | AF191: =N191 -> 83.10447362 | AG191: =W191 -> 59.64880886 | AH191: =AG191-AF191 -> -23.45566476 | AI191: =AH191/AF191 -> -0.282243106 | AK191: =O191 -> 74.11429611 | AL191: =X191 -> 60.21599909 | AM191: =AL191-AK191 -> -13.89829702 | AN191: =AM191/AK191 -> -0.1875251841 | AP191: =P191 -> 81.14070491 | AQ191: =Y191 -> 69.62408928 | AR191: =AQ191-AP191 -> -11.51661563 | AS191: =AR191/AP191 -> -0.1419338869
D192: NPgN | E192: =SUM(E395,E415,E435,E495,E595) -> 61.57629164 | F192: 63.94130539 | G192: 59.46833596 | H192: 59.41938241 | I192: 58.17105575 | J192: 49.40452253 | K192: 42.81725491 | L192: 43.3286471 | N192: =SUM(N395,N415,N435,N495,N595) -> 61.47853194 | O192: =SUM(O395,O415,O435,O495,O595) -> 60.29939069 | P192: 53.23393193 | Q192: 52.45229173 | R192: 49.70149885 | S192: 42.43927012 | T192: 37.05952353 | U192: 37.20370952 | W192: =SUM(W395,W415,W435,W495,W595) -> 53.96906945 | X192: 58.38236918 | Y192: 45.27096675 | Z192: 0 | AA192: 0 | AB192: 0 | AC192: 0 | AD192: 0 | AF192: =N192 -> 61.47853194 | AG192: =W192 -> 53.96906945 | AH192: =AG192-AF192 -> -7.509462496 | AI192: =AH192/AF192 -> -0.1221477198 | AK192: 60.29939069 | AL192: 58.38236918 | AM192: =AL192-AK192 -> -1.917021505 | AN192: =AM192/AK192 -> -0.03179172265 | AP192: =P192 -> 53.23393193 | AQ192: =Y192 -> 45.27096675 | AR192: =AQ192-AP192 -> -7.962965171 | AS192: =AR192/AP192 -> -0.1495843888
D193: NPgY | E193: =SUM(E396,E416,E436,E496,E596) -> 81.57945923 | F193: 80.12232498 | G193: 80.26490525 | H193: 81.51079953 | I193: 70.11116956 | J193: 68.07412387 | K193: 56.33072133 | L193: 65.49563591 | N193: 77.55758811 | O193: 74.81890897 | P193: 71.86379551 | Q193: 70.42271317 | R193: 58.87486337 | S193: 56.78503894 | T193: 47.2899914 | U193: 53.12784017 | W193: =SUM(W396,W416,W436,W496,W596) -> 60.35616675 | X193: 53.67730295 | Y193: 50.29137826 | Z193: 0 | AA193: 0 | AB193: 0 | AC193: 0 | AD193: 0 | AF193: 77.55758811 | AG193: 60.35616675 | AH193: -17.20142135 | AI193: -0.2217890186 | AK193: 74.81890897 | AL193: 53.67730295 | AM193: -21.14160601 | AN193: -0.2825703596 | AP193: 71.86379551 | AQ193: 50.29137826 | AR193: -21.57241725 | AS193: -0.3001847745
D194: WMID | E194: =SUM(E397,E417,E437,E497,E597) -> 78.22198536 | F194: 79.74641997 | G194: 75.54513279 | H194: 76.7997896 | I194: 77.18289774 | J194: 77.76772187 | K194: 78.40966382 | L194: 78.51633745 | N194: 78.22198536 | O194: 79.74641997 | P194: 75.54513279 | Q194: 76.7997896 | R194: 77.18289774 | S194: 77.76772187 | T194: 78.40966382 | U194: 78.51633745 | W194: =SUM(W397,W417,W437,W497,W597) -> 76.14968448 | X194: 82.48433033 | Y194: 68.4312 | Z194: 0 | AA194: 0 | AB194: 0 | AC194: 0 | AD194: 0 | AF194: 78.22198536 | AG194: 76.14968448 | AH194: -2.072300871 | AI194: -0.02649256295 | AK194: 79.74641997 | AL194: 82.48433033 | AM194: 2.737910355 | AN194: 0.03433270554 | AP194: 75.54513279 | AQ194: 68.4312 | AR194: -7.113932787 | AS194: -0.09416798309
D195: EMID | E195: =SUM(E398,E418,E438,E498,E598) -> 67.68904857 | F195: 68.17340786 | G195: 63.20089898 | H195: 63.87730025 | I195: 64.28605415 | J195: 65.82525582 | K195: 66.49194817 | L195: 67.00541381 | N195: 67.68904857 | O195: 68.17340786 | P195: 63.20089898 | Q195: 63.87730025 | R195: 64.28605415 | S195: 65.82525582 | T195: 66.49194817 | U195: 67.00541381 | W195: =SUM(W398,W418,W438,W498,W598) -> 66.61856278 | X195: 78.55427215 | Y195: 60.4966 | Z195: 0 | AA195: 0 | AB195: 0 | AC195: 0 | AD195: 0 | AF195: 67.68904857 | AG195: 66.61856278 | AH195: -1.070485791 | AI195: -0.01581475606 | AK195: 68.17340786 | AL195: 78.55427215 | AM195: 10.38086429 | AN195: 0.1522714592 | AP195: 63.20089898 | AQ195: 60.4966 | AR195: -2.704298979 | AS195: -0.04278893217
